Workbook

Sheet Measure Table
A1: EPA CPRG Measure | B1: Community | C1: Project Description | D1: Project Target | E1: Units | F1: Baseline Annual GHG Emissions (lbs) | G1: Baseline Annual GHG Emissions (MTCO2e) | H1: Annual Diesel Fuel Reduction Equivalents (gal) | I1: Annual GHG Emissions Reductions (lbs) | J1: Estimated Annual Cost Savings | K1: Estimated Total Cost to Implement | L1: Simple Payback (years) | M1: Authority to Implement | N1: GHG Emissions Reductions (MTCO2e) | O1: Near Term / Long Term | P1: Long Term (2031 - 2050) | Q1: Near Term - 2030 GHG Reductions (MTCO2e) | R1: Long Term - 2050 GHG Reductions (MTCO2e)
A2: Other | B2: ** Measures with "N/A" means the community currently exceeds the quantified methods for GHG emission reductions or the area does not have a viable resource.
A3: Other | B3: *These communities have under reported kWh generation and diesel consumption. It is very likely Energy Retrofits or Renewable Energy Power Generation would reduce more GHG emissions than what is calculated.
A4: Residential Energy Efficiency | B4: Chignik Bay | C4: Individual home retrofits | D4: ='Residential EE'!B4 -> 47 | F4: ='Residential EE'!T4 -> 981679.3208 | G4: =F4*0.000453592 -> 445.2818865 | H4: ='Residential EE'!U4 -> 7634.536396 | I4: ='Residential EE'!V4 -> 171395.3421 | J4: ='Residential EE'!W4 -> 49204.674 | K4: ='Residential EE'!X4 -> 1692000 | L4: ='Residential EE'!Y4 -> 34.38697714 | M4: ='Residential EE'!Z4 -> Housing Authority, Tribe, City | O4: Near Term | P4: ='Residential EE'!AA4 -> Near Term | Q4: =I4*0.000453592 -> 77.74355601 | R4: 0
A5: Commercial Building Energy Efficiency | B5: Chignik Bay | C5: Building retrofits | D5: ='Community & Other EE'!D38 -> 49 | F5: =Measures!J5/Measures!G5*22.45 -> 1318310.804 | G5: =F5*0.000453592 -> 597.9752342 | H5: =Measures!AV5 -> 26535.27529 | I5: =Measures!AY5 -> 595716.9302 | J5: =Measures!AX5 -> 136846.0112 | K5: ='Community & Other EE'!Z38 -> 2082500 | L5: =Measures!AW5 -> 15.21783487 | M5: ='Community & Other EE'!AB38 -> Building Owner | O5: Near Term | P5: ='Community & Other EE'!AC38 -> Near Term | Q5: =I5*0.000453592 -> 270.2124338 | R5: 0
A6: Community Building Energy Efficiency | B6: Chignik Bay | C6: Building retrofits | D6: ='Community & Other EE'!D4 -> 10 | F6: ='Community & Other EE'!V4 -> 1030170.713 | G6: =F6*0.000453592 -> 467.277194 | H6: =Measures!AN5 -> 8108.589283 | I6: =Measures!AQ5 -> 182037.8294 | J6: =Measures!AP5 -> 38007.86231 | K6: =Measures!AM5 -> 500000 | L6: =Measures!AO5 -> 13.15517289 | M6: =Measures!AR5 -> City, Tribe | O6: Near Term | P6: =Measures!AS5 -> Near Term | Q6: =I6*0.000453592 -> 82.57090312 | R6: 0
A7: Community Scale Solar | B7: Chignik Bay | C7: New System | D7: =Solar!M4 -> 189.5492341 | F7: =Solar!X4 -> 1318310.804 | G7: =F7*0.000453592 -> 597.9752342 | H7: =Measures!T5 -> 17616.62544 | I7: =Measures!X5 -> 395493.2412 | J7: =Measures!V5 -> 21316.11678 | K7: =Measures!U5 -> 1813946.936 | L7: =Measures!W5 -> 85.09743846 | M7: =Measures!Y5 -> Utility, IPP, Tribe | O7: Near Term | P7: =Measures!Z5 -> Near Term | Q7: =I7*0.000453592 -> 179.3925702 | R7: 0
A8: Community Scale Wind | B8: Chignik Bay | C8: One, new system | D8: =Wind!S5 -> 200 | F8: =Wind!AL5 -> 1461945.132 | G8: =F8*0.000453592 -> 663.1266162 | H8: =Measures!AE5 -> 23488.83392 | I8: =Measures!AI5 -> 670958.6495 | J8: =Measures!AH5 -> 61754.88987 | K8: =Measures!AF5 -> 2805750 | L8: =Measures!AG5 -> 45.43364916 | M8: =Measures!AJ5 -> Utility, IPP | O8: Long Term | P8: =Measures!AK5 -> Long Term | Q8: 0 | R8: =I8*0.000453592 -> 304.3414757
A9: Electric Utility Upgrades - Line Loss | B9: Chignik Bay | C9: N/A | D9: N/A | F9: ='Utility Line Loss'!L4 -> N/A | G9: N/A | H9: =Measures!BK5 -> N/A | I9: =Measures!BN5 -> N/A | J9: =Measures!BM5 -> N/A | K9: =Measures!BJ5 -> N/A | L9: =Measures!BL5 -> N/A | M9: =Measures!BO5 -> N/A | O9: N/A | Q9: N/A | R9: N/A
A10: Electric Utility Efficiency Upgrades - Gen Sets & Controls | B10: Chignik Bay | C10: Upgrade existing equipment | D10: to meet 14% efficiency | F10: ='Utility Infrastructure'!X5 -> 1318310.804 | G10: =F10*0.000453592 -> 597.9752342 | H10: =Measures!BR5 -> 11241.08481 | I10: =Measures!BU5 -> 1065948.45 | J10: =Measures!BT5 -> 13601.71261 | K10: ='Utility Infrastructure'!R5 -> 1160000 | L10: =Measures!BS5 -> 85.28337812 | M10: =Measures!BV5 -> Utility | O10: Near Term | P10: =Measures!BW5 -> Near Term | Q10: =I10*0.000453592 -> 483.5056893 | R10: 0
A11: Electric Utility Upgrades - Heat Recovery | B11: Chignik Bay | C11: Install new system | D11: to displace 10% fuel consumption | F11: =Measures!J5/Measures!G5*22.45 -> 1318310.804 | G11: 597.9752342 | H11: =Measures!BY5 -> 1174.441696 | I11: =Measures!CB5 -> 131831.0804 | J11: =Measures!CA5 -> 6118.841237 | K11: =Measures!BX5 -> 2000000 | L11: =Measures!BZ5 -> 65.37185466 | M11: =Measures!BV5 -> Utility | O11: Near Term | P11: ='Heat Recovery'!U5 -> long term | Q11: 59.79752342 | R11: 0
A12: Residential Energy Efficiency | B12: Chignik Lagoon | C12: Individual home retrofits | D12: ='Residential EE'!B5 -> 69 | F12: ='Residential EE'!T5 -> 1468865.851 | G12: 666.2657992 | H12: ='Residential EE'!U12 -> 5011.014559 | I12: ='Residential EE'!V12 -> 112497.2769 | J12: ='Residential EE'!V5 -> 254390.6551 | K12: ='Residential EE'!W5 -> 140740.722 | L12: ='Residential EE'!X5 -> 2484000 | M12: ='Residential EE'!Z5 -> Housing Authority, Tribe, City | N12: ='Residential EE'!Z5 -> Housing Authority, Tribe, City | O12: Near Term | P12: ='Residential EE'!AA5 -> Near Term | Q12: 51.0278648 | R12: 0
A13: Commercial Building Energy Efficiency | B13: Chignik Lagoon | C13: Building retrofits | D13: ='Community & Other EE'!D39 -> 14 | F13: =Measures!J6/Measures!G6*22.45 -> 777634.4232 | G13: 352.7287533 | H13: =Measures!AV6 -> 7775.233853 | I13: =Measures!AY6 -> 174554 | J13: =Measures!AX6 -> 59094.74866 | K13: ='Community & Other EE'!Z39 -> 595000 | L13: =Measures!AW6 -> 10.06857654 | M13: ='Community & Other EE'!AB39 -> Building Owner | O13: Near Term | P13: ='Community & Other EE'!AC39 -> Near Term | Q13: 79.17629797 | R13: 0
A14: Community Building Energy Efficiency | B14: Chignik Lagoon | C14: Building retrofits | D14: ='Community & Other EE'!D5 -> 7 | F14: ='Community & Other EE'!V5 -> 623443.9902 | G14: 282.7892064 | H14: =Measures!AN6 -> 5240.932281 | I14: =Measures!AQ6 -> 117658.9297 | J14: =Measures!AP6 -> 38799.76143 | K14: =Measures!AM6 -> 350000 | L14: =Measures!AO6 -> 9.020674022 | M14: =Measures!AR6 -> City, Tribe | O14: Near Term | P14: =Measures!AS6 -> Near Term | Q14: 53.36914924 | R14: 0
A15: Community Scale Solar | B15: Chignik Lagoon | C15: New System | D15: =Solar!M5 -> 124.1562397 | F15: =Solar!X5 -> 777634.4232 | G15: 352.7287533 | H15: =Measures!T6 -> 10391.55131 | I15: =Measures!X6 -> 233290.327 | J15: =Measures!V6 -> 31798.14702 | K15: =Measures!U6 -> 885074.9587 | L15: =Measures!W6 -> 27.83416776 | M15: =Measures!Y6 -> Utility, IPP, Tribe | O15: Near Term | P15: =Measures!Z6 -> Near Term | Q15: 105.818626 | R15: 0
A16: Community Scale Wind | B16: Chignik Lagoon | C16: N/A | D16: =Wind!S6 -> N/A | F16: =Wind!AL6 -> 0 | G16: N/A | H16: =Measures!AE6 -> N/A | I16: =Measures!AI6 -> N/A | J16: N/A | K16: =Measures!AF6 -> N/A | L16: =Measures!AG6 -> N/A | M16: N/A | O16: N/A | P16: =Measures!AK6 -> 0 | Q16: N/A | R16: N/A
A17: Electric Utility Upgrades - Line Loss | B17: Chignik Lagoon | C17: Upgrade existing equipment | D17: to drop line loss below 6% | F17: ='Utility Line Loss'!L5 -> 94093.76521 | G17: =F17*0.000453592 -> 42.68017915 | H17: =Measures!BK6 -> 2112.948767 | I17: =Measures!BN6 -> 46658.06539 | J17: =Measures!BM6 -> 6465.623227 | K17: =Measures!BJ6 -> 75000 | L17: =Measures!BL6 -> 11.59980985 | M17: =Measures!BO6 -> Utility | O17: Near Term | P17: =Measures!BP6 -> Near Term | Q17: =I17*0.000453592 -> 21.1637252 | R17: 0
A18: Electric Utility Efficiency Upgrades - Gen Sets & Controls | B18: Chignik Lagoon | C18: Upgrade existing equipment | D18: to meet 14% efficiency | F18: ='Utility Infrastructure'!X6 -> 777634.4232 | G18: 352.7287533 | H18: =Measures!BR6 -> 3538.075804 | I18: =Measures!BU6 -> 698204.6214 | J18: =Measures!BT6 -> 10826.51196 | K18: ='Utility Infrastructure'!R6 -> 1185000 | L18: =Measures!BS6 -> 109.4535345 | M18: =Measures!BV6 -> Utility | O18: Near Term | P18: =Measures!BW6 -> Near Term | Q18: 316.7000306 | R18: 0
A19: Electric Utility Upgrades - Heat Recovery | B19: Chignik Lagoon | C19: Upgrade existing equipment | D19: to displace 10% fuel consumption | F19: =Measures!J6/Measures!G6*22.45 -> 777634.4232 | G19: 352.7287533 | H19: =Measures!BY6 -> 692.7700875 | I19: =Measures!CB6 -> 15552.68846 | J19: =Measures!CA6 -> 5299.691169 | K19: =Measures!BX6 -> 75000 | L19: =Measures!BZ6 -> 14.15176802 | M19: =Measures!BV6 -> Utility | O19: Near Term | P19: ='Heat Recovery'!U6 -> near term | Q19: 7.054575066 | R19: 0
A20: Residential Energy Efficiency | B20: Chignik Lake* | C20: Individual home retrofits | D20: ='Residential EE'!B6 -> 43 | F20: ='Residential EE'!T6 -> 955934.9157 | G20: 433.6044303 | H20: ='Residential EE'!U6 -> 7242.261985 | I20: ='Residential EE'!V6 -> 162588.7816 | J20: ='Residential EE'!W6 -> 82435.644 | K20: ='Residential EE'!X6 -> 1548000 | L20: ='Residential EE'!Y6 -> 18.77828479 | M20: ='Residential EE'!Z6 -> Housing Authority, Tribe, City | O20: Near Term | P20: ='Residential EE'!AA6 -> Near Term | Q20: 73.74897061 | R20: 0
A21: Commercial Building Energy Efficiency | B21: Chignik Lake* | C21: Building retrofits | D21: ='Community & Other EE'!D40 -> 6 | F21: =Measures!J7/Measures!G7*22.45 -> 628135.2361 | G21: 284.917118 | H21: =Measures!AV7 -> 3570.022989 | I21: =Measures!AY7 -> 80147.01611 | J21: =Measures!AX7 -> 27299.63755 | K21: ='Community & Other EE'!Z40 -> 255000 | L21: =Measures!AW7 -> 9.340783356 | M21: ='Community & Other EE'!AB40 -> Building Owner | O21: Near Term | P21: ='Community & Other EE'!AC40 -> Near Term | Q21: 36.35404533 | R21: 0
A22: Community Building Energy Efficiency | B22: Chignik Lake* | C22: Building retrofits | D22: ='Community & Other EE'!D6 -> 9 | F22: ='Community & Other EE'!V6 -> 784804.3413 | G22: 355.9809708 | H22: =Measures!AN7 -> 6663.657748 | I22: =Measures!AQ7 -> 149599.1164 | J22: =Measures!AP7 -> 52213.33258 | K22: =Measures!AM7 -> 450000 | L22: =Measures!AO7 -> 8.618488377 | M22: =Measures!AR7 -> City, Tribe | O22: Near Term | P22: =Measures!AS7 -> Near Term | Q22: 67.85696242 | R22: 0
A23: Community Scale Solar | B23: Chignik Lake* | C23: New System | D23: =Solar!M6 -> 65.90084747 | F23: =Solar!X6 -> 628135.2361 | G23: 284.917118 | H23: =Measures!T7 -> 8393.789346 | I23: =Measures!X7 -> 188440.5708 | J23: =Measures!V7 -> 27195.87748 | K23: =Measures!U7 -> 616953.3899 | L23: =Measures!W7 -> 22.68554822 | M23: =Measures!Y7 -> Utility, IPP, Tribe | O23: Near Term | P23: =Measures!Z7 -> Near Term | Q23: 85.4751354 | R23: 0
A24: Community Scale Wind | B24: Chignik Lake* | C24: One, new system | D24: =Wind!S7 -> 200 | F24: =Wind!AL7 -> 867698.5599 | G24: 393.5811252 | H24: =Measures!AE7 -> 11191.71913 | I24: =Measures!AI7 -> 490817.4182 | J24: =Measures!AH7 -> 122696.044 | K24: =Measures!AF7 -> 1353350 | L24: =Measures!AG7 -> 11.03010297 | M24: =Measures!AJ7 -> Utility, IPP | O24: Long Term | P24: =Measures!AK7 -> Long Term | Q24: 0 | R24: =I24*0.000453592 -> 222.6308544
A25: Electric Utility Upgrades - Line Loss | B25: Chignik Lake* | C25: N/A | D25: N/A | F25: ='Utility Line Loss'!L6 -> N/A | G25: N/A | H25: =Measures!BK7 -> N/A | I25: =Measures!BN7 -> N/A | J25: =Measures!BM7 -> N/A | K25: N/A | L25: N/A | M25: N/A | O25: N/A | Q25: N/A | R25: N/A
A26: Electric Utility Efficiency Upgrades - Gen Sets & Controls | B26: Chignik Lake* | C26: Upgrade existing equipment | D26: to meet 14% efficiency | F26: ='Utility Infrastructure'!X7 -> 628135.2361 | G26: =F26*0.000453592 -> 284.917118 | H26: =Measures!BR7 -> 11471.51211 | I26: =Measures!BU7 -> 370599.7893 | J26: =Measures!BT7 -> 37167.69923 | K26: ='Utility Infrastructure'!R7 -> 1115000 | L26: =Measures!BS7 -> 29.99916657 | M26: =Measures!BV7 -> Utility | O26: Near Term | P26: =Measures!BW7 -> Near Term | Q26: =I26*0.000453592 -> 168.1010996 | R26: 0
A27: Electric Utility Upgrades - Heat Recovery | B27: Chignik Lake* | C27: Upgrade existing equipment | D27: to displace 10% fuel consumption | F27: =Measures!J7/Measures!G7*22.45 -> 628135.2361 | G27: =F27*0.000453592 -> 284.917118 | H27: =Measures!BY7 -> 559.5859564 | I27: =Measures!CB7 -> 12562.70472 | J27: =Measures!CA7 -> 4532.646247 | K27: =Measures!BX7 -> 50000 | L27: =Measures!BZ7 -> 11.03108367 | M27: =Measures!BV7 -> Utility | O27: Near Term | P27: ='Heat Recovery'!U7 -> near term | Q27: 5.69834236 | R27: 0
A28: Residential Energy Efficiency | B28: Clarks Point* | C28: Individual home retrofits | D28: ='Residential EE'!B7 -> 51 | F28: ='Residential EE'!T7 -> 1084790.782 | G28: =F28*0.000453592 -> 492.0524203 | H28: ='Residential EE'!U7 -> 8371.430208 | I28: ='Residential EE'!V7 -> 187938.6082 | J28: ='Residential EE'!W7 -> 73323.225 | K28: ='Residential EE'!X7 -> 1836000 | L28: ='Residential EE'!Y7 -> 25.03981515 | M28: ='Residential EE'!Z7 -> Housing Authority, Tribe, City | O28: Near Term | P28: ='Residential EE'!AA7 -> Near Term | Q28: 85.24744916 | R28: 0
A29: Commercial Building Energy Efficiency | B29: Clarks Point* | C29: Building retrofits | D29: ='Community & Other EE'!D41 -> 18 | F29: =Measures!J8/Measures!G8*22.45 -> 799368.1076 | G29: =F29*0.000453592 -> 362.5869787 | H29: =Measures!AV8 -> 9520.642957 | I29: =Measures!AY8 -> 213738.4344 | J29: =Measures!AX8 -> 56800.01155 | K29: ='Community & Other EE'!Z41 -> 765000 | L29: =Measures!AW8 -> 13.46830712 | M29: ='Community & Other EE'!AB41 -> Building Owner | O29: Near Term | P29: ='Community & Other EE'!AC41 -> Near Term | Q29: 96.95004392 | R29: 0
A30: Community Building Energy Efficiency | B30: Clarks Point* | C30: Building retrofits | D30: ='Community & Other EE'!D7 -> 2 | F30: ='Community & Other EE'!V7 -> 178895.4616 | G30: =F30*0.000453592 -> 81.1455502 | H30: =Measures!AN8 -> 1500.832863 | I30: =Measures!AQ8 -> 33693.69778 | J30: =Measures!AP8 -> 8454.72509 | K30: =Measures!AM8 -> 100000 | L30: =Measures!AO8 -> 11.82770568 | M30: =Measures!AR8 -> City, Tribe | O30: Near Term | P30: =Measures!AS8 -> Near Term | Q30: 15.28319176 | R30: 0
A31: Community Scale Solar | B31: Clarks Point* | C31: New System | D31: =Solar!M7 -> 116.9653143 | F31: =Solar!X7 -> 799368.1076 | G31: 362.5869787 | H31: =Measures!T8 -> 10681.97917 | I31: =Measures!X8 -> 239810.4323 | J31: =Measures!V8 -> 24034.45312 | K31: =Measures!U8 -> 916761.2572 | L31: =Measures!W8 -> 38.14362875 | M31: =Measures!Y8 -> Utility, IPP, Tribe | O31: Near Term | P31: =Measures!Z8 -> Near Term | Q31: 108.7760936 | R31: 0
A32: Community Scale Wind | B32: Clarks Point* | C32: One, new system | D32: =Wind!S8 -> 100 | F32: =Wind!AL8 -> 853969.2661 | G32: 387.3536273 | H32: =Measures!AE8 -> 14242.63889 | I32: =Measures!AI8 -> 374348.4015 | J32: =Measures!AH8 -> 45726.62865 | K32: =Measures!AF8 -> 1448900 | L32: =Measures!AG8 -> 31.68613219 | M32: =Measures!AJ8 -> Utility, IPP | O32: Long Term | P32: =Measures!AK8 -> Long Term | Q32: 0 | R32: =I32*0.000453592 -> 169.8014401
A33: Electric Utility Upgrades - Line Loss | B33: Clarks Point* | C33: Upgrade existing equipment | D33: to drop line loss below 6% | F33: ='Utility Line Loss'!L7 -> 205437.6037 | G33: 93.18485352 | H33: =Measures!BK8 -> 7014.499653 | I33: =Measures!BN8 -> 47962.08646 | J33: =Measures!BM8 -> 15782.62422 | K33: =Measures!BJ8 -> 75000 | L33: =Measures!BL8 -> 4.752061442 | M33: =Measures!BO8 -> Utility | O33: Near Term | Q33: =I33*0.000453592 -> 21.75521872 | R33: 0
A34: Electric Utility Efficiency Upgrades - Gen Sets & Controls | B34: Clarks Point* | C34: Upgrade existing equipment | D34: to meet 14% efficiency | F34: ='Utility Infrastructure'!X8 -> 799368.1076 | G34: 362.5869787 | H34: =Measures!BR8 -> 6307.454365 | I34: =Measures!BU8 -> 657765.7571 | J34: =Measures!BT8 -> 14191.77232 | K34: ='Utility Infrastructure'!R8 -> 2085000 | L34: =Measures!BS8 -> 146.9161112 | M34: =Measures!BV8 -> Utility | O34: Near Term | P34: =Measures!BW8 -> Near Term | Q34: 298.3572853 | R34: 0
A35: Electric Utility Upgrades - Heat Recovery | B35: Clarks Point* | C35: Upgrade existing equipment | D35: to displace 10% fuel consumption | F35: =Measures!J8/Measures!G8*22.45 -> 799368.1076 | G35: 362.5869787 | H35: =Measures!BY8 -> 712.1319444 | I35: =Measures!CB8 -> 15987.36215 | J35: =Measures!CA8 -> 4005.742188 | K35: =Measures!BX8 -> 50000 | L35: =Measures!BZ8 -> 12.48208139 | M35: =Measures!BV8 -> Utility | O35: Near Term | P35: ='Heat Recovery'!U8 -> near term | Q35: 7.251739574 | R35: 0
A36: Residential Energy Efficiency | B36: Curyung (Dillingham), Aleknagik | C36: Individual home retrofits | D36: ='Residential EE'!B8 -> 1035 | F36: ='Residential EE'!T8 -> 23877005.27 | G36: 10830.41857 | H36: ='Residential EE'!U8 -> 178185.3709 | I36: ='Residential EE'!V8 -> 4000261.577 | J36: ='Residential EE'!W8 -> 1669240.871 | K36: ='Residential EE'!X8 -> 37260000 | L36: ='Residential EE'!Y8 -> 22.3215239 | M36: ='Residential EE'!Z8 -> Housing Authority, Tribe, City | O36: Near Term | P36: ='Residential EE'!AA8 -> Near Term | Q36: 1814.486649 | R36: 0
A37: Commercial Building Energy Efficiency | B37: Curyung (Dillingham), Aleknagik | C37: Building retrofits | D37: ='Community & Other EE'!D42 -> 466 | F37: =Measures!J9/Measures!G9*22.45 -> 29730608.78 | G37: =F37*0.000453592 -> 13485.5663 | H37: =Measures!AV9 -> 300247.7686 | I37: =Measures!AY9 -> 6740562.406 | J37: =Measures!AX9 -> 1582975.038 | K37: ='Community & Other EE'!Z42 -> 19805000 | L37: =Measures!AW9 -> 12.51125224 | M37: ='Community & Other EE'!AB42 -> Building Owner | O37: Near Term | P37: ='Community & Other EE'!AC42 -> Near Term | Q37: 3057.465183 | R37: 0
A38: Community Building Energy Efficiency | B38: Curyung (Dillingham), Aleknagik | C38: Building retrofits | D38: ='Community & Other EE'!D8 -> 51 | F38: ='Community & Other EE'!V8 -> 5374249.026 | G38: =F38*0.000453592 -> 2437.716364 | H38: =Measures!AN9 -> 41890.01199 | I38: =Measures!AQ9 -> 940430.7691 | J38: =Measures!AP9 -> 185718.3108 | K38: =Measures!AM9 -> 2550000 | L38: =Measures!AO9 -> 13.73047164 | M38: =Measures!AR9 -> City, Tribe | O38: Near Term | P38: =Measures!AS9 -> Near Term | Q38: 426.5718734 | R38: 0
A39: Community Scale Solar | B39: Curyung (Dillingham), Aleknagik | C39: New System | D39: =Solar!M8 -> 1876.799965 | F39: =Solar!X8 -> 29730608.78 | G39: =F39*0.000453592 -> 13485.5663 | H39: =Measures!T9 -> 132430.3286 | I39: =Measures!X9 -> 2973060.878 | J39: =Measures!V9 -> 252941.9277 | K39: =Measures!U9 -> 10007199.86 | L39: =Measures!W9 -> 39.56323078 | M39: =Measures!Y9 -> Utility, IPP, Tribe | O39: Near Term | P39: =Measures!Z9 -> Near Term | Q39: 1348.55663 | R39: 0
A40: Community Scale Wind | B40: Curyung (Dillingham), Aleknagik | C40: One, new system | D40: =Wind!S9 -> 6000 | F40: =Wind!AL9 -> 34083144.42 | G40: =F40*0.000453592 -> 15459.84164 | H40: =Measures!AE9 -> 529721.3146 | I40: =Measures!AI9 -> 16244779.15 | J40: =Measures!AH9 -> 1937529.746 | K40: =Measures!AF9 -> 48636000 | L40: =Measures!AG9 -> 25.10206623 | M40: =Measures!AJ9 -> Utility, IPP | O40: Long Term | P40: =Measures!AK9 -> Long Term | Q40: 0 | R40: =I40*0.000453592 -> 7368.501866
A41: Electric Utility Upgrades - Line Loss | B41: Curyung (Dillingham), Aleknagik | C41: N/A | D41: N/A | F41: ='Utility Line Loss'!L8 -> N/A | G41: N/A | H41: =Measures!BK9 -> N/A | I41: =Measures!BN9 -> N/A | J41: =Measures!BM9 -> N/A | K41: =Measures!BJ9 -> N/A | L41: =Measures!BL9 -> N/A | M41: =Measures!BO9 -> N/A | O41: N/A | Q41: N/A | R41: N/A
A42: Electric Utility Efficiency Upgrades - Gen Sets & Controls | B42: Curyung (Dillingham), Aleknagik | C42: N/A | D42: equipment needs for future renewable integration | F42: ='Utility Infrastructure'!X9 -> 29730608.78 | G42: =F42*0.000453592 -> 13485.5663 | H42: =Measures!BR9 -> 0 | I42: 0 | J42: =Measures!BT9 -> 0 | K42: ='Utility Infrastructure'!R9 -> 2085000 | L42: =Measures!BS9 -> 0 | M42: =Measures!BV16 -> Utility | O42: Near Term | P42: N/A | Q42: =I42*0.000453592 -> 0 | R42: N/A
A43: Electric Utility Upgrades - Heat Recovery | B43: Curyung (Dillingham), Aleknagik | C43: Upgrade existing equipment | D43: to displace 10% fuel consumption | F43: =Measures!J9/Measures!G9*22.45 -> 29730608.78 | G43: =F43*0.000453592 -> 13485.5663 | H43: =Measures!BY9 -> 26486.06573 | I43: =Measures!CB9 -> 594612.1756 | J43: =Measures!CA9 -> 126470.9638 | K43: =Measures!BX9 -> 100000 | L43: =Measures!BZ9 -> 0.7906953261 | M43: =Measures!BV9 -> Utility | O43: Near Term | Q43: 269.7113259 | R43: 0
A44: Residential Energy Efficiency | B44: Egegik | C44: Individual home retrofits | D44: ='Residential EE'!B9 -> 85 | F44: ='Residential EE'!T9 -> 1652206.9 | G44: =F44*0.000453592 -> 749.4278323 | H44: ='Residential EE'!U9 -> 13258.49622 | I44: ='Residential EE'!V9 -> 297653.24 | J44: ='Residential EE'!W9 -> 111606.859 | K44: ='Residential EE'!X9 -> 3060000 | L44: ='Residential EE'!Y9 -> 27.41766973 | M44: ='Residential EE'!Z9 -> Housing Authority, Tribe, City | O44: Near Term | P44: ='Residential EE'!AA9 -> Near Term | Q44: 135.0131285 | R44: 0
A45: Commercial Building Energy Efficiency | B45: Egegik | C45: Building retrofits | D45: ='Community & Other EE'!D43 -> 27 | F45: =Measures!J10/Measures!G10*22.45 -> 1316423.44 | G45: =F45*0.000453592 -> 597.1191409 | H45: =Measures!AV10 -> 15410.50268 | I45: =Measures!AY10 -> 345965.7852 | J45: =Measures!AX10 -> 83834.45374 | K45: ='Community & Other EE'!Z43 -> 1147500 | L45: =Measures!AW10 -> 13.68768983 | M45: ='Community & Other EE'!AB43 -> Building Owner | O45: Near Term | P45: ='Community & Other EE'!AC43 -> Near Term | Q45: 156.9273125 | R45: 0
A46: Community Building Energy Efficiency | B46: Egegik | C46: Building retrofits | D46: ='Community & Other EE'!D9 -> 18 | F46: ='Community & Other EE'!V9 -> 1675431.783 | G46: =F46*0.000453592 -> 759.9624535 | H46: =Measures!AN10 -> 13798.68788 | I46: =Measures!AQ10 -> 309780.543 | J46: =Measures!AP10 -> 68986.45072 | K46: =Measures!AM10 -> 900000 | L46: =Measures!AO10 -> 13.04604006 | M46: =Measures!AR10 -> City, Tribe | O46: Near Term | P46: =Measures!AS10 -> Near Term | Q46: 140.513976 | R46: 0
A47: Community Scale Solar | B47: Egegik | C47: New System | D47: =Solar!M9 -> 198.8086412 | F47: =Solar!X9 -> 1316423.44 | G47: 597.1191409 | H47: =Measures!T10 -> 17591.40454 | I47: =Measures!X10 -> 394927.032 | J47: =Measures!V10 -> 53301.95576 | K47: =Measures!U10 -> 1831484.565 | L47: =Measures!W10 -> 34.36055092 | M47: =Measures!Y10 -> Utility, IPP, Tribe | O47: Near Term | P47: =Measures!Z10 -> Near Term | Q47: 179.1357423 | R47: 0
A48: Community Scale Wind | B48: Egegik | C48: One, new system | D48: =Wind!S10 -> 200 | F48: =Wind!AL10 -> 1452874.127 | G48: 659.0120809 | H48: =Measures!AE10 -> 23455.20606 | I48: =Measures!AI10 -> 663020.0628 | J48: =Measures!AH10 -> 101459.1823 | K48: =Measures!AF10 -> 2786250 | L48: =Measures!AG10 -> 27.46178252 | M48: =Measures!AJ10 -> Utility, IPP | O48: Long Term | P48: =Measures!AK10 -> Long Term | Q48: 0 | R48: =I48*0.000453592 -> 300.7405963
A49: Electric Utility Upgrades - Line Loss | B49: Egegik | C49: Upgrade existing equipment | D49: to drop line loss below 6% | F49: ='Utility Line Loss'!L9 -> 96098.91111 | G49: 43.58969729 | H49: =Measures!BK10 -> 762.2941968 | I49: =Measures!BN10 -> 78985.40639 | J49: =Measures!BM10 -> 2309.751416 | K49: =Measures!BJ10 -> 75000 | L49: =Measures!BL10 -> 32.47102674 | M49: =Measures!BO10 -> Utility | O49: Near Term | P49: =Measures!BP10 -> Near Term | Q49: =I49*0.000453592 -> 35.82714846 | R49: 0
A50: Electric Utility Efficiency Upgrades - Gen Sets & Controls | B50: Egegik | C50: Upgrade existing equipment | D50: to meet 14% efficiency | F50: ='Utility Infrastructure'!X10 -> 1316423.44 | G50: 597.1191409 | H50: =Measures!BR10 -> 8837.586567 | I50: =Measures!BU10 -> 1118019.621 | J50: =Measures!BT10 -> 26777.8873 | K50: ='Utility Infrastructure'!R10 -> 1010000 | L50: =Measures!BS10 -> 37.71768806 | M50: =Measures!BV10 -> Utility | O50: Near Term | P50: =Measures!BW10 -> Near Term | Q50: =I50*0.000453592 -> 507.1247561 | R50: 0
A51: Electric Utility Upgrades - Heat Recovery | B51: Egegik | C51: Upgrade existing equipment | D51: to displace 10% fuel consumption | F51: =Measures!J10/Measures!G10*22.45 -> 1316423.44 | G51: 597.1191409 | H51: =Measures!BY10 -> 1172.760303 | I51: =Measures!CB10 -> 26328.4688 | J51: =Measures!CA10 -> 5863.801514 | K51: =Measures!BX10 -> 75000 | L51: =Measures!BZ10 -> 12.79033743 | M51: =Measures!BV10 -> Utility | O51: Near Term | P51: ='Heat Recovery'!U10 -> near term | Q51: =I51*0.000453592 -> 11.94238282 | R51: 0
A52: Residential Energy Efficiency | B52: Ekuk | C52: N/A | D52: N/A | F52: ='Residential EE'!T11 -> 1043880.1 | G52: =F52*0.000453592 -> 473.4956623 | H52: ='Residential EE'!U17 -> 9680.111734 | I52: ='Residential EE'!V17 -> 217318.5084 | J52: ='Residential EE'!W11 -> 52310.25 | K52: ='Residential EE'!X11 -> 2412000 | L52: ='Residential EE'!Y11 -> 46.10951009 | M52: ='Residential EE'!Z11 -> Housing Authority, Tribe, City | O52: Near Term | P52: ='Residential EE'!AA11 -> Near Term | Q52: =I52*0.000453592 -> 98.57393687 | R52: 0
A53: Commercial Building Energy Efficiency | B53: Ekuk | C53: N/A | D53: N/A | F53: N/A | G53: N/A | H53: N/A | I53: N/A | J53: N/A | K53: N/A | L53: N/A | M53: N/A | O53: N/A | P53: ='Community & Other EE'!AC45 -> 0 | Q53: N/A | R53: N/A
A54: Community Building Energy Efficiency | B54: Ekuk | C54: N/A | D54: N/A | F54: N/A | G54: N/A | H54: N/A | I54: N/A | J54: N/A | K54: N/A | L54: N/A | M54: N/A | O54: N/A | P54: =Measures!AS12 -> 0 | Q54: N/A | R54: N/A
A55: Community Scale Solar | B55: Ekuk | C55: N/A | D55: N/A | F55: =Solar!X11 -> N/A | G55: N/A | H55: N/A | I55: N/A | J55: N/A | K55: N/A | L55: N/A | M55: N/A | O55: N/A | P55: =Measures!Z12 -> 0 | Q55: N/A | R55: N/A
A56: Community Scale Wind | B56: Ekuk | C56: N/A | D56: N/A | F56: =Wind!AL12 -> 0 | G56: N/A | H56: =Measures!AE12 -> N/A | I56: =Measures!AI12 -> N/A | J56: N/A | K56: =Measures!AF12 -> N/A | L56: =Measures!AG12 -> N/A | M56: N/A | O56: N/A | P56: =Measures!AK12 -> 0 | Q56: N/A | R56: N/A
A57: Electric Utility Upgrades - Line Loss | B57: Ekuk | C57: N/A | D57: N/A | F57: N/A | G57: N/A | H57: N/A | I57: N/A | J57: N/A | K57: N/A | L57: =Measures!BL12 -> N/A | M57: N/A | O57: N/A | P57: N/A | Q57: N/A | R57: N/A
A58: Electric Utility Efficiency Upgrades - Gen Sets & Controls | B58: Ekuk | C58: N/A | D58: N/A | F58: N/A | G58: N/A | H58: N/A | I58: N/A | J58: N/A | K58: ='Utility Infrastructure'!R12 -> N/A | L58: N/A | M58: N/A | O58: N/A | P58: N/A | Q58: N/A | R58: N/A
A59: Electric Utility Upgrades - Heat Recovery | B59: Ekuk | C59: N/A | D59: N/A | F59: N/A | G59: N/A | H59: N/A | I59: N/A | J59: N/A | K59: N/A | L59: N/A | M59: N/A | O59: N/A | P59: N/A | Q59: N/A | R59: N/A
A60: Residential Energy Efficiency | B60: Ekwok | C60: Individual home retrofits | D60: ='Residential EE'!B10 -> 19 | F60: ='Residential EE'!T10 -> 0 | G60: N/A | H60: ='Residential EE'!U10 -> 0 | I60: ='Residential EE'!V10 -> 0 | J60: ='Residential EE'!W10 -> N/A | K60: ='Residential EE'!X10 -> N/A | L60: ='Residential EE'!Y10 -> N/A | M60: ='Residential EE'!Z10 -> N/A | O60: Near Term | P60: ='Residential EE'!AA10 -> 0 | Q60: N/A | R60: N/A
A61: Commercial Building Energy Efficiency | B61: Ekwok | C61: N/A | D61: ='Community & Other EE'!D44 -> Combined with New Stuy | F61: N/A | G61: N/A | H61: N/A | I61: N/A | J61: N/A | K61: N/A | L61: N/A | M61: N/A | O61: N/A | P61: N/A | Q61: N/A | R61: N/A
A62: Community Building Energy Efficiency | B62: Ekwok | C62: N/A | D62: N/A | F62: N/A | G62: N/A | H62: N/A | I62: N/A | J62: N/A | K62: N/A | L62: N/A | M62: N/A | O62: N/A | P62: N/A | Q62: N/A | R62: N/A
A63: Community Scale Solar | B63: Ekwok | C63: N/A | D63: N/A | F63: N/A | G63: N/A | H63: N/A | I63: N/A | J63: N/A | K63: N/A | L63: N/A | M63: N/A | O63: N/A | P63: N/A | Q63: N/A | R63: N/A
A64: Community Scale Wind | B64: Ekwok | C64: N/A | D64: N/A | F64: =Wind!AL11 -> 0 | G64: N/A | H64: =Measures!AE11 -> N/A | I64: =Measures!AI11 -> N/A | J64: N/A | K64: =Measures!AF11 -> N/A | L64: =Measures!AG11 -> N/A | M64: N/A | O64: N/A | P64: =Measures!AK11 -> 0 | Q64: N/A | R64: N/A
A65: Electric Utility Upgrades - Line Loss | B65: Ekwok | C65: N/A | D65: N/A | F65: N/A | G65: N/A | H65: =Measures!BK11 -> N/A | I65: =Measures!BN11 -> N/A | J65: =Measures!BM11 -> N/A | K65: N/A | L65: N/A | M65: N/A | O65: N/A | P65: N/A | Q65: N/A | R65: N/A
A66: Electric Utility Efficiency Upgrades - Gen Sets & Controls | B66: Ekwok | C66: N/A | D66: N/A | F66: N/A | G66: N/A | H66: N/A | I66: N/A | J66: N/A | K66: ='Utility Infrastructure'!R11 -> N/A | L66: =Measures!BS11 -> N/A | M66: N/A | O66: N/A | P66: N/A | Q66: N/A | R66: N/A
A67: Electric Utility Upgrades - Heat Recovery | B67: Ekwok | C67: N/A | D67: N/A | F67: N/A | G67: N/A | H67: N/A | I67: N/A | J67: N/A | K67: N/A | L67: N/A | M67: N/A | O67: N/A | P67: N/A | Q67: N/A | R67: N/A
A68: Residential Energy Efficiency | B68: Igiugig | C68: Individual home retrofits | D68: ='Residential EE'!B12 -> 31 | F68: ='Residential EE'!T12 -> 641983.4686 | G68: =F68*0.000453592 -> 291.1985655 | H68: ='Residential EE'!U12 -> 5011.014559 | I68: ='Residential EE'!V12 -> 112497.2769 | J68: ='Residential EE'!W12 -> 113545.986 | K68: ='Residential EE'!X12 -> 1116000 | L68: ='Residential EE'!Y12 -> 9.828616927 | M68: ='Residential EE'!Z12 -> Housing Authority, Tribe, City | O68: Near Term | P68: ='Residential EE'!AA12 -> Near Term | Q68: =I68*0.000453592 -> 51.0278648 | R68: 0
A69: Commercial Building Energy Efficiency | B69: Igiugig | C69: Building retrofits | D69: ='Community & Other EE'!D46 -> 15 | F69: =Measures!J13/Measures!G13*22.45 -> 603992.7356 | G69: =F69*0.000453592 -> 273.9662729 | H69: =Measures!AV13 -> 7913.241047 | I69: =Measures!AY13 -> 177652.2615 | J69: =Measures!AX13 -> 80602.27815 | K69: ='Community & Other EE'!Z46 -> 637500 | L69: =Measures!AW13 -> 7.909205727 | M69: ='Community & Other EE'!AB46 -> Building Owner | O69: Near Term | P69: ='Community & Other EE'!AC46 -> Near Term | Q69: =I69*0.000453592 -> 80.5816446 | R69: 0
A70: Community Building Energy Efficiency | B70: Igiugig | C70: Building retrofits | D70: ='Community & Other EE'!D12 -> 11 | F70: ='Community & Other EE'!V12 -> 989209.3968 | G70: =F70*0.000453592 -> 448.6974687 | H70: =Measures!AN13 -> 8278.119092 | I70: =Measures!AQ13 -> 185843.7736 | J70: =Measures!AP13 -> 82318.9031 | K70: =Measures!AM13 -> 550000 | L70: =Measures!AO13 -> 6.681332953 | M70: =Measures!AR13 -> City, Tribe | O70: Near Term | P70: =Measures!AS13 -> Near Term | Q70: =I70*0.000453592 -> 84.29724896 | R70: 0
A71: Community Scale Solar | B71: Igiugig | C71: New System | D71: =Solar!M12 -> 100.1152008 | F71: =Solar!X12 -> 603992.7356 | G71: =F71*0.000453592 -> 273.9662729 | H71: =Measures!T13 -> 8071.172414 | I71: =Measures!X13 -> 181197.8207 | J71: =Measures!V13 -> 61583.04552 | K71: =Measures!U13 -> 907860.8032 | L71: =Measures!W13 -> 14.74205758 | M71: =Measures!Y13 -> Utility, IPP, Tribe | O71: Near Term | P71: =Measures!Z13 -> Near Term | Q71: =I71*0.000453592 -> 82.18988188 | R71: 0
A72: Community Scale Wind | B72: Igiugig | C72: N/A | D72: N/A | F72: =Wind!AL13 -> 0 | G72: N/A | H72: =Measures!AE13 -> N/A | I72: =Measures!AI13 -> N/A | J72: N/A | K72: =Measures!AF13 -> N/A | L72: =Measures!AG13 -> N/A | M72: N/A | O72: N/A | P72: =Measures!AK13 -> 0 | Q72: N/A | R72: N/A
A73: Electric Utility Upgrades - Line Loss | B73: Igiugig | C73: Upgrade existing equipment | D73: to drop line loss below 6% | F73: ='Utility Line Loss'!L12 -> 113550.6343 | G73: =F73*0.000453592 -> 51.50565931 | H73: =Measures!BK13 -> 3443.70023 | I73: =Measures!BN13 -> 36239.56414 | J73: =Measures!BM13 -> 26275.43275 | K73: =Measures!BJ13 -> 75000 | L73: =Measures!BL13 -> 2.854377346 | M73: =Measures!BO13 -> Utility | O73: =Measures!BP13 -> Near Term | Q73: =I73*0.000453592 -> 16.43797638 | R73: 0
A74: Electric Utility Efficiency Upgrades - Gen Sets & Controls | B74: Igiugig | C74: Upgrade existing equipment | D74: to meet 14% efficiency | F74: ='Utility Infrastructure'!X13 -> 533319.1034 | G74: 241.9092788 | H74: =Measures!BR13 -> 1612.004926 | I74: =Measures!BU13 -> 497129.5929 | J74: =Measures!BT13 -> 12299.59759 | K74: ='Utility Infrastructure'!R13 -> 305004 | L74: =Measures!BS13 -> 24.79788447 | M74: =Measures!BV13 -> Utility | O74: Near Term | P74: =Measures!BW13 -> Near Term | Q74: 225.4940063 | R74: 0
A75: Electric Utility Upgrades - Heat Recovery | B75: Igiugig | C75: Upgrade existing equipment | D75: to displace 10% fuel consumption | F75: =Measures!J13/Measures!G13*22.45 -> 603992.7356 | G75: 273.9662729 | H75: =Measures!BY13 -> 538.0781609 | I75: =Measures!CB13 -> 12079.85471 | J75: =Measures!CA13 -> 5380.781609 | K75: =Measures!BX13 -> 50000 | L75: =Measures!BZ13 -> 9.292330303 | M75: =Measures!BV13 -> Utility | O75: Near Term | Q75: 5.479325459 | R75: 0
A76: Residential Energy Efficiency | B76: Iliamna, Nondalton, Newhalen | C76: Residential building retrofits | D76: ='Residential EE'!B13 -> 189 | E76: buildings | F76: ='Residential EE'!T13 -> 4369118.677 | G76: 1981.797279 | H76: ='Residential EE'!U13 -> 32578.15313 | I76: ='Residential EE'!V13 -> 731379.5377 | J76: ='Residential EE'!W13 -> 483504.084 | K76: ='Residential EE'!X13 -> 6804000 | L76: ='Residential EE'!Y13 -> 14.07226997 | M76: ='Residential EE'!Z13 -> Housing Authority, Tribe, City | O76: Near Term | P76: ='Residential EE'!AA13 -> Near Term | Q76: 331.7479072 | R76: 0
A77: Commercial Building Energy Efficiency | B77: Iliamna, Nondalton, Newhalen | C77: Commercial building retrofits | D77: ='Community & Other EE'!D47 -> 109 | E77: buildings | F77: =Measures!J14/Measures!G14*22.45 -> 6838182.305 | G77: 3101.744788 | H77: =Measures!AV14 -> 66507.37841 | I77: =Measures!AY14 -> 1493090.645 | J77: =Measures!AX14 -> 487849.6974 | K77: ='Community & Other EE'!Z47 -> 4632500 | L77: =Measures!AW14 -> 9.495752534 | M77: ='Community & Other EE'!AB47 -> Building Owner | O77: Near Term | P77: ='Community & Other EE'!AC47 -> Near Term | Q77: 677.253972 | R77: 0
A78: Community Building Energy Efficiency | B78: Iliamna, Nondalton, Newhalen | C78: Community building retrofits | D78: ='Community & Other EE'!D13 -> 15 | E78: buildings | F78: ='Community & Other EE'!V13 -> 1638610.196 | G78: 743.2604761 | H78: =Measures!AN14 -> 12578.71522 | I78: =Measures!AQ14 -> 282392.1568 | J78: =Measures!AP14 -> 84535.61119 | K78: =Measures!AM14 -> 750000 | L78: =Measures!AO14 -> 8.872000681 | M78: =Measures!AR14 -> City, Tribe | O78: Near Term | P78: =Measures!AS14 -> Near Term | Q78: 128.0908232 | R78: 0
A79: Community Scale Solar | B79: Iliamna, Nondalton, Newhalen | C79: One, new system | D79: =Solar!M13 -> 40.98753322 | E79: kW | F79: =Solar!X13 -> 252106.4844 | G79: 114.3534845 | H79: =Measures!T14 -> 3368.90625 | I79: =Measures!X14 -> 75631.94531 | J79: =Measures!V14 -> 12330.19687 | K79: =Measures!U14 -> 2681050.133 | L79: =Measures!W14 -> 217.4377392 | M79: =Measures!Y14 -> Utility, IPP, Tribe | O79: Near Term | P79: =Measures!Z14 -> Near Term | Q79: 34.30604534 | R79: 0
A80: Community Scale Wind | B80: Iliamna, Nondalton, Newhalen | C80: N/A | D80: N/A | E80: N/A | F80: =Wind!AL14 -> 0 | G80: N/A | H80: =Measures!AE14 -> N/A | I80: =Measures!AI14 -> N/A | J80: N/A | K80: =Measures!AF14 -> N/A | L80: =Measures!AG14 -> N/A | M80: N/A | O80: N/A | P80: =Measures!AK14 -> 0 | Q80: N/A | R80: N/A
A81: Electric Utility Upgrades - Line Loss | B81: Iliamna, Nondalton, Newhalen | C81: Upgrade existing equipment | D81: 6 | E81: %, target for line loss | F81: ='Utility Line Loss'!L13 -> 22185.37062 | G81: =F81*0.000453592 -> 10.06310663 | H81: =Measures!BK14 -> 314.43125 | I81: =Measures!BN14 -> 15126.38906 | J81: =Measures!BM14 -> 1150.818375 | K81: =Measures!BJ14 -> 75000 | L81: =Measures!BL14 -> 65.17101363 | M81: =Measures!BO14 -> Utility | O81: Near Term | P81: =Measures!BP14 -> Near Term | Q81: =I81*0.000453592 -> 6.861209068 | R81: 0
A82: Electric Utility Efficiency Upgrades - Gen Sets & Controls | B82: Iliamna, Nondalton, Newhalen | C82: Upgrade existing equipment | D82: to meet 14% efficiency | E82: %, target for efficiency | F82: ='Utility Infrastructure'!X14 -> 88923.04688 | G82: =F82*0.000453592 -> 40.33478268 | H82: =Measures!BR14 -> 339.5089286 | I82: =Measures!BU14 -> 81301.07143 | J82: =Measures!BT14 -> 1242.602679 | K82: ='Utility Infrastructure'!R14 -> 20000 | L82: =Measures!BS14 -> 16.09524939 | M82: =Measures!BV14 -> Utility | O82: Near Term | P82: =Measures!BW14 -> Near Term | Q82: =I82*0.000453592 -> 36.87751559 | R82: 0
A83: Electric Utility Upgrades - Heat Recovery | B83: Iliamna, Nondalton, Newhalen | C83: Upgrade existing equipment | D83: 10 | E83: %, target for fuel reduction | F83: =Measures!J14/Measures!G14*22.45 -> 6838182.305 | G83: =F83*0.000453592 -> 3101.744788 | H83: =Measures!BY14 -> 6091.921875 | I83: =Measures!CB14 -> 136763.6461 | J83: =Measures!CA14 -> 43252.64531 | K83: =Measures!BX14 -> 100000 | L83: =Measures!BZ14 -> 2.311997319 | M83: =Measures!BV14 -> Utility | O83: Near Term | Q83: =I83*0.000453592 -> 62.03489576 | R83: 0
A84: Residential Energy Efficiency | B84: Ivanof Bay | C84: N/A | D84: N/A | F84: ='Residential EE'!T14 -> 249284.8 | G84: =F84*0.000453592 -> 113.073591 | H84: ='Residential EE'!U21 -> 150240.7341 | I84: ='Residential EE'!V21 -> 3372904.479 | J84: ='Residential EE'!W14 -> 18266.08 | K84: ='Residential EE'!X14 -> 576000 | L84: ='Residential EE'!Y14 -> 31.53385948 | M84: ='Residential EE'!Z14 -> Housing Authority, Tribe, City | O84: =Measures!BI15 -> Near Term | P84: ='Residential EE'!AA14 -> Near Term | Q84: =I84*0.000453592 -> 1529.922489 | R84: 0
A85: Commercial Building Energy Efficiency | B85: Ivanof Bay | C85: N/A | D85: N/A | F85: N/A | G85: N/A | H85: N/A | I85: N/A | J85: N/A | K85: N/A | L85: N/A | M85: N/A | O85: N/A | P85: N/A | Q85: N/A | R85: N/A
A86: Community Building Energy Efficiency | B86: Ivanof Bay | C86: N/A | D86: N/A | F86: N/A | G86: N/A | H86: N/A | I86: N/A | J86: N/A | K86: N/A | L86: N/A | M86: N/A | O86: N/A | P86: N/A | Q86: N/A | R86: N/A
A87: Community Scale Solar | B87: Ivanof Bay | C87: N/A | D87: N/A | F87: N/A | G87: N/A | H87: N/A | I87: N/A | J87: N/A | K87: N/A | L87: N/A | M87: N/A | O87: N/A | P87: N/A | Q87: N/A | R87: N/A
A88: Community Scale Wind | B88: Ivanof Bay | C88: N/A | D88: N/A | F88: =Wind!AL15 -> 0 | G88: N/A | H88: =Measures!AE15 -> N/A | I88: =Measures!AI15 -> N/A | J88: N/A | K88: =Measures!AF15 -> N/A | L88: =Measures!AG15 -> N/A | M88: N/A | O88: N/A | P88: =Measures!AK15 -> 0 | Q88: N/A | R88: N/A
A89: Electric Utility Upgrades - Line Loss | B89: Ivanof Bay | C89: N/A | D89: N/A | F89: N/A | G89: N/A | H89: =Measures!BK15 -> N/A | I89: =Measures!BN15 -> N/A | J89: =Measures!BM15 -> N/A | K89: =Measures!BJ15 -> N/A | L89: =Measures!BL15 -> N/A | M89: N/A | O89: N/A | P89: N/A | Q89: N/A | R89: N/A
A90: Electric Utility Efficiency Upgrades - Gen Sets & Controls | B90: Ivanof Bay | C90: N/A | D90: N/A | F90: N/A | G90: N/A | H90: N/A | I90: N/A | J90: N/A | K90: ='Utility Infrastructure'!R16 -> N/A | L90: =Measures!BS15 -> N/A | M90: N/A | O90: N/A | P90: N/A | Q90: N/A | R90: N/A
A91: Electric Utility Upgrades - Heat Recovery | B91: Ivanof Bay | C91: N/A | D91: N/A | F91: N/A | G91: N/A | H91: N/A | I91: N/A | J91: N/A | K91: N/A | L91: N/A | M91: N/A | O91: N/A | P91: N/A | Q91: N/A | R91: N/A
A92: Residential Energy Efficiency | B92: Kanatak | C92: N/A | D92: N/A | F92: N/A | G92: N/A | H92: N/A | I92: N/A | J92: N/A | K92: N/A | L92: ='Residential EE'!Y15 -> N/A | M92: ='Residential EE'!Z15 -> N/A | O92: N/A | P92: N/A | Q92: N/A | R92: N/A
A93: Commercial Building Energy Efficiency | B93: Kanatak | C93: N/A | D93: N/A | F93: N/A | G93: N/A | H93: N/A | I93: N/A | J93: N/A | K93: N/A | L93: N/A | M93: N/A | O93: N/A | P93: N/A | Q93: N/A | R93: N/A
A94: Community Building Energy Efficiency | B94: Kanatak | C94: N/A | D94: N/A | F94: N/A | G94: N/A | H94: N/A | I94: N/A | J94: N/A | K94: N/A | L94: N/A | M94: N/A | O94: N/A | P94: N/A | Q94: N/A | R94: N/A
A95: Community Scale Solar | B95: Kanatak | C95: N/A | D95: N/A | F95: N/A | G95: N/A | H95: N/A | I95: N/A | J95: N/A | K95: N/A | L95: N/A | M95: N/A | O95: N/A | P95: N/A | Q95: N/A | R95: N/A
A96: Community Scale Wind | B96: Kanatak | C96: N/A | D96: N/A | F96: =Wind!AL16 -> 0 | G96: N/A | H96: =Measures!AE16 -> N/A | I96: =Measures!AI16 -> N/A | J96: N/A | K96: =Measures!AF16 -> N/A | L96: =Measures!AG16 -> N/A | M96: N/A | O96: N/A | P96: =Measures!AK16 -> 0 | Q96: N/A | R96: N/A
A97: Electric Utility Upgrades - Line Loss | B97: Kanatak | C97: N/A | D97: N/A | F97: N/A | G97: N/A | H97: N/A | I97: N/A | J97: N/A | K97: N/A | L97: =Measures!BL16 -> N/A | M97: N/A | O97: N/A | P97: N/A | Q97: N/A | R97: N/A
A98: Electric Utility Efficiency Upgrades - Gen Sets & Controls | B98: Kanatak | C98: N/A | D98: N/A | F98: N/A | G98: N/A | H98: N/A | I98: N/A | J98: N/A | K98: ='Utility Infrastructure'!R15 -> N/A | L98: N/A | M98: N/A | O98: N/A | P98: N/A | Q98: N/A | R98: N/A
A99: Electric Utility Upgrades - Heat Recovery | B99: Kanatak | C99: N/A | D99: N/A | F99: N/A | G99: N/A | H99: N/A | I99: N/A | J99: N/A | K99: N/A | L99: N/A | M99: N/A | O99: N/A | P99: N/A | Q99: N/A | R99: N/A
A100: Residential Energy Efficiency | B100: Kokhanok* | C100: Individual home retrofits | D100: ='Residential EE'!B17 -> 56 | F100: ='Residential EE'!T17 -> 1300688.284 | G100: =F100*0.000453592 -> 589.9818002 | H100: ='Residential EE'!U17 -> 9680.111734 | I100: ='Residential EE'!V17 -> 217318.5084 | J100: ='Residential EE'!W17 -> 151665.68 | K100: ='Residential EE'!X17 -> 2016000 | L100: ='Residential EE'!Y17 -> 13.29239417 | M100: ='Residential EE'!Z17 -> Housing Authority, Tribe, City | O100: =Measures!BI18 -> Near Term | P100: ='Residential EE'!AA17 -> Near Term | Q100: =I100*0.000453592 -> 98.57393687 | R100: 0
A101: Commercial Building Energy Efficiency | B101: Kokhanok* | C101: Building retrofits | D101: ='Community & Other EE'!D51 -> 20 | F101: =Measures!J18/Measures!G18*22.45 -> 1079416.445 | G101: =F101*0.000453592 -> 489.614664 | H101: =Measures!AV18 -> 10089.44505 | I101: =Measures!AY18 -> 226508.0413 | J101: =Measures!AX18 -> 93378.53643 | K101: ='Community & Other EE'!Z51 -> 850000 | L101: =Measures!AW18 -> 9.102734231 | M101: ='Community & Other EE'!AB51 -> Building Owner | O101: Near Term | P101: ='Community & Other EE'!AC51 -> Near Term | Q101: =I101*0.000453592 -> 102.7422355 | R101: 0
A102: Community Building Energy Efficiency | B102: Kokhanok* | C102: Building retrofits | D102: ='Community & Other EE'!D17 -> 9 | F102: ='Community & Other EE'!V17 -> 864359.9098 | G102: =F102*0.000453592 -> 392.0667402 | H102: =Measures!AN18 -> 7018.025536 | I102: =Measures!AQ18 -> 157554.6733 | J102: =Measures!AP18 -> 62184.65866 | K102: =Measures!AM18 -> 450000 | L102: =Measures!AO18 -> 7.236511539 | M102: =Measures!AR18 -> City, Tribe | O102: Near Term | P102: =Measures!AS18 -> Near Term | Q102: =I102*0.000453592 -> 71.46553937 | R102: 0
A103: Community Scale Solar | B103: Kokhanok* | C103: New System | D103: =Solar!M17 -> 150.94727 | F103: =Solar!X17 -> 1040642.032 | G103: 472.0269004 | H103: =Measures!T18 -> 13906.1296 | I103: =Measures!X18 -> 312192.6095 | J103: =Measures!V18 -> 51174.55692 | K103: =Measures!U18 -> 1044889.08 | L103: =Measures!W18 -> 20.41813633 | M103: =Measures!Y18 -> Utility, IPP, Tribe | O103: Near Term | P103: =Measures!Z18 -> Near Term | Q103: =I103*0.000453592 -> 141.6080701
A104: Community Scale Wind | B104: Kokhanok* | C104: Upgrade existing | D104: =Wind!S18 -> 300 | F104: =Wind!AL18 -> 1225965.016 | G104: 556.0879235 | H104: =Measures!AE18 ->  | I104: =Measures!AI18 -> 1076473.965 | J104: =Wind!AJ18 -> 222022.5865 | K104: =Wind!AD18 -> 3000000 | L104: =Measures!AG18 ->  | M104: =Measures!AJ18 -> Utility, IPP | O104: Long Term | P104: =Measures!AK18 -> Long Term | Q104: 0 | R104: =I104*0.000453592 -> 488.2799788
A105: Electric Utility Upgrades - Line Loss | B105: Kokhanok* | C105: Upgrade existing equipment | D105: to drop line loss below 6% | F105: ='Utility Line Loss'!L17 -> 148959.4694 | G105: 67.56682364 | H105: =Measures!BK18 -> 3750.311033 | I105: =Measures!BN18 -> 64764.98669 | J105: =Measures!BM18 -> 13801.1446 | K105: =Measures!BJ18 -> 75000 | L105: =Measures!BL18 -> 5.434331873 | M105: =Measures!BO18 -> Utility | O105: =Measures!BP18 -> Near Term | Q105: =I105*0.000453592 -> 29.37687984 | R105: 0
A106: Electric Utility Efficiency Upgrades - Gen Sets & Controls | B106: Kokhanok* | C106: Upgrade existing equipment | D106: to meet 14% efficiency | F106: ='Utility Infrastructure'!X18 -> 1040642.032 | G106: 472.0269004 | H106: =Measures!BR18 -> 8542.336753 | I106: =Measures!BU18 -> 848866.5714 | J106: =Measures!BT18 -> 31435.79925 | K106: ='Utility Infrastructure'!R18 -> 1105000 | L106: =Measures!BS18 -> 35.15100702 | M106: =Measures!BV18 -> Utility | O106: Near Term | P106: =Measures!BW18 -> Near Term | Q106: 385.0390859 | R106: 0
A107: Electric Utility Upgrades - Heat Recovery | B107: Kokhanok* | C107: Upgrade existing equipment | D107: to displace 10% fuel consumption | F107: =Measures!J18/Measures!G18*22.45 -> 1079416.445 | G107: 489.614664 | H107: =Measures!BY18 -> 961.6182137 | I107: =Measures!CB18 -> 21588.3289 | J107: =Measures!CA18 -> 8846.887566 | K107: =Measures!BX18 -> 75000 | L107: =Measures!BZ18 -> 8.477557722 | M107: =Measures!BV18 -> Utility | O107: Near Term | P107: ='Heat Recovery'!U18 -> near term | Q107: 9.792293281 | R107: 0
A108: Residential Energy Efficiency | B108: Levelock* | C108: Individual home retrofits | D108: ='Residential EE'!B19 -> 38 | F108: ='Residential EE'!T19 -> 758545.3595 | G108: 344.0701067 | H108: ='Residential EE'!U19 -> 6016.0212 | I108: ='Residential EE'!V19 -> 135059.6759 | J108: ='Residential EE'!W19 -> 72416.19 | K108: ='Residential EE'!X19 -> 1368000 | L108: ='Residential EE'!Y19 -> 18.89080329 | M108: ='Residential EE'!Z19 -> Housing Authority, Tribe, City | O108: =Measures!BI20 -> Near Term | P108: ='Residential EE'!AA19 -> Near Term | Q108: 61.26198853 | R108: 0
A109: Commercial Building Energy Efficiency | B109: Levelock* | C109: Building retrofits | D109: ='Community & Other EE'!D53 -> 34 | F109: =Measures!J20/Measures!G20*22.45 -> 693229.053 | G109: =F109*0.000453592 -> 314.4431526 | H109: =Measures!AV20 -> 17406.14743 | I109: =Measures!AY20 -> 390768.0097 | J109: =Measures!AX20 -> 142126.4729 | K109: ='Community & Other EE'!Z53 -> 1445000 | L109: =Measures!AW20 -> 10.16700106 | M109: ='Community & Other EE'!AB53 -> Building Owner | O109: Near Term | P109: ='Community & Other EE'!AC53 -> Near Term | Q109: 177.2492431 | R109: 0
A110: Community Building Energy Efficiency | B110: Levelock* | C110: Building retrofits | D110: ='Community & Other EE'!D19 -> 6 | F110: ='Community & Other EE'!V19 -> 536134.1434 | G110: =F110*0.000453592 -> 243.1861584 | H110: =Measures!AN20 -> 4500.038718 | I110: =Measures!AQ20 -> 101025.8692 | J110: =Measures!AP20 -> 34110.27405 | K110: =Measures!AM20 -> 300000 | L110: =Measures!AO20 -> 8.795004096 | M110: =Measures!AR20 -> City, Tribe | O110: Near Term | P110: =Measures!AS20 -> Near Term | Q110: 45.82452607 | R110: 0
A111: Community Scale Solar | B111: Levelock* | C111: New System | D111: =Solar!M19 -> 112.9695003 | F111: =Solar!X19 -> 693229.053 | G111: =F111*0.000453592 -> 314.4431526 | H111: =Measures!T20 -> 9263.639906 | I111: =Measures!X20 -> 207968.7159 | J111: =Measures!V20 -> 29551.0113 | K111: =Measures!U20 -> 908578.0012 | L111: =Measures!W20 -> 30.74608824 | M111: =Measures!Y20 -> Utility, IPP, Tribe | O111: Near Term | P111: =Measures!Z20 -> Near Term | Q111: 94.33294578 | R111: 0
A112: Community Scale Wind | B112: Levelock* | C112: N/A | D112: =Wind!S20 -> N/A | F112: N/A | G112: N/A | H112: N/A | I112: N/A | J112: N/A | K112: N/A | L112: N/A | M112: N/A | O112: N/A | P112: =Measures!AK20 -> 0 | Q112: N/A | R112: N/A
A113: Electric Utility Upgrades - Line Loss | B113: Levelock* | C113: Upgrade existing equipment | D113: to drop line loss below 6% | F113: ='Utility Line Loss'!L19 -> 148351.0173 | G113: =F113*0.000453592 -> 67.29083466 | H113: =Measures!BK20 -> 4755.335152 | I113: =Measures!BN20 -> 41593.74318 | J113: =Measures!BM20 -> 15169.51913 | K113: =Measures!BJ20 -> 75000 | L113: =Measures!BL20 -> 4.94412508 | M113: =Measures!BO20 -> Utility | O113: =Measures!BP20 -> Near Term | Q113: =I113*0.000453592 -> 18.86658916 | R113: 0
A114: Electric Utility Efficiency Upgrades - Gen Sets & Controls | B114: Levelock* | C114: Upgrade existing equipment | D114: to meet 14% efficiency | F114: ='Utility Infrastructure'!X20 -> 693229.053 | G114: =F114*0.000453592 -> 314.4431526 | H114: =Measures!BR20 -> 2580.585403 | I114: =Measures!BU20 -> 635294.9107 | J114: =Measures!BT20 -> 8232.067434 | K114: ='Utility Infrastructure'!R20 -> 2085000 | L114: =Measures!BS20 -> 253.2778086 | M114: =Measures!BV20 -> Utility | O114: Near Term | P114: =Measures!BW20 -> Near Term | Q114: 288.1646891 | R114: 0
A115: Electric Utility Upgrades - Heat Recovery | B115: Levelock* | C115: Upgrade existing equipment | D115: to displace 10% fuel consumption | F115: =Measures!J20/Measures!G20*22.45 -> 693229.053 | G115: =F115*0.000453592 -> 314.4431526 | H115: =Measures!BY20 -> 617.5759938 | I115: =Measures!CB20 -> 13864.58106 | J115: =Measures!CA20 -> 4925.16855 | K115: =Measures!BX20 -> 50000 | L115: =Measures!BZ20 -> 10.15193683 | M115: =Measures!BV20 -> Utility | O115: Near Term | P115: ='Heat Recovery'!U20 -> near term | Q115: 6.288863052 | R115: 0
A116: Residential Energy Efficiency | B116: Manokotak* | C116: Individual home retrofits | D116: ='Residential EE'!B20 -> 127 | F116: ='Residential EE'!T20 -> 5607666.148 | G116: =F116*0.000453592 -> 2543.592504 | H116: ='Residential EE'!U20 -> 33792.26837 | I116: ='Residential EE'!V20 -> 758636.4248 | J116: ='Residential EE'!W20 -> 307810.27 | K116: ='Residential EE'!X20 -> 4572000 | L116: ='Residential EE'!Y20 -> 14.85330558 | M116: ='Residential EE'!Z20 -> Housing Authority, Tribe, City | O116: =Measures!BI21 -> Near Term | P116: ='Residential EE'!AA20 -> Near Term | Q116: 344.1114132 | R116: 0
A117: Commercial Building Energy Efficiency | B117: Manokotak* | C117: Building retrofits | D117: ='Community & Other EE'!D54 -> 35 | F117: =Measures!J21/Measures!G21*22.45 -> 1966081.658 | G117: =F117*0.000453592 -> 891.7989115 | H117: =Measures!AV21 -> 21486.19631 | I117: =Measures!AY21 -> 482365.1071 | J117: =Measures!AX21 -> 143489.5698 | K117: ='Community & Other EE'!Z54 -> 1487500 | L117: =Measures!AW21 -> 10.36660715 | M117: ='Community & Other EE'!AB54 -> Building Owner | O117: Near Term | P117: ='Community & Other EE'!AC54 -> Near Term | Q117: 218.7969537 | R117: 0
A118: Community Building Energy Efficiency | B118: Manokotak* | C118: Building retrofits | D118: ='Community & Other EE'!D20 -> 5 | F118: ='Community & Other EE'!V20 -> 659389.5432 | G118: =F118*0.000453592 -> 299.0938217 | H118: =Measures!AN21 -> 4697.074983 | I118: =Measures!AQ21 -> 105449.3334 | J118: =Measures!AP21 -> 28868.24021 | K118: =Measures!AM21 -> 250000 | L118: =Measures!AO21 -> 8.660036019 | M118: =Measures!AR21 -> City, Tribe | O118: Near Term | P118: =Measures!AS21 -> Near Term | Q118: 47.83097403 | R118: 0
A119: Community Scale Solar | B119: Manokotak* | C119: New System | D119: =Solar!M20 -> 97.89159718 | F119: =Solar!X20 -> 1966081.658 | G119: 891.7989115 | H119: =Measures!T21 -> 26272.80612 | I119: =Measures!X21 -> 589824.4974 | J119: =Measures!V21 -> 69885.66429 | K119: =Measures!U21 -> 1613066.389 | L119: =Measures!W21 -> 23.08150613 | M119: =Measures!Y21 -> Utility, IPP, Tribe | O119: Near Term | P119: =Measures!Z21 -> Near Term | Q119: 267.5396734 | R119: 0
A120: Community Scale Wind | B120: Manokotak* | C120: One, new system | D120: =Wind!S21 -> 100 | F120: =Wind!AL21 -> 2035480.604 | G120: 923.2777181 | H120: =Measures!AE21 -> 35030.40816 | I120: =Measures!AI21 -> 855831.6091 | J120: =Measures!AH21 -> 117601.8956 | K120: =Measures!AF21 -> 1971500 | L120: =Measures!AG21 -> 16.76418556 | M120: =Measures!AJ21 -> Utility, IPP | O120: Long Term | P120: =Measures!AK21 -> Long Term | Q120: 0 | R120: =I120*0.000453592 -> 388.1983712
A121: Electric Utility Upgrades - Line Loss | B121: Manokotak* | C121: Upgrade existing equipment | D121: to drop line loss below 6% | F121: ='Utility Line Loss'!L20 -> 405012.8216 | G121: 183.7105758 | H121: =Measures!BK21 -> 12786.09898 | I121: =Measures!BN21 -> 117964.8995 | J121: =Measures!BM21 -> 34011.02329 | K121: =Measures!BJ21 -> 75000 | L121: =Measures!BL21 -> 2.205167406 | M121: =Measures!BO21 -> Utility | O121: =Measures!BP21 -> Near Term | Q121: =I121*0.000453592 -> 53.50793469 | R121: 0
A122: Electric Utility Efficiency Upgrades - Gen Sets & Controls | B122: Manokotak* | C122: Upgrade existing equipment | D122: to meet 14% efficiency | F122: ='Utility Infrastructure'!X21 -> 1966081.658 | G122: 891.7989115 | H122: =Measures!BR21 -> 63054.73469 | I122: =Measures!BU21 -> 550502.8643 | J122: =Measures!BT21 -> 167725.5943 | K122: ='Utility Infrastructure'!R21 -> 1963000 | L122: =Measures!BS21 -> 11.70364015 | M122: =Measures!BV21 -> Utility | O122: Near Term | P122: =Measures!BW21 -> Near Term | Q122: 249.7036952 | R122: 0
A123: Electric Utility Upgrades - Heat Recovery | B123: Manokotak* | C123: Upgrade existing equipment | D123: to displace 10% fuel consumption | F123: =Measures!J21/Measures!G21*22.45 -> 1966081.658 | G123: 891.7989115 | H123: =Measures!BY21 -> 1751.520408 | I123: =Measures!CB21 -> 39321.63316 | J123: =Measures!CA21 -> 13837.01122 | K123: =Measures!BX21 -> 50000 | L123: =Measures!BZ21 -> 3.613497105 | M123: =Measures!BV21 -> Utility | O123: Near Term | Q123: 17.83597823 | R123: 0
A124: Residential Energy Efficiency | B124: Naknek, King Salmon, South Naknek | C124: Individual home retrofits | D124: ='Residential EE'!B21 -> 931 | F124: ='Residential EE'!T21 -> 19223785.49 | G124: 8719.75531 | H124: ='Residential EE'!U21 -> 150240.7341 | I124: ='Residential EE'!V21 -> 3372904.479 | J124: ='Residential EE'!W21 -> 1258059.33 | K124: ='Residential EE'!X21 -> 33516000 | L124: ='Residential EE'!Y21 -> 26.6410329 | M124: ='Residential EE'!Z21 -> Housing Authority, Tribe, City | O124: =Measures!BI22 -> Near Term | P124: ='Residential EE'!AA21 -> Near Term | Q124: 1529.922489 | R124: 0
A125: Commercial Building Energy Efficiency | B125: Naknek, King Salmon, South Naknek | C125: Building retrofits | D125: ='Community & Other EE'!D55 -> 443 | F125: =Measures!J22/Measures!G22*22.45 -> 36997367.34 | G125: =F125*0.000453592 -> 16781.70985 | H125: =Measures!AV22 -> 305368.1496 | I125: =Measures!AY22 -> 6855514.958 | J125: =Measures!AX22 -> 1853885.651 | K125: ='Community & Other EE'!Z55 -> 18827500 | L125: =Measures!AW22 -> 10.15569649 | M125: ='Community & Other EE'!AB55 -> Building Owner | O125: Near Term | P125: ='Community & Other EE'!AC55 -> Near Term | Q125: 3109.606741 | R125: 0
A126: Community Building Energy Efficiency | B126: Naknek, King Salmon, South Naknek | C126: Building retrofits | D126: ='Community & Other EE'!D21 -> 38 | F126: ='Community & Other EE'!V21 -> 4729737.685 | G126: =F126*0.000453592 -> 2145.371176 | H126: =Measures!AN22 -> 34443.32514 | I126: =Measures!AQ22 -> 773252.6494 | J126: =Measures!AP22 -> 160994.3175 | K126: =Measures!AM22 -> 1900000 | L126: =Measures!AO22 -> 11.80165878 | M126: =Measures!AR22 -> City, Tribe | O126: Near Term | P126: =Measures!AS22 -> Near Term | Q126: 350.7412157 | R126: 0
A127: Community Scale Solar | B127: Naknek, King Salmon, South Naknek | C127: New System | D127: =Solar!M21 -> 2327.695528 | F127: =Solar!X21 -> 36997367.34 | G127: 16781.70985 | H127: =Measures!T22 -> 164798.9637 | I127: =Measures!X22 -> 3699736.734 | J127: =Measures!V22 -> 326301.948 | K127: =Measures!U22 -> 11810782.11 | L127: =Measures!W22 -> 36.1958676 | M127: =Measures!Y22 -> Utility, IPP, Tribe | O127: Near Term | P127: =Measures!Z22 -> Near Term | Q127: 1678.170985 | R127: 0
A128: Community Scale Wind | B128: Naknek, King Salmon, South Naknek | C128: One, new system | D128: =Wind!S22 -> 7500 | F128: =Wind!AL22 -> 42480639.77 | G128: 19268.87835 | H128: =Measures!AE22 -> 659195.8546 | I128: =Measures!AI22 -> 20282219.36 | J128: =Measures!AH22 -> 2514214.407 | K128: =Measures!AF22 -> 72239550 | L128: =Measures!AG22 -> 28.73245408 | M128: =Measures!AJ22 -> Utility, IPP | O128: Long Term | P128: =Measures!AK22 -> Long Term | Q128: 0 | R128: =I128*0.000453592 -> 9199.852444
A129: Electric Utility Upgrades - Line Loss | B129: Naknek, King Salmon, South Naknek | C129: Upgrade existing equipment | D129: to drop line loss below 6% | F129: ='Utility Line Loss'!L21 -> 3588744.632 | G129: 1627.825855 | H129: =Measures!BK22 -> 60975.61655 | I129: =Measures!BN22 -> 2219842.041 | J129: =Measures!BM22 -> 120731.7208 | K129: =Measures!BJ22 -> 75000 | L129: =Measures!BL22 -> 0.621212052 | M129: =Measures!BO22 -> Utility | O129: =Measures!BP22 -> Near Term | Q129: =I129*0.000453592 -> 1006.902591 | R129: 0
A130: Electric Utility Efficiency Upgrades - Gen Sets & Controls | B130: Naknek, King Salmon, South Naknek | C130: Upgrade existing equipment | D130: equipment needs for future renewable integration | F130: ='Utility Infrastructure'!X22 -> 36997367.34 | G130: 16781.70985 | H130: =Measures!BR22 -> 0 | I130: 0 | J130: 0 | K130: ='Utility Infrastructure'!R22 -> 283000 | L130: N/A | M130: =Measures!BV29 -> Utility | O130: Near Term | P130: =Measures!BW22 -> Near Term | Q130: 0 | R130: N/A
A131: Electric Utility Upgrades - Heat Recovery | B131: Naknek, King Salmon, South Naknek | C131: Upgrade existing equipment | D131: to displace 10% fuel consumption | F131: =Measures!J22/Measures!G22*22.45 -> 36997367.34 | G131: 16781.70985 | H131: =Measures!BY22 -> 32959.79273 | I131: =Measures!CB22 -> 739947.3468 | J131: =Measures!CA22 -> 163150.974 | K131: =Measures!BX22 -> 100000 | L131: =Measures!BZ22 -> 0.6129292246 | M131: =Measures!BV22 -> Utility | O131: Near Term | Q131: =I131*0.000453592 -> 335.6341969 | R131: 0
A132: Commercial Building Energy Efficiency | B132: New Koliganek | C132: Building retrofits | D132: ='Community & Other EE'!D52 -> 14 | F132: =Measures!J19/Measures!G19*22.45 -> 1243043.631 | G132: =F132*0.000453592 -> 563.8346465 | H132: =Measures!AV19 -> 7149.854417 | I132: =Measures!AY19 -> 160514.2317 | J132: =Measures!AX19 -> 46375.48285 | K132: ='Community & Other EE'!Z52 -> 595000 | L132: =Measures!AW19 -> 12.83005509 | M132: ='Community & Other EE'!AB52 -> Building Owner | O132: Near Term | P132: ='Community & Other EE'!AC52 -> Near Term | Q132: =I132*0.000453592 -> 72.80797137 | R132: 0
A133: Community Building Energy Efficiency | B133: New Koliganek | C133: Building retrofits | D133: ='Community & Other EE'!D18 -> 11 | F133: ='Community & Other EE'!V18 -> 1015501.886 | G133: =F133*0.000453592 -> 460.6235316 | H133: =Measures!AN19 -> 8395.234858 | I133: =Measures!AQ19 -> 188473.0226 | J133: =Measures!AP19 -> 52297.97502 | K133: =Measures!AM19 -> 550000 | L133: =Measures!AO19 -> 10.51665958 | M133: =Measures!AR19 -> City, Tribe | O133: Near Term | P133: =Measures!AS19 -> Near Term | Q133: =I133*0.000453592 -> 85.48985525 | R133: 0
A134: Community Scale Solar | B134: New Koliganek | C134: New System | D134: =Solar!M18 -> 198.3050654 | F134: =Solar!X18 -> 1243043.631 | G134: 563.8346465 | H134: =Measures!T19 -> 16610.82803 | I134: =Measures!X19 -> 372913.0892 | J134: =Measures!V19 -> 52158 | K134: =Measures!U19 -> 1232370.262 | L134: =Measures!W19 -> 23.62763644 | M134: =Measures!Y19 -> Utility, IPP, Tribe | O134: Near Term | P134: =Measures!Z19 -> Near Term | Q134: =I134*0.000453592 -> 169.1503939 | R134: 0
A135: Community Scale Wind | B135: New Koliganek | C135: One, new system | D135: =Wind!S19 -> 200 | F135: =Wind!AL19 -> 1379885.002 | G135: 625.9047978 | H135: =Measures!AE19 -> 22147.7707 | I135: =Measures!AI19 -> 634058.8237 | J135: =Measures!AH19 -> 109163.9962 | K135: =Measures!AF19 -> 2439150 | L135: =Measures!AG19 -> 22.34390536 | M135: =Measures!AJ19 -> Utility, IPP | O135: Long Term | P135: =Measures!AK19 -> Long Term | Q135: 0 | R135: =I135*0.000453592 -> 287.6040099
A136: Electric Utility Upgrades - Line Loss | B136: New Koliganek | C136: Upgrade existing equipment | D136: to drop line loss below 6% | F136: ='Utility Line Loss'!L18 -> 96957.40318 | G136: 43.97910243 | H136: =Measures!BK19 -> 996.6496815 | I136: =Measures!BN19 -> 74582.61783 | J136: =Measures!BM19 -> 3129.48 | K136: =Measures!BJ19 -> 75000 | L136: =Measures!BL19 -> 23.96564285 | M136: =Measures!BO19 -> Utility | O136: Near Term | P136: =Measures!BP19 -> Near Term | Q136: =I136*0.000453592 -> 33.83007879 | R136: 0
A137: Electric Utility Efficiency Upgrades - Gen Sets & Controls | B137: New Koliganek | C137: Upgrade existing equipment | D137: to meet 14% efficiency | F137: ='Utility Infrastructure'!X19 -> 1243043.631 | G137: 563.8346465 | H137: =Measures!BR19 -> 5695.141037 | I137: =Measures!BU19 -> 1115187.714 | J137: =Measures!BT19 -> 17882.74286 | K137: ='Utility Infrastructure'!R19 -> 988000 | L137: =Measures!BS19 -> 55.24879533 | M137: =Measures!BV19 -> Utility | O137: Near Term | P137: =Measures!BW19 -> Near Term | Q137: =I137*0.000453592 -> 505.8402257 | R137: 0
A138: Electric Utility Upgrades - Heat Recovery | B138: New Koliganek | C138: Upgrade existing equipment | D138: to displace 10% fuel consumption | F138: =Measures!J19/Measures!G19*22.45 -> 1243043.631 | G138: 563.8346465 | H138: =Measures!BY19 -> 1107.388535 | I138: =Measures!CB19 -> 24860.87261 | J138: =Measures!CA19 -> 7198.025478 | K138: =Measures!BX19 -> 75000 | L138: =Measures!BZ19 -> 10.41952411 | M138: =Measures!BV19 -> Utility | O138: Near Term | P138: ='Heat Recovery'!U19 -> near term | Q138: =I138*0.000453592 -> 11.27669293 | R138: 0
A139: Residential Energy Efficiency | B139: New Koliganek | C139: Individual home retrofits | D139: ='Residential EE'!B18 -> 75 | F139: ='Residential EE'!T18 -> 1629326.624 | G139: 739.0495221 | H139: ='Residential EE'!U18 -> 12462.57962 | I139: ='Residential EE'!V18 -> 279784.9124 | J139: ='Residential EE'!W18 -> 148615.456 | K139: ='Residential EE'!X18 -> 2700000 | L139: ='Residential EE'!Y18 -> 18.16769314 | M139: ='Residential EE'!Z18 -> Housing Authority, Tribe, City | O139: =Measures!BI19 -> Near Term | P139: ='Residential EE'!AA18 -> Near Term | Q139: 126.908198 | R139: 0
A140: Residential Energy Efficiency | B140: New Stuyahok, Ekwok | C140: Individual home retrofits | D140: ='Residential EE'!B23 -> 152 | F140: ='Residential EE'!T23 -> 3755275.963 | G140: 1703.363135 | H140: ='Residential EE'!U23 -> 27276.08714 | I140: ='Residential EE'!V23 -> 612348.1563 | J140: ='Residential EE'!W23 -> 422090.104 | K140: ='Residential EE'!X23 -> 5472000 | L140: ='Residential EE'!Y23 -> 12.9640566 | M140: ='Residential EE'!Z23 -> Housing Authority, Tribe, City | O140: =Measures!BI24 -> Near Term | P140: ='Residential EE'!AA23 -> Near Term | Q140: 277.7562249 | R140: 0
A141: Commercial Building Energy Efficiency | B141: New Stuyahok, Ekwok | C141: Building retrofits | D141: ='Community & Other EE'!D57 -> 59 | F141: =Measures!J24/Measures!G24*22.45 -> 3271116.138 | G141: =F141*0.000453592 -> 1483.752111 | H141: =Measures!AV24 -> 28939.88711 | I141: =Measures!AY24 -> 649700.4656 | J141: =Measures!AX24 -> 226866.8882 | K141: ='Community & Other EE'!Z57 -> 2507500 | L141: =Measures!AW24 -> 11.05273678 | M141: ='Community & Other EE'!AB57 -> Building Owner | O141: Near Term | P141: ='Community & Other EE'!AC57 -> Near Term | Q141: 294.6989336
A142: Community Building Energy Efficiency | B142: New Stuyahok, Ekwok | C142: Building retrofits | D142: ='Community & Other EE'!D23 -> 18 | F142: ='Community & Other EE'!V23 -> 1888982.122 | G142: =F142*0.000453592 -> 856.8271787 | H142: =Measures!AN24 -> 14749.91434 | I142: =Measures!AQ24 -> 331135.5768 | J142: =Measures!AP24 -> 107164.6511 | K142: =Measures!AM24 -> 900000 | L142: =Measures!AO24 -> 8.398291699 | M142: =Measures!AR24 -> City, Tribe | O142: Near Term | P142: =Measures!AS24 -> Near Term | Q142: 150.2004486
A143: Community Scale Solar | B143: New Stuyahok, Ekwok | C143: New System | D143: =Solar!M23 -> 549.2691593 | F143: =Solar!X23 -> 3271116.138 | G143: 1483.752111 | H143: =Measures!T24 -> 43712.01967 | I143: =Measures!X24 -> 981334.8415 | J143: =Measures!V24 -> 137255.7418 | K143: =Measures!U24 -> 2622576.637 | L143: =Measures!W24 -> 19.10722716 | M143: =Measures!Y24 -> Utility, IPP, Tribe | O143: Near Term | P143: =Measures!Z24 -> Near Term | Q143: 445.1256334
A144: Community Scale Wind | B144: New Stuyahok, Ekwok | C144: One, new system | D144: =Wind!S24 -> 600 | F144: =Wind!AL24 -> 3717053.4 | G144: 1686.025686 | H144: =Measures!AE24 -> 58282.69289 | I144: =Measures!AI24 -> 1754383.717 | J144: =Measures!AH24 -> 338936.7203 | K144: =Measures!AF24 -> 4525500 | L144: =Measures!AG24 -> 13.35204989 | M144: =Measures!AJ24 -> Utility, IPP | O144: Long Term | P144: =Measures!AK24 -> Long Term | R144: =I144*0.000453592 -> 795.7744188
A145: Electric Utility Upgrades - Line Loss | B145: New Stuyahok, Ekwok | C145: Upgrade existing equipment | D145: to drop line loss below 6% | F145: ='Utility Line Loss'!L23 -> 886472.4735 | G145: 402.0968222 | H145: =Measures!BK24 -> 30744.1205 | I145: =Measures!BN24 -> 196266.9683 | J145: =Measures!BM24 -> 96536.53837 | K145: =Measures!BJ24 -> 75000 | L145: =Measures!BL24 -> 0.7769079073 | M145: =Measures!BO24 -> Utility | O145: =Measures!BP24 -> Near Term | Q145: =I145*0.000453592 -> 89.02512669 | R145: 0
A146: Electric Utility Efficiency Upgrades - Gen Sets & Controls | B146: New Stuyahok, Ekwok | C146: Upgrade existing equipment | D146: to meet 14% efficiency | F146: ='Utility Infrastructure'!X24 -> 3271116.138 | G146: 1483.752111 | H146: =Measures!BR24 -> 8117.94651 | I146: =Measures!BU24 -> 3088868.239 | J146: =Measures!BT24 -> 25490.35204 | K146: ='Utility Infrastructure'!R24 -> 1623000 | L146: =Measures!BS24 -> 63.67114889 | M146: =Measures!BV24 -> Utility | O146: Near Term | P146: =Measures!BW24 -> Near Term | Q146: 1401.085922 | R146: 0
A147: Electric Utility Upgrades - Heat Recovery | B147: New Stuyahok, Ekwok | C147: Upgrade existing equipment | D147: to displace 10% fuel consumption | F147: =Measures!J24/Measures!G24*22.45 -> 3271116.138 | G147: 1483.752111 | H147: =Measures!BY24 -> 2914.134644 | I147: =Measures!CB24 -> 65422.32277 | J147: =Measures!CA24 -> 22875.95696 | K147: =Measures!BX24 -> 100000 | L147: =Measures!BZ24 -> 4.371401825 | M147: =Measures!BV24 -> Utility | O147: Near Term | Q147: 29.67504223 | R147: 0
A148: Residential Energy Efficiency | B148: Pedro Bay | C148: Individual home retrofits | D148: ='Residential EE'!B25 -> 42 | F148: ='Residential EE'!T25 -> 761973.5879 | G148: 345.6251237 | H148: ='Residential EE'!U25 -> 6308.891705 | I148: ='Residential EE'!V25 -> 141634.6188 | J148: ='Residential EE'!W25 -> 72557.824 | K148: ='Residential EE'!X25 -> 1512000 | L148: ='Residential EE'!Y25 -> 20.83855216 | M148: ='Residential EE'!Z25 -> Housing Authority, Tribe, City | O148: =Measures!BI26 -> Near Term | P148: ='Residential EE'!AA25 -> Near Term | Q148: 64.24433001 | R148: 0
A149: Commercial Building Energy Efficiency | B149: Pedro Bay | C149: Building retrofits | D149: ='Community & Other EE'!D59 -> 16 | F149: =Measures!J26/Measures!G26*22.45 -> 454690.9599 | G149: =F149*0.000453592 -> 206.2441819 | H149: =Measures!AV26 -> 8577.43504 | I149: =Measures!AY26 -> 192563.4166 | J149: =Measures!AX26 -> 78543.82514 | K149: ='Community & Other EE'!Z59 -> 680000 | L149: =Measures!AW26 -> 8.657587007 | M149: ='Community & Other EE'!AB59 -> Building Owner | O149: Near Term | P149: ='Community & Other EE'!AC59 -> Near Term | Q149: 87.34522528 | R149: 0
A150: Community Building Energy Efficiency | B150: Pedro Bay | C150: Building retrofits | D150: ='Community & Other EE'!D25 -> 4 | F150: ='Community & Other EE'!V25 -> 360656.6392 | G150: =F150*0.000453592 -> 163.5909663 | H150: =Measures!AN26 -> 3014.430609 | I150: =Measures!AQ26 -> 67673.96717 | J150: =Measures!AP26 -> 26566.56118 | K150: =Measures!AM26 -> 200000 | L150: =Measures!AO26 -> 7.528260757 | M150: =Measures!AR26 -> City, Tribe | O150: Near Term | P150: =Measures!AS26 -> Near Term | Q150: 30.69637012 | R150: 0
A151: Community Scale Solar | B151: Pedro Bay | C151: New System | D151: =Solar!M25 -> 61.96890719 | F151: =Solar!X25 -> 454690.9599 | G151: 206.2441819 | H151: =Measures!T26 -> 6076.048462 | I151: =Measures!X26 -> 136407.288 | J151: =Measures!V26 -> 22359.85834 | K151: =Measures!U26 -> 646075.6288 | L151: =Measures!W26 -> 28.89444195 | M151: =Measures!Y26 -> Utility, IPP, Tribe | O151: Near Term | P151: =Measures!Z26 -> Near Term | Q151: 61.87325457 | R151: 0
A152: Community Scale Wind | B152: Pedro Bay | C152: One, new system | D152: =Wind!S26 -> 100 | F152: =Wind!AL26 -> 551959.4774 | G152: 250.3644033 | H152: =Measures!AE26 -> 8101.39795 | I152: =Measures!AI26 -> 279144.9015 | J152: =Measures!AH26 -> 69673.73961 | K152: =Measures!AF26 -> 1398200 | L152: =Measures!AG26 -> 20.06781906 | M152: =Measures!AJ26 -> Utility, IPP | O152: Long Term | P152: =Measures!AK26 -> Long Term | Q152: 0 | R152: =I152*0.000453592 -> 126.6178942
A153: Electric Utility Upgrades - Line Loss | B153: Pedro Bay | C153: Upgrade existing equipment | D153: to drop line loss below 6% | F153: ='Utility Line Loss'!L25 -> 38648.73159 | G153: 17.53075546 | H153: =Measures!BK26 -> 506.3373719 | I153: =Measures!BN26 -> 27281.4576 | J153: =Measures!BM26 -> 1863.321528 | K153: =Measures!BJ26 -> 75000 | L153: =Measures!BL26 -> 40.25070223 | M153: =Measures!BO26 -> Utility | O153: Near Term | P153: =Measures!BP26 -> Near Term | Q153: =I153*0.000453592 -> 12.37465091 | R153: 0
A154: Electric Utility Efficiency Upgrades - Gen Sets & Controls | B154: Pedro Bay | C154: Upgrade existing equipment | D154: to meet 14% efficiency | F154: ='Utility Infrastructure'!X26 -> 454690.9599 | G154: 206.2441819 | H154: =Measures!BR26 -> 4730.637731 | I154: =Measures!BU26 -> 348488.1429 | J154: =Measures!BT26 -> 17408.74685 | K154: ='Utility Infrastructure'!R26 -> 1523000 | L154: =Measures!BS26 -> 87.48475769 | M154: =Measures!BV26 -> Utility | O154: Near Term | P154: =Measures!BW26 -> Near Term | Q154: 158.0714337 | R154: 0
A155: Electric Utility Upgrades - Heat Recovery | B155: Pedro Bay | C155: Upgrade existing equipment | D155: to displace 10% fuel consumption | F155: =Measures!J26/Measures!G26*22.45 -> 454690.9599 | G155: 206.2441819 | H155: =Measures!BY26 -> 405.0698975 | I155: =Measures!CB26 -> 9093.819199 | J155: =Measures!CA26 -> 3726.643057 | K155: =Measures!BX26 -> 50000 | L155: =Measures!BZ26 -> 13.41690074 | M155: =Measures!BV26 -> Utility | O155: Near Term | P155: ='Heat Recovery'!U26 -> near term | Q155: 4.124883638 | R155: 0
A156: Residential Energy Efficiency | B156: Perryville | C156: Individual home retrofits | D156: ='Residential EE'!B26 -> 24 | F156: ='Residential EE'!T26 -> 605213.7855 | G156: 274.5201314 | H156: ='Residential EE'!U26 -> 4361.429779 | I156: ='Residential EE'!V26 -> 97914.09855 | J156: ='Residential EE'!W26 -> 64276.401 | K156: ='Residential EE'!X26 -> 864000 | L156: ='Residential EE'!Y26 -> 13.44194738 | M156: ='Residential EE'!Z26 -> Housing Authority, Tribe, City | O156: Near Term | P156: ='Residential EE'!AA26 -> 0 | Q156: 44.41305179 | R156: 0
A157: Commercial Building Energy Efficiency | B157: Perryville | C157: Building retrofits | D157: ='Community & Other EE'!D60 -> 21 | F157: =Measures!J27/Measures!G27*22.45 -> 862278.0882 | G157: =F157*0.000453592 -> 391.1224426 | H157: =Measures!AV27 -> 12242.8914 | I157: =Measures!AY27 -> 274852.912 | J157: =Measures!AX27 -> 105321.2599 | K157: ='Community & Other EE'!Z60 -> 892500 | L157: =Measures!AW27 -> 8.474072578 | M157: ='Community & Other EE'!AB60 -> Building Owner | O157: Near Term | P157: ='Community & Other EE'!AC60 -> Near Term | Q157: 124.6710821 | R157: 0
A158: Community Building Energy Efficiency | B158: Perryville | C158: Building retrofits | D158: ='Community & Other EE'!D26 -> 6 | F158: ='Community & Other EE'!V26 -> 539885.716 | G158: =F158*0.000453592 -> 244.8878417 | H158: =Measures!AN27 -> 4516.749509 | I158: =Measures!AQ27 -> 101401.0265 | J158: =Measures!AP27 -> 37768.62473 | K158: =Measures!AM27 -> 300000 | L158: =Measures!AO27 -> 7.943100977 | M158: =Measures!AR27 -> City, Tribe | O158: Near Term | P158: =Measures!AS27 -> 0 | Q158: 45.9946944 | R158: 0
A159: Community Scale Solar | B159: Perryville | C159: New System | D159: =Solar!M26 -> 119.1609732 | F159: =Solar!X26 -> 862278.0882 | G159: =F159*0.000453592 -> 391.1224426 | H159: =Measures!T27 -> 11522.64706 | I159: =Measures!X27 -> 258683.4265 | J159: =Measures!V27 -> 37909.50882 | K159: =Measures!U27 -> 923593.8926 | L159: =Measures!W27 -> 24.36311947 | M159: =Measures!Y27 -> Utility, IPP, Tribe | O159: Near Term | P159: =Measures!Z27 -> Near Term | Q159: 117.3367328 | R159: 0
A160: Community Scale Wind | B160: Perryville | C160: Upgrade existing | D160: =Wind!S27 -> 100 | F160: =Wind!AL27 -> 925619.4318 | G160: =F160*0.000453592 -> 419.8535693 | H160: =Measures!AE27 -> 9602.205882 | I160: =Measures!AI27 -> 215569.5221 | J160: =Measures!AH27 -> 54797.60705 | K160: =Wind!AD27 -> 1446950 | L160: =Measures!AG27 -> 26.40535012 | M160: =Measures!AJ27 -> Utility, IPP | O160: Long Term | P160: =Measures!AK27 -> 0 | Q160: 0 | R160: =I160*0.000453592 -> 97.78061065
A161: Electric Utility Upgrades - Line Loss | B161: Perryville | C161: N/A | D161: N/A | F161: ='Utility Line Loss'!L26 -> N/A | G161: N/A | H161: =Measures!BK27 -> N/A | I161: =Measures!BN27 -> N/A | J161: =Measures!BM27 -> N/A | K161: =Measures!BJ27 -> N/A | L161: =Measures!BL27 -> N/A | M161: =Measures!BO27 -> N/A | O161: N/A | Q161: N/A | R161: N/A
A162: Electric Utility Efficiency Upgrades - Gen Sets & Controls | B162: Perryville | C162: Upgrade existing equipment | D162: to meet 14% efficiency | F162: ='Utility Infrastructure'!X27 -> 862278.0882 | G162: =F162*0.000453592 -> 391.1224426 | H162: =Measures!BR27 -> 8559.680672 | I162: =Measures!BU27 -> 670113.2571 | J162: =Measures!BT27 -> 28161.34941 | K162: ='Utility Infrastructure'!R27 -> 698000 | L162: =Measures!BS27 -> 24.7857441 | M162: =Measures!BV27 -> Utility | O162: Near Term | P162: =Measures!BW27 -> 0 | Q162: =I162*0.000453592 -> 303.9580125 | R162: 0
A163: Electric Utility Upgrades - Heat Recovery | B163: Perryville | C163: Upgrade existing equipment | D163: to displace 10% fuel consumption | F163: =Measures!J27/Measures!G27*22.45 -> 862278.0882 | G163: =F163*0.000453592 -> 391.1224426 | H163: =Measures!BY27 -> 768.1764706 | I163: =Measures!CB27 -> 17245.56176 | J163: =Measures!CA27 -> 6318.251471 | K163: =Measures!BX27 -> 50000 | L163: =Measures!BZ27 -> 7.913581824 | M163: =Measures!BV27 -> Utility | O163: Near Term | P163: ='Heat Recovery'!U27 -> near term | Q163: 7.822448852 | R163: 0
A164: Residential Energy Efficiency | B164: Pilot Point | C164: Individual home retrofits | D164: ='Residential EE'!B17 -> 56 | F164: ='Residential EE'!T27 -> 1000884.142 | G164: =F164*0.000453592 -> 453.9930397 | H164: ='Residential EE'!U27 -> 7511.881256 | I164: ='Residential EE'!V27 -> 168641.7342 | J164: ='Residential EE'!W27 -> 78382.672 | K164: ='Residential EE'!X27 -> 1584000 | L164: ='Residential EE'!Y27 -> 20.20854813 | M164: ='Residential EE'!Z27 -> Housing Authority, Tribe, City | O164: =Measures!BI28 -> Near Term | P164: ='Residential EE'!AA27 -> Near Term | Q164: 76.4945415 | R164: 0
A165: Commercial Building Energy Efficiency | B165: Pilot Point | C165: Building retrofits | D165: ='Community & Other EE'!D61 -> 22 | F165: =Measures!J28/Measures!G28*22.45 -> 1031484.581 | G165: =F165*0.000453592 -> 467.8731542 | H165: =Measures!AV28 -> 11891.90271 | I165: =Measures!AY28 -> 266973.2158 | J165: =Measures!AX28 -> 69661.44606 | K165: ='Community & Other EE'!Z61 -> 935000 | L165: =Measures!AW28 -> 13.42205844 | M165: ='Community & Other EE'!AB61 -> Building Owner | O165: Near Term | P165: ='Community & Other EE'!AC61 -> Near Term | Q165: 121.0969149 | R165: 0
A166: Community Building Energy Efficiency | B166: Pilot Point | C166: Building retrofits | D166: ='Community & Other EE'!D27 -> 10 | F166: ='Community & Other EE'!V27 -> 898486.644 | G166: =F166*0.000453592 -> 407.5463538 | H166: =Measures!AN28 -> 7522.023275 | I166: =Measures!AQ28 -> 168869.4225 | J166: =Measures!AP28 -> 42756.58291 | K166: =Measures!AM28 -> 500000 | L166: =Measures!AO28 -> 11.6941057 | M166: =Measures!AR28 -> City, Tribe | O166: Near Term | P166: =Measures!AS28 -> Near Term | Q166: 76.5978191 | R166: 0
A167: Community Scale Solar | B167: Pilot Point | C167: New System | D167: =Solar!M27 -> 137.6966113 | F167: =Solar!X27 -> 1031484.581 | G167: 467.8731542 | H167: =Measures!T28 -> 13783.75833 | I167: =Measures!X28 -> 309445.3744 | J167: =Measures!V28 -> 40110.73673 | K167: =Measures!U28 -> 976286.4451 | L167: =Measures!W28 -> 24.33977844 | M167: =Measures!Y28 -> Utility, IPP, Tribe | O167: Near Term | P167: =Measures!Z28 -> Near Term | Q167: 140.3619463 | R167: 0
A168: Community Scale Wind | B168: Pilot Point | C168: One, new system | D168: =Wind!S28 -> 200 | F168: =Wind!AL28 -> 1215347.255 | G168: 551.2717921 | H168: =Measures!AE28 -> 18378.34443 | I168: =Measures!AI28 -> 596456.5061 | J168: =Measures!AH28 -> 100982.2521 | K168: =Measures!AF28 -> 2425500 | L168: =Measures!AG28 -> 24.01907216 | M168: =Measures!AJ28 -> Utility, IPP | O168: Long Term | P168: =Measures!AK28 -> Long Term | Q168: 0 | R168: =I168*0.000453592 -> 270.5478995
A169: Electric Utility Upgrades - Line Loss | B169: Pilot Point | C169: Upgrade existing equipment | D169: to drop line loss below 6% | F169: ='Utility Line Loss'!L27 -> 178446.8326 | G169: 80.94205568 | H169: =Measures!BK28 -> 5191.882303 | I169: =Measures!BN28 -> 61889.07488 | J169: =Measures!BM28 -> 15108.3775 | K169: =Measures!BJ28 -> 75000 | L169: =Measures!BL28 -> 4.964133309 | M169: =Measures!BO28 -> Utility | O169: =Measures!BP28 -> Near Term | Q169: =I169*0.000453592 -> 28.07238925 | R169: 0
A170: Electric Utility Efficiency Upgrades - Gen Sets & Controls | B170: Pilot Point | C170: Upgrade existing equipment | D170: to meet 14% efficiency | F170: ='Utility Infrastructure'!X28 -> 1031484.581 | G170: 467.8731542 | H170: =Measures!BR28 -> 11453.6468 | I170: =Measures!BU28 -> 774350.2107 | J170: =Measures!BT28 -> 33330.11218 | K170: ='Utility Infrastructure'!R28 -> 1563000 | L170: =Measures!BS28 -> 46.89453163 | M170: =Measures!BV28 -> Utility | O170: Near Term | P170: =Measures!BW28 -> Near Term | Q170: 351.2390608 | R170: 0
A171: Electric Utility Upgrades - Heat Recovery | B171: Pilot Point | C171: Upgrade existing equipment | D171: to displace 10% fuel consumption | F171: =Measures!J28/Measures!G28*22.45 -> 1031484.581 | G171: 467.8731542 | H171: =Measures!BY28 -> 918.9172217 | I171: =Measures!CB28 -> 20629.69163 | J171: =Measures!CA28 -> 5329.719886 | K171: =Measures!BX28 -> 50000 | L171: =Measures!BZ28 -> 9.38135607 | M171: =Measures!BV28 -> Utility | O171: Near Term | P171: ='Heat Recovery'!U28 -> near term | Q171: 9.357463084 | R171: 0
A172: Residential Energy Efficiency | B172: Port Heiden* | C172: Individual home retrofits | D172: ='Residential EE'!B28 -> 50 | F172: ='Residential EE'!T28 -> 1103372.081 | G172: 500.4807489 | H172: ='Residential EE'!U28 -> 8384.797688 | I172: ='Residential EE'!V28 -> 188238.7081 | J172: ='Residential EE'!W28 -> 105933.36 | K172: ='Residential EE'!X28 -> 1800000 | L172: ='Residential EE'!Y28 -> 16.99181448 | M172: ='Residential EE'!Z28 -> Housing Authority, Tribe, City | O172: =Measures!BI29 -> Near Term | P172: ='Residential EE'!AA28 -> Near Term | Q172: 85.38357208 | R172: 0
A173: Commercial Building Energy Efficiency | B173: Port Heiden* | C173: Building retrofits | D173: ='Community & Other EE'!D62 -> 37 | F173: =Measures!J29/Measures!G29*22.45 -> 1145821.305 | G173: =F173*0.000453592 -> 519.7353772 | H173: =Measures!AV29 -> 18604.08512 | I173: =Measures!AY29 -> 417661.7109 | J173: =Measures!AX29 -> 141633.2715 | K173: ='Community & Other EE'!Z62 -> 1572500 | L173: =Measures!AW29 -> 11.10261723 | M173: ='Community & Other EE'!AB62 -> Building Owner | O173: Near Term | P173: ='Community & Other EE'!AC62 -> Near Term | Q173: 189.4480108 | R173: 0
A174: Community Building Energy Efficiency | B174: Port Heiden* | C174: Building retrofits | D174: ='Community & Other EE'!D28 -> 4 | F174: ='Community & Other EE'!V28 -> 416703.8954 | G174: =F174*0.000453592 -> 189.0135533 | H174: =Measures!AN29 -> 3264.084311 | I174: =Measures!AQ29 -> 73278.69279 | J174: =Measures!AP29 -> 23191.86302 | K174: =Measures!AM29 -> 200000 | L174: =Measures!AO29 -> 8.623714266 | M174: =Measures!AR29 -> City, Tribe | O174: Near Term | P174: =Measures!AS29 -> Near Term | Q174: 33.23862882 | R174: 0
A175: Community Scale Solar | B175: Port Heiden* | C175: New System | D175: =Solar!M28 -> 176.2458225 | F175: =Solar!X28 -> 1145821.305 | G175: 519.7353772 | H175: =Measures!T29 -> 15311.64327 | I175: =Measures!X29 -> 343746.3914 | J175: =Measures!V29 -> 46547.39554 | K175: =Measures!U29 -> 1185083.29 | L175: =Measures!W29 -> 25.45971212 | M175: =Measures!Y29 -> Utility, IPP, Tribe | O175: Near Term | P175: =Measures!Z29 -> Near Term | Q175: 155.9206132 | R175: 0
A176: Community Scale Wind | B176: Port Heiden* | C176: One, new system | D176: =Wind!S29 -> 200 | F176: =Wind!AL29 -> 1299776.697 | G176: 589.5683114 | H176: =Measures!AE29 -> 20415.52436 | I176: =Measures!AI29 -> 612283.9138 | J176: =Measures!AH29 -> 114181.7232 | K176: =Measures!AF29 -> 2480100 | L176: =Measures!AG29 -> 21.72063909 | M176: =Measures!AJ29 -> Utility, IPP | O176: Long Term | P176: =Measures!AK29 -> Long Term | Q176: 0 | R176: =I176*0.000453592 -> 277.727085
A177: Electric Utility Upgrades - Line Loss | B177: Port Heiden* | C177: Upgrade existing equipment | D177: to drop line loss below 6% | F177: ='Utility Line Loss'!L28 -> 210831.1201 | G177: 95.63130941 | H177: =Measures!BK29 -> 6328.812552 | I177: =Measures!BN29 -> 68749.27828 | J177: =Measures!BM29 -> 19239.59016 | K177: =Measures!BJ29 -> 75000 | L177: =Measures!BL29 -> 3.898211936 | M177: =Measures!BO29 -> Utility | O177: =Measures!BP29 -> Near Term | Q177: =I177*0.000453592 -> 31.18412263 | R177: 0
A178: Electric Utility Efficiency Upgrades - Gen Sets & Controls | B178: Port Heiden* | C178: Upgrade existing equipment | D178: to meet 14% efficiency | F178: ='Utility Infrastructure'!X29 -> 1145821.305 | G178: 519.7353772 | H178: =Measures!BR29 -> 6890.239472 | I178: =Measures!BU29 -> 991135.4286 | J178: =Measures!BT29 -> 20946.32799 | K178: ='Utility Infrastructure'!R29 -> 610000 | L178: =Measures!BS29 -> 29.12204947 | M178: =Measures!BV29 -> Utility | O178: Near Term | P178: =Measures!BW29 -> Near Term | Q178: =I178*0.000453592 -> 449.5711013 | R178: 0
A179: Electric Utility Upgrades - Heat Recovery | B179: Port Heiden* | C179: Upgrade existing equipment | D179: to displace 10% fuel consumption | F179: =Measures!J29/Measures!G29*22.45 -> 1145821.305 | G179: 519.7353772 | H179: =Measures!BY29 -> 1020.776218 | I179: =Measures!CB29 -> 22916.42609 | J179: =Measures!CA29 -> 7757.899257 | K179: =Measures!BX29 -> 75000 | L179: =Measures!BZ29 -> 9.667565602 | M179: =Measures!BV29 -> Utility | O179: Near Term | P179: ='Heat Recovery'!U29 -> near term | Q179: =I179*0.000453592 -> 10.39470754 | R179: 0
A180: Residential Energy Efficiency | B180: Portage Creek | C180: Individual home retrofits | D180: 2 | F180: ='Residential EE'!T29 -> 31160.6 | G180: 14.13419888 | H180: ='Residential EE'!U29 -> 277.6 | I180: ='Residential EE'!V29 -> 6232.12 | J180: ='Residential EE'!W29 -> 1325.54 | K180: ='Residential EE'!X29 -> 72000 | L180: ='Residential EE'!Y29 -> 54.3174857 | M180: ='Residential EE'!Z29 -> Housing Authority, Tribe, City | O180: =Measures!BI29 -> Near Term | Q180: =I180*0.000453592 -> 2.826839775 | R180: 0
A181: Commercial Building Energy Efficiency | B181: Portage Creek | G181: =F181*0.000453592 -> 0 | H181: N/A | I181: N/A | J181: N/A | K181: N/A | L181: N/A | M181: N/A | O181: N/A | Q181: N/A | R181: N/A
A182: Community Building Energy Efficiency | B182: Portage Creek | G182: N/A | H182: N/A | I182: N/A | J182: N/A | K182: N/A | L182: N/A | M182: N/A | O182: N/A | Q182: N/A | R182: N/A
A183: Community Scale Solar | B183: Portage Creek | C183: N/A | D183: N/A | F183: N/A | G183: N/A | H183: N/A | I183: N/A | J183: N/A | K183: N/A | L183: N/A | M183: N/A | O183: N/A | Q183: N/A | R183: N/A
A184: Community Scale Wind | B184: Portage Creek | G184: N/A | H184: N/A | I184: N/A | J184: N/A | K184: N/A | L184: N/A | M184: N/A | O184: N/A | Q184: N/A | R184: N/A
A185: Electric Utility Upgrades - Line Loss | B185: Portage Creek | G185: N/A | H185: N/A | I185: N/A | J185: N/A | K185: N/A | L185: N/A | M185: N/A | O185: N/A | Q185: N/A | R185: N/A
A186: Electric Utility Efficiency Upgrades - Gen Sets & Controls | B186: Portage Creek | G186: N/A | H186: N/A | I186: N/A | J186: N/A | K186: N/A | L186: N/A | M186: N/A | O186: N/A | Q186: N/A | R186: N/A
A187: Electric Utility Upgrades - Heat Recovery | B187: Portage Creek | G187: N/A | H187: N/A | I187: N/A | J187: N/A | K187: N/A | L187: N/A | M187: N/A | O187: N/A | Q187: N/A | R187: N/A
A188: Residential Energy Efficiency | B188: Togiak, Twin Hills | C188: Individual home retrofits | D188: ='Residential EE'!B31 -> 245 | F188: ='Residential EE'!T31 -> 5814448.497 | G188: =F188*0.000453592 -> 2637.387322 | H188: ='Residential EE'!U31 -> 42902.54787 | I188: ='Residential EE'!V31 -> 963162.1997 | J188: ='Residential EE'!W31 -> 600455.672 | K188: ='Residential EE'!X31 -> 8820000 | L188: ='Residential EE'!Y31 -> 14.68884451 | M188: ='Residential EE'!Z31 -> Housing Authority, Tribe, City | O188: =Measures!BI32 -> Near Term | P188: ='Residential EE'!AA31 -> Near Term | Q188: =I188*0.000453592 -> 436.8826685 | R188: 0
A189: Commercial Building Energy Efficiency | B189: Togiak, Twin Hills | C189: Building retrofits | D189: ='Community & Other EE'!D65 -> 88 | F189: =Measures!J32/Measures!G32*22.45 -> 5158373.054 | G189: =F189*0.000453592 -> 2339.79675 | H189: =Measures!AV32 -> 45797.53254 | I189: =Measures!AY32 -> 1028154.605 | J189: =Measures!AX32 -> 326415.3336 | K189: ='Community & Other EE'!Z65 -> 3740000 | L189: =Measures!AW32 -> 11.45779507 | M189: ='Community & Other EE'!AB65 -> Building Owner | O189: Near Term | P189: ='Community & Other EE'!AC65 -> Near Term | Q189: =I189*0.000453592 -> 466.3627038 | R189: 0
A190: Community Building Energy Efficiency | B190: Togiak, Twin Hills | C190: Building retrofits | D190: ='Community & Other EE'!D31 -> 25 | F190: ='Community & Other EE'!V31 -> 2848916.514 | G190: =F190*0.000453592 -> 1292.24574 | H190: =Measures!AN32 -> 21489.69028 | I190: =Measures!AQ32 -> 482443.5467 | J190: =Measures!AP32 -> 139429.5416 | K190: =Measures!AM32 -> 1250000 | L190: =Measures!AO32 -> 8.965101551 | M190: =Measures!AR32 -> City, Tribe | O190: Near Term | P190: =Measures!AS32 -> Near Term | Q190: =I190*0.000453592 -> 218.8325332 | R190: 0
A191: Community Scale Solar | B191: Togiak, Twin Hills | C191: New System | D191: =Solar!M31 -> 937.5839768 | F191: =Solar!X31 -> 5158373.054 | G191: =F191*0.000453592 -> 2339.79675 | H191: =Measures!T32 -> 68931.48847 | I191: =Measures!X32 -> 1547511.916 | J191: =Measures!V32 -> 194386.7975 | K191: =Measures!U32 -> 4175835.907 | L191: =Measures!W32 -> 21.48209632 | M191: =Measures!Y32 -> Utility, IPP, Tribe | O191: Near Term | P191: =Measures!Z32 -> Near Term | Q191: =I191*0.000453592 -> 701.9390251 | R191: 0
A192: Community Scale Wind | B192: Togiak, Twin Hills | C192: One, new system | D192: =Wind!S32 -> 1000 | F192: =Wind!AL32 -> 5884428.735 | G192: =F192*0.000453592 -> 2669.129799 | H192: =Measures!AE32 -> 91908.65129 | I192: =Measures!AI32 -> 2789404.903 | J192: =Measures!AH32 -> 488803.5698 | K192: =Measures!AF32 -> 6175500 | L192: =Measures!AG32 -> 12.63390937 | M192: =Measures!AJ32 -> Utility, IPP | O192: Long Term | P192: =Measures!AK32 -> 0 | Q192: 0 | R192: =I192*0.000453592 -> 1265.251749
A193: Electric Utility Upgrades - Line Loss | B193: Togiak, Twin Hills | C193: N/A | D193: N/A | F193: ='Utility Line Loss'!L31 -> N/A | G193: N/A | H193: =Measures!BK32 -> N/A | I193: =Measures!BN32 -> N/A | J193: =Measures!BM32 -> N/A | K193: =Measures!BJ32 -> N/A | L193: =Measures!BL32 -> N/A | M193: N/A | O193: N/A | Q193: N/A | R193: N/A
A194: Electric Utility Efficiency Upgrades - Gen Sets & Controls | B194: Togiak, Twin Hills | C194: Upgrade existing equipment | D194: equipment needs for future renewable integration | F194: ='Utility Infrastructure'!X33 -> 5158373.054 | G194: =F194*0.000453592 -> 2339.79675 | H194: =Measures!BR32 -> 0 | I194: =Measures!#REF! ->  | J194: 0 | K194: ='Utility Infrastructure'!R32 -> 238000 | L194: =Measures!BS32 -> 0 | M194: =Measures!BV33 -> Utility | O194: Near Term | P194: =Measures!BW32 -> Near Term | Q194: 0 | R194: N/A
A195: Electric Utility Upgrades - Heat Recovery | B195: Togiak, Twin Hills | C195: Upgrade existing equipment | D195: to displace 10% fuel consumption | F195: =Measures!J32/Measures!G32*22.45 -> 5158373.054 | G195: =F195*0.000453592 -> 2339.79675 | H195: =Measures!BY32 -> 4595.432565 | I195: =Measures!CB32 -> 103167.4611 | J195: =Measures!CA32 -> 32627.57121 | K195: =Measures!BX32 -> 100000 | L195: =Measures!BZ32 -> 3.064892552 | M195: =Measures!BV32 -> Utility | O195: Near Term | Q195: =I195*0.000453592 -> 46.795935 | R195: 0
A196: Residential Energy Efficiency | B196: Ugashik | C196: N/A | D196: N/A | F196: ='Residential EE'!T33 -> 358346.9 | G196: =F196*0.000453592 -> 162.5432871 | H196: ='Residential EE'!U33 -> 3192.4 | I196: ='Residential EE'!V33 -> 71669.38 | J196: ='Residential EE'!W33 -> 18515.92 | K196: ='Residential EE'!X33 -> 828000 | L196: ='Residential EE'!Y33 -> 44.71827487 | M196: ='Residential EE'!Z32 -> Housing Authority, Tribe, City | O196: =Measures!BI34 -> Near Term | P196: ='Residential EE'!AA33 -> Near Term | Q196: =I196*0.000453592 -> 32.50865741 | R196: 0
A197: Commercial Building Energy Efficiency | B197: Ugashik | C197: N/A | D197: N/A | F197: N/A | G197: N/A | H197: N/A | I197: N/A | J197: N/A | K197: N/A | L197: N/A | M197: N/A | O197: N/A | P197: ='Community & Other EE'!AC67 -> 0 | Q197: N/A | R197: N/A
A198: Community Building Energy Efficiency | B198: Ugashik | C198: N/A | D198: N/A | F198: N/A | G198: N/A | H198: N/A | I198: N/A | J198: N/A | K198: N/A | L198: N/A | M198: N/A | O198: N/A | P198: =Measures!AS34 -> Near Term | Q198: N/A | R198: N/A
A199: Community Scale Solar | B199: Ugashik | C199: N/A | D199: N/A | F199: N/A | G199: N/A | H199: N/A | I199: N/A | J199: N/A | K199: N/A | L199: N/A | M199: N/A | O199: N/A | P199: =Measures!Z34 -> 0 | Q199: N/A | R199: N/A
A200: Community Scale Wind | B200: Ugashik | C200: N/A | D200: N/A | F200: =Wind!AL34 -> 0 | G200: N/A | H200: =Measures!AE34 -> N/A | I200: =Measures!AI34 -> N/A | J200: N/A | K200: =Measures!AF34 -> N/A | L200: =Measures!AG34 -> N/A | M200: N/A | O200: N/A | P200: =Measures!AK34 -> 0 | Q200: N/A | R200: N/A
... 4 more rows

Sheet Community table
B1: Ivanof Bay
B2: Community Dashboard - Climate Action Plan Projects ("Measures")
B3: * These communities are represented on a single dashboard because they share an electric utility and are interconnected by an electrical grid, resulting in their Power Cost Equalization (PCE) data being aggregated. The Climate Action Plan utilizes this combined PCE data for establishing baseline and projected reduction of greenhouse gas (GHG) emissions.
B5: The EPA's Climate Pollution Reduction Grants (CPRG) program supports creating and executing plans to cut GHG emissions. It is structured in two phases: Planning Grants and Implementing Grants. Planning grants were distributed based on a non-competitive formula to help develop Priority and Comprehensive Climate Action Plans (PCAP and CCAP respectively), with the PCAP measures being essential for applying for an Implementation Grant. The PCAP is crucial for accessing Implementation Grant funding, demanding thorough data analysis on projected outcomes like GHG reductions, energy savings, cost efficiency and environmental and social impacts. However, the reduced funding and tight timelines challenge the comprehensive data collection and analysis needed for effective Climate Action Planning. The PCAP measures listed in the table below are eligible for inclusion in an Implementation Grant application. To qualify for the competitive Implementation Grants, totaling $4.3 billion, project ("measures") must be detailed in the PCAP and are due to the EPA on March 1st for consideration in the General Competition or April 1st for consideration under the Tribal Competition. Deadlines Implementation Grant applications are: April 1, 2024 - (General Competition) States, Cities, Municipalities, Boroughs May 1, 2024 - (Tribal Competition) Tribes, Tribal Consortia
B8: Visit the EPA CPRG Program site for more information.
B10: The following were collected from 2022 AEA PCE report, or the most recent full reporting year, to calculate GHG emissions, gallons and costs in the measures/projects identified for your community.
B11: Population | C11: Utility Fuel Price ($/gal) | D11: Utility Diesel Efficiency (kWh/gal) | E11: Utility Line Loss | F11: Utility Total kWh | G11: Peak Load (kW) | H11: Residential Fuel Price ($/gal) | I11: PCE Rate for Residences and Community Buildings ($/kWh) | J11: Full Electric Rate for Commercial Buildings ($/kWh)
B12: N/A | C12: N/A | D12: N/A | E12: N/A | F12: N/A | G12: N/A | H12: N/A | I12: N/A | J12: N/A
A15: Community | B15: EPA CPRG Measure | C15: Project Description | D15: Project Target | E15: Units | F15: Baseline Annual GHG Emissions (lbs) | G15: Annual Diesel Fuel Reduction Equivalents (gal) | H15: Annual GHG Emissions Reductions (lbs) | I15: Estimated Annual Cost Savings | J15: Estimated Total Cost to Implement | K15: Simple Payback (years) | L15: Authority to Implement
A16: Aleknagik | B16: Residential Energy Efficiency | C16: N/A | D16: N/A | E16: N/A | F16: ='Residential EE'!T3 -> N/A | G16: ='Residential EE'!U3 -> N/A | H16: ='Residential EE'!V3 -> N/A | I16: ='Residential EE'!W3 -> N/A | J16: ='Residential EE'!X3 -> N/A | K16: ='Residential EE'!Y3 -> N/A | L16: ='Residential EE'!Z3 -> N/A
A17: Aleknagik | B17: Commercial Building Energy Efficiency | C17: N/A | D17: N/A | E17: N/A | F17: N/A | G17: N/A | H17: N/A | I17: N/A | J17: N/A | K17: N/A | L17: N/A
A18: Aleknagik | B18: Community Building Energy Efficiency | C18: N/A | D18: N/A | E18: N/A | F18: N/A | G18: N/A | H18: N/A | I18: N/A | J18: N/A | K18: N/A | L18: N/A
A19: Aleknagik | B19: Community Scale Solar | C19: N/A | D19: N/A | E19: N/A | F19: N/A | G19: N/A | H19: N/A | I19: N/A | J19: N/A | K19: N/A | L19: N/A
A20: Aleknagik | B20: Community Scale Wind | C20: N/A | D20: =Wind!S4 -> N/A | E20: N/A | F20: =Measures!AE4 -> N/A | G20: N/A | H20: =Measures!AI4 -> N/A | I20: =Measures!AH4 -> 0 | J20: =Measures!AF4 -> N/A | K20: =Measures!AG4 -> N/A | L20: =Measures!AJ4 -> N/A
A21: Aleknagik | B21: Electric Utility Upgrades - Line Loss | C21: N/A | D21: N/A | E21: N/A | F21: N/A | G21: N/A | H21: N/A | I21: N/A | J21: N/A | K21: =Measures!BL4 -> N/A | L21: =Measures!BO4 -> N/A
A22: Aleknagik | B22: Electric Utility Efficiency Upgrades - Gen Sets & Controls | C22: N/A | D22: N/A | E22: N/A | F22: N/A | G22: N/A | H22: N/A | I22: N/A | J22: N/A | K22: =Measures!BS4 -> N/A | L22: N/A
A23: Aleknagik | B23: Electric Utility Upgrades - Heat Recovery | C23: N/A | D23: N/A | E23: N/A | F23: N/A | G23: N/A | H23: N/A | I23: N/A | J23: N/A | K23: N/A | L23: N/A
A24: Chignik Bay | B24: Residential Energy Efficiency | C24: Individual home retrofits | D24: ='Residential EE'!B4 -> 47 | E24: buildings | F24: ='Residential EE'!T4 -> 981679.3208 | G24: ='Residential EE'!U4 -> 7634.536396 | H24: ='Residential EE'!V4 -> 171395.3421 | I24: ='Residential EE'!W4 -> 49204.674 | J24: ='Residential EE'!X4 -> 1692000 | K24: ='Residential EE'!Y4 -> 34.38697714 | L24: ='Residential EE'!Z4 -> Housing Authority, Tribe, City
A25: Chignik Bay | B25: Commercial Building Energy Efficiency | C25: Building retrofits | D25: ='Community & Other EE'!D38 -> 49 | E25: buildings | F25: ='Community & Other EE'!V38 -> 3324197.641 | G25: ='Community & Other EE'!W38 -> 26535.27529 | H25: =Measures!AY5 -> 595716.9302 | I25: =Measures!AX5 -> 136846.0112 | J25: ='Community & Other EE'!Z38 -> 2082500 | K25: =Measures!AW5 -> 15.21783487 | L25: ='Community & Other EE'!AB38 -> Building Owner
A26: Chignik Bay | B26: Community Building Energy Efficiency | C26: Building retrofits | D26: ='Community & Other EE'!D4 -> 10 | E26: buildings | F26: ='Community & Other EE'!V4 -> 1030170.713 | G26: =Measures!AN5 -> 8108.589283 | H26: =Measures!AQ5 -> 182037.8294 | I26: =Measures!AP5 -> 38007.86231 | J26: =Measures!AM5 -> 500000 | K26: =Measures!AO5 -> 13.15517289 | L26: =Measures!AR5 -> City, Tribe
A27: Chignik Bay | B27: Community Scale Solar | C27: One, new System | D27: =Solar!M4 -> 189.5492341 | E27: kW | F27: =Measures!O5*22.45 -> 1318310.804 | G27: =Measures!T5 -> 17616.62544 | H27: =Measures!X5 -> 395493.2412 | I27: =Measures!V5 -> 21316.11678 | J27: =Measures!U5 -> 1813946.936 | K27: =Measures!W5 -> 85.09743846 | L27: =Measures!Y5 -> Utility, IPP, Tribe
A28: Chignik Bay | B28: Community Scale Wind | C28: One, new System | D28: =Wind!S5 -> 200 | E28: kW | F28: =Wind!AL5 -> 1461945.132 | G28: =Measures!AE5 -> 23488.83392 | H28: =Measures!AI5 -> 670958.6495 | I28: =Measures!AH5 -> 61754.88987 | J28: =Measures!AF5 -> 2805750 | K28: =Measures!AG5 -> 45.43364916 | L28: =Measures!AJ5 -> Utility, IPP
A29: Chignik Bay | B29: Electric Utility Upgrades - Line Loss | C29: N/A | D29: N/A | E29: N/A | F29: N/A | G29: =Measures!BK5 -> N/A | H29: =Measures!BN5 -> N/A | I29: =Measures!BM5 -> N/A | J29: =Measures!BJ5 -> N/A | K29: =Measures!BL5 -> N/A | L29: =Measures!BO5 -> N/A
A30: Chignik Bay | B30: Electric Utility Efficiency Upgrades - Gen Sets & Controls | C30: Upgrade existing equipment | D30: 14 | E30: %, target for efficiency | F30: 1318310.804 | G30: =Measures!BR5 -> 11241.08481 | H30: ='Utility Infrastructure'!Y5 -> 252362.3539 | I30: =Measures!BT5 -> 13601.71261 | J30: =Measures!BQ5 -> 1160000 | K30: =Measures!BS5 -> 85.28337812 | L30: =Measures!BV5 -> Utility
A31: Chignik Bay | B31: Electric Utility Upgrades - Heat Recovery | C31: Install new system | D31: 10 | E31: %, target for fuel reduction | F31: 1318310.804 | G31: =Measures!BY5 -> 1174.441696 | H31: =Measures!CB5 -> 131831.0804 | I31: =Measures!CA5 -> 6118.841237 | J31: =Measures!BX5 -> 2000000 | K31: =Measures!BZ5 -> 65.37185466 | L31: =Measures!BV5 -> Utility
A32: Chignik Lagoon | B32: Residential Energy Efficiency | C32: Individual home retrofits | D32: ='Residential EE'!B5 -> 69 | E32: buildings | F32: ='Residential EE'!T5 -> 1468865.851 | G32: ='Residential EE'!U5 -> 11331.4323 | H32: ='Residential EE'!V5 -> 254390.6551 | I32: ='Residential EE'!W5 -> 140740.722 | J32: ='Residential EE'!X5 -> 2484000 | K32: ='Residential EE'!Y5 -> 17.64947603 | L32: ='Residential EE'!Z5 -> Housing Authority, Tribe, City
A33: Chignik Lagoon | B33: Commercial Building Energy Efficiency | C33: Building retrofits | D33: ='Community & Other EE'!D39 -> 14 | E33: buildings | F33: ='Community & Other EE'!V39 -> 993262.3826 | G33: ='Community & Other EE'!V39 -> 993262.3826 | H33: =Measures!AY6 -> 174554 | I33: =Measures!AX6 -> 59094.74866 | J33: ='Community & Other EE'!Z39 -> 595000 | K33: =Measures!AW6 -> 10.06857654 | L33: ='Community & Other EE'!AB39 -> Building Owner
A34: Chignik Lagoon | B34: Community Building Energy Efficiency | C34: Building retrofits | D34: ='Community & Other EE'!D5 -> 7 | E34: buildings | F34: ='Community & Other EE'!V5 -> 623443.9902 | G34: =Measures!AN6 -> 5240.932281 | H34: =Measures!AQ6 -> 117658.9297 | I34: =Measures!AP6 -> 38799.76143 | J34: =Measures!AM6 -> 350000 | K34: =Measures!AO6 -> 9.020674022 | L34: =Measures!AR6 -> City, Tribe
A35: Chignik Lagoon | B35: Community Scale Solar | C35: New System | D35: =Solar!M5 -> 124.1562397 | E35: kW | F35: =Measures!O6*22.45 -> 777634.4232 | G35: =Measures!T6 -> 10391.55131 | H35: =Measures!X6 -> 233290.327 | I35: =Measures!V6 -> 31798.14702 | J35: =Measures!U6 -> 885074.9587 | K35: =Measures!W6 -> 27.83416776 | L35: =Measures!Y6 -> Utility, IPP, Tribe
A36: Chignik Lagoon | B36: Community Scale Wind | C36: N/A | D36: =Wind!S6 -> N/A | E36: N/A | F36: N/A | G36: =Measures!AE6 -> N/A | H36: =Measures!AI6 -> N/A | I36: N/A | J36: =Measures!AF6 -> N/A | K36: =Measures!AG6 -> N/A | L36: N/A
A37: Chignik Lagoon | B37: Electric Utility Upgrades - Line Loss | C37: Upgrade existing equipment | D37: 6 | E37: %, target for line loss | F37: 777634.4232 | G37: =Measures!BK6 -> 2112.948767 | H37: =Measures!BN6 -> 46658.06539 | I37: =Measures!BM6 -> 6465.623227 | J37: =Measures!BJ6 -> 75000 | K37: =Measures!BL6 -> 11.59980985 | L37: =Measures!BO6 -> Utility
A38: Chignik Lagoon | B38: Electric Utility Efficiency Upgrades - Gen Sets & Controls | C38: Upgrade existing equipment | D38: 14 | E38: %, target for efficiency | F38: 777634.4232 | G38: =Measures!BR6 -> 3538.075804 | H38: ='Utility Infrastructure'!Y6 -> 79429.8018 | I38: =Measures!BT6 -> 10826.51196 | J38: ='Utility Infrastructure'!R6 -> 1185000 | K38: =Measures!BS6 -> 109.4535345 | L38: =Measures!BV6 -> Utility
A39: Chignik Lagoon | B39: Electric Utility Upgrades - Heat Recovery | C39: Upgrade existing equipment | D39: 10 | E39: %, target for fuel reduction | F39: 777634.4232 | G39: =Measures!BY6 -> 692.7700875 | H39: =Measures!CB6 -> 15552.68846 | I39: =Measures!CA6 -> 5299.691169 | J39: =Measures!BX6 -> 75000 | K39: =Measures!BZ6 -> 14.15176802 | L39: =Measures!BV6 -> Utility
A40: Chignik Lake* | B40: Residential Energy Efficiency | C40: Individual home retrofits | D40: ='Residential EE'!B6 -> 43 | E40: buildings | F40: ='Residential EE'!T6 -> 955934.9157 | G40: ='Residential EE'!U6 -> 7242.261985 | H40: ='Residential EE'!V6 -> 162588.7816 | I40: ='Residential EE'!W6 -> 82435.644 | J40: ='Residential EE'!X6 -> 1548000 | K40: ='Residential EE'!Y6 -> 18.77828479 | L40: ='Residential EE'!Z6 -> Housing Authority, Tribe, City
A41: Chignik Lake* | B41: Commercial Building Energy Efficiency | C41: Building retrofits | D41: ='Community & Other EE'!D40 -> 6 | E41: buildings | F41: ='Community & Other EE'!V40 -> 479065.468 | G41: ='Community & Other EE'!V40 -> 479065.468 | H41: =Measures!AY7 -> 80147.01611 | I41: =Measures!AX7 -> 27299.63755 | J41: ='Community & Other EE'!Z40 -> 255000 | K41: =Measures!AW7 -> 9.340783356 | L41: ='Community & Other EE'!AB40 -> Building Owner
A42: Chignik Lake* | B42: Community Building Energy Efficiency | C42: Building retrofits | D42: ='Community & Other EE'!D6 -> 9 | E42: buildings | F42: ='Community & Other EE'!V6 -> 784804.3413 | G42: =Measures!AN7 -> 6663.657748 | H42: =Measures!AQ7 -> 149599.1164 | I42: =Measures!AP7 -> 52213.33258 | J42: =Measures!AM7 -> 450000 | K42: =Measures!AO7 -> 8.618488377 | L42: =Measures!AR7 -> City, Tribe
A43: Chignik Lake* | B43: Community Scale Solar | C43: New System | D43: =Solar!M6 -> 65.90084747 | E43: kW | F43: =Measures!O7*22.45 -> 628135.2361 | G43: =Measures!T7 -> 8393.789346 | H43: =Measures!X7 -> 188440.5708 | I43: =Measures!V7 -> 27195.87748 | J43: =Measures!U7 -> 616953.3899 | K43: =Measures!W7 -> 22.68554822 | L43: =Measures!Y7 -> Utility, IPP, Tribe
A44: Chignik Lake* | B44: Community Scale Wind | C44: Long term requires feasibility study | D44: =Wind!S7 -> 200 | E44: kW | F44: =Wind!AL7 -> 867698.5599 | G44: =Measures!AE7 -> 11191.71913 | H44: =Measures!AI7 -> 490817.4182 | I44: =Measures!AH7 -> 122696.044 | J44: =Measures!AF7 -> 1353350 | K44: =Measures!AG7 -> 11.03010297 | L44: =Measures!AJ7 -> Utility, IPP
A45: Chignik Lake* | B45: Electric Utility Upgrades - Line Loss | C45: N/A | D45: N/A | E45: N/A | F45: N/A | G45: =Measures!BK7 -> N/A | H45: =Measures!BN7 -> N/A | I45: =Measures!BM7 -> N/A | J45: N/A | K45: N/A | L45: N/A
A46: Chignik Lake* | B46: Electric Utility Efficiency Upgrades - Gen Sets & Controls | C46: Upgrade existing equipment | D46: 14 | E46: %, target for efficiency | F46: ='Utility Infrastructure'!X7 -> 628135.2361 | G46: =Measures!BR7 -> 11471.51211 | H46: ='Utility Infrastructure'!Y7 -> 257535.4468 | I46: =Measures!BT7 -> 37167.69923 | J46: =Measures!BQ7 -> 1115000 | K46: =Measures!BS7 -> 29.99916657 | L46: =Measures!BV7 -> Utility
A47: Chignik Lake* | B47: Electric Utility Upgrades - Heat Recovery | C47: Upgrade existing equipment | D47: 10 | E47: %, target for fuel reduction | F47: 27979.29782 | G47: =Measures!BY7 -> 559.5859564 | H47: =Measures!CB7 -> 12562.70472 | I47: =Measures!CA7 -> 4532.646247 | J47: =Measures!BX7 -> 50000 | K47: =Measures!BZ7 -> 11.03108367 | L47: =Measures!BV7 -> Utility
A48: Clarks Point* | B48: Residential Energy Efficiency | C48: Individual home retrofits | D48: ='Residential EE'!B7 -> 51 | E48: buildings | F48: ='Residential EE'!T7 -> 1084790.782 | G48: ='Residential EE'!U7 -> 8371.430208 | H48: ='Residential EE'!V7 -> 187938.6082 | I48: ='Residential EE'!W7 -> 73323.225 | J48: ='Residential EE'!X7 -> 1836000 | K48: ='Residential EE'!Y7 -> 25.03981515 | L48: ='Residential EE'!Z7 -> Housing Authority, Tribe, City
A49: Clarks Point* | B49: Commercial Building Energy Efficiency | C49: Building retrofits | D49: ='Community & Other EE'!D41 -> 18 | E49: buildings | F49: ='Community & Other EE'!V41 -> 1170170.264 | G49: ='Community & Other EE'!V41 -> 1170170.264 | H49: =Measures!AY8 -> 213738.4344 | I49: =Measures!AX8 -> 56800.01155 | J49: ='Community & Other EE'!Z41 -> 765000 | K49: =Measures!AW8 -> 13.46830712 | L49: ='Community & Other EE'!AB41 -> Building Owner
A50: Clarks Point* | B50: Community Building Energy Efficiency | C50: Building retrofits | D50: ='Community & Other EE'!D7 -> 2 | E50: buildings | F50: ='Community & Other EE'!V7 -> 178895.4616 | G50: =Measures!AN8 -> 1500.832863 | H50: =Measures!AQ8 -> 33693.69778 | I50: =Measures!AP8 -> 8454.72509 | J50: =Measures!AM8 -> 100000 | K50: =Measures!AO8 -> 11.82770568 | L50: =Measures!AR8 -> City, Tribe
A51: Clarks Point* | B51: Community Scale Solar | C51: New System | D51: =Solar!M7 -> 116.9653143 | E51: kW | F51: =Measures!O8*22.45 -> 799368.1076 | G51: =Measures!T8 -> 10681.97917 | H51: =Measures!X8 -> 239810.4323 | I51: =Measures!V8 -> 24034.45312 | J51: =Measures!U8 -> 916761.2572 | K51: =Measures!W8 -> 38.14362875 | L51: =Measures!Y8 -> Utility, IPP, Tribe
A52: Clarks Point* | B52: Community Scale Wind | C52: Long term requires feasibility study | D52: =Wind!S8 -> 100 | E52: kW | F52: =Wind!AL8 -> 853969.2661 | G52: =Measures!AE8 -> 14242.63889 | H52: =Measures!AI8 -> 374348.4015 | I52: =Measures!AH8 -> 45726.62865 | J52: =Measures!AF8 -> 1448900 | K52: =Measures!AG8 -> 31.68613219 | L52: =Measures!AJ8 -> Utility, IPP
A53: Clarks Point* | B53: Electric Utility Upgrades - Line Loss | C53: Upgrade existing equipment | D53: 6 | E53: %, target for line loss | F53: 799368.1076 | G53: =Measures!BK8 -> 7014.499653 | H53: =Measures!BN8 -> 47962.08646 | I53: =Measures!BM8 -> 15782.62422 | J53: =Measures!BJ8 -> 75000 | K53: =Measures!BL8 -> 4.752061442 | L53: =Measures!BO8 -> Utility
A54: Clarks Point* | B54: Electric Utility Efficiency Upgrades - Gen Sets & Controls | C54: Upgrade existing equipment | D54: 14 | E54: %, target for efficiency | F54: 799368.1076 | G54: =Measures!BR8 -> 6307.454365 | H54: ='Utility Infrastructure'!Y8 -> 141602.3505 | I54: =Measures!BT8 -> 14191.77232 | J54: ='Utility Infrastructure'!R8 -> 2085000 | K54: =Measures!BS8 -> 146.9161112 | L54: =Measures!BV8 -> Utility
A55: Clarks Point* | B55: Electric Utility Upgrades - Heat Recovery | C55: Upgrade existing equipment | D55: 10 | E55: %, target for fuel reduction | F55: 799368.1076 | G55: =Measures!BY8 -> 712.1319444 | H55: =Measures!CB8 -> 15987.36215 | I55: =Measures!CA8 -> 4005.742188 | J55: =Measures!BX8 -> 50000 | K55: =Measures!BZ8 -> 12.48208139 | L55: =Measures!BV8 -> Utility
A56: Curyung (Dillingham), Aleknagik | B56: Residential Energy Efficiency | C56: Individual home retrofits | D56: ='Residential EE'!B8 -> 1035 | E56: buildings | F56: ='Residential EE'!T8 -> 23877005.27 | G56: ='Residential EE'!U8 -> 178185.3709 | H56: ='Residential EE'!V8 -> 4000261.577 | I56: ='Residential EE'!W8 -> 1669240.871 | J56: ='Residential EE'!X8 -> 37260000 | K56: ='Residential EE'!Y8 -> 22.3215239 | L56: ='Residential EE'!Z8 -> Housing Authority, Tribe, City
A57: Curyung (Dillingham), Aleknagik | B57: Commercial Building Energy Efficiency | C57: Building retrofits | D57: ='Community & Other EE'!D42 -> 466 | E57: buildings | F57: ='Community & Other EE'!V42 -> 42365526.22 | G57: ='Community & Other EE'!V42 -> 42365526.22 | H57: =Measures!AY9 -> 6740562.406 | I57: =Measures!AX9 -> 1582975.038 | J57: ='Community & Other EE'!Z42 -> 19805000 | K57: =Measures!AW9 -> 12.51125224 | L57: ='Community & Other EE'!AB42 -> Building Owner
A58: Curyung (Dillingham), Aleknagik | B58: Community Building Energy Efficiency | C58: Building retrofits | D58: ='Community & Other EE'!D8 -> 51 | E58: buildings | F58: ='Community & Other EE'!V8 -> 5374249.026 | G58: =Measures!AN9 -> 41890.01199 | H58: =Measures!AQ9 -> 940430.7691 | I58: =Measures!AP9 -> 185718.3108 | J58: =Measures!AM9 -> 2550000 | K58: =Measures!AO9 -> 13.73047164 | L58: =Measures!AR9 -> City, Tribe
A59: Curyung (Dillingham), Aleknagik | B59: Community Scale Solar | C59: New System | D59: =Solar!M8 -> 1876.799965 | E59: kW | F59: =Measures!O9*22.45 -> 29730608.78 | G59: =Measures!T9 -> 132430.3286 | H59: =Measures!X9 -> 2973060.878 | I59: =Measures!V9 -> 252941.9277 | J59: =Measures!U9 -> 10007199.86 | K59: =Measures!W9 -> 39.56323078 | L59: =Measures!Y9 -> Utility, IPP, Tribe
A60: Curyung (Dillingham), Aleknagik | B60: Community Scale Wind | C60: Long term requires feasibility study | D60: =Wind!S9 -> 6000 | E60: kW | F60: =Wind!AL9 -> 34083144.42 | G60: =Measures!AE9 -> 529721.3146 | H60: =Measures!AI9 -> 16244779.15 | I60: =Measures!AH9 -> 1937529.746 | J60: =Measures!AF9 -> 48636000 | K60: =Measures!AG9 -> 25.10206623 | L60: =Measures!AJ9 -> Utility, IPP
A61: Curyung (Dillingham), Aleknagik | B61: Electric Utility Upgrades - Line Loss | C61: N/A | D61: N/A | E61: N/A | F61: N/A | G61: =Measures!BK9 -> N/A | H61: =Measures!BN9 -> N/A | I61: =Measures!BM9 -> N/A | J61: =Measures!BJ9 -> N/A | K61: =Measures!BL9 -> N/A | L61: =Measures!BO9 -> N/A
A62: Curyung (Dillingham), Aleknagik | B62: Electric Utility Efficiency Upgrades - Gen Sets & Controls | C62: Upgrade existing equipment | D62: equipment needs for future renewable integration | E62: N/A | F62: ='Utility Infrastructure'!X9 -> 29730608.78 | G62: N/A | H62: N/A | I62: N/A | J62: ='Utility Infrastructure'!R9 -> 2085000 | K62: N/A | L62: Utility
A63: Curyung (Dillingham), Aleknagik | B63: Electric Utility Upgrades - Heat Recovery | C63: Upgrade existing equipment | D63: 10 | E63: %, target for fuel reduction | F63: 29730608.78 | G63: =Measures!BY9 -> 26486.06573 | H63: =Measures!CB9 -> 594612.1756 | I63: =Measures!CA9 -> 126470.9638 | J63: =Measures!BX9 -> 100000 | K63: =Measures!BZ9 -> 0.7906953261 | L63: =Measures!BV9 -> Utility
A64: Egegik | B64: Residential Energy Efficiency | C64: Individual home retrofits | D64: ='Residential EE'!B9 -> 85 | E64: buildings | F64: ='Residential EE'!T9 -> 1652206.9 | G64: ='Residential EE'!U9 -> 13258.49622 | H64: ='Residential EE'!V9 -> 297653.24 | I64: ='Residential EE'!W9 -> 111606.859 | J64: ='Residential EE'!X9 -> 3060000 | K64: ='Residential EE'!Y9 -> 27.41766973 | L64: ='Residential EE'!Z9 -> Housing Authority, Tribe, City
A65: Egegik | B65: Commercial Building Energy Efficiency | C65: Building retrofits | D65: ='Community & Other EE'!D43 -> 27 | E65: buildings | F65: ='Community & Other EE'!V43 -> 2008836.733 | G65: ='Community & Other EE'!V43 -> 2008836.733 | H65: =Measures!AY10 -> 345965.7852 | I65: =Measures!AX10 -> 83834.45374 | J65: ='Community & Other EE'!Z43 -> 1147500 | K65: =Measures!AW10 -> 13.68768983 | L65: ='Community & Other EE'!AB43 -> Building Owner
A66: Egegik | B66: Community Building Energy Efficiency | C66: Building retrofits | D66: ='Community & Other EE'!D9 -> 18 | E66: buildings | F66: ='Community & Other EE'!V9 -> 1675431.783 | G66: =Measures!AN10 -> 13798.68788 | H66: =Measures!AQ10 -> 309780.543 | I66: =Measures!AP10 -> 68986.45072 | J66: =Measures!AM10 -> 900000 | K66: =Measures!AO10 -> 13.04604006 | L66: =Measures!AR10 -> City, Tribe
A67: Egegik | B67: Community Scale Solar | C67: New System | D67: =Solar!M9 -> 198.8086412 | E67: kW | F67: =Measures!O10*22.45 -> 1316423.44 | G67: =Measures!T10 -> 17591.40454 | H67: =Measures!X10 -> 394927.032 | I67: =Measures!V10 -> 53301.95576 | J67: =Measures!U10 -> 1831484.565 | K67: =Measures!W10 -> 34.36055092 | L67: =Measures!Y10 -> Utility, IPP, Tribe
A68: Egegik | B68: Community Scale Wind | C68: Long term requires feasibility study | D68: =Wind!S10 -> 200 | E68: kW | F68: =Wind!AL10 -> 1452874.127 | G68: =Measures!AE10 -> 23455.20606 | H68: =Measures!AI10 -> 663020.0628 | I68: =Measures!AH10 -> 101459.1823 | J68: =Measures!AF10 -> 2786250 | K68: =Measures!AG10 -> 27.46178252 | L68: =Measures!AJ10 -> Utility, IPP
A69: Egegik | B69: Electric Utility Upgrades - Line Loss | C69: Upgrade existing equipment | D69: 6 | E69: %, target for line loss | F69: 1316423.44 | G69: =Measures!BK10 -> 762.2941968 | H69: =Measures!BN10 -> 78985.40639 | I69: =Measures!BM10 -> 2309.751416 | J69: =Measures!BJ10 -> 75000 | K69: =Measures!BL10 -> 32.47102674 | L69: =Measures!BO10 -> Utility
A70: Egegik | B70: Electric Utility Efficiency Upgrades - Gen Sets & Controls | C70: Upgrade existing equipment | D70: 14 | E70: %, target for efficiency | F70: 1316423.44 | G70: =Measures!BR10 -> 8837.586567 | H70: ='Utility Infrastructure'!Y10 -> 198403.8184 | I70: =Measures!BT10 -> 26777.8873 | J70: ='Utility Infrastructure'!R10 -> 1010000 | K70: =Measures!BS10 -> 37.71768806 | L70: =Measures!BV10 -> Utility
A71: Egegik | B71: Electric Utility Upgrades - Heat Recovery | C71: Upgrade existing equipment | D71: 10 | E71: %, target for fuel reduction | F71: 1316423.44 | G71: =Measures!BY10 -> 1172.760303 | H71: =Measures!CB10 -> 26328.4688 | I71: =Measures!CA10 -> 5863.801514 | J71: =Measures!BX10 -> 75000 | K71: =Measures!BZ10 -> 12.79033743 | L71: =Measures!BV10 -> Utility
A72: Ekuk | B72: Residential Energy Efficiency | C72: Individual home retrofits | D72: ='Residential EE'!B11 -> 67 | E72: buildings | F72: ='Residential EE'!T11 -> 1043880.1 | G72: ='Residential EE'!U11 -> 9299.6 | H72: ='Residential EE'!V11 -> 208776.02 | I72: ='Residential EE'!W11 -> 52310.25 | J72: ='Residential EE'!X11 -> 2412000 | K72: ='Residential EE'!Y11 -> 46.10951009 | L72: ='Residential EE'!Z11 -> Housing Authority, Tribe, City
A73: Ekuk | B73: Commercial Building Energy Efficiency | C73: N/A | D73: N/A | E73: N/A | F73: N/A | G73: N/A | H73: N/A | I73: N/A | J73: N/A | K73: N/A | L73: N/A
A74: Ekuk | B74: Community Building Energy Efficiency | C74: N/A | D74: N/A | E74: N/A | F74: N/A | G74: N/A | H74: N/A | I74: N/A | J74: N/A | K74: N/A | L74: N/A
A75: Ekuk | B75: Community Scale Solar | C75: N/A | D75: N/A | E75: N/A | F75: N/A | G75: N/A | H75: N/A | I75: N/A | J75: N/A | K75: N/A | L75: N/A
A76: Ekuk | B76: Community Scale Wind | C76: N/A | D76: N/A | E76: N/A | F76: N/A | G76: =Measures!AE12 -> N/A | H76: =Measures!AI12 -> N/A | I76: N/A | J76: =Measures!AF12 -> N/A | K76: =Measures!AG12 -> N/A | L76: N/A
A77: Ekuk | B77: Electric Utility Upgrades - Line Loss | C77: N/A | D77: N/A | E77: N/A | F77: N/A | G77: N/A | H77: N/A | I77: N/A | J77: N/A | K77: =Measures!BL12 -> N/A | L77: N/A
A78: Ekuk | B78: Electric Utility Efficiency Upgrades - Gen Sets & Controls | C78: N/A | D78: N/A | E78: N/A | F78: N/A | G78: N/A | H78: N/A | I78: N/A | J78: N/A | K78: N/A | L78: N/A
A79: Ekuk | B79: Electric Utility Upgrades - Heat Recovery | C79: N/A | D79: N/A | E79: N/A | F79: N/A | G79: N/A | H79: N/A | I79: N/A | J79: N/A | K79: N/A | L79: N/A
A80: Ekwok | B80: Residential Energy Efficiency | C80: N/A | D80: N/A | E80: N/A | F80: N/A | G80: N/A | H80: N/A | I80: N/A | J80: N/A | K80: N/A | L80: N/A
A81: Ekwok | B81: Commercial Building Energy Efficiency | C81: N/A | D81: ='Community & Other EE'!D44 -> Combined with New Stuy | E81: N/A | F81: N/A | G81: N/A | H81: N/A | I81: N/A | J81: N/A | K81: N/A | L81: N/A
A82: Ekwok | B82: Community Building Energy Efficiency | C82: N/A | D82: N/A | E82: N/A | F82: N/A | G82: N/A | H82: N/A | I82: N/A | J82: N/A | K82: N/A | L82: N/A
A83: Ekwok | B83: Community Scale Solar | C83: N/A | D83: N/A | E83: N/A | F83: N/A | G83: N/A | H83: N/A | I83: N/A | J83: N/A | K83: N/A | L83: N/A
A84: Ekwok | B84: Community Scale Wind | C84: N/A | D84: N/A | E84: N/A | F84: N/A | G84: =Measures!AE11 -> N/A | H84: =Measures!AI11 -> N/A | I84: N/A | J84: =Measures!AF11 -> N/A | K84: =Measures!AG11 -> N/A | L84: N/A
A85: Ekwok | B85: Electric Utility Upgrades - Line Loss | C85: N/A | D85: N/A | E85: N/A | F85: N/A | G85: =Measures!BK11 -> N/A | H85: =Measures!BN11 -> N/A | I85: =Measures!BM11 -> N/A | J85: N/A | K85: N/A | L85: N/A
A86: Ekwok | B86: Electric Utility Efficiency Upgrades - Gen Sets & Controls | C86: N/A | D86: N/A | E86: N/A | F86: N/A | G86: N/A | H86: N/A | I86: N/A | J86: N/A | K86: =Measures!BS11 -> N/A | L86: N/A
A87: Ekwok | B87: Electric Utility Upgrades - Heat Recovery | C87: N/A | D87: N/A | E87: N/A | F87: N/A | G87: N/A | H87: N/A | I87: N/A | J87: N/A | K87: N/A | L87: N/A
A88: Igiugig | B88: Residential Energy Efficiency | C88: Individual home retrofits | D88: ='Residential EE'!B12 -> 31 | E88: buildings | F88: ='Residential EE'!T12 -> 641983.4686 | G88: ='Residential EE'!U12 -> 5011.014559 | H88: ='Residential EE'!V12 -> 112497.2769 | I88: ='Residential EE'!W12 -> 113545.986 | J88: ='Residential EE'!X12 -> 1116000 | K88: ='Residential EE'!Y12 -> 9.828616927 | L88: ='Residential EE'!Z12 -> Housing Authority, Tribe, City
A89: Igiugig | B89: Commercial Building Energy Efficiency | C89: Building retrofits | D89: ='Community & Other EE'!D46 -> 15 | E89: buildings | F89: ='Community & Other EE'!V46 -> 970510.8823 | G89: ='Community & Other EE'!V46 -> 970510.8823 | H89: =Measures!AY13 -> 177652.2615 | I89: =Measures!AX13 -> 80602.27815 | J89: ='Community & Other EE'!Z46 -> 637500 | K89: =Measures!AW13 -> 7.909205727 | L89: ='Community & Other EE'!AB46 -> Building Owner
A90: Igiugig | B90: Community Building Energy Efficiency | C90: Building retrofits | D90: ='Community & Other EE'!D12 -> 11 | E90: buildings | F90: ='Community & Other EE'!V12 -> 989209.3968 | G90: =Measures!AN13 -> 8278.119092 | H90: =Measures!AQ13 -> 185843.7736 | I90: =Measures!AP13 -> 82318.9031 | J90: =Measures!AM13 -> 550000 | K90: =Measures!AO13 -> 6.681332953 | L90: =Measures!AR13 -> City, Tribe
A91: Igiugig | B91: Community Scale Solar | C91: New System | D91: =Solar!M12 -> 100.1152008 | E91: kW | F91: =Measures!O13*22.45 -> 533319.1034 | G91: =Measures!T13 -> 8071.172414 | H91: =Measures!X13 -> 181197.8207 | I91: =Measures!V13 -> 61583.04552 | J91: =Measures!U13 -> 907860.8032 | K91: =Measures!W13 -> 14.74205758 | L91: =Measures!Y13 -> Utility, IPP, Tribe
A92: Igiugig | B92: Community Scale Wind | C92: N/A | D92: N/A | E92: N/A | F92: N/A | G92: =Measures!AE13 -> N/A | H92: =Measures!AI13 -> N/A | I92: N/A | J92: =Measures!AF13 -> N/A | K92: =Measures!AG13 -> N/A | L92: N/A
A93: Igiugig | B93: Electric Utility Upgrades - Line Loss | C93: Upgrade existing equipment | D93: 6 | E93: %, target for line loss | F93: 533319.1034 | G93: =Measures!BK13 -> 3443.70023 | H93: =Measures!BN13 -> 36239.56414 | I93: =Measures!BM13 -> 26275.43275 | J93: =Measures!BJ13 -> 75000 | K93: =Measures!BL13 -> 2.854377346 | L93: =Measures!BO13 -> Utility
A94: Igiugig | B94: Electric Utility Efficiency Upgrades - Gen Sets & Controls | C94: Upgrade existing equipment | D94: 14 | E94: %, target for efficiency | F94: 533319.1034 | G94: =Measures!BR13 -> 1612.004926 | H94: ='Utility Infrastructure'!Y13 -> 36189.51059 | I94: =Measures!BT13 -> 12299.59759 | J94: ='Utility Infrastructure'!R13 -> 305004 | K94: =Measures!BS13 -> 24.79788447 | L94: =Measures!BV13 -> Utility
A95: Igiugig | B95: Electric Utility Upgrades - Heat Recovery | C95: Upgrade existing equipment | D95: 10 | E95: %, target for fuel reduction | F95: 533319.1034 | G95: =Measures!BY13 -> 538.0781609 | H95: =Measures!CB13 -> 12079.85471 | I95: =Measures!CA13 -> 5380.781609 | J95: =Measures!BX13 -> 50000 | K95: =Measures!BZ13 -> 9.292330303 | L95: =Measures!BV13 -> Utility
A96: Iliamna, Nondalton, Newhalen | B96: Residential Energy Efficiency | C96: Residential building retrofits | D96: ='Residential EE'!B13 -> 189 | E96: buildings | F96: ='Residential EE'!T13 -> 4369118.677 | G96: ='Residential EE'!U13 -> 32578.15313 | H96: ='Residential EE'!V13 -> 731379.5377 | I96: ='Residential EE'!W13 -> 483504.084 | J96: ='Residential EE'!X13 -> 6804000 | K96: ='Residential EE'!Y13 -> 14.07226997 | L96: ='Residential EE'!Z13 -> Housing Authority, Tribe, City
A97: Iliamna, Nondalton, Newhalen | B97: Commercial Building Energy Efficiency | C97: Commercial building retrofits | D97: ='Community & Other EE'!D47 -> 109 | E97: buildings | F97: ='Community & Other EE'!V47 -> 9073887.862 | G97: ='Community & Other EE'!V47 -> 9073887.862 | H97: =Measures!AY14 -> 1493090.645 | I97: =Measures!AX14 -> 487849.6974 | J97: ='Community & Other EE'!Z47 -> 4632500 | K97: =Measures!AW14 -> 9.495752534 | L97: ='Community & Other EE'!AB47 -> Building Owner
A98: Iliamna, Nondalton, Newhalen | B98: Community Building Energy Efficiency | C98: Community building retrofits | D98: ='Community & Other EE'!D13 -> 15 | E98: buildings | F98: ='Community & Other EE'!V13 -> 1638610.196 | G98: =Measures!AN14 -> 12578.71522 | H98: =Measures!AQ14 -> 282392.1568 | I98: =Measures!AP14 -> 84535.61119 | J98: =Measures!AM14 -> 750000 | K98: =Measures!AO14 -> 8.872000681 | L98: =Measures!AR14 -> City, Tribe
A99: Iliamna, Nondalton, Newhalen | B99: Community Scale Solar | C99: One, new system | D99: =Solar!M13 -> 40.98753322 | E99: kW | F99: =Measures!O14*22.45 -> 88923.04688 | G99: =Measures!T14 -> 3368.90625 | H99: =Measures!X14 -> 75631.94531 | I99: =Measures!V14 -> 12330.19687 | J99: =Measures!U14 -> 2681050.133 | K99: =Measures!W14 -> 217.4377392 | L99: =Measures!Y14 -> Utility, IPP, Tribe
A100: Iliamna, Nondalton, Newhalen | B100: Community Scale Wind | C100: N/A | D100: N/A | E100: N/A | F100: N/A | G100: =Measures!AE14 -> N/A | H100: =Measures!AI14 -> N/A | I100: N/A | J100: =Measures!AF14 -> N/A | K100: =Measures!AG14 -> N/A | L100: N/A
A101: Iliamna, Nondalton, Newhalen | B101: Electric Utility Upgrades - Line Loss | C101: Upgrade existing equipment | D101: 6 | E101: %, target for line loss | F101: 88923.04688 | G101: =Measures!BK14 -> 314.43125 | H101: =Measures!BN14 -> 15126.38906 | I101: =Measures!BM14 -> 1150.818375 | J101: =Measures!BJ14 -> 75000 | K101: =Measures!BL14 -> 65.17101363 | L101: =Measures!BO14 -> Utility
A102: Iliamna, Nondalton, Newhalen | B102: Electric Utility Efficiency Upgrades - Gen Sets & Controls | C102: Upgrade existing equipment | D102: 14 | E102: %, target for efficiency | F102: 88923.04688 | G102: =Measures!BR14 -> 339.5089286 | H102: ='Utility Infrastructure'!Y14 -> 7621.975446 | I102: =Measures!BT14 -> 1242.602679 | J102: =Measures!BQ14 -> 20000 | K102: =Measures!BS14 -> 16.09524939 | L102: =Measures!BV14 -> Utility
A103: Iliamna, Nondalton, Newhalen | B103: Electric Utility Upgrades - Heat Recovery | C103: Upgrade existing equipment | D103: 10 | E103: %, target for fuel reduction | F103: 88923.04688 | G103: =Measures!BY14 -> 6091.921875 | H103: =Measures!CB14 -> 136763.6461 | I103: =Measures!CA14 -> 43252.64531 | J103: =Measures!BX14 -> 100000 | K103: =Measures!BZ14 -> 2.311997319 | L103: =Measures!BV14 -> Utility
A104: Ivanof Bay | B104: Residential Energy Efficiency | C104: Individual home retrofits | D104: ='Residential EE'!B14 -> 16 | E104: buildings | F104: ='Residential EE'!T14 -> 249284.8 | G104: ='Residential EE'!U14 -> 2220.8 | H104: ='Residential EE'!V14 -> 49856.96 | I104: ='Residential EE'!W14 -> 18266.08 | J104: ='Residential EE'!X14 -> 576000 | K104: ='Residential EE'!Y14 -> 31.53385948 | L104: ='Residential EE'!Z14 -> Housing Authority, Tribe, City
A105: Ivanof Bay | B105: Commercial Building Energy Efficiency | C105: N/A | D105: N/A | E105: N/A | F105: N/A | G105: N/A | H105: N/A | I105: N/A | J105: N/A | K105: N/A | L105: N/A
A106: Ivanof Bay | B106: Community Building Energy Efficiency | C106: N/A | D106: N/A | E106: N/A | F106: N/A | G106: N/A | H106: N/A | I106: N/A | J106: N/A | K106: N/A | L106: N/A
A107: Ivanof Bay | B107: Community Scale Solar | C107: N/A | D107: N/A | E107: N/A | F107: N/A | G107: N/A | H107: N/A | I107: N/A | J107: N/A | K107: N/A | L107: N/A
A108: Ivanof Bay | B108: Community Scale Wind | C108: N/A | D108: N/A | E108: N/A | F108: N/A | G108: =Measures!AE15 -> N/A | H108: =Measures!AI15 -> N/A | I108: N/A | J108: =Measures!AF15 -> N/A | K108: =Measures!AG15 -> N/A | L108: N/A
A109: Ivanof Bay | B109: Electric Utility Upgrades - Line Loss | C109: N/A | D109: N/A | E109: N/A | F109: N/A | G109: =Measures!BK15 -> N/A | H109: =Measures!BN15 -> N/A | I109: =Measures!BM15 -> N/A | J109: =Measures!BJ15 -> N/A | K109: =Measures!BL15 -> N/A | L109: N/A
A110: Ivanof Bay | B110: Electric Utility Efficiency Upgrades - Gen Sets & Controls | C110: N/A | D110: N/A | E110: N/A | F110: N/A | G110: N/A | H110: N/A | I110: N/A | J110: N/A | K110: =Measures!BS15 -> N/A | L110: N/A
A111: Ivanof Bay | B111: Electric Utility Upgrades - Heat Recovery | C111: N/A | D111: N/A | E111: N/A | F111: N/A | G111: N/A | H111: N/A | I111: N/A | J111: N/A | K111: N/A | L111: N/A
A112: Kanatak | B112: Residential Energy Efficiency | C112: N/A | D112: N/A | E112: N/A | F112: N/A | G112: N/A | H112: N/A | I112: N/A | J112: N/A | K112: ='Residential EE'!Y15 -> N/A | L112: ='Residential EE'!Z15 -> N/A
A113: Kanatak | B113: Commercial Building Energy Efficiency | C113: N/A | D113: N/A | E113: N/A | F113: N/A | G113: N/A | H113: N/A | I113: N/A | J113: N/A | K113: N/A | L113: N/A
A114: Kanatak | B114: Community Building Energy Efficiency | C114: N/A | D114: N/A | E114: N/A | F114: N/A | G114: N/A | H114: N/A | I114: N/A | J114: N/A | K114: N/A | L114: N/A
A115: Kanatak | B115: Community Scale Solar | C115: N/A | D115: N/A | E115: N/A | F115: N/A | G115: N/A | H115: N/A | I115: N/A | J115: N/A | K115: N/A | L115: N/A
A116: Kanatak | B116: Community Scale Wind | C116: N/A | D116: N/A | E116: N/A | F116: N/A | G116: =Measures!AE16 -> N/A | H116: =Measures!AI16 -> N/A | I116: N/A | J116: =Measures!AF16 -> N/A | K116: =Measures!AG16 -> N/A | L116: N/A
A117: Kanatak | B117: Electric Utility Upgrades - Line Loss | C117: N/A | D117: N/A | E117: N/A | F117: N/A | G117: N/A | H117: N/A | I117: N/A | J117: N/A | K117: =Measures!BL16 -> N/A | L117: N/A
A118: Kanatak | B118: Electric Utility Efficiency Upgrades - Gen Sets & Controls | C118: N/A | D118: N/A | E118: N/A | F118: N/A | G118: N/A | H118: N/A | I118: N/A | J118: N/A | K118: N/A | L118: N/A
A119: Kanatak | B119: Electric Utility Upgrades - Heat Recovery | C119: N/A | D119: N/A | E119: N/A | F119: N/A | G119: N/A | H119: N/A | I119: N/A | J119: N/A | K119: N/A | L119: N/A
A120: King Salmon | B120: Residential Energy Efficiency | C120: N/A | D120: N/A | E120: N/A | F120: N/A | G120: N/A | H120: N/A | I120: N/A | J120: N/A | K120: N/A | L120: N/A
A121: King Salmon | B121: Commercial Building Energy Efficiency | C121: N/A | D121: N/A | E121: N/A | F121: N/A | G121: N/A | H121: N/A | I121: N/A | J121: N/A | K121: N/A | L121: N/A
A122: King Salmon | B122: Community Building Energy Efficiency | C122: N/A | D122: N/A | E122: N/A | F122: N/A | G122: N/A | H122: N/A | I122: N/A | J122: N/A | K122: N/A | L122: N/A
A123: King Salmon | B123: Community Scale Solar | C123: N/A | D123: N/A | E123: N/A | F123: N/A | G123: N/A | H123: N/A | I123: N/A | J123: N/A | K123: N/A | L123: N/A
A124: King Salmon | B124: Community Scale Wind | C124: N/A | D124: N/A | E124: N/A | F124: N/A | G124: N/A | H124: N/A | I124: N/A | J124: N/A | K124: N/A | L124: N/A
A125: King Salmon | B125: Electric Utility Upgrades - Line Loss | C125: N/A | D125: N/A | E125: N/A | F125: N/A | G125: N/A | H125: N/A | I125: N/A | J125: N/A | K125: =Measures!BL17 -> N/A | L125: N/A
A126: King Salmon | B126: Electric Utility Efficiency Upgrades - Gen Sets & Controls | C126: N/A | D126: N/A | E126: N/A | F126: N/A | G126: N/A | H126: N/A | I126: N/A | J126: N/A | K126: =Measures!BS17 -> N/A | L126: N/A
A127: King Salmon | B127: Electric Utility Upgrades - Heat Recovery | C127: N/A | D127: N/A | E127: N/A | F127: N/A | G127: N/A | H127: N/A | I127: N/A | J127: N/A | K127: N/A | L127: N/A
A128: Kokhanok* | B128: Residential Energy Efficiency | C128: Individual home retrofits | D128: ='Residential EE'!B17 -> 56 | E128: buildings | F128: ='Residential EE'!T17 -> 1300688.284 | G128: ='Residential EE'!U17 -> 9680.111734 | H128: ='Residential EE'!V17 -> 217318.5084 | I128: ='Residential EE'!W17 -> 151665.68 | J128: ='Residential EE'!X17 -> 2016000 | K128: ='Residential EE'!Y17 -> 13.29239417 | L128: ='Residential EE'!Z17 -> Housing Authority, Tribe, City
A129: Kokhanok* | B129: Commercial Building Energy Efficiency | C129: Building retrofits | D129: ='Community & Other EE'!D51 -> 20 | E129: buildings | F129: ='Community & Other EE'!V51 -> 1190398.103 | G129: ='Community & Other EE'!V51 -> 1190398.103 | H129: =Measures!AY18 -> 226508.0413 | I129: =Measures!AX18 -> 93378.53643 | J129: ='Community & Other EE'!Z51 -> 850000 | K129: =Measures!AW18 -> 9.102734231 | L129: ='Community & Other EE'!AB51 -> Building Owner
A130: Kokhanok* | B130: Community Building Energy Efficiency | C130: Building retrofits | D130: ='Community & Other EE'!D17 -> 9 | E130: buildings | F130: ='Community & Other EE'!V17 -> 864359.9098 | G130: =Measures!AN18 -> 7018.025536 | H130: =Measures!AQ18 -> 157554.6733 | I130: =Measures!AP18 -> 62184.65866 | J130: =Measures!AM18 -> 450000 | K130: =Measures!AO18 -> 7.236511539 | L130: =Measures!AR18 -> City, Tribe
A131: Kokhanok* | B131: Community Scale Solar | C131: New System | D131: =Solar!M17 -> 150.94727 | E131: kW | F131: =Measures!O18*22.45 -> 1040642.032 | G131: =Measures!T18 -> 13906.1296 | H131: =Measures!X18 -> 312192.6095 | I131: =Measures!V18 -> 51174.55692 | J131: =Measures!U18 -> 1044889.08 | K131: =Measures!W18 -> 20.41813633 | L131: =Measures!Y18 -> Utility, IPP, Tribe
A132: Kokhanok* | B132: Community Scale Wind | C132: Upgrade existing | D132: =Wind!S18 -> 300 | E132: kW | F132: =Wind!AL18 -> 1225965.016 | G132: =Wind!AE18 -> 47949.84255 | H132: =Measures!AI18 -> 1076473.965 | I132: =Measures!AH18 -> 222022.5865 | J132: =Wind!AD18 -> 3000000 | K132: =Wind!AK18 -> 13.51213878 | L132: =Measures!AJ18 -> Utility, IPP
A133: Kokhanok* | B133: Electric Utility Upgrades - Line Loss | C133: Upgrade existing equipment | D133: 6 | E133: %, target for line loss | F133: 1040642.032 | G133: =Measures!BK18 -> 3750.311033 | H133: =Measures!BN18 -> 64764.98669 | I133: =Measures!BM18 -> 13801.1446 | J133: =Measures!BJ18 -> 75000 | K133: =Measures!BL18 -> 5.434331873 | L133: =Measures!BO18 -> Utility
A134: Kokhanok* | B134: Electric Utility Efficiency Upgrades - Gen Sets & Controls | C134: Upgrade existing equipment | D134: 14 | E134: %, target for efficiency | F134: 1040642.032 | G134: =Measures!BR18 -> 8542.336753 | H134: ='Utility Infrastructure'!Y18 -> 191775.4601 | I134: =Measures!BT18 -> 31435.79925 | J134: =Measures!BQ18 -> 1105000 | K134: =Measures!BS18 -> 35.15100702 | L134: =Measures!BV18 -> Utility
A135: Kokhanok* | B135: Electric Utility Upgrades - Heat Recovery | C135: Upgrade existing equipment | D135: 10 | E135: %, target for fuel reduction | F135: 1040642.032 | G135: =Measures!BY18 -> 961.6182137 | H135: =Measures!CB18 -> 21588.3289 | I135: =Measures!CA18 -> 8846.887566 | J135: =Measures!BX18 -> 75000 | K135: =Measures!BZ18 -> 8.477557722 | L135: =Measures!BV18 -> Utility
A136: Levelock* | B136: Residential Energy Efficiency | C136: Individual home retrofits | D136: ='Residential EE'!B19 -> 38 | E136: buildings | F136: ='Residential EE'!T19 -> 758545.3595 | G136: ='Residential EE'!U19 -> 6016.0212 | H136: ='Residential EE'!V19 -> 135059.6759 | I136: ='Residential EE'!W19 -> 72416.19 | J136: ='Residential EE'!X19 -> 1368000 | K136: ='Residential EE'!Y19 -> 18.89080329 | L136: ='Residential EE'!Z19 -> Housing Authority, Tribe, City
A137: Levelock* | B137: Commercial Building Energy Efficiency | C137: Building retrofits | D137: ='Community & Other EE'!D53 -> 34 | E137: buildings | F137: ='Community & Other EE'!V53 -> 2080720.169 | G137: ='Community & Other EE'!V53 -> 2080720.169 | H137: =Measures!AY20 -> 390768.0097 | I137: =Measures!AX20 -> 142126.4729 | J137: ='Community & Other EE'!Z53 -> 1445000 | K137: =Measures!AW20 -> 10.16700106 | L137: ='Community & Other EE'!AB53 -> Building Owner
A138: Levelock* | B138: Community Building Energy Efficiency | C138: Building retrofits | D138: ='Community & Other EE'!D19 -> 6 | E138: buildings | F138: ='Community & Other EE'!V19 -> 536134.1434 | G138: =Measures!AN20 -> 4500.038718 | H138: =Measures!AQ20 -> 101025.8692 | I138: =Measures!AP20 -> 34110.27405 | J138: =Measures!AM20 -> 300000 | K138: =Measures!AO20 -> 8.795004096 | L138: =Measures!AR20 -> City, Tribe
A139: Levelock* | B139: Community Scale Solar | C139: New System | D139: =Solar!M19 -> 112.9695003 | E139: kW | F139: =Measures!O20*22.45 -> 693229.053 | G139: =Measures!T20 -> 9263.639906 | H139: =Measures!X20 -> 207968.7159 | I139: =Measures!V20 -> 29551.0113 | J139: =Measures!U20 -> 908578.0012 | K139: =Measures!W20 -> 30.74608824 | L139: =Measures!Y20 -> Utility, IPP, Tribe
A140: Levelock* | B140: Community Scale Wind | C140: N/A | D140: =Wind!S20 -> N/A | E140: N/A | F140: N/A | G140: N/A | H140: N/A | I140: N/A | J140: N/A | K140: N/A | L140: N/A
A141: Levelock* | B141: Electric Utility Upgrades - Line Loss | C141: Upgrade existing equipment | D141: 6 | E141: %, target for line loss | F141: 693229.053 | G141: =Measures!BK20 -> 4755.335152 | H141: =Measures!BN20 -> 41593.74318 | I141: =Measures!BM20 -> 15169.51913 | J141: =Measures!BJ20 -> 75000 | K141: =Measures!BL20 -> 4.94412508 | L141: =Measures!BO20 -> Utility
A142: Levelock* | B142: Electric Utility Efficiency Upgrades - Gen Sets & Controls | C142: Upgrade existing equipment | D142: 14 | E142: %, target for efficiency | F142: 693229.053 | G142: =Measures!BR20 -> 2580.585403 | H142: ='Utility Infrastructure'!Y20 -> 57934.14229 | I142: =Measures!BT20 -> 8232.067434 | J142: ='Utility Infrastructure'!R20 -> 2085000 | K142: =Measures!BS20 -> 253.2778086 | L142: =Measures!BV20 -> Utility
A143: Levelock* | B143: Electric Utility Upgrades - Heat Recovery | C143: Upgrade existing equipment | D143: 10 | E143: %, target for fuel reduction | F143: 693229.053 | G143: =Measures!BY20 -> 617.5759938 | H143: =Measures!CB20 -> 13864.58106 | I143: =Measures!CA20 -> 4925.16855 | J143: =Measures!BX20 -> 50000 | K143: =Measures!BZ20 -> 10.15193683 | L143: =Measures!BV20 -> Utility
A144: Manokotak* | B144: Residential Energy Efficiency | C144: Individual home retrofits | D144: ='Residential EE'!B20 -> 127 | E144: buildings | F144: ='Residential EE'!T20 -> 5607666.148 | G144: ='Residential EE'!U20 -> 33792.26837 | H144: ='Residential EE'!V20 -> 758636.4248 | I144: ='Residential EE'!W20 -> 307810.27 | J144: ='Residential EE'!X20 -> 4572000 | K144: ='Residential EE'!Y20 -> 14.85330558 | L144: ='Residential EE'!Z20 -> Housing Authority, Tribe, City
A145: Manokotak* | B145: Commercial Building Energy Efficiency | C145: Building retrofits | D145: ='Community & Other EE'!D54 -> 35 | E145: buildings | F145: ='Community & Other EE'!V54 -> 2942957.028 | G145: ='Community & Other EE'!V54 -> 2942957.028 | H145: =Measures!AY21 -> 482365.1071 | I145: =Measures!AX21 -> 143489.5698 | J145: ='Community & Other EE'!Z54 -> 1487500 | K145: =Measures!AW21 -> 10.36660715 | L145: ='Community & Other EE'!AB54 -> Building Owner
A146: Manokotak* | B146: Community Building Energy Efficiency | C146: Building retrofits | D146: ='Community & Other EE'!D20 -> 5 | E146: buildings | F146: ='Community & Other EE'!V20 -> 659389.5432 | G146: =Measures!AN21 -> 4697.074983 | H146: =Measures!AQ21 -> 105449.3334 | I146: =Measures!AP21 -> 28868.24021 | J146: =Measures!AM21 -> 250000 | K146: =Measures!AO21 -> 8.660036019 | L146: =Measures!AR21 -> City, Tribe
A147: Manokotak* | B147: Community Scale Solar | C147: New System | D147: =Solar!M20 -> 97.89159718 | E147: kW | F147: =Measures!O21*22.45 -> 1966081.658 | G147: =Measures!T21 -> 26272.80612 | H147: =Measures!X21 -> 589824.4974 | I147: =Measures!V21 -> 69885.66429 | J147: =Measures!U21 -> 1613066.389 | K147: =Measures!W21 -> 23.08150613 | L147: =Measures!Y21 -> Utility, IPP, Tribe
A148: Manokotak* | B148: Community Scale Wind | C148: Long term requires feasibility study | D148: =Wind!S21 -> 100 | E148: kW | F148: =Wind!AL21 -> 2035480.604 | G148: =Measures!AE21 -> 35030.40816 | H148: =Measures!AI21 -> 855831.6091 | I148: =Measures!AH21 -> 117601.8956 | J148: =Measures!AF21 -> 1971500 | K148: =Measures!AG21 -> 16.76418556 | L148: =Measures!AJ21 -> Utility, IPP
A149: Manokotak* | B149: Electric Utility Upgrades - Line Loss | C149: Upgrade existing equipment | D149: 6 | E149: %, target for line loss | F149: 1966081.658 | G149: =Measures!BK21 -> 12786.09898 | H149: =Measures!BN21 -> 117964.8995 | I149: =Measures!BM21 -> 34011.02329 | J149: =Measures!BJ21 -> 75000 | K149: =Measures!BL21 -> 2.205167406 | L149: =Measures!BO21 -> Utility
A150: Manokotak* | B150: Electric Utility Efficiency Upgrades - Gen Sets & Controls | C150: Upgrade existing equipment | D150: 14 | E150: %, target for efficiency | F150: 1966081.658 | G150: =Measures!BR21 -> 63054.73469 | H150: ='Utility Infrastructure'!Y21 -> 1415578.794 | I150: =Measures!BT21 -> 167725.5943 | J150: =Measures!BQ21 -> 1963000 | K150: =Measures!BS21 -> 11.70364015 | L150: =Measures!BV21 -> Utility
A151: Manokotak* | B151: Electric Utility Upgrades - Heat Recovery | C151: Upgrade existing equipment | D151: 10 | E151: %, target for fuel reduction | F151: 1966081.658 | G151: =Measures!BY21 -> 1751.520408 | H151: =Measures!CB21 -> 39321.63316 | I151: =Measures!CA21 -> 13837.01122 | J151: =Measures!BX21 -> 50000 | K151: =Measures!BZ21 -> 3.613497105 | L151: =Measures!BV21 -> Utility
A152: Naknek, King Salmon, South Naknek | B152: Residential Energy Efficiency | C152: Individual home retrofits | D152: ='Residential EE'!B21 -> 931 | E152: buildings | F152: ='Residential EE'!T21 -> 19223785.49 | G152: ='Residential EE'!U21 -> 150240.7341 | H152: ='Residential EE'!V21 -> 3372904.479 | I152: ='Residential EE'!W21 -> 1258059.33 | J152: ='Residential EE'!X21 -> 33516000 | K152: ='Residential EE'!Y21 -> 26.6410329 | L152: ='Residential EE'!Z21 -> Housing Authority, Tribe, City
A153: Naknek, King Salmon, South Naknek | B153: Commercial Building Energy Efficiency | C153: Building retrofits | D153: ='Community & Other EE'!D55 -> 443 | E153: buildings | F153: ='Community & Other EE'!V55 -> 44750936.4 | G153: ='Community & Other EE'!V55 -> 44750936.4 | H153: =Measures!AY22 -> 6855514.958 | I153: =Measures!AX22 -> 1853885.651 | J153: ='Community & Other EE'!Z55 -> 18827500 | K153: =Measures!AW22 -> 10.15569649 | L153: ='Community & Other EE'!AB55 -> Building Owner
A154: Naknek, King Salmon, South Naknek | B154: Community Building Energy Efficiency | C154: Building retrofits | D154: ='Community & Other EE'!D21 -> 38 | E154: buildings | F154: ='Community & Other EE'!V21 -> 4729737.685 | G154: =Measures!AN22 -> 34443.32514 | H154: =Measures!AQ22 -> 773252.6494 | I154: =Measures!AP22 -> 160994.3175 | J154: =Measures!AM22 -> 1900000 | K154: =Measures!AO22 -> 11.80165878 | L154: =Measures!AR22 -> City, Tribe
A155: Naknek, King Salmon, South Naknek | B155: Community Scale Solar | C155: New System | D155: =Solar!M21 -> 2327.695528 | E155: kW | F155: =Measures!O22*22.45 -> 36997367.34 | G155: =Measures!T22 -> 164798.9637 | H155: =Measures!X22 -> 3699736.734 | I155: =Measures!V22 -> 326301.948 | J155: =Measures!U22 -> 11810782.11 | K155: =Measures!W22 -> 36.1958676 | L155: =Measures!Y22 -> Utility, IPP, Tribe
A156: Naknek, King Salmon, South Naknek | B156: Community Scale Wind | C156: Long term requires feasibility study | D156: =Wind!S22 -> 7500 | E156: kW | F156: =Wind!AL22 -> 42480639.77 | G156: =Measures!AE22 -> 659195.8546 | H156: =Measures!AI22 -> 20282219.36 | I156: =Measures!AH22 -> 2514214.407 | J156: =Measures!AF22 -> 72239550 | K156: =Measures!AG22 -> 28.73245408 | L156: =Measures!AJ22 -> Utility, IPP
A157: Naknek, King Salmon, South Naknek | B157: Electric Utility Upgrades - Line Loss | C157: Upgrade existing equipment | D157: 6 | E157: %, target for line loss | F157: 36997367.34 | G157: =Measures!BK22 -> 60975.61655 | H157: =Measures!BN22 -> 2219842.041 | I157: =Measures!BM22 -> 120731.7208 | J157: =Measures!BJ22 -> 75000 | K157: =Measures!BL22 -> 0.621212052 | L157: =Measures!BO22 -> Utility
A158: Naknek, King Salmon, South Naknek | B158: Electric Utility Efficiency Upgrades - Gen Sets & Controls | C158: Upgrade existing equipment | D158: equipment needs for future renewable integration | E158: N/A | F158: ='Utility Infrastructure'!X22 -> 36997367.34 | G158: N/A | H158: N/A | I158: N/A | J158: ='Utility Infrastructure'!R22 -> 283000 | K158: N/A | L158: Utility
A159: Naknek, King Salmon, South Naknek | B159: Electric Utility Upgrades - Heat Recovery | C159: Upgrade existing equipment | D159: 10 | E159: %, target for fuel reduction | F159: 36997367.34 | G159: =Measures!BY22 -> 32959.79273 | H159: =Measures!CB22 -> 739947.3468 | I159: =Measures!CA22 -> 163150.974 | J159: =Measures!BX22 -> 100000 | K159: =Measures!BZ22 -> 0.6129292246 | L159: =Measures!BV22 -> Utility
A160: New Koliganek | B160: Residential Energy Efficiency | C160: Individual home retrofits | D160: ='Residential EE'!B18 -> 75 | E160: buildings | F160: ='Residential EE'!T18 -> 1629326.624 | G160: ='Residential EE'!U18 -> 12462.57962 | H160: ='Residential EE'!V18 -> 279784.9124 | I160: ='Residential EE'!W18 -> 148615.456 | J160: ='Residential EE'!X18 -> 2700000 | K160: ='Residential EE'!Y18 -> 18.16769314 | L160: ='Residential EE'!Z18 -> Housing Authority, Tribe, City
A161: New Koliganek | B161: Commercial Building Energy Efficiency | C161: Building retrofits | D161: ='Community & Other EE'!D52 -> 14 | E161: buildings | F161: ='Community & Other EE'!V52 -> 852864.6993 | G161: ='Community & Other EE'!V52 -> 852864.6993 | H161: =Measures!AY19 -> 160514.2317 | I161: =Measures!AX19 -> 46375.48285 | J161: ='Community & Other EE'!Z52 -> 595000 | K161: =Measures!AW19 -> 12.83005509 | L161: ='Community & Other EE'!AB52 -> Building Owner
A162: New Koliganek | B162: Community Building Energy Efficiency | C162: Building retrofits | D162: ='Community & Other EE'!D18 -> 11 | E162: buildings | F162: ='Community & Other EE'!V18 -> 1015501.886 | G162: =Measures!AN19 -> 8395.234858 | H162: =Measures!AQ19 -> 188473.0226 | I162: =Measures!AP19 -> 52297.97502 | J162: =Measures!AM19 -> 550000 | K162: =Measures!AO19 -> 10.51665958 | L162: =Measures!AR19 -> City, Tribe
A163: New Koliganek | B163: Community Scale Solar | C163: New System | D163: =Solar!M18 -> 198.3050654 | E163: kW | F163: =Measures!O19*22.45 -> 1243043.631 | G163: =Measures!T19 -> 16610.82803 | H163: =Measures!X19 -> 372913.0892 | I163: =Measures!V19 -> 52158 | J163: =Measures!U19 -> 1232370.262 | K163: =Measures!W19 -> 23.62763644 | L163: =Measures!Y19 -> Utility, IPP, Tribe
A164: New Koliganek | B164: Community Scale Wind | C164: Long term requires feasibility study | D164: =Wind!S19 -> 200 | E164: kW | F164: =Wind!AL19 -> 1379885.002 | G164: =Measures!AE19 -> 22147.7707 | H164: =Measures!AI19 -> 634058.8237 | I164: =Measures!AH19 -> 109163.9962 | J164: =Measures!AF19 -> 2439150 | K164: =Measures!AG19 -> 22.34390536 | L164: =Measures!AJ19 -> Utility, IPP
A165: New Koliganek | B165: Electric Utility Upgrades - Line Loss | C165: Upgrade existing equipment | D165: 6 | E165: %, target for line loss | F165: 1243043.631 | G165: =Measures!BK19 -> 996.6496815 | H165: =Measures!BN19 -> 74582.61783 | I165: =Measures!BM19 -> 3129.48 | J165: =Measures!BJ19 -> 75000 | K165: =Measures!BL19 -> 23.96564285 | L165: =Measures!BO19 -> Utility
A166: New Koliganek | B166: Electric Utility Efficiency Upgrades - Gen Sets & Controls | C166: Upgrade existing equipment | D166: 14 | E166: %, target for efficiency | F166: 1243043.631 | G166: =Measures!BR19 -> 5695.141037 | H166: ='Utility Infrastructure'!Y19 -> 127855.9163 | I166: =Measures!BT19 -> 17882.74286 | J166: ='Utility Infrastructure'!R19 -> 988000 | K166: =Measures!BS19 -> 55.24879533 | L166: =Measures!BV19 -> Utility
A167: New Koliganek | B167: Electric Utility Upgrades - Heat Recovery | C167: Upgrade existing equipment | D167: 10 | E167: %, target for fuel reduction | F167: 1243043.631 | G167: =Measures!BY19 -> 1107.388535 | H167: =Measures!CB19 -> 24860.87261 | I167: =Measures!CA19 -> 7198.025478 | J167: =Measures!BX19 -> 75000 | K167: =Measures!BZ19 -> 10.41952411 | L167: =Measures!BV19 -> Utility
A168: New Stuyahok, Ekwok | B168: Residential Energy Efficiency | C168: Individual home retrofits | D168: ='Residential EE'!B23 -> 152 | E168: buildings | F168: ='Residential EE'!T23 -> 3755275.963 | G168: ='Residential EE'!U23 -> 27276.08714 | H168: ='Residential EE'!V23 -> 612348.1563 | I168: ='Residential EE'!W23 -> 422090.104 | J168: ='Residential EE'!X23 -> 5472000 | K168: ='Residential EE'!Y23 -> 12.9640566 | L168: ='Residential EE'!Z23 -> Housing Authority, Tribe, City
A169: New Stuyahok, Ekwok | B169: Commercial Building Energy Efficiency | C169: Building retrofits | D169: ='Community & Other EE'!D57 -> 59 | E169: buildings | F169: ='Community & Other EE'!V57 -> 3326691.84 | G169: ='Community & Other EE'!V57 -> 3326691.84 | H169: =Measures!AY24 -> 649700.4656 | I169: =Measures!AX24 -> 226866.8882 | J169: ='Community & Other EE'!Z57 -> 2507500 | K169: =Measures!AW24 -> 11.05273678 | L169: ='Community & Other EE'!AB57 -> Building Owner
A170: New Stuyahok, Ekwok | B170: Community Building Energy Efficiency | C170: Building retrofits | D170: ='Community & Other EE'!D23 -> 18 | E170: buildings | F170: ='Community & Other EE'!V23 -> 1888982.122 | G170: =Measures!AN24 -> 14749.91434 | H170: =Measures!AQ24 -> 331135.5768 | I170: =Measures!AP24 -> 107164.6511 | J170: =Measures!AM24 -> 900000 | K170: =Measures!AO24 -> 8.398291699 | L170: =Measures!AR24 -> City, Tribe
A171: New Stuyahok, Ekwok | B171: Community Scale Solar | C171: New System | D171: =Solar!M23 -> 549.2691593 | E171: kW | F171: =Measures!O24*22.45 -> 3271116.138 | G171: =Measures!T24 -> 43712.01967 | H171: =Measures!X24 -> 981334.8415 | I171: =Measures!V24 -> 137255.7418 | J171: =Measures!U24 -> 2622576.637 | K171: =Measures!W24 -> 19.10722716 | L171: =Measures!Y24 -> Utility, IPP, Tribe
A172: New Stuyahok, Ekwok | B172: Community Scale Wind | C172: Long term requires feasibility study | D172: =Wind!S24 -> 600 | E172: kW | F172: =Wind!AL24 -> 3717053.4 | G172: =Measures!AE24 -> 58282.69289 | H172: =Measures!AI24 -> 1754383.717 | I172: =Measures!AH24 -> 338936.7203 | J172: =Measures!AF24 -> 4525500 | K172: =Measures!AG24 -> 13.35204989 | L172: =Measures!AJ24 -> Utility, IPP
A173: New Stuyahok, Ekwok | B173: Electric Utility Upgrades - Line Loss | C173: Upgrade existing equipment | D173: 6 | E173: %, target for line loss | F173: 3271116.138 | G173: =Measures!BK24 -> 30744.1205 | H173: =Measures!BN24 -> 196266.9683 | I173: =Measures!BM24 -> 96536.53837 | J173: =Measures!BJ24 -> 75000 | K173: =Measures!BL24 -> 0.7769079073 | L173: =Measures!BO24 -> Utility
A174: New Stuyahok, Ekwok | B174: Electric Utility Efficiency Upgrades - Gen Sets & Controls | C174: Upgrade existing equipment | D174: 14 | E174: %, target for efficiency | F174: 3271116.138 | G174: =Measures!BR24 -> 8117.94651 | H174: ='Utility Infrastructure'!Y24 -> 182247.8991 | I174: =Measures!BT24 -> 25490.35204 | J174: ='Utility Infrastructure'!R24 -> 1623000 | K174: =Measures!BS24 -> 63.67114889 | L174: =Measures!BV24 -> Utility
A175: New Stuyahok, Ekwok | B175: Electric Utility Upgrades - Heat Recovery | C175: Upgrade existing equipment | D175: 10 | E175: %, target for fuel reduction | F175: 3271116.138 | G175: =Measures!BY24 -> 2914.134644 | H175: =Measures!CB24 -> 65422.32277 | I175: =Measures!CA24 -> 22875.95696 | J175: =Measures!BX24 -> 100000 | K175: =Measures!BZ24 -> 4.371401825 | L175: =Measures!BV24 -> Utility
A176: Newhalen | B176: Residential Energy Efficiency | C176: N/A | D176: N/A | E176: N/A | F176: N/A | G176: N/A | H176: N/A | I176: N/A | J176: N/A | K176: N/A | L176: N/A
A177: Newhalen | B177: Commercial Building Energy Efficiency | C177: N/A | D177: N/A | E177: N/A | F177: N/A | G177: N/A | H177: N/A | I177: N/A | J177: N/A | K177: N/A | L177: N/A
A178: Newhalen | B178: Community Building Energy Efficiency | C178: N/A | D178: N/A | E178: N/A | F178: N/A | G178: N/A | H178: N/A | I178: N/A | J178: N/A | K178: N/A | L178: N/A
A179: Newhalen | B179: Community Scale Solar | C179: N/A | D179: N/A | E179: N/A | F179: N/A | G179: N/A | H179: N/A | I179: N/A | J179: N/A | K179: N/A | L179: N/A
A180: Newhalen | B180: Community Scale Wind | C180: N/A | D180: N/A | E180: N/A | F180: N/A | G180: N/A | H180: N/A | I180: N/A | J180: N/A | K180: N/A | L180: N/A
A181: Newhalen | B181: Electric Utility Upgrades - Line Loss | C181: N/A | D181: N/A | E181: N/A | F181: N/A | G181: N/A | H181: N/A | I181: N/A | J181: N/A | K181: =Measures!BL23 -> N/A | L181: =Measures!BO23 -> N/A
A182: Newhalen | B182: Electric Utility Efficiency Upgrades - Gen Sets & Controls | C182: N/A | D182: N/A | E182: N/A | F182: N/A | G182: N/A | H182: N/A | I182: N/A | J182: N/A | K182: N/A | L182: N/A
A183: Newhalen | B183: Electric Utility Upgrades - Heat Recovery | C183: N/A | D183: N/A | E183: N/A | F183: N/A | G183: N/A | H183: N/A | I183: N/A | J183: N/A | K183: N/A | L183: N/A
A184: Nondalton | B184: Residential Energy Efficiency | C184: N/A | D184: N/A | E184: N/A | F184: N/A | G184: ='Residential EE'!U24 -> N/A | H184: ='Residential EE'!V24 -> N/A | I184: ='Residential EE'!W24 -> N/A | J184: ='Residential EE'!X24 -> N/A | K184: ='Residential EE'!Y24 -> N/A | L184: ='Residential EE'!Z24 -> N/A
A185: Nondalton | B185: Commercial Building Energy Efficiency | C185: N/A | D185: N/A | E185: N/A | F185: N/A | G185: N/A | H185: N/A | I185: N/A | J185: N/A | K185: N/A | L185: N/A
A186: Nondalton | B186: Community Building Energy Efficiency | C186: N/A | D186: N/A | E186: N/A | F186: N/A | G186: N/A | H186: N/A | I186: N/A | J186: N/A | K186: N/A | L186: N/A
A187: Nondalton | B187: Community Scale Solar | C187: N/A | D187: N/A | E187: N/A | F187: N/A | G187: N/A | H187: N/A | I187: N/A | J187: N/A | K187: N/A | L187: N/A
A188: Nondalton | B188: Community Scale Wind | C188: N/A | D188: N/A | E188: N/A | F188: N/A | G188: =Measures!AE25 -> N/A | H188: =Measures!AI25 -> N/A | I188: N/A | J188: =Measures!AF25 -> N/A | K188: N/A | L188: N/A
A189: Nondalton | B189: Electric Utility Upgrades - Line Loss | C189: N/A | D189: N/A | E189: N/A | F189: N/A | G189: =Measures!BK25 -> N/A | H189: =Measures!BN25 -> N/A | I189: =Measures!BM25 -> N/A | J189: N/A | K189: =Measures!BL25 -> N/A | L189: =Measures!BO25 -> N/A
A190: Nondalton | B190: Electric Utility Efficiency Upgrades - Gen Sets & Controls | C190: N/A | D190: N/A | E190: N/A | F190: N/A | G190: N/A | H190: N/A | I190: N/A | J190: N/A | K190: N/A | L190: N/A
A191: Nondalton | B191: Electric Utility Upgrades - Heat Recovery | C191: N/A | D191: N/A | E191: N/A | F191: N/A | G191: N/A | H191: N/A | I191: N/A | J191: N/A | K191: N/A | L191: N/A
A192: Pedro Bay | B192: Residential Energy Efficiency | C192: Individual home retrofits | D192: ='Residential EE'!B25 -> 42 | E192: buildings | F192: ='Residential EE'!T25 -> 761973.5879 | G192: ='Residential EE'!U25 -> 6308.891705 | H192: ='Residential EE'!V25 -> 141634.6188 | I192: ='Residential EE'!W25 -> 72557.824 | J192: ='Residential EE'!X25 -> 1512000 | K192: ='Residential EE'!Y25 -> 20.83855216 | L192: ='Residential EE'!Z25 -> Housing Authority, Tribe, City
A193: Pedro Bay | B193: Commercial Building Energy Efficiency | C193: Building retrofits | D193: ='Community & Other EE'!D59 -> 16 | E193: buildings | F193: ='Community & Other EE'!V59 -> 1065888.318 | G193: ='Community & Other EE'!V59 -> 1065888.318 | H193: =Measures!AY26 -> 192563.4166 | I193: =Measures!AX26 -> 78543.82514 | J193: ='Community & Other EE'!Z59 -> 680000 | K193: =Measures!AW26 -> 8.657587007 | L193: ='Community & Other EE'!AB59 -> Building Owner
A194: Pedro Bay | B194: Community Building Energy Efficiency | C194: Building retrofits | D194: ='Community & Other EE'!D25 -> 4 | E194: buildings | F194: ='Community & Other EE'!V25 -> 360656.6392 | G194: =Measures!AN26 -> 3014.430609 | H194: =Measures!AQ26 -> 67673.96717 | I194: =Measures!AP26 -> 26566.56118 | J194: =Measures!AM26 -> 200000 | K194: =Measures!AO26 -> 7.528260757 | L194: =Measures!AR26 -> City, Tribe
A195: Pedro Bay | B195: Community Scale Solar | C195: New System | D195: =Solar!M25 -> 61.96890719 | E195: kW | F195: =Measures!O26*22.45 -> 454690.9599 | G195: =Measures!T26 -> 6076.048462 | H195: =Measures!X26 -> 136407.288 | I195: =Measures!V26 -> 22359.85834 | J195: =Measures!U26 -> 646075.6288 | K195: =Measures!W26 -> 28.89444195 | L195: =Measures!Y26 -> Utility, IPP, Tribe
A196: Pedro Bay | B196: Community Scale Wind | C196: Long term requires feasibility study | D196: =Wind!S26 -> 100 | E196: kW | F196: =Wind!AL26 -> 551959.4774 | G196: =Measures!AE26 -> 8101.39795 | H196: =Measures!AI26 -> 279144.9015 | I196: =Measures!AH26 -> 69673.73961 | J196: =Measures!AF26 -> 1398200 | K196: =Measures!AG26 -> 20.06781906 | L196: =Measures!AJ26 -> Utility, IPP
A197: Pedro Bay | B197: Electric Utility Upgrades - Line Loss | C197: Upgrade existing equipment | D197: 6 | E197: %, target for line loss | F197: 454690.9599 | G197: =Measures!BK26 -> 506.3373719 | H197: =Measures!BN26 -> 27281.4576 | I197: =Measures!BM26 -> 1863.321528 | J197: =Measures!BJ26 -> 75000 | K197: =Measures!BL26 -> 40.25070223 | L197: =Measures!BO26 -> Utility
A198: Pedro Bay | B198: Electric Utility Efficiency Upgrades - Gen Sets & Controls | C198: Upgrade existing equipment | D198: 14 | E198: %, target for efficiency | F198: 454690.9599 | G198: =Measures!BR26 -> 4730.637731 | H198: ='Utility Infrastructure'!Y26 -> 106202.8171 | I198: =Measures!BT26 -> 17408.74685 | J198: ='Utility Infrastructure'!R26 -> 1523000 | K198: =Measures!BS26 -> 87.48475769 | L198: =Measures!BV26 -> Utility
A199: Pedro Bay | B199: Electric Utility Upgrades - Heat Recovery | C199: Upgrade existing equipment | D199: 10 | E199: %, target for fuel reduction | F199: 454690.9599 | G199: =Measures!BY26 -> 405.0698975 | H199: =Measures!CB26 -> 9093.819199 | I199: =Measures!CA26 -> 3726.643057 | J199: =Measures!BX26 -> 50000 | K199: =Measures!BZ26 -> 13.41690074 | L199: =Measures!BV26 -> Utility
A200: Perryville | B200: Residential Energy Efficiency | C200: Individual home retrofits | D200: ='Residential EE'!B26 -> 24 | E200: buildings | F200: ='Residential EE'!T26 -> 605213.7855 | G200: ='Residential EE'!U26 -> 4361.429779 | H200: ='Residential EE'!V26 -> 97914.09855 | I200: ='Residential EE'!W26 -> 64276.401 | J200: ='Residential EE'!X26 -> 864000 | K200: ='Residential EE'!Y26 -> 13.44194738 | L200: ='Residential EE'!Z26 -> Housing Authority, Tribe, City
A201: Perryville | B201: Commercial Building Energy Efficiency | C201: Building retrofits | D201: ='Community & Other EE'!D60 -> 21 | E201: buildings | F201: ='Community & Other EE'!V60 -> 1620112.694 | G201: ='Community & Other EE'!V60 -> 1620112.694 | H201: =Measures!AY27 -> 274852.912 | I201: =Measures!AX27 -> 105321.2599 | J201: ='Community & Other EE'!Z60 -> 892500 | K201: =Measures!AW27 -> 8.474072578 | L201: ='Community & Other EE'!AB60 -> Building Owner
A202: Perryville | B202: Community Building Energy Efficiency | C202: Building retrofits | D202: ='Community & Other EE'!D26 -> 6 | E202: buildings | F202: ='Community & Other EE'!V26 -> 539885.716 | G202: =Measures!AN27 -> 4516.749509 | H202: =Measures!AQ27 -> 101401.0265 | I202: =Measures!AP27 -> 37768.62473 | J202: =Measures!AM27 -> 300000 | K202: =Measures!AO27 -> 7.943100977 | L202: =Measures!AR27 -> City, Tribe
A203: Perryville | B203: Community Scale Solar | C203: New System | D203: =Solar!M26 -> 119.1609732 | E203: kW | F203: =Measures!O27*22.45 -> 862278.0882 | G203: =Measures!T27 -> 11522.64706 | H203: =Measures!X27 -> 258683.4265 | I203: =Measures!V27 -> 37909.50882 | J203: =Measures!U27 -> 923593.8926 | K203: =Measures!W27 -> 24.36311947 | L203: =Measures!Y27 -> Utility, IPP, Tribe
A204: Perryville | B204: Community Scale Wind | C204: Upgrade existing | D204: =Wind!S27 -> 100 | E204: kW | F204: =Wind!AL27 -> 925619.4318 | G204: =Measures!AE27 -> 9602.205882 | H204: =Measures!AI27 -> 215569.5221 | I204: =Measures!AH27 -> 54797.60705 | J204: =Measures!AF27 -> 1446950 | K204: =Measures!AG27 -> 26.40535012 | L204: =Measures!AJ27 -> Utility, IPP
A205: Perryville | B205: Electric Utility Upgrades - Line Loss | C205: N/A | D205: N/A | E205: N/A | F205: N/A | G205: =Measures!BK27 -> N/A | H205: =Measures!BN27 -> N/A | I205: =Measures!BM27 -> N/A | J205: =Measures!BJ27 -> N/A | K205: =Measures!BL27 -> N/A | L205: =Measures!BO27 -> N/A
A206: Perryville | B206: Electric Utility Efficiency Upgrades - Gen Sets & Controls | C206: Upgrade existing equipment | D206: 14 | E206: %, target for efficiency | F206: 862278.0882 | G206: =Measures!BR27 -> 8559.680672 | H206: ='Utility Infrastructure'!Y27 -> 192164.8311 | I206: =Measures!BT27 -> 28161.34941 | J206: ='Utility Infrastructure'!R27 -> 698000 | K206: =Measures!BS27 -> 24.7857441 | L206: =Measures!BV27 -> Utility
... 62 more rows

Sheet Summary
F1: Quantified GHG Reduction Measures | M1: Benefits Analysis | R1: Review of Authority to Implement
A2: Federally Recognized Tribe | B2: Community | C2: Measure | D2: Cost to Implement | E2: Near Term (now-2030) Long Term (2030-2050) | F2: GHG Emissions Reduction | G2: Implementing Agency | H2: Schedule/Milestones | I2: Funding Sources (List) | J2: Milestones/Actions to Obtain Authority | K2: Funding Approach (Description) | L2: Metrics for Tracking Progress | M2: Disbenefits | N2: Additional Benefits | O2: Annual Savings | P2: Economic Benefit (Simple Payback Period) | Q2: Authority to Implement | R2: Existing Authority | S2: Milestone/Action Needed | T2: Schedule for Obtaining Authority
Q3: (Entity) | R3: (Yes/No) | S3: (None or CPA)
A4: Native Village of Aleknagik | B4: Aleknagik | C4: Residential Energy Efficiency | D4: =Measures!BC4 -> N/A | E4: =Measures!BI4 -> 0 | F4: =Measures!BG4 -> N/A | G4: =Measures!BH4 -> N/A | I4: =Measures!#REF! ->  | O4: =Measures!BF4 -> N/A | P4: =Measures!BE4 -> N/A | Q4: =Measures!BH4 -> N/A
A5: Chignik Bay Tribal Council (formerly Native Village of Chignik) | B5: Chignik Bay | C5: Residential Energy Efficiency | D5: =Measures!BC5 -> 1692000 | E5: =Measures!BI5 -> Near Term | F5: =Measures!BG5 -> 171395.3421 | G5: =Measures!BH5 -> Housing Authority, Tribe, City | I5: =Measures!#REF! ->  | O5: =Measures!BF5 -> 49204.674 | P5: =Measures!BE5 -> 34.38697714 | Q5: =Measures!BH5 -> Housing Authority, Tribe, City
A6: Native Village of Chignik Lagoon | B6: Chignik Lagoon | C6: Residential Energy Efficiency | D6: =Measures!BC6 -> 2484000 | E6: =Measures!BI6 -> Near Term | F6: =Measures!BG6 -> 254390.6551 | G6: =Measures!BH6 -> Housing Authority, Tribe, City | I6: =Measures!#REF! ->  | O6: =Measures!BF6 -> 140740.722 | P6: =Measures!BE6 -> 17.64947603 | Q6: =Measures!BH6 -> Housing Authority, Tribe, City
A7: Chignik Lake Village | B7: Chignik Lake | C7: Residential Energy Efficiency | D7: =Measures!BC7 -> 1548000 | E7: =Measures!BI7 -> Near Term | F7: =Measures!BG7 -> 162588.7816 | G7: =Measures!BH7 -> Housing Authority, Tribe, City | I7: =Measures!#REF! ->  | O7: =Measures!BF7 -> 82435.644 | P7: =Measures!BE7 -> 18.77828479 | Q7: =Measures!BH7 -> Housing Authority, Tribe, City
A8: Village of Clarks Point | B8: Clarks Point | C8: Residential Energy Efficiency | D8: =Measures!BC8 -> 1836000 | E8: =Measures!BI8 -> Near Term | F8: =Measures!BG8 -> 187938.6082 | G8: =Measures!BH8 -> Housing Authority, Tribe, City | I8: =Measures!#REF! ->  | O8: =Measures!BF8 -> 73323.225 | P8: =Measures!BE8 -> 25.03981515 | Q8: =Measures!BH8 -> Housing Authority, Tribe, City
A9: Curyung Tribal Council | B9: Curyung | C9: Residential Energy Efficiency | D9: =Measures!BC9 -> 37260000 | E9: =Measures!BI9 -> Near Term | F9: =Measures!BG9 -> 4000261.577 | G9: =Measures!BH9 -> Housing Authority, Tribe, City | I9: =Measures!#REF! ->  | O9: =Measures!BF9 -> 1669240.871 | P9: =Measures!BE9 -> 22.3215239 | Q9: =Measures!BH9 -> Housing Authority, Tribe, City
A10: Egegik Village | B10: Egegik | C10: Residential Energy Efficiency | D10: =Measures!BC10 -> 3060000 | E10: =Measures!BI10 -> Near Term | F10: =Measures!BG10 -> 297653.24 | G10: =Measures!BH10 -> Housing Authority, Tribe, City | I10: =Measures!#REF! ->  | O10: =Measures!BF10 -> 111606.859 | P10: =Measures!BE10 -> 27.41766973 | Q10: =Measures!BH10 -> Housing Authority, Tribe, City
A11: Native Village of Ekwok (formerly Ekwok Village) | B11: Ekwok | C11: Residential Energy Efficiency | D11: =Measures!BC11 -> 684000 | E11: =Measures!BI11 -> 0 | F11: =Measures!BG11 -> 0 | G11: =Measures!BH11 -> N/A | I11: =Measures!#REF! ->  | O11: =Measures!BF11 -> N/A | P11: =Measures!BE11 -> N/A | Q11: =Measures!BH11 -> N/A
A12: Native Village of Ekuk | B12: Ekuk | C12: Residential Energy Efficiency | D12: =Measures!BC12 -> 2412000 | E12: =Measures!BI12 -> Near Term | F12: =Measures!BG12 -> 208776.02 | G12: =Measures!BH12 -> Housing Authority, Tribe, City | I12: =Measures!#REF! ->  | O12: =Measures!BF12 -> 52310.25 | P12: =Measures!BE12 -> 46.10951009 | Q12: =Measures!BH12 -> Housing Authority, Tribe, City
A13: Igiugig Village | B13: Igiugig | C13: Residential Energy Efficiency | D13: =Measures!BC13 -> 1116000 | E13: =Measures!BI13 -> Near Term | F13: =Measures!BG13 -> 112497.2769 | G13: =Measures!BH13 -> Housing Authority, Tribe, City | I13: =Measures!#REF! ->  | O13: =Measures!BF13 -> 113545.986 | P13: =Measures!BE13 -> 9.828616927 | Q13: =Measures!BH13 -> Housing Authority, Tribe, City
A14: Village of Iliamna | B14: Iliamna | C14: Residential Energy Efficiency | D14: =Measures!BC14 -> 6804000 | E14: =Measures!BI14 -> Near Term | F14: =Measures!BG14 -> 731379.5377 | G14: =Measures!BH14 -> Housing Authority, Tribe, City | I14: =Measures!#REF! ->  | O14: =Measures!BF14 -> 483504.084 | P14: =Measures!BE14 -> 14.07226997 | Q14: =Measures!BH14 -> Housing Authority, Tribe, City
A15: Ivanof Bay Tribe (formerly Ivanof Bay Tribe and Ivanof Bay Village) | B15: Ivanok Bay | C15: Residential Energy Efficiency | D15: =Measures!BC15 -> 576000 | E15: =Measures!BI15 -> Near Term | F15: =Measures!BG15 -> 49856.96 | G15: =Measures!BH15 -> Housing Authority, Tribe, City | I15: =Measures!#REF! ->  | O15: =Measures!BF15 -> 18266.08 | P15: =Measures!BE15 -> 31.53385948 | Q15: =Measures!BH15 -> Housing Authority, Tribe, City
A16: Native Village of Kanatak | B16: Kanatak | C16: Residential Energy Efficiency | D16: =Measures!BC16 -> N/A | E16: =Measures!BI16 -> 0 | F16: =Measures!BG16 -> N/A | G16: =Measures!BH16 -> N/A | I16: =Measures!#REF! ->  | O16: =Measures!BF16 -> N/A | P16: =Measures!BE16 -> N/A | Q16: =Measures!BH16 -> N/A
A17: King Salmon Tribe | B17: King Salmon | C17: Residential Energy Efficiency | D17: =Measures!BC17 -> N/A | E17: =Measures!BI17 -> 0 | F17: =Measures!BG17 -> N/A | G17: =Measures!BH17 -> N/A | I17: =Measures!#REF! ->  | O17: =Measures!BF17 -> N/A | P17: =Measures!BE17 -> N/A | Q17: =Measures!BH17 -> N/A
A18: Kokhanok Village | B18: Kokhanok | C18: Residential Energy Efficiency | D18: =Measures!BC18 -> 2016000 | E18: =Measures!BI18 -> Near Term | F18: =Measures!BG18 -> 217318.5084 | G18: =Measures!BH18 -> Housing Authority, Tribe, City | I18: =Measures!#REF! ->  | O18: =Measures!BF18 -> 151665.68 | P18: =Measures!BE18 -> 13.29239417 | Q18: =Measures!BH18 -> Housing Authority, Tribe, City
A19: Native Village of Aleknagik | B19: Aleknagik | C19: Community Building Energy Efficiency | D19: =Measures!AM4 -> 0 | E19: =Measures!AS4 -> 0 | F19: =Measures!AQ4 -> 0 | G19: =Measures!AR4 -> City, Tribe | I19: =Measures!#REF! ->  | O19: =Measures!AP4 -> 0 | P19: =Measures!AO4 -> 0 | Q19: =Measures!AR4 -> City, Tribe
A20: Chignik Bay Tribal Council (formerly Native Village of Chignik) | B20: Chignik Bay | C20: Community Building Energy Efficiency | D20: =Measures!AM5 -> 500000 | E20: =Measures!AS5 -> Near Term | F20: =Measures!AQ5 -> 182037.8294 | G20: =Measures!AR5 -> City, Tribe | I20: =Measures!#REF! ->  | O20: =Measures!AP5 -> 38007.86231 | P20: =Measures!AO5 -> 13.15517289 | Q20: =Measures!AR5 -> City, Tribe
A21: Native Village of Chignik Lagoon | B21: Chignik Lagoon | C21: Community Building Energy Efficiency | D21: =Measures!AM6 -> 350000 | E21: =Measures!AS6 -> Near Term | F21: =Measures!AQ6 -> 117658.9297 | G21: =Measures!AR6 -> City, Tribe | I21: =Measures!#REF! ->  | O21: =Measures!AP6 -> 38799.76143 | P21: =Measures!AO6 -> 9.020674022 | Q21: =Measures!AR6 -> City, Tribe
A22: Chignik Lake Village | B22: Chignik Lake | C22: Community Building Energy Efficiency | D22: =Measures!AM7 -> 450000 | E22: =Measures!AS7 -> Near Term | F22: =Measures!AQ7 -> 149599.1164 | G22: =Measures!AR7 -> City, Tribe | I22: =Measures!#REF! ->  | O22: =Measures!AP7 -> 52213.33258 | P22: =Measures!AO7 -> 8.618488377 | Q22: =Measures!AR7 -> City, Tribe
A23: Village of Clarks Point | B23: Clarks Point | C23: Community Building Energy Efficiency | D23: =Measures!AM8 -> 100000 | E23: =Measures!AS8 -> Near Term | F23: =Measures!AQ8 -> 33693.69778 | G23: =Measures!AR8 -> City, Tribe | I23: =Measures!#REF! ->  | O23: =Measures!AP8 -> 8454.72509 | P23: =Measures!AO8 -> 11.82770568 | Q23: =Measures!AR8 -> City, Tribe
A24: Curyung Tribal Council | B24: Curyung | C24: Community Building Energy Efficiency | D24: =Measures!AM9 -> 2550000 | E24: =Measures!AS9 -> Near Term | F24: =Measures!AQ9 -> 940430.7691 | G24: =Measures!AR9 -> City, Tribe | I24: =Measures!#REF! ->  | O24: =Measures!AP9 -> 185718.3108 | P24: =Measures!AO9 -> 13.73047164 | Q24: =Measures!AR9 -> City, Tribe
A25: Egegik Village | B25: Egegik | C25: Community Building Energy Efficiency | D25: =Measures!AM10 -> 900000 | E25: =Measures!AS10 -> Near Term | F25: =Measures!AQ10 -> 309780.543 | G25: =Measures!AR10 -> City, Tribe | I25: =Measures!#REF! ->  | O25: =Measures!AP10 -> 68986.45072 | P25: =Measures!AO10 -> 13.04604006 | Q25: =Measures!AR10 -> City, Tribe
A26: Native Village of Ekwok (formerly Ekwok Village) | B26: Ekwok | C26: Community Building Energy Efficiency | D26: =Measures!AM11 -> 0 | E26: =Measures!AS11 -> 0 | F26: =Measures!AQ11 -> 0 | G26: =Measures!AR11 -> City, Tribe | I26: =Measures!#REF! ->  | O26: =Measures!AP11 -> 0 | P26: =Measures!AO11 -> 0 | Q26: =Measures!AR11 -> City, Tribe
A27: Native Village of Ekuk | B27: Ekuk | C27: Community Building Energy Efficiency | D27: =Measures!AM12 -> 0 | E27: =Measures!AS12 -> 0 | F27: =Measures!AQ12 -> 0 | G27: =Measures!AR12 -> City, Tribe | I27: =Measures!#REF! ->  | O27: =Measures!AP12 -> 0 | P27: =Measures!AO12 -> 0 | Q27: =Measures!AR12 -> City, Tribe
A28: Igiugig Village | B28: Igiugig | C28: Community Building Energy Efficiency | D28: =Measures!AM13 -> 550000 | E28: =Measures!AS13 -> Near Term | F28: =Measures!AQ13 -> 185843.7736 | G28: =Measures!AR13 -> City, Tribe | I28: =Measures!#REF! ->  | O28: =Measures!AP13 -> 82318.9031 | P28: =Measures!AO13 -> 6.681332953 | Q28: =Measures!AR13 -> City, Tribe
A29: Village of Iliamna | B29: Iliamna | C29: Community Building Energy Efficiency | D29: =Measures!AM14 -> 750000 | E29: =Measures!AS14 -> Near Term | F29: =Measures!AQ14 -> 282392.1568 | G29: =Measures!AR14 -> City, Tribe | I29: =Measures!#REF! ->  | O29: =Measures!AP14 -> 84535.61119 | P29: =Measures!AO14 -> 8.872000681 | Q29: =Measures!AR14 -> City, Tribe
A30: Ivanof Bay Tribe (formerly Ivanof Bay Tribe and Ivanof Bay Village) | B30: Ivanok Bay | C30: Community Building Energy Efficiency | D30: =Measures!AM15 -> 0 | E30: =Measures!AS15 -> 0 | F30: =Measures!AQ15 -> 0 | G30: =Measures!AR15 -> City, Tribe | I30: =Measures!#REF! ->  | O30: =Measures!AP15 -> 0 | P30: =Measures!AO15 -> 0 | Q30: =Measures!AR15 -> City, Tribe
A31: Native Village of Kanatak | B31: Kanatak | C31: Community Building Energy Efficiency | D31: =Measures!AM16 -> 0 | E31: =Measures!AS16 -> 0 | F31: =Measures!AQ16 -> 0 | G31: =Measures!AR16 -> City, Tribe | I31: =Measures!#REF! ->  | O31: =Measures!AP16 -> 0 | P31: =Measures!AO16 -> 0 | Q31: =Measures!AR16 -> City, Tribe
A32: King Salmon Tribe | B32: King Salmon | C32: Community Building Energy Efficiency | D32: =Measures!AM17 -> 0 | E32: =Measures!AS17 -> 0 | F32: =Measures!AQ17 -> 0 | G32: =Measures!AR17 -> City, Tribe | I32: =Measures!#REF! ->  | O32: =Measures!AP17 -> 0 | P32: =Measures!AO17 -> 0 | Q32: =Measures!AR17 -> City, Tribe
A33: Kokhanok Village | B33: Kokhanok | C33: Community Building Energy Efficiency | D33: =Measures!AM18 -> 450000 | E33: =Measures!AS18 -> Near Term | F33: =Measures!AQ18 -> 157554.6733 | G33: =Measures!AR18 -> City, Tribe | I33: =Measures!#REF! ->  | O33: =Measures!AP18 -> 62184.65866 | P33: =Measures!AO18 -> 7.236511539 | Q33: =Measures!AR18 -> City, Tribe
A34: Native Village of Aleknagik | B34: Aleknagik | C34: Commercial Building Energy Efficiency | D34: =Measures!AU4 ->  | E34: =Measures!BA4 -> 0 | F34: =Measures!AY4 ->  | G34: =Measures!AZ4 -> Building Owner | I34: =Measures!#REF! ->  | O34: =Measures!AX4 ->  | P34: =Measures!AW4 ->  | Q34: =Measures!AZ4 -> Building Owner
A35: Chignik Bay Tribal Council (formerly Native Village of Chignik) | B35: Chignik Bay | C35: Commercial Building Energy Efficiency | D35: =Measures!AU5 -> 2082500 | E35: =Measures!BA5 -> Near Term | F35: =Measures!AY5 -> 595716.9302 | G35: =Measures!AZ5 -> Building Owner | I35: =Measures!#REF! ->  | O35: =Measures!AX5 -> 136846.0112 | P35: =Measures!AW5 -> 15.21783487 | Q35: =Measures!AZ5 -> Building Owner
A36: Native Village of Chignik Lagoon | B36: Chignik Lagoon | C36: Commercial Building Energy Efficiency | D36: =Measures!AU6 -> 595000 | E36: =Measures!BA6 -> Near Term | F36: =Measures!AY6 -> 174554 | G36: =Measures!AZ6 -> Building Owner | I36: =Measures!#REF! ->  | O36: =Measures!AX6 -> 59094.74866 | P36: =Measures!AW6 -> 10.06857654 | Q36: =Measures!AZ6 -> Building Owner
A37: Chignik Lake Village | B37: Chignik Lake | C37: Commercial Building Energy Efficiency | D37: =Measures!AU7 -> 255000 | E37: =Measures!BA7 -> Near Term | F37: =Measures!AY7 -> 80147.01611 | G37: =Measures!AZ7 -> Building Owner | I37: =Measures!#REF! ->  | O37: =Measures!AX7 -> 27299.63755 | P37: =Measures!AW7 -> 9.340783356 | Q37: =Measures!AZ7 -> Building Owner
A38: Village of Clarks Point | B38: Clarks Point | C38: Commercial Building Energy Efficiency | D38: =Measures!AU8 -> 765000 | E38: =Measures!BA8 -> Near Term | F38: =Measures!AY8 -> 213738.4344 | G38: =Measures!AZ8 -> Building Owner | I38: =Measures!#REF! ->  | O38: =Measures!AX8 -> 56800.01155 | P38: =Measures!AW8 -> 13.46830712 | Q38: =Measures!AZ8 -> Building Owner
A39: Curyung Tribal Council | B39: Curyung | C39: Commercial Building Energy Efficiency | D39: =Measures!AU9 -> 19805000 | E39: =Measures!BA9 -> Near Term | F39: =Measures!AY9 -> 6740562.406 | G39: =Measures!AZ9 -> Building Owner | I39: =Measures!#REF! ->  | O39: =Measures!AX9 -> 1582975.038 | P39: =Measures!AW9 -> 12.51125224 | Q39: =Measures!AZ9 -> Building Owner
A40: Egegik Village | B40: Egegik | C40: Commercial Building Energy Efficiency | D40: =Measures!AU10 -> 1147500 | E40: =Measures!BA10 -> Near Term | F40: =Measures!AY10 -> 345965.7852 | G40: =Measures!AZ10 -> Building Owner | I40: =Measures!#REF! ->  | O40: =Measures!AX10 -> 83834.45374 | P40: =Measures!AW10 -> 13.68768983 | Q40: =Measures!AZ10 -> Building Owner
A41: Native Village of Ekwok (formerly Ekwok Village) | B41: Ekwok | C41: Commercial Building Energy Efficiency | D41: =Measures!AU11 ->  | E41: =Measures!BA11 -> 0 | F41: =Measures!AY11 ->  | G41: =Measures!AZ11 -> Building Owner | I41: =Measures!#REF! ->  | O41: =Measures!AX11 ->  | P41: =Measures!AW11 ->  | Q41: =Measures!AZ11 -> Building Owner
A42: Native Village of Ekuk | B42: Ekuk | C42: Commercial Building Energy Efficiency | D42: =Measures!AU12 -> 0 | E42: =Measures!BA12 -> 0 | F42: =Measures!AY12 ->  | G42: =Measures!AZ12 -> Building Owner | I42: =Measures!#REF! ->  | O42: =Measures!AX12 ->  | P42: =Measures!AW12 ->  | Q42: =Measures!AZ12 -> Building Owner
A43: Igiugig Village | B43: Igiugig | C43: Commercial Building Energy Efficiency | D43: =Measures!AU13 -> 637500 | E43: =Measures!BA13 -> Near Term | F43: =Measures!AY13 -> 177652.2615 | G43: =Measures!AZ13 -> Building Owner | I43: =Measures!#REF! ->  | O43: =Measures!AX13 -> 80602.27815 | P43: =Measures!AW13 -> 7.909205727 | Q43: =Measures!AZ13 -> Building Owner
A44: Village of Iliamna | B44: Iliamna | C44: Commercial Building Energy Efficiency | D44: =Measures!AU14 -> 4632500 | E44: =Measures!BA14 -> Near Term | F44: =Measures!AY14 -> 1493090.645 | G44: =Measures!AZ14 -> Building Owner | I44: =Measures!#REF! ->  | O44: =Measures!AX14 -> 487849.6974 | P44: =Measures!AW14 -> 9.495752534 | Q44: =Measures!AZ14 -> Building Owner
A45: Ivanof Bay Tribe (formerly Ivanof Bay Tribe and Ivanof Bay Village) | B45: Ivanok Bay | C45: Commercial Building Energy Efficiency | D45: =Measures!AU15 -> 0 | E45: =Measures!BA15 -> 0 | F45: =Measures!AY15 ->  | G45: =Measures!AZ15 -> Building Owner | I45: =Measures!#REF! ->  | O45: =Measures!AX15 ->  | P45: =Measures!AW15 ->  | Q45: =Measures!AZ15 -> Building Owner
A46: Native Village of Kanatak | B46: Kanatak | C46: Commercial Building Energy Efficiency | D46: =Measures!AU16 -> 0 | E46: =Measures!BA16 -> 0 | F46: =Measures!AY16 ->  | G46: =Measures!AZ16 -> Building Owner | I46: =Measures!#REF! ->  | O46: =Measures!AX16 ->  | P46: =Measures!AW16 ->  | Q46: =Measures!AZ16 -> Building Owner
A47: King Salmon Tribe | B47: King Salmon | C47: Commercial Building Energy Efficiency | D47: =Measures!AU17 ->  | E47: =Measures!BA17 -> 0 | F47: =Measures!AY17 ->  | G47: =Measures!AZ17 -> Building Owner | I47: =Measures!#REF! ->  | O47: =Measures!AX17 ->  | P47: =Measures!AW17 ->  | Q47: =Measures!AZ17 -> Building Owner
A48: Kokhanok Village | B48: Kokhanok | C48: Commercial Building Energy Efficiency | D48: =Measures!AU18 -> 850000 | E48: =Measures!BA18 -> Near Term | F48: =Measures!AY18 -> 226508.0413 | G48: =Measures!AZ18 -> Building Owner | I48: =Measures!#REF! ->  | O48: =Measures!AX18 -> 93378.53643 | P48: =Measures!AW18 -> 9.102734231 | Q48: =Measures!AZ18 -> Building Owner
A49: Native Village of Aleknagik | B49: Aleknagik | C49: Community Scale Solar | D49: =Measures!U4 -> 22947099.58 | E49: =Measures!Z4 -> 0 | F49: =Measures!X4 -> 0 | G49: =Measures!Y4 -> Utility, IPP, Tribe | I49: =Measures!#REF! ->  | O49: =Measures!V4 -> 0 | P49: =Measures!W4 -> 0 | Q49: =Measures!Y4 -> Utility, IPP, Tribe
A50: Chignik Bay Tribal Council (formerly Native Village of Chignik) | B50: Chignik Bay | C50: Community Scale Solar | D50: =Measures!U5 -> 1813946.936 | E50: =Measures!Z5 -> Near Term | F50: =Measures!X5 -> 395493.2412 | G50: =Measures!Y5 -> Utility, IPP, Tribe | I50: =Measures!#REF! ->  | O50: =Measures!V5 -> 21316.11678 | P50: =Measures!W5 -> 85.09743846 | Q50: =Measures!Y5 -> Utility, IPP, Tribe
A51: Native Village of Chignik Lagoon | B51: Chignik Lagoon | C51: Community Scale Solar | D51: =Measures!U6 -> 885074.9587 | E51: =Measures!Z6 -> Near Term | F51: =Measures!X6 -> 233290.327 | G51: =Measures!Y6 -> Utility, IPP, Tribe | I51: =Measures!#REF! ->  | O51: =Measures!V6 -> 31798.14702 | P51: =Measures!W6 -> 27.83416776 | Q51: =Measures!Y6 -> Utility, IPP, Tribe
A52: Chignik Lake Village | B52: Chignik Lake | C52: Community Scale Solar | D52: =Measures!U7 -> 616953.3899 | E52: =Measures!Z7 -> Near Term | F52: =Measures!X7 -> 188440.5708 | G52: =Measures!Y7 -> Utility, IPP, Tribe | I52: =Measures!#REF! ->  | O52: =Measures!V7 -> 27195.87748 | P52: =Measures!W7 -> 22.68554822 | Q52: =Measures!Y7 -> Utility, IPP, Tribe
A53: Village of Clarks Point | B53: Clarks Point | C53: Community Scale Solar | D53: =Measures!U8 -> 916761.2572 | E53: =Measures!Z8 -> Near Term | F53: =Measures!X8 -> 239810.4323 | G53: =Measures!Y8 -> Utility, IPP, Tribe | I53: =Measures!#REF! ->  | O53: =Measures!V8 -> 24034.45312 | P53: =Measures!W8 -> 38.14362875 | Q53: =Measures!Y8 -> Utility, IPP, Tribe
A54: Curyung Tribal Council | B54: Curyung | C54: Community Scale Solar | D54: =Measures!U9 -> 10007199.86 | E54: =Measures!Z9 -> Near Term | F54: =Measures!X9 -> 2973060.878 | G54: =Measures!Y9 -> Utility, IPP, Tribe | I54: =Measures!#REF! ->  | O54: =Measures!V9 -> 252941.9277 | P54: =Measures!W9 -> 39.56323078 | Q54: =Measures!Y9 -> Utility, IPP, Tribe
A55: Egegik Village | B55: Egegik | C55: Community Scale Solar | D55: =Measures!U10 -> 1831484.565 | E55: =Measures!Z10 -> Near Term | F55: =Measures!X10 -> 394927.032 | G55: =Measures!Y10 -> Utility, IPP, Tribe | I55: =Measures!#REF! ->  | O55: =Measures!V10 -> 53301.95576 | P55: =Measures!W10 -> 34.36055092 | Q55: =Measures!Y10 -> Utility, IPP, Tribe
A56: Native Village of Ekwok (formerly Ekwok Village) | B56: Ekwok | C56: Community Scale Solar | D56: =Measures!U11 -> 2622576.637 | E56: =Measures!Z11 -> 0 | F56: =Measures!X11 -> 981334.8415 | G56: =Measures!Y11 -> Utility, IPP, Tribe | I56: =Measures!#REF! ->  | O56: =Measures!V11 -> 0 | P56: =Measures!W11 -> 0 | Q56: =Measures!Y11 -> Utility, IPP, Tribe
A57: Native Village of Ekuk | B57: Ekuk | C57: Community Scale Solar | D57: =Measures!U12 -> 0 | E57: =Measures!Z12 -> 0 | F57: =Measures!X12 -> N/A | G57: =Measures!Y12 -> Utility, IPP, Tribe | I57: =Measures!#REF! ->  | O57: =Measures!V12 -> 0 | P57: =Measures!W12 -> 0 | Q57: =Measures!Y12 -> Utility, IPP, Tribe
A58: Igiugig Village | B58: Igiugig | C58: Community Scale Solar | D58: =Measures!U13 -> 907860.8032 | E58: =Measures!Z13 -> Near Term | F58: =Measures!X13 -> 181197.8207 | G58: =Measures!Y13 -> Utility, IPP, Tribe | I58: =Measures!#REF! ->  | O58: =Measures!V13 -> 61583.04552 | P58: =Measures!W13 -> 14.74205758 | Q58: =Measures!Y13 -> Utility, IPP, Tribe
A59: Village of Iliamna | B59: Iliamna | C59: Community Scale Solar | D59: =Measures!U14 -> 2681050.133 | E59: =Measures!Z14 -> Near Term | F59: =Measures!X14 -> 75631.94531 | G59: =Measures!Y14 -> Utility, IPP, Tribe | I59: =Measures!#REF! ->  | O59: =Measures!V14 -> 12330.19687 | P59: =Measures!W14 -> 217.4377392 | Q59: =Measures!Y14 -> Utility, IPP, Tribe
A60: Ivanof Bay Tribe (formerly Ivanof Bay Tribe and Ivanof Bay Village) | B60: Ivanok Bay | C60: Community Scale Solar | D60: =Measures!U15 -> 0 | E60: =Measures!Z15 -> 0 | F60: =Measures!X15 -> N/A | G60: =Measures!Y15 -> Utility, IPP, Tribe | I60: =Measures!#REF! ->  | O60: =Measures!V15 -> 0 | P60: =Measures!W15 -> 0 | Q60: =Measures!Y15 -> Utility, IPP, Tribe
A61: Native Village of Kanatak | B61: Kanatak | C61: Community Scale Solar | D61: =Measures!U16 -> 0 | E61: =Measures!Z16 -> 0 | F61: =Measures!X16 -> N/A | G61: =Measures!Y16 -> Utility, IPP, Tribe | I61: =Measures!#REF! ->  | O61: =Measures!V16 -> 0 | P61: =Measures!W16 -> 0 | Q61: =Measures!Y16 -> Utility, IPP, Tribe
A62: King Salmon Tribe | B62: King Salmon | C62: Community Scale Solar | D62: =Measures!U17 -> 11810782.11 | E62: =Measures!Z17 -> 0 | F62: =Measures!X17 -> 0 | G62: =Measures!Y17 -> Utility, IPP, Tribe | I62: =Measures!#REF! ->  | O62: =Measures!V17 -> 0 | P62: =Measures!W17 -> 0 | Q62: =Measures!Y17 -> Utility, IPP, Tribe
A63: Kokhanok Village | B63: Kokhanok | C63: Community Scale Solar | D63: =Measures!U18 -> 1044889.08 | E63: =Measures!Z18 -> Near Term | F63: =Measures!X18 -> 312192.6095 | G63: =Measures!Y18 -> Utility, IPP, Tribe | I63: =Measures!#REF! ->  | O63: =Measures!V18 -> 51174.55692 | P63: =Measures!W18 -> 20.41813633 | Q63: =Measures!Y18 -> Utility, IPP, Tribe
A64: Native Village of Aleknagik | B64: Aleknagik | C64: Community Scale Wind | D64: =Measures!AF4 -> N/A | E64: =Measures!AK4 -> N/A | F64: =Measures!AI4 -> N/A | G64: =Measures!AJ4 -> N/A | I64: =Measures!#REF! ->  | O64: =Measures!AH4 -> 0 | P64: =Measures!AG4 -> N/A | Q64: =Measures!AJ4 -> N/A
A65: Chignik Bay Tribal Council (formerly Native Village of Chignik) | B65: Chignik Bay | C65: Community Scale Wind | D65: =Measures!AF5 -> 2805750 | E65: =Measures!AK5 -> Long Term | F65: =Measures!AI5 -> 670958.6495 | G65: =Measures!AJ5 -> Utility, IPP | I65: =Measures!#REF! ->  | O65: =Measures!AH5 -> 61754.88987 | P65: =Measures!AG5 -> 45.43364916 | Q65: =Measures!AJ5 -> Utility, IPP
A66: Native Village of Chignik Lagoon | B66: Chignik Lagoon | C66: Community Scale Wind | D66: =Measures!AF6 -> N/A | E66: =Measures!AK6 -> 0 | F66: =Measures!AI6 -> N/A | G66: =Measures!AJ6 -> Utility, IPP | I66: =Measures!#REF! ->  | O66: =Measures!AH6 -> 0 | P66: =Measures!AG6 -> N/A | Q66: =Measures!AJ6 -> Utility, IPP
A67: Chignik Lake Village | B67: Chignik Lake | C67: Community Scale Wind | D67: =Measures!AF7 -> 1353350 | E67: =Measures!AK7 -> Long Term | F67: =Measures!AI7 -> 490817.4182 | G67: =Measures!AJ7 -> Utility, IPP | I67: =Measures!#REF! ->  | O67: =Measures!AH7 -> 122696.044 | P67: =Measures!AG7 -> 11.03010297 | Q67: =Measures!AJ7 -> Utility, IPP
A68: Village of Clarks Point | B68: Clarks Point | C68: Community Scale Wind | D68: =Measures!AF8 -> 1448900 | E68: =Measures!AK8 -> Long Term | F68: =Measures!AI8 -> 374348.4015 | G68: =Measures!AJ8 -> Utility, IPP | I68: =Measures!#REF! ->  | O68: =Measures!AH8 -> 45726.62865 | P68: =Measures!AG8 -> 31.68613219 | Q68: =Measures!AJ8 -> Utility, IPP
A69: Curyung Tribal Council | B69: Curyung | C69: Community Scale Wind | D69: =Measures!AF9 -> 48636000 | E69: =Measures!AK9 -> Long Term | F69: =Measures!AI9 -> 16244779.15 | G69: =Measures!AJ9 -> Utility, IPP | I69: =Measures!#REF! ->  | O69: =Measures!AH9 -> 1937529.746 | P69: =Measures!AG9 -> 25.10206623 | Q69: =Measures!AJ9 -> Utility, IPP
A70: Egegik Village | B70: Egegik | C70: Community Scale Wind | D70: =Measures!AF10 -> 2786250 | E70: =Measures!AK10 -> Long Term | F70: =Measures!AI10 -> 663020.0628 | G70: =Measures!AJ10 -> Utility, IPP | I70: =Measures!#REF! ->  | O70: =Measures!AH10 -> 101459.1823 | P70: =Measures!AG10 -> 27.46178252 | Q70: =Measures!AJ10 -> Utility, IPP
A71: Native Village of Ekwok (formerly Ekwok Village) | B71: Ekwok | C71: Community Scale Wind | D71: =Measures!AF11 -> N/A | E71: =Measures!AK11 -> 0 | F71: =Measures!AI11 -> N/A | G71: =Measures!AJ11 -> Utility, IPP | I71: =Measures!#REF! ->  | O71: =Measures!AH11 -> 0 | P71: =Measures!AG11 -> N/A | Q71: =Measures!AJ11 -> Utility, IPP
A72: Native Village of Ekuk | B72: Ekuk | C72: Community Scale Wind | D72: =Measures!AF12 -> N/A | E72: =Measures!AK12 -> 0 | F72: =Measures!AI12 -> N/A | G72: =Measures!AJ12 -> Utility, IPP | I72: =Measures!#REF! ->  | O72: =Measures!AH12 -> 0 | P72: =Measures!AG12 -> N/A | Q72: =Measures!AJ12 -> Utility, IPP
A73: Igiugig Village | B73: Igiugig | C73: Community Scale Wind | D73: =Measures!AF13 -> N/A | E73: =Measures!AK13 -> 0 | F73: =Measures!AI13 -> N/A | G73: =Measures!AJ13 -> Utility, IPP | I73: =Measures!#REF! ->  | O73: =Measures!AH13 -> 0 | P73: =Measures!AG13 -> N/A | Q73: =Measures!AJ13 -> Utility, IPP
A74: Village of Iliamna | B74: Iliamna | C74: Community Scale Wind | D74: =Measures!AF14 -> N/A | E74: =Measures!AK14 -> 0 | F74: =Measures!AI14 -> N/A | G74: =Measures!AJ14 -> Utility, IPP | I74: =Measures!#REF! ->  | O74: =Measures!AH14 -> 0 | P74: =Measures!AG14 -> N/A | Q74: =Measures!AJ14 -> Utility, IPP
A75: Ivanof Bay Tribe (formerly Ivanof Bay Tribe and Ivanof Bay Village) | B75: Ivanok Bay | C75: Community Scale Wind | D75: =Measures!AF15 -> N/A | E75: =Measures!AK15 -> 0 | F75: =Measures!AI15 -> N/A | G75: =Measures!AJ15 -> Utility, IPP | I75: =Measures!#REF! ->  | O75: =Measures!AH15 -> 0 | P75: =Measures!AG15 -> N/A | Q75: =Measures!AJ15 -> Utility, IPP
A76: Native Village of Kanatak | B76: Kanatak | C76: Community Scale Wind | D76: =Measures!AF16 -> N/A | E76: =Measures!AK16 -> 0 | F76: =Measures!AI16 -> N/A | G76: =Measures!AJ16 -> Utility, IPP | I76: =Measures!#REF! ->  | O76: =Measures!AH16 -> 0 | P76: =Measures!AG16 -> N/A | Q76: =Measures!AJ16 -> Utility, IPP
A77: King Salmon Tribe | B77: King Salmon | C77: Community Scale Wind | D77: =Measures!AF17 -> 45175500 | E77: =Measures!AK17 -> 0 | F77: =Measures!AI17 -> 0 | G77: =Measures!AJ17 -> Utility, IPP | I77: =Measures!#REF! ->  | O77: =Measures!AH17 -> 0 | P77: =Measures!AG17 -> 0 | Q77: =Measures!AJ17 -> Utility, IPP
A78: Kokhanok Village | B78: Kokhanok | C78: Community Scale Wind | D78: =Measures!AF18 ->  | E78: =Measures!AK18 -> Long Term | F78: =Measures!AI18 -> 1076473.965 | G78: =Measures!AJ18 -> Utility, IPP | I78: =Measures!#REF! ->  | O78: =Measures!AH18 -> 222022.5865 | P78: =Measures!AG18 ->  | Q78: =Measures!AJ18 -> Utility, IPP
A79: Native Village of Aleknagik | B79: Aleknagik | C79: Electric Utility Upgrades - Line Loss | D79: =Measures!BJ4 -> 75000 | E79: =Measures!BP4 -> 0 | F79: =Measures!BN4 -> N/A | G79: =Measures!BO4 -> N/A | I79: =Measures!#REF! ->  | O79: =Measures!BM4 -> N/A | P79: =Measures!BL4 -> N/A | Q79: =Measures!BO4 -> N/A
A80: Chignik Bay Tribal Council (formerly Native Village of Chignik) | B80: Chignik Bay | C80: Electric Utility Upgrades - Line Loss | D80: =Measures!BJ5 -> N/A | E80: =Measures!BP5 -> 0 | F80: =Measures!BN5 -> N/A | G80: =Measures!BO5 -> N/A | I80: =Measures!#REF! ->  | O80: =Measures!BM5 -> N/A | P80: =Measures!BL5 -> N/A | Q80: =Measures!BO5 -> N/A
A81: Native Village of Chignik Lagoon | B81: Chignik Lagoon | C81: Electric Utility Upgrades - Line Loss | D81: =Measures!BJ6 -> 75000 | E81: =Measures!BP6 -> Near Term | F81: =Measures!BN6 -> 46658.06539 | G81: =Measures!BO6 -> Utility | I81: =Measures!#REF! ->  | O81: =Measures!BM6 -> 6465.623227 | P81: =Measures!BL6 -> 11.59980985 | Q81: =Measures!BO6 -> Utility
A82: Chignik Lake Village | B82: Chignik Lake | C82: Electric Utility Upgrades - Line Loss | D82: =Measures!BJ7 -> 0 | E82: =Measures!BP7 -> 0 | F82: =Measures!BN7 -> N/A | G82: =Measures!BO7 -> Utility | I82: =Measures!#REF! ->  | O82: =Measures!BM7 -> N/A | P82: =Measures!BL7 -> N/A | Q82: =Measures!BO7 -> Utility
A83: Village of Clarks Point | B83: Clarks Point | C83: Electric Utility Upgrades - Line Loss | D83: =Measures!BJ8 -> 75000 | E83: =Measures!BP8 -> Near Term | F83: =Measures!BN8 -> 47962.08646 | G83: =Measures!BO8 -> Utility | I83: =Measures!#REF! ->  | O83: =Measures!BM8 -> 15782.62422 | P83: =Measures!BL8 -> 4.752061442 | Q83: =Measures!BO8 -> Utility
A84: Curyung Tribal Council | B84: Curyung | C84: Electric Utility Upgrades - Line Loss | D84: =Measures!BJ9 -> N/A | E84: =Measures!BP9 -> 0 | F84: =Measures!BN9 -> N/A | G84: =Measures!BO9 -> N/A | I84: =Measures!#REF! ->  | O84: =Measures!BM9 -> N/A | P84: =Measures!BL9 -> N/A | Q84: =Measures!BO9 -> N/A
A85: Egegik Village | B85: Egegik | C85: Electric Utility Upgrades - Line Loss | D85: =Measures!BJ10 -> 75000 | E85: =Measures!BP10 -> Near Term | F85: =Measures!BN10 -> 78985.40639 | G85: =Measures!BO10 -> Utility | I85: =Measures!#REF! ->  | O85: =Measures!BM10 -> 2309.751416 | P85: =Measures!BL10 -> 32.47102674 | Q85: =Measures!BO10 -> Utility
A86: Native Village of Ekwok (formerly Ekwok Village) | B86: Ekwok | C86: Electric Utility Upgrades - Line Loss | D86: =Measures!BJ11 -> 0 | E86: =Measures!BP11 -> 0 | F86: =Measures!BN11 -> N/A | G86: =Measures!BO11 -> Utility | I86: =Measures!#REF! ->  | O86: =Measures!BM11 -> N/A | P86: =Measures!BL11 -> N/A | Q86: =Measures!BO11 -> Utility
A87: Native Village of Ekuk | B87: Ekuk | C87: Electric Utility Upgrades - Line Loss | D87: =Measures!BJ12 -> N/A | E87: =Measures!BP12 -> 0 | F87: =Measures!BN12 -> N/A | G87: =Measures!BO12 -> N/A | I87: =Measures!#REF! ->  | O87: =Measures!BM12 -> N/A | P87: =Measures!BL12 -> N/A | Q87: =Measures!BO12 -> N/A
A88: Igiugig Village | B88: Igiugig | C88: Electric Utility Upgrades - Line Loss | D88: =Measures!BJ13 -> 75000 | E88: =Measures!BP13 -> Near Term | F88: =Measures!BN13 -> 36239.56414 | G88: =Measures!BO13 -> Utility | I88: =Measures!#REF! ->  | O88: =Measures!BM13 -> 26275.43275 | P88: =Measures!BL13 -> 2.854377346 | Q88: =Measures!BO13 -> Utility
A89: Village of Iliamna | B89: Iliamna | C89: Electric Utility Upgrades - Line Loss | D89: =Measures!BJ14 -> 75000 | E89: =Measures!BP14 -> Near Term | F89: =Measures!BN14 -> 15126.38906 | G89: =Measures!BO14 -> Utility | I89: =Measures!#REF! ->  | O89: =Measures!BM14 -> 1150.818375 | P89: =Measures!BL14 -> 65.17101363 | Q89: =Measures!BO14 -> Utility
A90: Ivanof Bay Tribe (formerly Ivanof Bay Tribe and Ivanof Bay Village) | B90: Ivanok Bay | C90: Electric Utility Upgrades - Line Loss | D90: =Measures!BJ15 -> N/A | E90: =Measures!BP15 -> 0 | F90: =Measures!BN15 -> N/A | G90: =Measures!BO15 -> N/A | I90: =Measures!#REF! ->  | O90: =Measures!BM15 -> N/A | P90: =Measures!BL15 -> N/A | Q90: =Measures!BO15 -> N/A
A91: Native Village of Kanatak | B91: Kanatak | C91: Electric Utility Upgrades - Line Loss | D91: =Measures!BJ16 -> N/A | E91: =Measures!BP16 -> 0 | F91: =Measures!BN16 -> N/A | G91: =Measures!BO16 -> N/A | I91: =Measures!#REF! ->  | O91: =Measures!BM16 -> N/A | P91: =Measures!BL16 -> N/A | Q91: =Measures!BO16 -> N/A
A92: King Salmon Tribe | B92: King Salmon | C92: Electric Utility Upgrades - Line Loss | D92: =Measures!BJ17 -> 0 | E92: =Measures!BP17 -> 0 | F92: =Measures!BN17 -> N/A | G92: =Measures!BO17 -> N/A | I92: =Measures!#REF! ->  | O92: =Measures!BM17 -> N/A | P92: =Measures!BL17 -> N/A | Q92: =Measures!BO17 -> N/A
A93: Kokhanok Village | B93: Kokhanok | C93: Electric Utility Upgrades - Line Loss | D93: =Measures!BJ18 -> 75000 | E93: =Measures!BP18 -> Near Term | F93: =Measures!BN18 -> 64764.98669 | G93: =Measures!BO18 -> Utility | I93: =Measures!#REF! ->  | O93: =Measures!BM18 -> 13801.1446 | P93: =Measures!BL18 -> 5.434331873 | Q93: =Measures!BO18 -> Utility
A94: Native Village of Aleknagik | B94: Aleknagik | C94: Electric Utility Efficiency Upgrades - Gen Sets & Controls | D94: =Measures!BQ4 -> N/A | E94: =Measures!BW4 -> 0 | F94: =Measures!BU4 ->  | G94: =Measures!BV4 -> Utility | I94: =Measures!#REF! ->  | O94: =Measures!BT4 -> N/A | P94: =Measures!BS4 -> N/A | Q94: =Measures!BV4 -> Utility
A95: Chignik Bay Tribal Council (formerly Native Village of Chignik) | B95: Chignik Bay | C95: Electric Utility Efficiency Upgrades - Gen Sets & Controls | D95: =Measures!BQ5 -> 1160000 | E95: =Measures!BW5 -> Near Term | F95: =Measures!BU5 -> 1065948.45 | G95: =Measures!BV5 -> Utility | I95: =Measures!#REF! ->  | O95: =Measures!BT5 -> 13601.71261 | P95: =Measures!BS5 -> 85.28337812 | Q95: =Measures!BV5 -> Utility
A96: Native Village of Chignik Lagoon | B96: Chignik Lagoon | C96: Electric Utility Efficiency Upgrades - Gen Sets & Controls | D96: =Measures!BQ6 -> 1185000 | E96: =Measures!BW6 -> Near Term | F96: =Measures!BU6 -> 698204.6214 | G96: =Measures!BV6 -> Utility | I96: =Measures!#REF! ->  | O96: =Measures!BT6 -> 10826.51196 | P96: =Measures!BS6 -> 109.4535345 | Q96: =Measures!BV6 -> Utility
A97: Chignik Lake Village | B97: Chignik Lake | C97: Electric Utility Efficiency Upgrades - Gen Sets & Controls | D97: =Measures!BQ7 -> 1115000 | E97: =Measures!BW7 -> Near Term | F97: =Measures!BU7 -> 370599.7893 | G97: =Measures!BV7 -> Utility | I97: =Measures!#REF! ->  | O97: =Measures!BT7 -> 37167.69923 | P97: =Measures!BS7 -> 29.99916657 | Q97: =Measures!BV7 -> Utility
A98: Village of Clarks Point | B98: Clarks Point | C98: Electric Utility Efficiency Upgrades - Gen Sets & Controls | D98: =Measures!BQ8 -> 2085000 | E98: =Measures!BW8 -> Near Term | F98: =Measures!BU8 -> 657765.7571 | G98: =Measures!BV8 -> Utility | I98: =Measures!#REF! ->  | O98: =Measures!BT8 -> 14191.77232 | P98: =Measures!BS8 -> 146.9161112 | Q98: =Measures!BV8 -> Utility
A99: Curyung Tribal Council | B99: Curyung | C99: Electric Utility Efficiency Upgrades - Gen Sets & Controls | D99: =Measures!BQ9 -> 2085000 | E99: =Measures!BW9 -> Near Term | F99: =Measures!BU9 -> 29730608.78 | G99: =Measures!BV9 -> Utility | I99: =Measures!#REF! ->  | O99: =Measures!BT9 -> 0 | P99: =Measures!BS9 -> 0 | Q99: =Measures!BV9 -> Utility
A100: Egegik Village | B100: Egegik | C100: Electric Utility Efficiency Upgrades - Gen Sets & Controls | D100: =Measures!BQ10 -> 1010000 | E100: =Measures!BW10 -> Near Term | F100: =Measures!BU10 -> 1118019.621 | G100: =Measures!BV10 -> Utility | I100: =Measures!#REF! ->  | O100: =Measures!BT10 -> 26777.8873 | P100: =Measures!BS10 -> 37.71768806 | Q100: =Measures!BV10 -> Utility
A101: Native Village of Ekwok (formerly Ekwok Village) | B101: Ekwok | C101: Electric Utility Efficiency Upgrades - Gen Sets & Controls | D101: =Measures!BQ11 -> N/A | E101: =Measures!BW11 -> 0 | F101: =Measures!BU11 ->  | G101: =Measures!BV11 -> Utility | I101: =Measures!#REF! ->  | O101: =Measures!BT11 -> N/A | P101: =Measures!BS11 -> N/A | Q101: =Measures!BV11 -> Utility
A102: Native Village of Ekuk | B102: Ekuk | C102: Electric Utility Efficiency Upgrades - Gen Sets & Controls | D102: =Measures!BQ12 -> N/A | E102: =Measures!BW12 -> 0 | F102: =Measures!BU12 ->  | G102: =Measures!BV12 -> Utility | I102: =Measures!#REF! ->  | O102: =Measures!BT12 -> N/A | P102: =Measures!BS12 -> N/A | Q102: =Measures!BV12 -> Utility
A103: Igiugig Village | B103: Igiugig | C103: Electric Utility Efficiency Upgrades - Gen Sets & Controls | D103: =Measures!BQ13 -> 305004 | E103: =Measures!BW13 -> Near Term | F103: =Measures!BU13 -> 497129.5929 | G103: =Measures!BV13 -> Utility | I103: =Measures!#REF! ->  | O103: =Measures!BT13 -> 12299.59759 | P103: =Measures!BS13 -> 24.79788447 | Q103: =Measures!BV13 -> Utility
A104: Village of Iliamna | B104: Iliamna | C104: Electric Utility Efficiency Upgrades - Gen Sets & Controls | D104: =Measures!BQ14 -> 20000 | E104: =Measures!BW14 -> Near Term | F104: =Measures!BU14 -> 81301.07143 | G104: =Measures!BV14 -> Utility | I104: =Measures!#REF! ->  | O104: =Measures!BT14 -> 1242.602679 | P104: =Measures!BS14 -> 16.09524939 | Q104: =Measures!BV14 -> Utility
A105: Ivanof Bay Tribe (formerly Ivanof Bay Tribe and Ivanof Bay Village) | B105: Ivanok Bay | C105: Electric Utility Efficiency Upgrades - Gen Sets & Controls | D105: =Measures!BQ15 -> N/A | E105: =Measures!BW15 -> 0 | F105: =Measures!BU15 ->  | G105: =Measures!BV15 -> Utility | I105: =Measures!#REF! ->  | O105: =Measures!BT15 -> N/A | P105: =Measures!BS15 -> N/A | Q105: =Measures!BV15 -> Utility
A106: Native Village of Kanatak | B106: Kanatak | C106: Electric Utility Efficiency Upgrades - Gen Sets & Controls | D106: =Measures!BQ16 -> N/A | E106: =Measures!BW16 -> 0 | F106: =Measures!BU16 ->  | G106: =Measures!BV16 -> Utility | I106: =Measures!#REF! ->  | O106: =Measures!BT16 -> N/A | P106: =Measures!BS16 -> N/A | Q106: =Measures!BV16 -> Utility
A107: King Salmon Tribe | B107: King Salmon | C107: Electric Utility Efficiency Upgrades - Gen Sets & Controls | D107: =Measures!BQ17 -> N/A | E107: =Measures!BW17 -> 0 | F107: =Measures!BU17 ->  | G107: =Measures!BV17 -> Utility | I107: =Measures!#REF! ->  | O107: =Measures!BT17 -> N/A | P107: =Measures!BS17 -> N/A | Q107: =Measures!BV17 -> Utility
A108: Kokhanok Village | B108: Kokhanok | C108: Electric Utility Efficiency Upgrades - Gen Sets & Controls | D108: =Measures!BQ18 -> 1105000 | E108: =Measures!BW18 -> Near Term | F108: =Measures!BU18 -> 848866.5714 | G108: =Measures!BV18 -> Utility | I108: =Measures!#REF! ->  | O108: =Measures!BT18 -> 31435.79925 | P108: =Measures!BS18 -> 35.15100702 | Q108: =Measures!BV18 -> Utility

Sheet Measures
D1: Source of Data | E1: PCE Data | F1: PCE Data | G1: PCE Data | H1: PCE Data | I1: PCE Data | J1: PCE Data | K1: PCE Data | L1: Estimated - 2.5*Utility Fuel Cost (ie Rule of Thumb) or from Survey | M1: PCE Data | N1: PCE Data | P1: Survey | Q1: Survey | R1: Calculated - Solar Tab | S1: Calculated - Solar Tab | T1: Calculated - Solar Tab | U1: Calculated - Solar Tab | V1: Calculated - Solar Tab | W1: Calculated - Solar Tab | X1: Calculated - Solar Tab | AA1: Survey/AVEC | AB1: Survey/AVEC | AC1: Calculated - Wind Tab | AD1: Calculated - Wind Tab | AE1: Calculated - Wind Tab | AF1: Calculated - Wind Tab | AG1: Calculated - Wind Tab | AH1: Calculated - Wind Tab | AI1: Calculated - Wind Tab
E2: Baseline PCE Data | P2: Solar | AA2: Wind | AL2: Community Buildings EE | AT2: Commercial Buildings EE | BB2: Residential Buildings EE | BJ2: Utility - Line Loss | BQ2: Utility - Infrastructure | BX2: Heat Recovery
B3: Federally Recognized Tribe | C3: Village | D3: Utility | E3: Population | F3: Utility Fuel Price ($/gal) | G3: Utility Diesel Efficiency (kWh/gal) | H3: Utility Line Loss | I3: Utility Total Diesel kWh | J3: Utility Total kWh | K3: Peak Load (kW) | L3: Residential Fuel Price ($/gal) | M3: 2022 Effective Rate for Residences and Community Buildings ($/kWh) | N3: 2022 Utility Rate for Commercial Buildings ($/kWh) | O3: Convert kWh to gal | P3: Existing Utility Scale Solar System? | Q3: Size of existing solar | R3: New solar size (kW) | S3: New solar production (kWh) | T3: Gallons diesel displaced | U3: Capital cost | V3: Cost Savings | W3: Simple payback (years) | X3: GHG Reduction | Y3: Authority to Implement | Z3: Near Term (now-2030)/ Long Term (2030-2050) | AA3: Existing Utility Scale Wind | AB3: Size of existing wind | AC3: New Wind production kWh | AD3: New Wind size kW with Wind to Heat | AE3: Gallons Diesel displaced | AF3: Capital cost - including utility upgrades | AG3: Simple payback | AH3: Cost Savings | AI3: GHG Reduction | AJ3: Authority to Implement | AK3: Near Term (now-2030)/ Long Term (2030-2050) | AL3: Number of community buildings | AM3: Community total cost to implement retrofits | AN3: Gallons Diesel saved | AO3: Simple Payback | AP3: Cost Savings | AQ3: GHG Reduction | AR3: Authority to Implement | AS3: Near Term (now-2030)/ Long Term (2030-2050) | AT3: Number of commercial buildings | AU3: Commercial total cost to implement retrofits | AV3: Gallons Diesel saved | AW3: Simple Payback | AX3: Cost Savings | AY3: GHG Reduction | AZ3: Authority to Implement | BA3: Near Term (now-2030)/ Long Term (2030-2050) | BB3: Number of residences | BC3: Residential Total cost to implement retrofits | BD3: Gallons Diesel Saved | BE3: Simple Payback | BF3: Cost Savings | BG3: GHG Reduction | BH3: Authority to Implement | BI3: Near Term (now-2030)/ Long Term (2030-2050) | BJ3: Estimated Capitol Cost | BK3: Gallons Saved | BL3: Simple Payback | BM3: Cost Savings | BN3: GHG Reduction | BO3: Authority to Implement | BP3: Near Term (now-2030)/ Long Term (2030-2050) | BQ3: Estimated Capitol Cost | BR3: Gallons Diesel Saved | BS3: Simple Payback | BT3: Cost Savings | BU3: GHG Reduction | BV3: Authority to Implement | BW3: Near Term (now-2030)/ Long Term (2030-2050) | BX3: Estimated Capitol Cost | BY3: Gallons Diesel saved | BZ3: Simple Payback | CA3: Cost Savings | CB3: GHG Reduction | CC3: Authority to Implement
B4: Native Village of Aleknagik | C4: Aleknagik | D4: Nushagak Electric and Telephone Cooperative (Intertie with Curyung/Dillingham) | E4: N/A | F4: N/A | G4: N/A | H4: N/A | I4: N/A | J4: N/A | K4: 90 | L4: 6.68 | M4: N/A | N4: N/A | O4: N/A | P4: =Solar!C3 -> No | Q4: =Solar!E3 -> No | R4: =Solar!M3 -> 5630.399895 | S4: =Solar!K3 -> 5923608.6 | T4: =Solar!T3 -> 0 | U4: =Solar!S3 -> 22947099.58 | V4: =Solar!V3 -> 0 | W4: =Solar!W3 -> 0 | X4: =Solar!Y3 -> 0 | Y4: =Solar!Z3 -> Utility, IPP, Tribe | Z4: =Solar!AA3 -> 0 | AA4: =Wind!C4 -> no | AB4: 0 | AC4: =IF(AA4="no",Wind!O4," ") -> N/A | AD4: =IF(AA4="NO",Wind!S4," ") -> N/A | AE4: =IF(AA4="no",Wind!V4," ") -> N/A | AF4: =IF(AA4="no",Wind!AD4," ") -> N/A | AG4: =IF(AA4="no",Wind!AK4," ") -> N/A | AH4: =Wind!AJ4 -> 0 | AI4: =Wind!AN4 -> N/A | AJ4: N/A | AK4: N/A | AL4: ='Community & Other EE'!D3 -> Combined with Dillingham | AM4: ='Community & Other EE'!Z3 -> 0 | AN4: ='Community & Other EE'!W3 -> 0 | AO4: ='Community & Other EE'!AA3 -> 0 | AP4: ='Community & Other EE'!Y3 -> 0 | AQ4: ='Community & Other EE'!X3 -> 0 | AR4: ='Community & Other EE'!AB3 -> City, Tribe | AS4: ='Community & Other EE'!AC3 -> 0 | AT4: ='Community & Other EE'!D37 -> combined with Dillingham | AU4: ='Community & Other EE'!Z37 ->  | AV4: ='Community & Other EE'!W37 ->  | AW4: ='Community & Other EE'!AA37 ->  | AX4: ='Community & Other EE'!Y37 ->  | AY4: ='Community & Other EE'!X37 ->  | AZ4: ='Community & Other EE'!AB37 -> Building Owner | BA4: ='Community & Other EE'!AC37 -> 0 | BB4: ='Residential EE'!B3 -> 42 | BC4: ='Residential EE'!F3 -> N/A | BD4: ='Residential EE'!U3 -> N/A | BE4: ='Residential EE'!Y3 -> N/A | BF4: ='Residential EE'!W3 -> N/A | BG4: ='Residential EE'!V3 -> N/A | BH4: ='Residential EE'!Z3 -> N/A | BI4: ='Residential EE'!AA3 -> 0 | BJ4: ='Utility Line Loss'!G3 -> 75000 | BK4: ='Utility Line Loss'!K3 -> N/A | BL4: ='Utility Line Loss'!P3 -> N/A | BM4: ='Utility Line Loss'!O3 -> N/A | BN4: ='Utility Line Loss'!N3 -> N/A | BO4: ='Utility Line Loss'!Q3 -> N/A | BP4: ='Utility Line Loss'!R3 -> 0 | BQ4: ='Utility Infrastructure'!R4 -> N/A | BR4: ='Utility Infrastructure'!U4 -> N/A | BS4: ='Utility Infrastructure'!W4 -> N/A | BT4: ='Utility Infrastructure'!V4 -> N/A | BU4: ='Utility Infrastructure'!X4-'Utility Infrastructure'!Y4 ->  | BV4: ='Utility Infrastructure'!AA4 -> Utility | BW4: ='Utility Infrastructure'!AB4 -> 0 | BX4: ='Heat Recovery'!S4 -> 0 | BY4: ='Heat Recovery'!P4 -> 0 | BZ4: ='Heat Recovery'!Q4 -> 0 | CA4: ='Heat Recovery'!R4 -> 0 | CB4: ='Heat Recovery'!T4 -> 0
B5: Chignik Bay Tribal Council (formerly Native Village of Chignik) | C5: Chignik Bay | D5: City of Chignik | E5: 92 | F5: 1.21 | G5: 11.32 | H5: 0.042 | I5: 664734 | J5: 664734 | K5: 285 | L5: 5.21 | M5: 0.11 | N5: 0.42 | O5: =I5/G5 -> 58722.08481 | P5: =Solar!C4 -> No | Q5: =Solar!E4 -> No | R5: =Solar!M4 -> 189.5492341 | S5: =Solar!K4 -> 199420.2 | T5: =Solar!T4 -> 17616.62544 | U5: =Solar!S4 -> 1813946.936 | V5: =Solar!V4 -> 21316.11678 | W5: =Solar!W4 -> 85.09743846 | X5: =Solar!Y4 -> 395493.2412 | Y5: =Solar!Z4 -> Utility, IPP, Tribe | Z5: =Solar!AA4 -> Near Term | AA5: =Wind!C5 -> no | AB5: 0 | AC5: =IF(AA5="no",Wind!O5," ") -> 265893.6 | AD5: =IF(AA5="NO",Wind!S5," ") -> 200 | AE5: =IF(AA5="no",Wind!V5," ") -> 23488.83392 | AF5: =IF(AA5="no",Wind!AD5," ") -> 2805750 | AG5: =IF(AA5="no",Wind!AK5," ") -> 45.43364916 | AH5: =Wind!AJ5 -> 61754.88987 | AI5: =Wind!AN5 -> 670958.6495 | AJ5: =Wind!AO5 -> Utility, IPP | AK5: =Wind!AP5 -> Long Term | AL5: ='Community & Other EE'!D4 -> 10 | AM5: ='Community & Other EE'!Z4 -> 500000 | AN5: ='Community & Other EE'!W4 -> 8108.589283 | AO5: ='Community & Other EE'!AA4 -> 13.15517289 | AP5: ='Community & Other EE'!Y4 -> 38007.86231 | AQ5: ='Community & Other EE'!X4 -> 182037.8294 | AR5: ='Community & Other EE'!AB4 -> City, Tribe | AS5: ='Community & Other EE'!AC4 -> Near Term | AT5: ='Community & Other EE'!D38 -> 49 | AU5: ='Community & Other EE'!Z38 -> 2082500 | AV5: ='Community & Other EE'!W38 -> 26535.27529 | AW5: ='Community & Other EE'!AA38 -> 15.21783487 | AX5: ='Community & Other EE'!Y38 -> 136846.0112 | AY5: ='Community & Other EE'!X38 -> 595716.9302 | AZ5: ='Community & Other EE'!AB38 -> Building Owner | BA5: ='Community & Other EE'!AC38 -> Near Term | BB5: ='Residential EE'!B4 -> 47 | BC5: ='Residential EE'!F4 -> 1692000 | BD5: ='Residential EE'!U4 -> 7634.536396 | BE5: ='Residential EE'!Y4 -> 34.38697714 | BF5: ='Residential EE'!W4 -> 49204.674 | BG5: ='Residential EE'!V4 -> 171395.3421 | BH5: ='Residential EE'!Z4 -> Housing Authority, Tribe, City | BI5: ='Residential EE'!AA4 -> Near Term | BJ5: ='Utility Line Loss'!G4 -> N/A | BK5: ='Utility Line Loss'!K4 -> N/A | BL5: ='Utility Line Loss'!P4 -> N/A | BM5: ='Utility Line Loss'!O4 -> N/A | BN5: ='Utility Line Loss'!N4 -> N/A | BO5: ='Utility Line Loss'!Q4 -> N/A | BP5: ='Utility Line Loss'!R4 -> 0 | BQ5: ='Utility Infrastructure'!R5 -> 1160000 | BR5: ='Utility Infrastructure'!U5 -> 11241.08481 | BS5: ='Utility Infrastructure'!W5 -> 85.28337812 | BT5: ='Utility Infrastructure'!V5 -> 13601.71261 | BU5: ='Utility Infrastructure'!X5-'Utility Infrastructure'!Y5 -> 1065948.45 | BV5: ='Utility Infrastructure'!AA5 -> Utility | BW5: ='Utility Infrastructure'!AB5 -> Near Term | BX5: ='Heat Recovery'!S5 -> 2000000 | BY5: ='Heat Recovery'!P5 -> 1174.441696 | BZ5: ='Heat Recovery'!Q5 -> 65.37185466 | CA5: ='Heat Recovery'!R5 -> 6118.841237 | CB5: ='Heat Recovery'!T5 -> 131831.0804
B6: Native Village of Chignik Lagoon | C6: Chignik Lagoon | D6: Chignik Lagoon Power Utility | E6: 86 | F6: 3.06 | G6: 12.57 | H6: 0.121 | I6: 435406 | J6: 435406 | K6: 71 | L6: =F6*2.5 -> 7.65 | M6: 0.28 | N6: 0.58 | O6: =I6/G6 -> 34638.50438 | P6: =Solar!C5 -> No | Q6: =Solar!E5 -> No | R6: =Solar!M5 -> 124.1562397 | S6: =Solar!K5 -> 130621.8 | T6: =Solar!T5 -> 10391.55131 | U6: =Solar!S5 -> 885074.9587 | V6: =Solar!V5 -> 31798.14702 | W6: =Solar!W5 -> 27.83416776 | X6: =Solar!Y5 -> 233290.327 | Y6: =Solar!Z5 -> Utility, IPP, Tribe | Z6: =Solar!AA5 -> Near Term | AA6: =Wind!C6 -> no | AB6: 0 | AC6: =IF(AA6="no",Wind!O6," ") -> N/A | AD6: =IF(AA6="NO",Wind!S6," ") -> N/A | AE6: =IF(AA6="no",Wind!V6," ") -> N/A | AF6: =IF(AA6="no",Wind!AD6," ") -> N/A | AG6: =IF(AA6="no",Wind!AK6," ") -> N/A | AH6: =Wind!AJ6 -> 0 | AI6: =Wind!AN6 -> N/A | AJ6: =Wind!AO6 -> Utility, IPP | AK6: =Wind!AP6 -> 0 | AL6: ='Community & Other EE'!D5 -> 7 | AM6: ='Community & Other EE'!Z5 -> 350000 | AN6: ='Community & Other EE'!W5 -> 5240.932281 | AO6: ='Community & Other EE'!AA5 -> 9.020674022 | AP6: ='Community & Other EE'!Y5 -> 38799.76143 | AQ6: ='Community & Other EE'!X5 -> 117658.9297 | AR6: ='Community & Other EE'!AB5 -> City, Tribe | AS6: ='Community & Other EE'!AC5 -> Near Term | AT6: ='Community & Other EE'!D39 -> 14 | AU6: ='Community & Other EE'!Z39 -> 595000 | AV6: ='Community & Other EE'!W39 -> 7775.233853 | AW6: ='Community & Other EE'!AA39 -> 10.06857654 | AX6: ='Community & Other EE'!Y39 -> 59094.74866 | AY6: ='Community & Other EE'!X39 -> 174554 | AZ6: ='Community & Other EE'!AB39 -> Building Owner | BA6: ='Community & Other EE'!AC39 -> Near Term | BB6: ='Residential EE'!B5 -> 69 | BC6: ='Residential EE'!F5 -> 2484000 | BD6: ='Residential EE'!U5 -> 11331.4323 | BE6: ='Residential EE'!Y5 -> 17.64947603 | BF6: ='Residential EE'!W5 -> 140740.722 | BG6: ='Residential EE'!V5 -> 254390.6551 | BH6: ='Residential EE'!Z5 -> Housing Authority, Tribe, City | BI6: ='Residential EE'!AA5 -> Near Term | BJ6: ='Utility Line Loss'!G5 -> 75000 | BK6: ='Utility Line Loss'!K5 -> 2112.948767 | BL6: ='Utility Line Loss'!P5 -> 11.59980985 | BM6: ='Utility Line Loss'!O5 -> 6465.623227 | BN6: ='Utility Line Loss'!N5 -> 46658.06539 | BO6: ='Utility Line Loss'!Q5 -> Utility | BP6: ='Utility Line Loss'!R5 -> Near Term | BQ6: ='Utility Infrastructure'!R6 -> 1185000 | BR6: ='Utility Infrastructure'!U6 -> 3538.075804 | BS6: ='Utility Infrastructure'!W6 -> 109.4535345 | BT6: ='Utility Infrastructure'!V6 -> 10826.51196 | BU6: ='Utility Infrastructure'!X6-'Utility Infrastructure'!Y6 -> 698204.6214 | BV6: ='Utility Infrastructure'!AA6 -> Utility | BW6: ='Utility Infrastructure'!AB6 -> Near Term | BX6: ='Heat Recovery'!S6 -> 75000 | BY6: ='Heat Recovery'!P6 -> 692.7700875 | BZ6: ='Heat Recovery'!Q6 -> 14.15176802 | CA6: ='Heat Recovery'!R6 -> 5299.691169 | CB6: ='Heat Recovery'!T6 -> 15552.68846
B7: Chignik Lake Village | C7: Chignik Lake* | D7: Chignik Lake Utility | E7: 49 | F7: 3.24 | G7: 8.26 | H7: 0.04 | I7: 231109 | J7: 231109 | K7: 53 | L7: 8.1 | M7: 0.33 | N7: 0.7 | O7: 27979.29782 | P7: =Solar!C6 -> No | Q7: =Solar!E6 -> No | R7: =Solar!M6 -> 65.90084747 | S7: =Solar!K6 -> 69332.7 | T7: =Solar!T6 -> 8393.789346 | U7: =Solar!S6 -> 616953.3899 | V7: =Solar!V6 -> 27195.87748 | W7: =Solar!W6 -> 22.68554822 | X7: =Solar!Y6 -> 188440.5708 | Y7: =Solar!Z6 -> Utility, IPP, Tribe | Z7: =Solar!AA6 -> Near Term | AA7: =Wind!C7 -> no | AB7: 0 | AC7: =IF(AA7="no",Wind!O7," ") -> 92443.6 | AD7: =IF(AA7="NO",Wind!S7," ") -> 200 | AE7: =IF(AA7="no",Wind!V7," ") -> 11191.71913 | AF7: =IF(AA7="no",Wind!AD7," ") -> 1353350 | AG7: =IF(AA7="no",Wind!AK7," ") -> 11.03010297 | AH7: =Wind!AJ7 -> 122696.044 | AI7: =Wind!AN7 -> 490817.4182 | AJ7: =Wind!AO7 -> Utility, IPP | AK7: =Wind!AP7 -> Long Term | AL7: ='Community & Other EE'!D6 -> 9 | AM7: ='Community & Other EE'!Z6 -> 450000 | AN7: ='Community & Other EE'!W6 -> 6663.657748 | AO7: ='Community & Other EE'!AA6 -> 8.618488377 | AP7: ='Community & Other EE'!Y6 -> 52213.33258 | AQ7: ='Community & Other EE'!X6 -> 149599.1164 | AR7: ='Community & Other EE'!AB6 -> City, Tribe | AS7: ='Community & Other EE'!AC6 -> Near Term | AT7: ='Community & Other EE'!D40 -> 6 | AU7: ='Community & Other EE'!Z40 -> 255000 | AV7: ='Community & Other EE'!W40 -> 3570.022989 | AW7: ='Community & Other EE'!AA40 -> 9.340783356 | AX7: ='Community & Other EE'!Y40 -> 27299.63755 | AY7: ='Community & Other EE'!X40 -> 80147.01611 | AZ7: ='Community & Other EE'!AB40 -> Building Owner | BA7: ='Community & Other EE'!AC40 -> Near Term | BB7: ='Residential EE'!B6 -> 43 | BC7: ='Residential EE'!F6 -> 1548000 | BD7: ='Residential EE'!U6 -> 7242.261985 | BE7: ='Residential EE'!Y6 -> 18.77828479 | BF7: ='Residential EE'!W6 -> 82435.644 | BG7: ='Residential EE'!V6 -> 162588.7816 | BH7: ='Residential EE'!Z6 -> Housing Authority, Tribe, City | BI7: ='Residential EE'!AA6 -> Near Term | BJ7: ='Utility Line Loss'!G6 -> 0 | BK7: ='Utility Line Loss'!K6 -> N/A | BL7: ='Utility Line Loss'!P6 -> N/A | BM7: ='Utility Line Loss'!O6 -> N/A | BN7: ='Utility Line Loss'!N6 -> N/A | BO7: ='Utility Line Loss'!Q6 -> Utility | BP7: ='Utility Line Loss'!R6 -> 0 | BQ7: ='Utility Infrastructure'!R7 -> 1115000 | BR7: ='Utility Infrastructure'!U7 -> 11471.51211 | BS7: ='Utility Infrastructure'!W7 -> 29.99916657 | BT7: ='Utility Infrastructure'!V7 -> 37167.69923 | BU7: ='Utility Infrastructure'!X7-'Utility Infrastructure'!Y7 -> 370599.7893 | BV7: ='Utility Infrastructure'!AA7 -> Utility | BW7: ='Utility Infrastructure'!AB7 -> Near Term | BX7: ='Heat Recovery'!S7 -> 50000 | BY7: ='Heat Recovery'!P7 -> 559.5859564 | BZ7: ='Heat Recovery'!Q7 -> 11.03108367 | CA7: ='Heat Recovery'!R7 -> 4532.646247 | CB7: ='Heat Recovery'!T7 -> 12562.70472
B8: Village of Clarks Point | C8: Clarks Point* | D8: Clarks Point Village Council | E8: 59 | F8: 2.25 | G8: 11.52 | H8: 0.257 | I8: 410188 | J8: 410188 | K8: 102 | L8: 5.625 | M8: 0.5 | N8: 0.8 | O8: 35606.59722 | P8: =Solar!C7 -> No | Q8: =Solar!E7 -> No | R8: =Solar!M7 -> 116.9653143 | S8: =Solar!K7 -> 123056.4 | T8: =Solar!T7 -> 10681.97917 | U8: =Solar!S7 -> 916761.2572 | V8: =Solar!V7 -> 24034.45312 | W8: =Solar!W7 -> 38.14362875 | X8: =Solar!Y7 -> 239810.4323 | Y8: =Solar!Z7 -> Utility, IPP, Tribe | Z8: =Solar!AA7 -> Near Term | AA8: =Wind!C8 -> no | AB8: 0 | AC8: =IF(AA8="no",Wind!O8," ") -> 164075.2 | AD8: =IF(AA8="NO",Wind!S8," ") -> 100 | AE8: =IF(AA8="no",Wind!V8," ") -> 14242.63889 | AF8: =IF(AA8="no",Wind!AD8," ") -> 1448900 | AG8: =IF(AA8="no",Wind!AK8," ") -> 31.68613219 | AH8: =Wind!AJ8 -> 45726.62865 | AI8: =Wind!AN8 -> 374348.4015 | AJ8: =Wind!AO8 -> Utility, IPP | AK8: =Wind!AP8 -> Long Term | AL8: ='Community & Other EE'!D7 -> 2 | AM8: ='Community & Other EE'!Z7 -> 100000 | AN8: ='Community & Other EE'!W7 -> 1500.832863 | AO8: ='Community & Other EE'!AA7 -> 11.82770568 | AP8: ='Community & Other EE'!Y7 -> 8454.72509 | AQ8: ='Community & Other EE'!X7 -> 33693.69778 | AR8: ='Community & Other EE'!AB7 -> City, Tribe | AS8: ='Community & Other EE'!AC7 -> Near Term | AT8: ='Community & Other EE'!D41 -> 18 | AU8: ='Community & Other EE'!Z41 -> 765000 | AV8: ='Community & Other EE'!W41 -> 9520.642957 | AW8: ='Community & Other EE'!AA41 -> 13.46830712 | AX8: ='Community & Other EE'!Y41 -> 56800.01155 | AY8: ='Community & Other EE'!X41 -> 213738.4344 | AZ8: ='Community & Other EE'!AB41 -> Building Owner | BA8: ='Community & Other EE'!AC41 -> Near Term | BB8: ='Residential EE'!B7 -> 51 | BC8: ='Residential EE'!F7 -> 1836000 | BD8: ='Residential EE'!U7 -> 8371.430208 | BE8: ='Residential EE'!Y7 -> 25.03981515 | BF8: ='Residential EE'!W7 -> 73323.225 | BG8: ='Residential EE'!V7 -> 187938.6082 | BH8: ='Residential EE'!Z7 -> Housing Authority, Tribe, City | BI8: ='Residential EE'!AA7 -> Near Term | BJ8: ='Utility Line Loss'!G7 -> 75000 | BK8: ='Utility Line Loss'!K7 -> 7014.499653 | BL8: ='Utility Line Loss'!P7 -> 4.752061442 | BM8: ='Utility Line Loss'!O7 -> 15782.62422 | BN8: ='Utility Line Loss'!N7 -> 47962.08646 | BO8: ='Utility Line Loss'!Q7 -> Utility | BP8: ='Utility Line Loss'!R7 -> Near Term | BQ8: ='Utility Infrastructure'!R8 -> 2085000 | BR8: ='Utility Infrastructure'!U8 -> 6307.454365 | BS8: ='Utility Infrastructure'!W8 -> 146.9161112 | BT8: ='Utility Infrastructure'!V8 -> 14191.77232 | BU8: ='Utility Infrastructure'!X8-'Utility Infrastructure'!Y8 -> 657765.7571 | BV8: ='Utility Infrastructure'!AA8 -> Utility | BW8: ='Utility Infrastructure'!AB8 -> Near Term | BX8: ='Heat Recovery'!S8 -> 50000 | BY8: ='Heat Recovery'!P8 -> 712.1319444 | BZ8: ='Heat Recovery'!Q8 -> 12.48208139 | CA8: ='Heat Recovery'!R8 -> 4005.742188 | CB8: ='Heat Recovery'!T8 -> 15987.36215
B9: Curyung Tribal Council | C9: Curyung (Also known as Dillingham) | D9: Nushagak Electric and Telephone Cooperative (Intertie with Curyung/Dillingham) | E9: 2463 | F9: 1.91 | G9: 14.91 | H9: 0.042 | I9: 19745362 | J9: 19745362 | K9: 6480 | L9: =F9*2.5 -> 4.775 | M9: 0.16 | N9: 0.45 | O9: 1324303.286 | P9: =Solar!C8 -> No | Q9: =Solar!E8 -> No | R9: =Solar!M8 -> 1876.799965 | S9: =Solar!K8 -> 1974536.2 | T9: =Solar!T8 -> 132430.3286 | U9: =Solar!S8 -> 10007199.86 | V9: =Solar!V8 -> 252941.9277 | W9: =Solar!W8 -> 39.56323078 | X9: =Solar!Y8 -> 2973060.878 | Y9: =Solar!Z8 -> Utility, IPP, Tribe | Z9: =Solar!AA8 -> Near Term | AA9: =Wind!C9 -> no | AB9: 0 | AC9: =IF(AA9="no",Wind!O9," ") -> 7898144.8 | AD9: =IF(AA9="NO",Wind!S9," ") -> 6000 | AE9: =IF(AA9="no",Wind!V9," ") -> 529721.3146 | AF9: =IF(AA9="no",Wind!AD9," ") -> 48636000 | AG9: =IF(AA9="no",Wind!AK9," ") -> 25.10206623 | AH9: =Wind!AJ9 -> 1937529.746 | AI9: =Wind!AN9 -> 16244779.15 | AJ9: =Wind!AO9 -> Utility, IPP | AK9: =Wind!AP9 -> Long Term | AL9: ='Community & Other EE'!D8 -> 51 | AM9: ='Community & Other EE'!Z8 -> 2550000 | AN9: ='Community & Other EE'!W8 -> 41890.01199 | AO9: ='Community & Other EE'!AA8 -> 13.73047164 | AP9: ='Community & Other EE'!Y8 -> 185718.3108 | AQ9: ='Community & Other EE'!X8 -> 940430.7691 | AR9: ='Community & Other EE'!AB8 -> City, Tribe | AS9: ='Community & Other EE'!AC8 -> Near Term | AT9: ='Community & Other EE'!D42 -> 466 | AU9: ='Community & Other EE'!Z42 -> 19805000 | AV9: ='Community & Other EE'!W42 -> 300247.7686 | AW9: ='Community & Other EE'!AA42 -> 12.51125224 | AX9: ='Community & Other EE'!Y42 -> 1582975.038 | AY9: ='Community & Other EE'!X42 -> 6740562.406 | AZ9: ='Community & Other EE'!AB42 -> Building Owner | BA9: ='Community & Other EE'!AC42 -> Near Term | BB9: ='Residential EE'!B8 -> 1035 | BC9: ='Residential EE'!F8 -> 37260000 | BD9: ='Residential EE'!U8 -> 178185.3709 | BE9: ='Residential EE'!Y8 -> 22.3215239 | BF9: ='Residential EE'!W8 -> 1669240.871 | BG9: ='Residential EE'!V8 -> 4000261.577 | BH9: ='Residential EE'!Z8 -> Housing Authority, Tribe, City | BI9: ='Residential EE'!AA8 -> Near Term | BJ9: ='Utility Line Loss'!G8 -> N/A | BK9: ='Utility Line Loss'!K8 -> N/A | BL9: ='Utility Line Loss'!P8 -> N/A | BM9: ='Utility Line Loss'!O8 -> N/A | BN9: ='Utility Line Loss'!N8 -> N/A | BO9: ='Utility Line Loss'!Q8 -> N/A | BP9: ='Utility Line Loss'!R8 -> 0 | BQ9: ='Utility Infrastructure'!R9 -> 2085000 | BR9: ='Utility Infrastructure'!U9 -> 0 | BS9: ='Utility Infrastructure'!W9 -> 0 | BT9: ='Utility Infrastructure'!V9 -> 0 | BU9: ='Utility Infrastructure'!X9-'Utility Infrastructure'!Y9 -> 29730608.78 | BV9: ='Utility Infrastructure'!AA9 -> Utility | BW9: ='Utility Infrastructure'!AB9 -> Near Term | BX9: ='Heat Recovery'!S9 -> 100000 | BY9: ='Heat Recovery'!P9 -> 26486.06573 | BZ9: ='Heat Recovery'!Q9 -> 0.7906953261 | CA9: ='Heat Recovery'!R9 -> 126470.9638 | CB9: ='Heat Recovery'!T9 -> 594612.1756
B10: Egegik Village | C10: Egegik | D10: Egegik Light and Power | E10: 78 | F10: 3.03 | G10: 11.89 | H10: 0.073 | I10: 697206 | J10: 697206 | K10: 275 | L10: 5 | M10: 0.42 | N10: 0.65 | O10: 58638.01514 | P10: =Solar!C9 -> No | Q10: =Solar!E9 -> No | R10: =Solar!M9 -> 198.8086412 | S10: =Solar!K9 -> 209161.8 | T10: =Solar!T9 -> 17591.40454 | U10: =Solar!S9 -> 1831484.565 | V10: =Solar!V9 -> 53301.95576 | W10: =Solar!W9 -> 34.36055092 | X10: =Solar!Y9 -> 394927.032 | Y10: =Solar!Z9 -> Utility, IPP, Tribe | Z10: =Solar!AA9 -> Near Term | AA10: =Wind!C10 -> no | AB10: 0 | AC10: =IF(AA10="no",Wind!O10," ") -> 278882.4 | AD10: =IF(AA10="NO",Wind!S10," ") -> 200 | AE10: =IF(AA10="no",Wind!V10," ") -> 23455.20606 | AF10: =IF(AA10="no",Wind!AD10," ") -> 2786250 | AG10: =IF(AA10="no",Wind!AK10," ") -> 27.46178252 | AH10: =Wind!AJ10 -> 101459.1823 | AI10: =Wind!AN10 -> 663020.0628 | AJ10: =Wind!AO10 -> Utility, IPP | AK10: =Wind!AP10 -> Long Term | AL10: ='Community & Other EE'!D9 -> 18 | AM10: ='Community & Other EE'!Z9 -> 900000 | AN10: ='Community & Other EE'!W9 -> 13798.68788 | AO10: ='Community & Other EE'!AA9 -> 13.04604006 | AP10: ='Community & Other EE'!Y9 -> 68986.45072 | AQ10: ='Community & Other EE'!X9 -> 309780.543 | AR10: ='Community & Other EE'!AB9 -> City, Tribe | AS10: ='Community & Other EE'!AC9 -> Near Term | AT10: ='Community & Other EE'!D43 -> 27 | AU10: ='Community & Other EE'!Z43 -> 1147500 | AV10: ='Community & Other EE'!W43 -> 15410.50268 | AW10: ='Community & Other EE'!AA43 -> 13.68768983 | AX10: ='Community & Other EE'!Y43 -> 83834.45374 | AY10: ='Community & Other EE'!X43 -> 345965.7852 | AZ10: ='Community & Other EE'!AB43 -> Building Owner | BA10: ='Community & Other EE'!AC43 -> Near Term | BB10: ='Residential EE'!B9 -> 85 | BC10: ='Residential EE'!F9 -> 3060000 | BD10: ='Residential EE'!U9 -> 13258.49622 | BE10: ='Residential EE'!Y9 -> 27.41766973 | BF10: ='Residential EE'!W9 -> 111606.859 | BG10: ='Residential EE'!V9 -> 297653.24 | BH10: ='Residential EE'!Z9 -> Housing Authority, Tribe, City | BI10: ='Residential EE'!AA9 -> Near Term | BJ10: ='Utility Line Loss'!G9 -> 75000 | BK10: ='Utility Line Loss'!K9 -> 762.2941968 | BL10: ='Utility Line Loss'!P9 -> 32.47102674 | BM10: ='Utility Line Loss'!O9 -> 2309.751416 | BN10: ='Utility Line Loss'!N9 -> 78985.40639 | BO10: ='Utility Line Loss'!Q9 -> Utility | BP10: ='Utility Line Loss'!R9 -> Near Term | BQ10: ='Utility Infrastructure'!R10 -> 1010000 | BR10: ='Utility Infrastructure'!U10 -> 8837.586567 | BS10: ='Utility Infrastructure'!W10 -> 37.71768806 | BT10: ='Utility Infrastructure'!V10 -> 26777.8873 | BU10: ='Utility Infrastructure'!X10-'Utility Infrastructure'!Y10 -> 1118019.621 | BV10: ='Utility Infrastructure'!AA10 -> Utility | BW10: ='Utility Infrastructure'!AB10 -> Near Term | BX10: ='Heat Recovery'!S10 -> 75000 | BY10: ='Heat Recovery'!P10 -> 1172.760303 | BZ10: ='Heat Recovery'!Q10 -> 12.79033743 | CA10: ='Heat Recovery'!R10 -> 5863.801514 | CB10: ='Heat Recovery'!T10 -> 26328.4688
B11: Native Village of Ekwok (formerly Ekwok Village) | C11: Ekwok | D11: AVEC / Intertie with New Stuyahok | E11: N/A | F11: =F24 -> 3.14 | G11: N/A | H11: N/A | I11: N/A | J11: N/A | K11: 90 | L11: N/A | M11: N/A | N11: N/A | O11: N/A | P11: =Solar!C10 -> No | Q11: =Solar!E10 -> No | R11: =Solar!M10 -> 549.2691593 | S11: =Solar!K10 -> 577872.9 | T11: =Solar!T10 -> 43712.01967 | U11: =Solar!S10 -> 2622576.637 | V11: =Solar!V10 -> 0 | W11: =Solar!W10 -> 0 | X11: =Solar!Y10 -> 981334.8415 | Y11: =Solar!Z10 -> Utility, IPP, Tribe | Z11: =Solar!AA10 -> 0 | AA11: =Wind!C11 -> no | AB11: 0 | AC11: =IF(AA11="no",Wind!O11," ") -> N/A | AD11: =IF(AA11="NO",Wind!S11," ") -> N/A | AE11: =IF(AA11="no",Wind!V11," ") -> N/A | AF11: =IF(AA11="no",Wind!AD11," ") -> N/A | AG11: =IF(AA11="no",Wind!AK11," ") -> N/A | AH11: =Wind!AJ11 -> 0 | AI11: =Wind!AN11 -> N/A | AJ11: =Wind!AO11 -> Utility, IPP | AK11: =Wind!AP11 -> 0 | AL11: ='Community & Other EE'!D10 -> Combined with New Stuy | AM11: ='Community & Other EE'!Z10 -> 0 | AN11: ='Community & Other EE'!W10 -> 0 | AO11: ='Community & Other EE'!AA10 -> 0 | AP11: ='Community & Other EE'!Y10 -> 0 | AQ11: ='Community & Other EE'!X10 -> 0 | AR11: ='Community & Other EE'!AB10 -> City, Tribe | AS11: ='Community & Other EE'!AC10 -> 0 | AT11: ='Community & Other EE'!D44 -> Combined with New Stuy | AU11: ='Community & Other EE'!Z44 ->  | AV11: ='Community & Other EE'!W44 ->  | AW11: ='Community & Other EE'!AA44 ->  | AX11: ='Community & Other EE'!Y44 ->  | AY11: ='Community & Other EE'!X44 ->  | AZ11: ='Community & Other EE'!AB44 -> Building Owner | BA11: ='Community & Other EE'!AC44 -> 0 | BB11: ='Residential EE'!B10 -> 19 | BC11: ='Residential EE'!F10 -> 684000 | BD11: ='Residential EE'!U10 -> 0 | BE11: ='Residential EE'!Y10 -> N/A | BF11: ='Residential EE'!W10 -> N/A | BG11: ='Residential EE'!V10 -> 0 | BH11: ='Residential EE'!Z10 -> N/A | BI11: ='Residential EE'!AA10 -> 0 | BJ11: ='Utility Line Loss'!G10 -> 0 | BK11: ='Utility Line Loss'!K10 -> N/A | BL11: ='Utility Line Loss'!P10 -> N/A | BM11: ='Utility Line Loss'!O10 -> N/A | BN11: ='Utility Line Loss'!N10 -> N/A | BO11: ='Utility Line Loss'!Q10 -> Utility | BP11: ='Utility Line Loss'!R10 -> 0 | BQ11: ='Utility Infrastructure'!R11 -> N/A | BR11: ='Utility Infrastructure'!U11 -> N/A | BS11: ='Utility Infrastructure'!W11 -> N/A | BT11: ='Utility Infrastructure'!V11 -> N/A | BU11: ='Utility Infrastructure'!X11-'Utility Infrastructure'!Y11 ->  | BV11: ='Utility Infrastructure'!AA11 -> Utility | BW11: ='Utility Infrastructure'!AB11 -> 0 | BX11: ='Heat Recovery'!S11 -> 0 | BY11: ='Heat Recovery'!P11 -> 0 | BZ11: ='Heat Recovery'!Q11 -> 0 | CA11: ='Heat Recovery'!R11 -> 0 | CB11: ='Heat Recovery'!T11 -> 0
B12: Native Village of Ekuk | C12: Ekuk | E12: 0 | F12: N/A | G12: N/A | H12: N/A | I12: N/A | J12: N/A | K12: N/A | L12: N/A | M12: N/A | N12: N/A | O12: N/A | P12: =Solar!C11 -> No | Q12: =Solar!E11 -> No | R12: =Solar!M11 -> 0 | S12: =Solar!K11 -> 0 | T12: =Solar!T11 -> 0 | U12: =Solar!S11 -> 0 | V12: =Solar!V11 -> 0 | W12: =Solar!W11 -> 0 | X12: =Solar!Y11 -> N/A | Y12: =Solar!Z11 -> Utility, IPP, Tribe | Z12: =Solar!AA11 -> 0 | AA12: =Wind!C12 -> no | AB12: 0 | AC12: =IF(AA12="no",Wind!O12," ") -> N/A | AD12: =IF(AA12="NO",Wind!S12," ") -> N/A | AE12: =IF(AA12="no",Wind!V12," ") -> N/A | AF12: =IF(AA12="no",Wind!AD12," ") -> N/A | AG12: =IF(AA12="no",Wind!AK12," ") -> N/A | AH12: =Wind!AJ12 -> 0 | AI12: =Wind!AN12 -> N/A | AJ12: =Wind!AO12 -> Utility, IPP | AK12: =Wind!AP12 -> 0 | AL12: ='Community & Other EE'!D11 -> 0 | AM12: ='Community & Other EE'!Z11 -> 0 | AN12: ='Community & Other EE'!W11 -> 0 | AO12: ='Community & Other EE'!AA11 -> 0 | AP12: ='Community & Other EE'!Y11 -> 0 | AQ12: ='Community & Other EE'!X11 -> 0 | AR12: ='Community & Other EE'!AB11 -> City, Tribe | AS12: ='Community & Other EE'!AC11 -> 0 | AT12: ='Community & Other EE'!D45 -> 0 | AU12: ='Community & Other EE'!Z45 -> 0 | AV12: ='Community & Other EE'!W45 ->  | AW12: ='Community & Other EE'!AA45 ->  | AX12: ='Community & Other EE'!Y45 ->  | AY12: ='Community & Other EE'!X45 ->  | AZ12: ='Community & Other EE'!AB45 -> Building Owner | BA12: ='Community & Other EE'!AC45 -> 0 | BB12: ='Residential EE'!B11 -> 67 | BC12: ='Residential EE'!F11 -> 2412000 | BD12: ='Residential EE'!U11 -> 9299.6 | BE12: ='Residential EE'!Y11 -> 46.10951009 | BF12: ='Residential EE'!W11 -> 52310.25 | BG12: ='Residential EE'!V11 -> 208776.02 | BH12: ='Residential EE'!Z11 -> Housing Authority, Tribe, City | BI12: ='Residential EE'!AA11 -> Near Term | BJ12: ='Utility Line Loss'!G11 -> N/A | BK12: ='Utility Line Loss'!K11 -> N/A | BL12: ='Utility Line Loss'!P11 -> N/A | BM12: ='Utility Line Loss'!O11 -> N/A | BN12: ='Utility Line Loss'!N11 -> N/A | BO12: ='Utility Line Loss'!Q11 -> N/A | BP12: ='Utility Line Loss'!R11 -> 0 | BQ12: ='Utility Infrastructure'!R12 -> N/A | BR12: ='Utility Infrastructure'!U12 -> N/A | BS12: ='Utility Infrastructure'!W12 -> N/A | BT12: ='Utility Infrastructure'!V12 -> N/A | BU12: ='Utility Infrastructure'!X12-'Utility Infrastructure'!Y12 ->  | BV12: ='Utility Infrastructure'!AA12 -> Utility | BW12: ='Utility Infrastructure'!AB12 -> 0 | BX12: ='Heat Recovery'!S12 -> 0 | BY12: ='Heat Recovery'!P12 -> 0 | BZ12: ='Heat Recovery'!Q12 -> 0 | CA12: ='Heat Recovery'!R12 -> 0 | CB12: ='Heat Recovery'!T12 -> 0
B13: Igiugig Village | C13: Igiugig | D13: Igiugig Electric Company | E13: 53 | F13: 7.63 | G13: 13.05 | H13: 0.188 | I13: 310014 | J13: 351096 | K13: 132 | L13: 10 | M13: 0.7 | N13: 0.92 | O13: 23755.86207 | P13: =Solar!C12 -> No | Q13: =Solar!E12 -> No | R13: =Solar!M12 -> 100.1152008 | S13: =Solar!K12 -> 105328.8 | T13: =Solar!T12 -> 8071.172414 | U13: =Solar!S12 -> 907860.8032 | V13: =Solar!V12 -> 61583.04552 | W13: =Solar!W12 -> 14.74205758 | X13: =Solar!Y12 -> 181197.8207 | Y13: =Solar!Z12 -> Utility, IPP, Tribe | Z13: =Solar!AA12 -> Near Term | AA13: =Wind!C13 -> no | AB13: 0 | AC13: =IF(AA13="no",Wind!O13," ") -> N/A | AD13: =IF(AA13="NO",Wind!S13," ") -> N/A | AE13: =IF(AA13="no",Wind!V13," ") -> N/A | AF13: =IF(AA13="no",Wind!AD13," ") -> N/A | AG13: =IF(AA13="no",Wind!AK13," ") -> N/A | AH13: =Wind!AJ13 -> 0 | AI13: =Wind!AN13 -> N/A | AJ13: =Wind!AO13 -> Utility, IPP | AK13: =Wind!AP13 -> 0 | AL13: ='Community & Other EE'!D12 -> 11 | AM13: ='Community & Other EE'!Z12 -> 550000 | AN13: ='Community & Other EE'!W12 -> 8278.119092 | AO13: ='Community & Other EE'!AA12 -> 6.681332953 | AP13: ='Community & Other EE'!Y12 -> 82318.9031 | AQ13: ='Community & Other EE'!X12 -> 185843.7736 | AR13: ='Community & Other EE'!AB12 -> City, Tribe | AS13: ='Community & Other EE'!AC12 -> Near Term | AT13: ='Community & Other EE'!D46 -> 15 | AU13: ='Community & Other EE'!Z46 -> 637500 | AV13: ='Community & Other EE'!W46 -> 7913.241047 | AW13: ='Community & Other EE'!AA46 -> 7.909205727 | AX13: ='Community & Other EE'!Y46 -> 80602.27815 | AY13: ='Community & Other EE'!X46 -> 177652.2615 | AZ13: ='Community & Other EE'!AB46 -> Building Owner | BA13: ='Community & Other EE'!AC46 -> Near Term | BB13: ='Residential EE'!B12 -> 31 | BC13: ='Residential EE'!F12 -> 1116000 | BD13: ='Residential EE'!U12 -> 5011.014559 | BE13: ='Residential EE'!Y12 -> 9.828616927 | BF13: ='Residential EE'!W12 -> 113545.986 | BG13: ='Residential EE'!V12 -> 112497.2769 | BH13: ='Residential EE'!Z12 -> Housing Authority, Tribe, City | BI13: ='Residential EE'!AA12 -> Near Term | BJ13: ='Utility Line Loss'!G12 -> 75000 | BK13: ='Utility Line Loss'!K12 -> 3443.70023 | BL13: ='Utility Line Loss'!P12 -> 2.854377346 | BM13: ='Utility Line Loss'!O12 -> 26275.43275 | BN13: ='Utility Line Loss'!N12 -> 36239.56414 | BO13: ='Utility Line Loss'!Q12 -> Utility | BP13: ='Utility Line Loss'!R12 -> Near Term | BQ13: ='Utility Infrastructure'!R13 -> 305004 | BR13: ='Utility Infrastructure'!U13 -> 1612.004926 | BS13: ='Utility Infrastructure'!W13 -> 24.79788447 | BT13: ='Utility Infrastructure'!V13 -> 12299.59759 | BU13: ='Utility Infrastructure'!X13-'Utility Infrastructure'!Y13 -> 497129.5929 | BV13: ='Utility Infrastructure'!AA13 -> Utility | BW13: ='Utility Infrastructure'!AB13 -> Near Term | BX13: ='Heat Recovery'!S13 -> 50000 | BY13: ='Heat Recovery'!P13 -> 538.0781609 | BZ13: ='Heat Recovery'!Q13 -> 9.292330303 | CA13: ='Heat Recovery'!R13 -> 5380.781609 | CB13: ='Heat Recovery'!T13 -> 12079.85471
B14: Village of Iliamna | C14: Iliamna | D14: I-N-N Electric Cooperative | E14: 446 | F14: 3.66 | G14: 12.8 | H14: 0.088 | I14: 50700 | J14: 3898830 | K14: 778 | L14: 7.1 | M14: 0.37 | N14: 0.64 | O14: 3960.9375 | P14: =Solar!C13 -> No | Q14: =Solar!E13 -> No | R14: =Solar!M13 -> 40.98753322 | S14: =Solar!K13 -> 43122 | T14: =Solar!T13 -> 3368.90625 | U14: =Solar!S13 -> 2681050.133 | V14: =Solar!V13 -> 12330.19687 | W14: =Solar!W13 -> 217.4377392 | X14: =Solar!Y13 -> 75631.94531 | Y14: =Solar!Z13 -> Utility, IPP, Tribe | Z14: =Solar!AA13 -> Near Term | AA14: =Wind!C14 -> no | AB14: 0 | AC14: =IF(AA14="no",Wind!O14," ") -> N/A | AD14: =IF(AA14="NO",Wind!S14," ") -> N/A | AE14: =IF(AA14="no",Wind!V14," ") -> N/A | AF14: =IF(AA14="no",Wind!AD14," ") -> N/A | AG14: =IF(AA14="no",Wind!AK14," ") -> N/A | AH14: =Wind!AJ14 -> 0 | AI14: =Wind!AN14 -> N/A | AJ14: =Wind!AO14 -> Utility, IPP | AK14: =Wind!AP14 -> 0 | AL14: ='Community & Other EE'!D13 -> 15 | AM14: ='Community & Other EE'!Z13 -> 750000 | AN14: ='Community & Other EE'!W13 -> 12578.71522 | AO14: ='Community & Other EE'!AA13 -> 8.872000681 | AP14: ='Community & Other EE'!Y13 -> 84535.61119 | AQ14: ='Community & Other EE'!X13 -> 282392.1568 | AR14: ='Community & Other EE'!AB13 -> City, Tribe | AS14: ='Community & Other EE'!AC13 -> Near Term | AT14: ='Community & Other EE'!D47 -> 109 | AU14: ='Community & Other EE'!Z47 -> 4632500 | AV14: ='Community & Other EE'!W47 -> 66507.37841 | AW14: ='Community & Other EE'!AA47 -> 9.495752534 | AX14: ='Community & Other EE'!Y47 -> 487849.6974 | AY14: ='Community & Other EE'!X47 -> 1493090.645 | AZ14: ='Community & Other EE'!AB47 -> Building Owner | BA14: ='Community & Other EE'!AC47 -> Near Term | BB14: ='Residential EE'!B13 -> 189 | BC14: ='Residential EE'!F13 -> 6804000 | BD14: ='Residential EE'!U13 -> 32578.15313 | BE14: ='Residential EE'!Y13 -> 14.07226997 | BF14: ='Residential EE'!W13 -> 483504.084 | BG14: ='Residential EE'!V13 -> 731379.5377 | BH14: ='Residential EE'!Z13 -> Housing Authority, Tribe, City | BI14: ='Residential EE'!AA13 -> Near Term | BJ14: ='Utility Line Loss'!G13 -> 75000 | BK14: ='Utility Line Loss'!K13 -> 314.43125 | BL14: ='Utility Line Loss'!P13 -> 65.17101363 | BM14: ='Utility Line Loss'!O13 -> 1150.818375 | BN14: ='Utility Line Loss'!N13 -> 15126.38906 | BO14: ='Utility Line Loss'!Q13 -> Utility | BP14: ='Utility Line Loss'!R13 -> Near Term | BQ14: ='Utility Infrastructure'!R14 -> 20000 | BR14: ='Utility Infrastructure'!U14 -> 339.5089286 | BS14: ='Utility Infrastructure'!W14 -> 16.09524939 | BT14: ='Utility Infrastructure'!V14 -> 1242.602679 | BU14: ='Utility Infrastructure'!X14-'Utility Infrastructure'!Y14 -> 81301.07143 | BV14: ='Utility Infrastructure'!AA14 -> Utility | BW14: ='Utility Infrastructure'!AB14 -> Near Term | BX14: ='Heat Recovery'!S14 -> 100000 | BY14: ='Heat Recovery'!P14 -> 6091.921875 | BZ14: ='Heat Recovery'!Q14 -> 2.311997319 | CA14: ='Heat Recovery'!R14 -> 43252.64531 | CB14: ='Heat Recovery'!T14 -> 136763.6461
B15: Ivanof Bay Tribe (formerly Ivanof Bay Tribe and Ivanof Bay Village) | C15: Ivanof Bay | E15: N/A | F15: N/A | G15: N/A | H15: N/A | I15: N/A | J15: N/A | K15: N/A | L15: N/A | M15: N/A | N15: N/A | O15: N/A | P15: =Solar!C14 -> No | Q15: =Solar!E14 -> No | R15: =Solar!M14 -> 0 | S15: =Solar!K14 -> 0 | T15: =Solar!T14 -> 0 | U15: =Solar!S14 -> 0 | V15: =Solar!V14 -> 0 | W15: =Solar!W14 -> 0 | X15: =Solar!Y14 -> N/A | Y15: =Solar!Z14 -> Utility, IPP, Tribe | Z15: =Solar!AA14 -> 0 | AA15: =Wind!C15 -> no | AB15: 0 | AC15: =IF(AA15="no",Wind!O15," ") -> N/A | AD15: =IF(AA15="NO",Wind!S15," ") -> N/A | AE15: =IF(AA15="no",Wind!V15," ") -> N/A | AF15: =IF(AA15="no",Wind!AD15," ") -> N/A | AG15: =IF(AA15="no",Wind!AK15," ") -> N/A | AH15: =Wind!AJ15 -> 0 | AI15: =Wind!AN15 -> N/A | AJ15: =Wind!AO15 -> Utility, IPP | AK15: =Wind!AP15 -> 0 | AL15: ='Community & Other EE'!D14 -> 0 | AM15: ='Community & Other EE'!Z14 -> 0 | AN15: ='Community & Other EE'!W14 -> 0 | AO15: ='Community & Other EE'!AA14 -> 0 | AP15: ='Community & Other EE'!Y14 -> 0 | AQ15: ='Community & Other EE'!X14 -> 0 | AR15: ='Community & Other EE'!AB14 -> City, Tribe | AS15: ='Community & Other EE'!AC14 -> 0 | AT15: ='Community & Other EE'!D48 -> 0 | AU15: ='Community & Other EE'!Z48 -> 0 | AV15: ='Community & Other EE'!W48 ->  | AW15: ='Community & Other EE'!AA48 ->  | AX15: ='Community & Other EE'!Y48 ->  | AY15: ='Community & Other EE'!X48 ->  | AZ15: ='Community & Other EE'!AB48 -> Building Owner | BA15: ='Community & Other EE'!AC48 -> 0 | BB15: ='Residential EE'!B14 -> 16 | BC15: ='Residential EE'!F14 -> 576000 | BD15: ='Residential EE'!U14 -> 2220.8 | BE15: ='Residential EE'!Y14 -> 31.53385948 | BF15: ='Residential EE'!W14 -> 18266.08 | BG15: ='Residential EE'!V14 -> 49856.96 | BH15: ='Residential EE'!Z14 -> Housing Authority, Tribe, City | BI15: ='Residential EE'!AA14 -> Near Term | BJ15: ='Utility Line Loss'!G14 -> N/A | BK15: ='Utility Line Loss'!K14 -> N/A | BL15: ='Utility Line Loss'!P14 -> N/A | BM15: ='Utility Line Loss'!O14 -> N/A | BN15: ='Utility Line Loss'!N14 -> N/A | BO15: ='Utility Line Loss'!Q14 -> N/A | BP15: ='Utility Line Loss'!R14 -> 0 | BQ15: ='Utility Infrastructure'!R15 -> N/A | BR15: ='Utility Infrastructure'!U15 -> N/A | BS15: ='Utility Infrastructure'!W15 -> N/A | BT15: ='Utility Infrastructure'!V15 -> N/A | BU15: ='Utility Infrastructure'!X15-'Utility Infrastructure'!Y15 ->  | BV15: ='Utility Infrastructure'!AA15 -> Utility | BW15: ='Utility Infrastructure'!AB15 -> 0 | BX15: ='Heat Recovery'!S15 -> 0 | BY15: ='Heat Recovery'!P15 -> 0 | BZ15: ='Heat Recovery'!Q15 -> 0 | CA15: ='Heat Recovery'!R15 -> 0 | CB15: ='Heat Recovery'!T15 -> 0
B16: Native Village of Kanatak | C16: Kanatak | E16: N/A | F16: N/A | G16: N/A | H16: N/A | I16: N/A | J16: N/A | K16: N/A | L16: N/A | M16: N/A | N16: N/A | O16: N/A | P16: =Solar!C15 -> No | Q16: =Solar!E15 -> No | R16: =Solar!M15 -> 0 | S16: =Solar!K15 -> 0 | T16: =Solar!T15 -> 0 | U16: =Solar!S15 -> 0 | V16: =Solar!V15 -> 0 | W16: =Solar!W15 -> 0 | X16: =Solar!Y15 -> N/A | Y16: =Solar!Z15 -> Utility, IPP, Tribe | Z16: =Solar!AA15 -> 0 | AA16: =Wind!C16 -> no | AB16: 0 | AC16: =IF(AA16="no",Wind!O16," ") -> N/A | AD16: =IF(AA16="NO",Wind!S16," ") -> N/A | AE16: =IF(AA16="no",Wind!V16," ") -> N/A | AF16: =IF(AA16="no",Wind!AD16," ") -> N/A | AG16: =IF(AA16="no",Wind!AK16," ") -> N/A | AH16: =Wind!AJ16 -> 0 | AI16: =Wind!AN16 -> N/A | AJ16: =Wind!AO16 -> Utility, IPP | AK16: =Wind!AP16 -> 0 | AL16: ='Community & Other EE'!D15 -> 0 | AM16: ='Community & Other EE'!Z15 -> 0 | AN16: ='Community & Other EE'!W15 -> 0 | AO16: ='Community & Other EE'!AA15 -> 0 | AP16: ='Community & Other EE'!Y15 -> 0 | AQ16: ='Community & Other EE'!X15 -> 0 | AR16: ='Community & Other EE'!AB15 -> City, Tribe | AS16: ='Community & Other EE'!AC15 -> 0 | AT16: ='Community & Other EE'!D49 -> 0 | AU16: ='Community & Other EE'!Z49 -> 0 | AV16: ='Community & Other EE'!W49 ->  | AW16: ='Community & Other EE'!AA49 ->  | AX16: ='Community & Other EE'!Y49 ->  | AY16: ='Community & Other EE'!X49 ->  | AZ16: ='Community & Other EE'!AB49 -> Building Owner | BA16: ='Community & Other EE'!AC49 -> 0 | BB16: ='Residential EE'!B15 -> 0 | BC16: ='Residential EE'!F15 -> N/A | BD16: ='Residential EE'!U15 -> N/A | BE16: ='Residential EE'!Y15 -> N/A | BF16: ='Residential EE'!W15 -> N/A | BG16: ='Residential EE'!V15 -> N/A | BH16: ='Residential EE'!Z15 -> N/A | BI16: ='Residential EE'!AA15 -> 0 | BJ16: ='Utility Line Loss'!G15 -> N/A | BK16: ='Utility Line Loss'!K15 -> N/A | BL16: ='Utility Line Loss'!P15 -> N/A | BM16: ='Utility Line Loss'!O15 -> N/A | BN16: ='Utility Line Loss'!N15 -> N/A | BO16: ='Utility Line Loss'!Q15 -> N/A | BP16: ='Utility Line Loss'!R15 -> 0 | BQ16: ='Utility Infrastructure'!R16 -> N/A | BR16: ='Utility Infrastructure'!U16 -> N/A | BS16: ='Utility Infrastructure'!W16 -> N/A | BT16: ='Utility Infrastructure'!V16 -> N/A | BU16: ='Utility Infrastructure'!X16-'Utility Infrastructure'!Y16 ->  | BV16: ='Utility Infrastructure'!AA16 -> Utility | BW16: ='Utility Infrastructure'!AB16 -> 0 | BX16: ='Heat Recovery'!S16 -> 0 | BY16: ='Heat Recovery'!P16 -> 0 | BZ16: ='Heat Recovery'!Q16 -> 0 | CA16: ='Heat Recovery'!R16 -> 0 | CB16: ='Heat Recovery'!T16 -> 0
B17: King Salmon Tribe | C17: King Salmon | D17: Naknek Electric | E17: N/A | F17: N/A | G17: N/A | H17: N/A | I17: N/A | J17: N/A | K17: 90 | L17: N/A | M17: N/A | N17: N/A | O17: N/A | P17: =Solar!C16 -> No | Q17: =Solar!E16 -> No | R17: =Solar!M16 -> 2327.695528 | S17: =Solar!K16 -> 2448912.6 | T17: =Solar!T16 -> 0 | U17: =Solar!S16 -> 11810782.11 | V17: =Solar!V16 -> 0 | W17: =Solar!W16 -> 0 | X17: =Solar!Y16 -> 0 | Y17: =Solar!Z16 -> Utility, IPP, Tribe | Z17: =Solar!AA16 -> 0 | AA17: =Wind!C17 -> no | AB17: 0 | AC17: =IF(AA17="no",Wind!O17," ") -> 9795650.4 | AD17: =IF(AA17="NO",Wind!S17," ") -> 7500 | AE17: =IF(AA17="no",Wind!V17," ") -> 659195.8546 | AF17: =IF(AA17="no",Wind!AD17," ") -> 45175500 | AG17: =IF(AA17="no",Wind!AK17," ") -> 0 | AH17: =Wind!AJ17 -> 0 | AI17: =Wind!AN17 -> 0 | AJ17: =Wind!AO17 -> Utility, IPP | AK17: =Wind!AP17 -> 0 | AL17: ='Community & Other EE'!D16 -> Combined with Naknek | AM17: ='Community & Other EE'!Z16 -> 0 | AN17: ='Community & Other EE'!W16 -> 0 | AO17: ='Community & Other EE'!AA16 -> 0 | AP17: ='Community & Other EE'!Y16 -> 0 | AQ17: ='Community & Other EE'!X16 -> 0 | AR17: ='Community & Other EE'!AB16 -> City, Tribe | AS17: ='Community & Other EE'!AC16 -> 0 | AT17: ='Community & Other EE'!D50 -> Combined with Naknek | AU17: ='Community & Other EE'!Z50 ->  | AV17: ='Community & Other EE'!W50 ->  | AW17: ='Community & Other EE'!AA50 ->  | AX17: ='Community & Other EE'!Y50 ->  | AY17: ='Community & Other EE'!X50 ->  | AZ17: ='Community & Other EE'!AB50 -> Building Owner | BA17: ='Community & Other EE'!AC50 -> 0 | BB17: ='Residential EE'!B16 -> 126 | BC17: ='Residential EE'!F16 -> N/A | BD17: ='Residential EE'!U16 -> N/A | BE17: ='Residential EE'!Y16 -> N/A | BF17: ='Residential EE'!W16 -> N/A | BG17: ='Residential EE'!V16 -> N/A | BH17: ='Residential EE'!Z16 -> N/A | BI17: ='Residential EE'!AA16 -> 0 | BJ17: ='Utility Line Loss'!G16 -> 0 | BK17: ='Utility Line Loss'!K16 -> N/A | BL17: ='Utility Line Loss'!P16 -> N/A | BM17: ='Utility Line Loss'!O16 -> N/A | BN17: ='Utility Line Loss'!N16 -> N/A | BO17: ='Utility Line Loss'!Q16 -> N/A | BP17: ='Utility Line Loss'!R16 -> 0 | BQ17: ='Utility Infrastructure'!R17 -> N/A | BR17: ='Utility Infrastructure'!U17 -> N/A | BS17: ='Utility Infrastructure'!W17 -> N/A | BT17: ='Utility Infrastructure'!V17 -> N/A | BU17: ='Utility Infrastructure'!X17-'Utility Infrastructure'!Y17 ->  | BV17: ='Utility Infrastructure'!AA17 -> Utility | BW17: ='Utility Infrastructure'!AB17 -> 0 | BX17: ='Heat Recovery'!S17 -> 0 | BY17: ='Heat Recovery'!P17 -> 0 | BZ17: ='Heat Recovery'!Q17 -> 0 | CA17: ='Heat Recovery'!R17 -> 0 | CB17: ='Heat Recovery'!T17 -> 0
B18: Kokhanok Village | C18: Kokhanok* | D18: Kokhanok Village Council | E18: 159 | F18: 3.68 | G18: 11.42 | H18: 0.138 | I18: 529360 | J18: 549084 | K18: 98 | L18: =F18*2.5 -> 9.2 | M18: 0.5 | N18: 0.9 | O18: 46353.76532 | P18: =Solar!C17 -> No | Q18: =Solar!E17 -> No | R18: =Solar!M17 -> 150.94727 | S18: =Solar!K17 -> 158808 | T18: =Solar!T17 -> 13906.1296 | U18: =Solar!S17 -> 1044889.08 | V18: =Solar!V17 -> 51174.55692 | W18: =Solar!W17 -> 20.41813633 | X18: =Solar!Y17 -> 312192.6095 | Y18: =Solar!Z17 -> Utility, IPP, Tribe | Z18: =Solar!AA17 -> Near Term | AA18: =Wind!C18 -> Yes | AB18: =IF(AA18="yes",Wind!E18," ") -> 180 | AC18: =IF(AA18="no",Wind!O18," ") ->  | AD18: =IF(AA18="NO",Wind!S18," ") ->  | AE18: =IF(AA18="no",Wind!V18," ") ->  | AF18: =IF(AA18="no",Wind!AD18," ") ->  | AG18: =IF(AA18="no",Wind!AK18," ") ->  | AH18: =Wind!AJ18 -> 222022.5865 | AI18: =Wind!AN18 -> 1076473.965 | AJ18: =Wind!AO18 -> Utility, IPP | AK18: =Wind!AP18 -> Long Term | AL18: ='Community & Other EE'!D17 -> 9 | AM18: ='Community & Other EE'!Z17 -> 450000 | AN18: ='Community & Other EE'!W17 -> 7018.025536 | AO18: ='Community & Other EE'!AA17 -> 7.236511539 | AP18: ='Community & Other EE'!Y17 -> 62184.65866 | AQ18: ='Community & Other EE'!X17 -> 157554.6733 | AR18: ='Community & Other EE'!AB17 -> City, Tribe | AS18: ='Community & Other EE'!AC17 -> Near Term | AT18: ='Community & Other EE'!D51 -> 20 | AU18: ='Community & Other EE'!Z51 -> 850000 | AV18: ='Community & Other EE'!W51 -> 10089.44505 | AW18: ='Community & Other EE'!AA51 -> 9.102734231 | AX18: ='Community & Other EE'!Y51 -> 93378.53643 | AY18: ='Community & Other EE'!X51 -> 226508.0413 | AZ18: ='Community & Other EE'!AB51 -> Building Owner | BA18: ='Community & Other EE'!AC51 -> Near Term | BB18: ='Residential EE'!B17 -> 56 | BC18: ='Residential EE'!F17 -> 2016000 | BD18: ='Residential EE'!U17 -> 9680.111734 | BE18: ='Residential EE'!Y17 -> 13.29239417 | BF18: ='Residential EE'!W17 -> 151665.68 | BG18: ='Residential EE'!V17 -> 217318.5084 | BH18: ='Residential EE'!Z17 -> Housing Authority, Tribe, City | BI18: ='Residential EE'!AA17 -> Near Term | BJ18: ='Utility Line Loss'!G17 -> 75000 | BK18: ='Utility Line Loss'!K17 -> 3750.311033 | BL18: ='Utility Line Loss'!P17 -> 5.434331873 | BM18: ='Utility Line Loss'!O17 -> 13801.1446 | BN18: ='Utility Line Loss'!N17 -> 64764.98669 | BO18: ='Utility Line Loss'!Q17 -> Utility | BP18: ='Utility Line Loss'!R17 -> Near Term | BQ18: ='Utility Infrastructure'!R18 -> 1105000 | BR18: ='Utility Infrastructure'!U18 -> 8542.336753 | BS18: ='Utility Infrastructure'!W18 -> 35.15100702 | BT18: ='Utility Infrastructure'!V18 -> 31435.79925 | BU18: ='Utility Infrastructure'!X18-'Utility Infrastructure'!Y18 -> 848866.5714 | BV18: ='Utility Infrastructure'!AA18 -> Utility | BW18: ='Utility Infrastructure'!AB18 -> Near Term | BX18: ='Heat Recovery'!S18 -> 75000 | BY18: ='Heat Recovery'!P18 -> 961.6182137 | BZ18: ='Heat Recovery'!Q18 -> 8.477557722 | CA18: ='Heat Recovery'!R18 -> 8846.887566 | CB18: ='Heat Recovery'!T18 -> 21588.3289
B19: New Koliganek Village Council | C19: New Koliganek | D19: New Koliganek Village Council | E19: 194 | F19: 3.14 | G19: 12.56 | H19: 0.078 | I19: 695440 | J19: 695440 | K19: 97 | L19: 6.5 | M19: 0.24 | N19: 0.5 | O19: 55369.42675 | P19: =Solar!C18 -> No | Q19: =Solar!E18 -> No | R19: =Solar!M18 -> 198.3050654 | S19: =Solar!K18 -> 208632 | T19: =Solar!T18 -> 16610.82803 | U19: =Solar!S18 -> 1232370.262 | V19: =Solar!V18 -> 52158 | W19: =Solar!W18 -> 23.62763644 | X19: =Solar!Y18 -> 372913.0892 | Y19: =Solar!Z18 -> Utility, IPP, Tribe | Z19: =Solar!AA18 -> Near Term | AA19: =Wind!C19 -> No | AB19: 0 | AC19: =IF(AA19="no",Wind!O19," ") -> 278176 | AD19: =IF(AA19="NO",Wind!S19," ") -> 200 | AE19: =IF(AA19="no",Wind!V19," ") -> 22147.7707 | AF19: =IF(AA19="no",Wind!AD19," ") -> 2439150 | AG19: =IF(AA19="no",Wind!AK19," ") -> 22.34390536 | AH19: =Wind!AJ19 -> 109163.9962 | AI19: =Wind!AN19 -> 634058.8237 | AJ19: =Wind!AO19 -> Utility, IPP | AK19: =Wind!AP19 -> Long Term | AL19: ='Community & Other EE'!D18 -> 11 | AM19: ='Community & Other EE'!Z18 -> 550000 | AN19: ='Community & Other EE'!W18 -> 8395.234858 | AO19: ='Community & Other EE'!AA18 -> 10.51665958 | AP19: ='Community & Other EE'!Y18 -> 52297.97502 | AQ19: ='Community & Other EE'!X18 -> 188473.0226 | AR19: ='Community & Other EE'!AB18 -> City, Tribe | AS19: ='Community & Other EE'!AC18 -> Near Term | AT19: ='Community & Other EE'!D52 -> 14 | AU19: ='Community & Other EE'!Z52 -> 595000 | AV19: ='Community & Other EE'!W52 -> 7149.854417 | AW19: ='Community & Other EE'!AA52 -> 12.83005509 | AX19: ='Community & Other EE'!Y52 -> 46375.48285 | AY19: ='Community & Other EE'!X52 -> 160514.2317 | AZ19: ='Community & Other EE'!AB52 -> Building Owner | BA19: ='Community & Other EE'!AC52 -> Near Term | BB19: ='Residential EE'!B18 -> 75 | BC19: ='Residential EE'!F18 -> 2700000 | BD19: ='Residential EE'!U18 -> 12462.57962 | BE19: ='Residential EE'!Y18 -> 18.16769314 | BF19: ='Residential EE'!W18 -> 148615.456 | BG19: ='Residential EE'!V18 -> 279784.9124 | BH19: ='Residential EE'!Z18 -> Housing Authority, Tribe, City | BI19: ='Residential EE'!AA18 -> Near Term | BJ19: ='Utility Line Loss'!G18 -> 75000 | BK19: ='Utility Line Loss'!K18 -> 996.6496815 | BL19: ='Utility Line Loss'!P18 -> 23.96564285 | BM19: ='Utility Line Loss'!O18 -> 3129.48 | BN19: ='Utility Line Loss'!N18 -> 74582.61783 | BO19: ='Utility Line Loss'!Q18 -> Utility | BP19: ='Utility Line Loss'!R18 -> Near Term | BQ19: ='Utility Infrastructure'!R19 -> 988000 | BR19: ='Utility Infrastructure'!U19 -> 5695.141037 | BS19: ='Utility Infrastructure'!W19 -> 55.24879533 | BT19: ='Utility Infrastructure'!V19 -> 17882.74286 | BU19: ='Utility Infrastructure'!X19-'Utility Infrastructure'!Y19 -> 1115187.714 | BV19: ='Utility Infrastructure'!AA19 -> Utility | BW19: ='Utility Infrastructure'!AB19 -> Near Term | BX19: ='Heat Recovery'!S19 -> 75000 | BY19: ='Heat Recovery'!P19 -> 1107.388535 | BZ19: ='Heat Recovery'!Q19 -> 10.41952411 | CA19: ='Heat Recovery'!R19 -> 7198.025478 | CB19: ='Heat Recovery'!T19 -> 24860.87261
B20: Levelock Village | C20: Levelock* | D20: Levelock Electrical Coop | E20: 60 | F20: 3.19 | G20: 12.83 | H20: 0.214 | I20: 396175 | J20: 396175 | K20: 106 | L20: 7.975 | M20: 0.12 | N20: 0.85 | O20: 30878.79969 | P20: =Solar!C19 -> No | Q20: =Solar!E19 -> No | R20: =Solar!M19 -> 112.9695003 | S20: =Solar!K19 -> 118852.5 | T20: =Solar!T19 -> 9263.639906 | U20: =Solar!S19 -> 908578.0012 | V20: =Solar!V19 -> 29551.0113 | W20: =Solar!W19 -> 30.74608824 | X20: =Solar!Y19 -> 207968.7159 | Y20: =Solar!Z19 -> Utility, IPP, Tribe | Z20: =Solar!AA19 -> Near Term | AA20: =Wind!C20 -> No | AB20: 0 | AC20: =IF(AA20="no",Wind!O20," ") -> N/A | AD20: =IF(AA20="NO",Wind!S20," ") -> N/A | AE20: =IF(AA20="no",Wind!V20," ") -> N/A | AF20: =IF(AA20="no",Wind!AD20," ") -> N/A | AG20: =IF(AA20="no",Wind!AK20," ") -> 0 | AH20: =Wind!AJ20 -> 0 | AI20: =Wind!AN20 -> N/A | AJ20: =Wind!AO20 -> Utility, IPP | AK20: =Wind!AP20 -> 0 | AL20: ='Community & Other EE'!D19 -> 6 | AM20: ='Community & Other EE'!Z19 -> 300000 | AN20: ='Community & Other EE'!W19 -> 4500.038718 | AO20: ='Community & Other EE'!AA19 -> 8.795004096 | AP20: ='Community & Other EE'!Y19 -> 34110.27405 | AQ20: ='Community & Other EE'!X19 -> 101025.8692 | AR20: ='Community & Other EE'!AB19 -> City, Tribe | AS20: ='Community & Other EE'!AC19 -> Near Term | AT20: ='Community & Other EE'!D53 -> 34 | AU20: ='Community & Other EE'!Z53 -> 1445000 | AV20: ='Community & Other EE'!W53 -> 17406.14743 | AW20: ='Community & Other EE'!AA53 -> 10.16700106 | AX20: ='Community & Other EE'!Y53 -> 142126.4729 | AY20: ='Community & Other EE'!X53 -> 390768.0097 | AZ20: ='Community & Other EE'!AB53 -> Building Owner | BA20: ='Community & Other EE'!AC53 -> Near Term | BB20: ='Residential EE'!B19 -> 38 | BC20: ='Residential EE'!F19 -> 1368000 | BD20: ='Residential EE'!U19 -> 6016.0212 | BE20: ='Residential EE'!Y19 -> 18.89080329 | BF20: ='Residential EE'!W19 -> 72416.19 | BG20: ='Residential EE'!V19 -> 135059.6759 | BH20: ='Residential EE'!Z19 -> Housing Authority, Tribe, City | BI20: ='Residential EE'!AA19 -> Near Term | BJ20: ='Utility Line Loss'!G19 -> 75000 | BK20: ='Utility Line Loss'!K19 -> 4755.335152 | BL20: ='Utility Line Loss'!P19 -> 4.94412508 | BM20: ='Utility Line Loss'!O19 -> 15169.51913 | BN20: ='Utility Line Loss'!N19 -> 41593.74318 | BO20: ='Utility Line Loss'!Q19 -> Utility | BP20: ='Utility Line Loss'!R19 -> Near Term | BQ20: ='Utility Infrastructure'!R20 -> 2085000 | BR20: ='Utility Infrastructure'!U20 -> 2580.585403 | BS20: ='Utility Infrastructure'!W20 -> 253.2778086 | BT20: ='Utility Infrastructure'!V20 -> 8232.067434 | BU20: ='Utility Infrastructure'!X20-'Utility Infrastructure'!Y20 -> 635294.9107 | BV20: ='Utility Infrastructure'!AA20 -> Utility | BW20: ='Utility Infrastructure'!AB20 -> Near Term | BX20: ='Heat Recovery'!S20 -> 50000 | BY20: ='Heat Recovery'!P20 -> 617.5759938 | BZ20: ='Heat Recovery'!Q20 -> 10.15193683 | CA20: ='Heat Recovery'!R20 -> 4925.16855 | CB20: ='Heat Recovery'!T20 -> 13864.58106
B21: Manokotak Village | C21: Manokotak* | D21: Manokotak Power Company | E21: 490 | F21: 2.66 | G21: 3.92 | H21: 0.206 | I21: 343298 | J21: 343298 | K21: 370 | L21: 7.9 | M21: 0.23 | N21: 0.6 | O21: 87576.02041 | P21: =Solar!C20 -> No | Q21: =Solar!E20 -> No | R21: =Solar!M20 -> 97.89159718 | S21: =Solar!K20 -> 102989.4 | T21: =Solar!T20 -> 26272.80612 | U21: =Solar!S20 -> 1613066.389 | V21: =Solar!V20 -> 69885.66429 | W21: =Solar!W20 -> 23.08150613 | X21: =Solar!Y20 -> 589824.4974 | Y21: =Solar!Z20 -> Utility, IPP, Tribe | Z21: =Solar!AA20 -> Near Term | AA21: =Wind!C21 -> No | AB21: 0 | AC21: =IF(AA21="no",Wind!O21," ") -> 137319.2 | AD21: =IF(AA21="NO",Wind!S21," ") -> 100 | AE21: =IF(AA21="no",Wind!V21," ") -> 35030.40816 | AF21: =IF(AA21="no",Wind!AD21," ") -> 1971500 | AG21: =IF(AA21="no",Wind!AK21," ") -> 16.76418556 | AH21: =Wind!AJ21 -> 117601.8956 | AI21: =Wind!AN21 -> 855831.6091 | AJ21: =Wind!AO21 -> Utility, IPP | AK21: =Wind!AP21 -> Long Term | AL21: ='Community & Other EE'!D20 -> 5 | AM21: ='Community & Other EE'!Z20 -> 250000 | AN21: ='Community & Other EE'!W20 -> 4697.074983 | AO21: ='Community & Other EE'!AA20 -> 8.660036019 | AP21: ='Community & Other EE'!Y20 -> 28868.24021 | AQ21: ='Community & Other EE'!X20 -> 105449.3334 | AR21: ='Community & Other EE'!AB20 -> City, Tribe | AS21: ='Community & Other EE'!AC20 -> Near Term | AT21: ='Community & Other EE'!D54 -> 35 | AU21: ='Community & Other EE'!Z54 -> 1487500 | AV21: ='Community & Other EE'!W54 -> 21486.19631 | AW21: ='Community & Other EE'!AA54 -> 10.36660715 | AX21: ='Community & Other EE'!Y54 -> 143489.5698 | AY21: ='Community & Other EE'!X54 -> 482365.1071 | AZ21: ='Community & Other EE'!AB54 -> Building Owner | BA21: ='Community & Other EE'!AC54 -> Near Term | BB21: ='Residential EE'!B20 -> 127 | BC21: ='Residential EE'!F20 -> 4572000 | BD21: ='Residential EE'!U20 -> 33792.26837 | BE21: ='Residential EE'!Y20 -> 14.85330558 | BF21: ='Residential EE'!W20 -> 307810.27 | BG21: ='Residential EE'!V20 -> 758636.4248 | BH21: ='Residential EE'!Z20 -> Housing Authority, Tribe, City | BI21: ='Residential EE'!AA20 -> Near Term | BJ21: ='Utility Line Loss'!G20 -> 75000 | BK21: ='Utility Line Loss'!K20 -> 12786.09898 | BL21: ='Utility Line Loss'!P20 -> 2.205167406 | BM21: ='Utility Line Loss'!O20 -> 34011.02329 | BN21: ='Utility Line Loss'!N20 -> 117964.8995 | BO21: ='Utility Line Loss'!Q20 -> Utility | BP21: ='Utility Line Loss'!R20 -> Near Term | BQ21: ='Utility Infrastructure'!R21 -> 1963000 | BR21: ='Utility Infrastructure'!U21 -> 63054.73469 | BS21: ='Utility Infrastructure'!W21 -> 11.70364015 | BT21: ='Utility Infrastructure'!V21 -> 167725.5943 | BU21: ='Utility Infrastructure'!X21-'Utility Infrastructure'!Y21 -> 550502.8643 | BV21: ='Utility Infrastructure'!AA21 -> Utility | BW21: ='Utility Infrastructure'!AB21 -> Near Term | BX21: ='Heat Recovery'!S21 -> 50000 | BY21: ='Heat Recovery'!P21 -> 1751.520408 | BZ21: ='Heat Recovery'!Q21 -> 3.613497105 | CA21: ='Heat Recovery'!R21 -> 13837.01122 | CB21: ='Heat Recovery'!T21 -> 39321.63316
B22: Naknek Native Village | C22: Naknek | D22: Naknek Electric | E22: 868 | F22: 1.98 | G22: 14.86 | H22: 0.097 | I22: 24489126 | J22: 24489126 | K22: 13969 | L22: 4.95 | M22: 0.25 | N22: 0.58 | O22: 1647989.637 | P22: =Solar!C21 -> No | Q22: =Solar!E21 -> No | R22: =Solar!M21 -> 2327.695528 | S22: =Solar!K21 -> 2448912.6 | T22: =Solar!T21 -> 164798.9637 | U22: =Solar!S21 -> 11810782.11 | V22: =Solar!V21 -> 326301.948 | W22: =Solar!W21 -> 36.1958676 | X22: =Solar!Y21 -> 3699736.734 | Y22: =Solar!Z21 -> Utility, IPP, Tribe | Z22: =Solar!AA21 -> Near Term | AA22: =Wind!C22 -> No | AB22: 0 | AC22: =IF(AA22="no",Wind!O22," ") -> 9795650.4 | AD22: =IF(AA22="NO",Wind!S22," ") -> 7500 | AE22: =IF(AA22="no",Wind!V22," ") -> 659195.8546 | AF22: =IF(AA22="no",Wind!AD22," ") -> 72239550 | AG22: =IF(AA22="no",Wind!AK22," ") -> 28.73245408 | AH22: =Wind!AJ22 -> 2514214.407 | AI22: =Wind!AN22 -> 20282219.36 | AJ22: =Wind!AO22 -> Utility, IPP | AK22: =Wind!AP22 -> Long Term | AL22: ='Community & Other EE'!D21 -> 38 | AM22: ='Community & Other EE'!Z21 -> 1900000 | AN22: ='Community & Other EE'!W21 -> 34443.32514 | AO22: ='Community & Other EE'!AA21 -> 11.80165878 | AP22: ='Community & Other EE'!Y21 -> 160994.3175 | AQ22: ='Community & Other EE'!X21 -> 773252.6494 | AR22: ='Community & Other EE'!AB21 -> City, Tribe | AS22: ='Community & Other EE'!AC21 -> Near Term | AT22: ='Community & Other EE'!D55 -> 443 | AU22: ='Community & Other EE'!Z55 -> 18827500 | AV22: ='Community & Other EE'!W55 -> 305368.1496 | AW22: ='Community & Other EE'!AA55 -> 10.15569649 | AX22: ='Community & Other EE'!Y55 -> 1853885.651 | AY22: ='Community & Other EE'!X55 -> 6855514.958 | AZ22: ='Community & Other EE'!AB55 -> Building Owner | BA22: ='Community & Other EE'!AC55 -> Near Term | BB22: ='Residential EE'!B21 -> 931 | BC22: ='Residential EE'!F21 -> 33516000 | BD22: ='Residential EE'!U21 -> 150240.7341 | BE22: ='Residential EE'!Y21 -> 26.6410329 | BF22: ='Residential EE'!W21 -> 1258059.33 | BG22: ='Residential EE'!V21 -> 3372904.479 | BH22: ='Residential EE'!Z21 -> Housing Authority, Tribe, City | BI22: ='Residential EE'!AA21 -> Near Term | BJ22: ='Utility Line Loss'!G21 -> 75000 | BK22: ='Utility Line Loss'!K21 -> 60975.61655 | BL22: ='Utility Line Loss'!P21 -> 0.621212052 | BM22: ='Utility Line Loss'!O21 -> 120731.7208 | BN22: ='Utility Line Loss'!N21 -> 2219842.041 | BO22: ='Utility Line Loss'!Q21 -> Utility | BP22: ='Utility Line Loss'!R21 -> Near Term | BQ22: ='Utility Infrastructure'!R22 -> 283000 | BR22: ='Utility Infrastructure'!U22 -> 0 | BS22: ='Utility Infrastructure'!W22 -> 0 | BT22: ='Utility Infrastructure'!V22 -> 0 | BU22: ='Utility Infrastructure'!X22-'Utility Infrastructure'!Y22 -> 36997367.34 | BV22: ='Utility Infrastructure'!AA22 -> Utility | BW22: ='Utility Infrastructure'!AB22 -> Near Term | BX22: ='Heat Recovery'!S22 -> 100000 | BY22: ='Heat Recovery'!P22 -> 32959.79273 | BZ22: ='Heat Recovery'!Q22 -> 0.6129292246 | CA22: ='Heat Recovery'!R22 -> 163150.974 | CB22: ='Heat Recovery'!T22 -> 739947.3468
B23: Newhalen Village | C23: Newhalen | D23: I-N-N Electric Cooperative | E23: N/A | F23: N/A | G23: N/A | H23: N/A | I23: N/A | J23: N/A | K23: 90 | L23: N/A | M23: N/A | N23: N/A | O23: N/A | P23: =Solar!C22 -> No | Q23: =Solar!E22 -> No | R23: =Solar!M22 -> 40.98753322 | S23: =Solar!K22 -> 43122 | T23: =Solar!T22 -> 3368.90625 | U23: =Solar!S22 -> 589450.1329 | V23: =Solar!V22 -> 0 | W23: =Solar!W22 -> 0 | X23: =Solar!Y22 -> 75631.94531 | Y23: =Solar!Z22 -> Utility, IPP, Tribe | Z23: =Solar!AA22 -> 0 | AA23: =Wind!C23 -> no | AB23: 0 | AC23: =IF(AA23="no",Wind!O23," ") -> 1559532 | AD23: =IF(AA23="NO",Wind!S23," ") -> 1200 | AE23: =IF(AA23="no",Wind!V23," ") -> 121838.4375 | AF23: =IF(AA23="no",Wind!AD23," ") -> 7375500 | AG23: =IF(AA23="no",Wind!AK23," ") -> 0 | AH23: =Wind!AJ23 -> 0 | AI23: =Wind!AN23 -> 0 | AJ23: =Wind!AO23 -> Utility, IPP | AK23: =Wind!AP23 -> 0 | AL23: ='Community & Other EE'!D22 -> Combined with Iliamna | AM23: ='Community & Other EE'!Z22 -> 0 | AN23: ='Community & Other EE'!W22 -> 0 | AO23: ='Community & Other EE'!AA22 -> 0 | AP23: ='Community & Other EE'!Y22 -> 0 | AQ23: ='Community & Other EE'!X22 -> 0 | AR23: ='Community & Other EE'!AB22 -> City, Tribe | AS23: ='Community & Other EE'!AC22 -> 0 | AT23: ='Community & Other EE'!D56 -> Combined with Iliamna | AU23: ='Community & Other EE'!Z56 ->  | AV23: ='Community & Other EE'!W56 ->  | AW23: ='Community & Other EE'!AA56 ->  | AX23: ='Community & Other EE'!Y56 ->  | AY23: ='Community & Other EE'!X56 ->  | AZ23: ='Community & Other EE'!AB56 -> Building Owner | BA23: ='Community & Other EE'!AC56 -> 0 | BB23: ='Residential EE'!B22 -> 28 | BC23: ='Residential EE'!F22 -> N/A | BD23: ='Residential EE'!U22 -> N/A | BE23: ='Residential EE'!Y22 -> N/A | BF23: ='Residential EE'!W22 -> N/A | BG23: ='Residential EE'!V22 -> N/A | BH23: ='Residential EE'!Z22 -> N/A | BI23: ='Residential EE'!AA22 -> 0 | BJ23: ='Utility Line Loss'!G22 -> 0 | BK23: ='Utility Line Loss'!K22 -> N/A | BL23: ='Utility Line Loss'!P22 -> N/A | BM23: ='Utility Line Loss'!O22 -> N/A | BN23: ='Utility Line Loss'!N22 -> N/A | BO23: ='Utility Line Loss'!Q22 -> N/A | BP23: ='Utility Line Loss'!R22 -> 0 | BQ23: ='Utility Infrastructure'!R23 -> N/A | BR23: ='Utility Infrastructure'!U23 -> N/A | BS23: ='Utility Infrastructure'!W23 -> N/A | BT23: ='Utility Infrastructure'!V23 -> N/A | BU23: ='Utility Infrastructure'!X23-'Utility Infrastructure'!Y23 ->  | BV23: ='Utility Infrastructure'!AA23 -> Utility | BW23: ='Utility Infrastructure'!AB23 -> 0 | BX23: ='Heat Recovery'!S23 -> 0 | BY23: ='Heat Recovery'!P23 -> 0 | BZ23: ='Heat Recovery'!Q23 -> 0 | CA23: ='Heat Recovery'!R23 -> 0 | CB23: ='Heat Recovery'!T23 -> 0
B24: New Stuyahok Village | C24: New Stuyahok | D24: AVEC | E24: =491+100 -> 591 | F24: 3.14 | G24: 13.22 | H24: 0.271 | I24: 1926243 | J24: 1926243 | K24: 90 | L24: =F24*2.5 -> 7.85 | M24: 0.28 | N24: 0.56 | O24: 145706.7322 | P24: =Solar!C23 -> No | Q24: =Solar!E23 -> No | R24: =Solar!M23 -> 549.2691593 | S24: =Solar!K23 -> 577872.9 | T24: =Solar!T23 -> 43712.01967 | U24: =Solar!S23 -> 2622576.637 | V24: =Solar!V23 -> 137255.7418 | W24: =Solar!W23 -> 19.10722716 | X24: =Solar!Y23 -> 981334.8415 | Y24: =Solar!Z23 -> Utility, IPP, Tribe | Z24: =Solar!AA23 -> Near Term | AA24: =Wind!C24 -> no | AB24: 0 | AC24: =IF(AA24="no",Wind!O24," ") -> 770497.2 | AD24: =IF(AA24="NO",Wind!S24," ") -> 600 | AE24: =IF(AA24="no",Wind!V24," ") -> 58282.69289 | AF24: =IF(AA24="no",Wind!AD24," ") -> 4525500 | AG24: =IF(AA24="no",Wind!AK24," ") -> 13.35204989 | AH24: =Wind!AJ24 -> 338936.7203 | AI24: =Wind!AN24 -> 1754383.717 | AJ24: =Wind!AO24 -> Utility, IPP | AK24: =Wind!AP24 -> Long Term | AL24: ='Community & Other EE'!D23 -> 18 | AM24: ='Community & Other EE'!Z23 -> 900000 | AN24: ='Community & Other EE'!W23 -> 14749.91434 | AO24: ='Community & Other EE'!AA23 -> 8.398291699 | AP24: ='Community & Other EE'!Y23 -> 107164.6511 | AQ24: ='Community & Other EE'!X23 -> 331135.5768 | AR24: ='Community & Other EE'!AB23 -> City, Tribe | AS24: ='Community & Other EE'!AC23 -> Near Term | AT24: ='Community & Other EE'!D57 -> 59 | AU24: ='Community & Other EE'!Z57 -> 2507500 | AV24: ='Community & Other EE'!W57 -> 28939.88711 | AW24: ='Community & Other EE'!AA57 -> 11.05273678 | AX24: ='Community & Other EE'!Y57 -> 226866.8882 | AY24: ='Community & Other EE'!X57 -> 649700.4656 | AZ24: ='Community & Other EE'!AB57 -> Building Owner | BA24: ='Community & Other EE'!AC57 -> Near Term | BB24: ='Residential EE'!B23 -> 152 | BC24: ='Residential EE'!F23 -> 5472000 | BD24: ='Residential EE'!U23 -> 27276.08714 | BE24: ='Residential EE'!Y23 -> 12.9640566 | BF24: ='Residential EE'!W23 -> 422090.104 | BG24: ='Residential EE'!V23 -> 612348.1563 | BH24: ='Residential EE'!Z23 -> Housing Authority, Tribe, City | BI24: ='Residential EE'!AA23 -> Near Term | BJ24: ='Utility Line Loss'!G23 -> 75000 | BK24: ='Utility Line Loss'!K23 -> 30744.1205 | BL24: ='Utility Line Loss'!P23 -> 0.7769079073 | BM24: ='Utility Line Loss'!O23 -> 96536.53837 | BN24: ='Utility Line Loss'!N23 -> 196266.9683 | BO24: ='Utility Line Loss'!Q23 -> Utility | BP24: ='Utility Line Loss'!R23 -> Near Term | BQ24: ='Utility Infrastructure'!R24 -> 1623000 | BR24: ='Utility Infrastructure'!U24 -> 8117.94651 | BS24: ='Utility Infrastructure'!W24 -> 63.67114889 | BT24: ='Utility Infrastructure'!V24 -> 25490.35204 | BU24: ='Utility Infrastructure'!X24-'Utility Infrastructure'!Y24 -> 3088868.239 | BV24: ='Utility Infrastructure'!AA24 -> Utility | BW24: ='Utility Infrastructure'!AB24 -> Near Term | BX24: ='Heat Recovery'!S24 -> 100000 | BY24: ='Heat Recovery'!P24 -> 2914.134644 | BZ24: ='Heat Recovery'!Q24 -> 4.371401825 | CA24: ='Heat Recovery'!R24 -> 22875.95696 | CB24: ='Heat Recovery'!T24 -> 65422.32277
B25: Nondalton Village | C25: Nondalton | D25: I-N-N Electric Cooperative | E25: N/A | F25: N/A | G25: N/A | H25: N/A | I25: N/A | J25: N/A | K25: 90 | L25: N/A | M25: N/A | N25: N/A | O25: N/A | P25: =Solar!C24 -> No | Q25: =Solar!E24 -> No | R25: =Solar!M24 -> 0 | S25: =Solar!K24 -> 0 | T25: =Solar!T24 -> N/A | U25: =Solar!S24 -> 425500 | V25: =Solar!V24 -> 0 | W25: =Solar!W24 -> 0 | X25: =Solar!Y24 -> N/A | Y25: =Solar!Z24 -> Utility, IPP, Tribe | Z25: =Solar!AA24 -> 0 | AA25: =Wind!C25 -> no | AB25: 0 | AC25: =IF(AA25="no",Wind!O25," ") -> N/A | AD25: =IF(AA25="NO",Wind!S25," ") -> N/A | AE25: =IF(AA25="no",Wind!V25," ") -> N/A | AF25: =IF(AA25="no",Wind!AD25," ") -> N/A | AG25: =IF(AA25="no",Wind!AK25," ") -> 0 | AH25: =Wind!AJ25 -> 0 | AI25: =Wind!AN25 -> N/A | AJ25: =Wind!AO25 -> Utility, IPP | AK25: =Wind!AP25 -> 0 | AL25: ='Community & Other EE'!D24 -> Combined with Iliamna | AM25: ='Community & Other EE'!Z24 -> 0 | AN25: ='Community & Other EE'!W24 -> 0 | AO25: ='Community & Other EE'!AA24 -> 0 | AP25: ='Community & Other EE'!Y24 -> 0 | AQ25: ='Community & Other EE'!X24 -> 0 | AR25: ='Community & Other EE'!AB24 -> City, Tribe | AS25: ='Community & Other EE'!AC24 -> 0 | AT25: ='Community & Other EE'!D58 -> Combined with Iliamna | AU25: ='Community & Other EE'!Z58 ->  | AV25: ='Community & Other EE'!W58 ->  | AW25: ='Community & Other EE'!AA58 ->  | AX25: ='Community & Other EE'!Y58 ->  | AY25: ='Community & Other EE'!X58 ->  | AZ25: ='Community & Other EE'!AB58 -> Building Owner | BA25: ='Community & Other EE'!AC58 -> 0 | BB25: ='Residential EE'!B24 -> 22 | BC25: ='Residential EE'!F24 -> N/A | BD25: ='Residential EE'!U24 -> N/A | BE25: ='Residential EE'!Y24 -> N/A | BF25: ='Residential EE'!W24 -> N/A | BG25: ='Residential EE'!V24 -> N/A | BH25: ='Residential EE'!Z24 -> N/A | BI25: ='Residential EE'!AA24 -> 0 | BJ25: ='Utility Line Loss'!G24 -> 0 | BK25: ='Utility Line Loss'!K24 -> N/A | BL25: ='Utility Line Loss'!P24 -> N/A | BM25: ='Utility Line Loss'!O24 -> N/A | BN25: ='Utility Line Loss'!N24 -> N/A | BO25: ='Utility Line Loss'!Q24 -> N/A | BP25: ='Utility Line Loss'!R24 -> 0 | BQ25: ='Utility Infrastructure'!R25 -> N/A | BR25: ='Utility Infrastructure'!U25 -> N/A | BS25: ='Utility Infrastructure'!W25 -> N/A | BT25: ='Utility Infrastructure'!V25 -> N/A | BU25: ='Utility Infrastructure'!X25-'Utility Infrastructure'!Y25 ->  | BV25: ='Utility Infrastructure'!AA25 -> Utility | BW25: ='Utility Infrastructure'!AB25 -> 0 | BX25: ='Heat Recovery'!S25 -> 0 | BY25: ='Heat Recovery'!P25 -> 0 | BZ25: ='Heat Recovery'!Q25 -> 0 | CA25: ='Heat Recovery'!R25 -> 0 | CB25: ='Heat Recovery'!T25 -> 0
B26: Pedro Bay Village | C26: Pedro Bay | D26: Pedro Bay Village Council | E26: 34 | F26: 3.68 | G26: 10.73 | H26: 0.085 | I26: 217320 | J26: 217320 | K26: 76 | L26: =F26*2.5 -> 9.2 | M26: 0.31 | N26: 0.82 | O26: 20253.49487 | P26: =Solar!C25 -> No | Q26: =Solar!E25 -> No | R26: =Solar!M25 -> 61.96890719 | S26: =Solar!K25 -> 65196 | T26: =Solar!T25 -> 6076.048462 | U26: =Solar!S25 -> 646075.6288 | V26: =Solar!V25 -> 22359.85834 | W26: =Solar!W25 -> 28.89444195 | X26: =Solar!Y25 -> 136407.288 | Y26: =Solar!Z25 -> Utility, IPP, Tribe | Z26: =Solar!AA25 -> Near Term | AA26: =Wind!C26 -> no | AB26: 0 | AC26: =IF(AA26="no",Wind!O26," ") -> 86928 | AD26: =IF(AA26="NO",Wind!S26," ") -> 100 | AE26: =IF(AA26="no",Wind!V26," ") -> 8101.39795 | AF26: =IF(AA26="no",Wind!AD26," ") -> 1398200 | AG26: =IF(AA26="no",Wind!AK26," ") -> 20.06781906 | AH26: =Wind!AJ26 -> 69673.73961 | AI26: =Wind!AN26 -> 279144.9015 | AJ26: =Wind!AO26 -> Utility, IPP | AK26: =Wind!AP26 -> Long Term | AL26: ='Community & Other EE'!D25 -> 4 | AM26: ='Community & Other EE'!Z25 -> 200000 | AN26: ='Community & Other EE'!W25 -> 3014.430609 | AO26: ='Community & Other EE'!AA25 -> 7.528260757 | AP26: ='Community & Other EE'!Y25 -> 26566.56118 | AQ26: ='Community & Other EE'!X25 -> 67673.96717 | AR26: ='Community & Other EE'!AB25 -> City, Tribe | AS26: ='Community & Other EE'!AC25 -> Near Term | AT26: ='Community & Other EE'!D59 -> 16 | AU26: ='Community & Other EE'!Z59 -> 680000 | AV26: ='Community & Other EE'!W59 -> 8577.43504 | AW26: ='Community & Other EE'!AA59 -> 8.657587007 | AX26: ='Community & Other EE'!Y59 -> 78543.82514 | AY26: ='Community & Other EE'!X59 -> 192563.4166 | AZ26: ='Community & Other EE'!AB59 -> Building Owner | BA26: ='Community & Other EE'!AC59 -> Near Term | BB26: ='Residential EE'!B25 -> 42 | BC26: ='Residential EE'!F25 -> 1512000 | BD26: ='Residential EE'!U25 -> 6308.891705 | BE26: ='Residential EE'!Y25 -> 20.83855216 | BF26: ='Residential EE'!W25 -> 72557.824 | BG26: ='Residential EE'!V25 -> 141634.6188 | BH26: ='Residential EE'!Z25 -> Housing Authority, Tribe, City | BI26: ='Residential EE'!AA25 -> Near Term | BJ26: ='Utility Line Loss'!G25 -> 75000 | BK26: ='Utility Line Loss'!K25 -> 506.3373719 | BL26: ='Utility Line Loss'!P25 -> 40.25070223 | BM26: ='Utility Line Loss'!O25 -> 1863.321528 | BN26: ='Utility Line Loss'!N25 -> 27281.4576 | BO26: ='Utility Line Loss'!Q25 -> Utility | BP26: ='Utility Line Loss'!R25 -> Near Term | BQ26: ='Utility Infrastructure'!R26 -> 1523000 | BR26: ='Utility Infrastructure'!U26 -> 4730.637731 | BS26: ='Utility Infrastructure'!W26 -> 87.48475769 | BT26: ='Utility Infrastructure'!V26 -> 17408.74685 | BU26: ='Utility Infrastructure'!X26-'Utility Infrastructure'!Y26 -> 348488.1429 | BV26: ='Utility Infrastructure'!AA26 -> Utility | BW26: ='Utility Infrastructure'!AB26 -> Near Term | BX26: ='Heat Recovery'!S26 -> 50000 | BY26: ='Heat Recovery'!P26 -> 405.0698975 | BZ26: ='Heat Recovery'!Q26 -> 13.41690074 | CA26: ='Heat Recovery'!R26 -> 3726.643057 | CB26: ='Heat Recovery'!T26 -> 9093.819199
B27: Native Village of Perryville | C27: Perryville | D27: Native Village of Perryville | E27: 98 | F27: 3.29 | G27: 10.88 | H27: 0.0455 | I27: 417888 | J27: 417888 | K27: 101 | L27: 8.225 | M27: 0.95 | N27: 0.95 | O27: 38408.82353 | P27: =Solar!C26 -> No | Q27: =Solar!E26 -> No | R27: =Solar!M26 -> 119.1609732 | S27: =Solar!K26 -> 125366.4 | T27: =Solar!T26 -> 11522.64706 | U27: =Solar!S26 -> 923593.8926 | V27: =Solar!V26 -> 37909.50882 | W27: =Solar!W26 -> 24.36311947 | X27: =Solar!Y26 -> 258683.4265 | Y27: =Solar!Z26 -> Utility, IPP, Tribe | Z27: =Solar!AA26 -> Near Term | AA27: =Wind!C27 -> no | AC27: =IF(AA27="no",Wind!O27," ") -> 104472 | AD27: =IF(AA27="NO",Wind!S27," ") -> 100 | AE27: =IF(AA27="no",Wind!V27," ") -> 9602.205882 | AF27: =IF(AA27="no",Wind!AD27," ") -> 1446950 | AG27: =IF(AA27="no",Wind!AK27," ") -> 26.40535012 | AH27: =Wind!AJ27 -> 54797.60705 | AI27: =Wind!AN27 -> 215569.5221 | AJ27: =Wind!AO27 -> Utility, IPP | AK27: =Wind!AP27 -> 0 | AL27: ='Community & Other EE'!D26 -> 6 | AM27: ='Community & Other EE'!Z26 -> 300000 | AN27: ='Community & Other EE'!W26 -> 4516.749509 | AO27: ='Community & Other EE'!AA26 -> 7.943100977 | AP27: ='Community & Other EE'!Y26 -> 37768.62473 | AQ27: ='Community & Other EE'!X26 -> 101401.0265 | AR27: ='Community & Other EE'!AB26 -> City, Tribe | AS27: ='Community & Other EE'!AC26 -> 0 | AT27: ='Community & Other EE'!D60 -> 21 | AU27: ='Community & Other EE'!Z60 -> 892500 | AV27: ='Community & Other EE'!W60 -> 12242.8914 | AW27: ='Community & Other EE'!AA60 -> 8.474072578 | AX27: ='Community & Other EE'!Y60 -> 105321.2599 | AY27: ='Community & Other EE'!X60 -> 274852.912 | AZ27: ='Community & Other EE'!AB60 -> Building Owner | BA27: ='Community & Other EE'!AC60 -> Near Term | BB27: ='Residential EE'!B26 -> 24 | BC27: ='Residential EE'!F26 -> 864000 | BD27: ='Residential EE'!U26 -> 4361.429779 | BE27: ='Residential EE'!Y26 -> 13.44194738 | BF27: ='Residential EE'!W26 -> 64276.401 | BG27: ='Residential EE'!V26 -> 97914.09855 | BH27: ='Residential EE'!Z26 -> Housing Authority, Tribe, City | BI27: ='Residential EE'!AA26 -> 0 | BJ27: ='Utility Line Loss'!G26 -> N/A | BK27: ='Utility Line Loss'!K26 -> N/A | BL27: ='Utility Line Loss'!P26 -> N/A | BM27: ='Utility Line Loss'!O26 -> N/A | BN27: ='Utility Line Loss'!N26 -> N/A | BO27: ='Utility Line Loss'!Q26 -> N/A | BP27: ='Utility Line Loss'!R26 -> 0 | BQ27: ='Utility Infrastructure'!R27 -> 698000 | BR27: ='Utility Infrastructure'!U27 -> 8559.680672 | BS27: ='Utility Infrastructure'!W27 -> 24.7857441 | BT27: ='Utility Infrastructure'!V27 -> 28161.34941 | BU27: ='Utility Infrastructure'!X27-'Utility Infrastructure'!Y27 -> 670113.2571 | BV27: ='Utility Infrastructure'!AA27 -> Utility | BW27: ='Utility Infrastructure'!AB27 -> 0 | BX27: ='Heat Recovery'!S27 -> 50000 | BY27: ='Heat Recovery'!P27 -> 768.1764706 | BZ27: ='Heat Recovery'!Q27 -> 7.913581824 | CA27: ='Heat Recovery'!R27 -> 6318.251471 | CB27: ='Heat Recovery'!T27 -> 17245.56176
B28: Native Village of Pilot Point | C28: Pilot Point | D28: Pilot Point Electrical | E28: 73 | F28: 2.91 | G28: 10.51 | H28: 0.173 | I28: 482891 | J28: 482891 | K28: 90 | L28: 5.8 | M28: 0.38 | N28: 0.6 | O28: 45945.86108 | P28: =Solar!C27 -> No | Q28: =Solar!E27 -> No | R28: =Solar!M27 -> 137.6966113 | S28: =Solar!K27 -> 144867.3 | T28: =Solar!T27 -> 13783.75833 | U28: =Solar!S27 -> 976286.4451 | V28: =Solar!V27 -> 40110.73673 | W28: =Solar!W27 -> 24.33977844 | X28: =Solar!Y27 -> 309445.3744 | Y28: =Solar!Z27 -> Utility, IPP, Tribe | Z28: =Solar!AA27 -> Near Term | AA28: =Wind!C28 -> no | AB28: 0 | AC28: =IF(AA28="no",Wind!O28," ") -> 193156.4 | AD28: =IF(AA28="NO",Wind!S28," ") -> 200 | AE28: =IF(AA28="no",Wind!V28," ") -> 18378.34443 | AF28: =IF(AA28="no",Wind!AD28," ") -> 2425500 | AG28: =IF(AA28="no",Wind!AK28," ") -> 24.01907216 | AH28: =Wind!AJ28 -> 100982.2521 | AI28: =Wind!AN28 -> 596456.5061 | AJ28: =Wind!AO28 -> Utility, IPP | AK28: =Wind!AP28 -> Long Term | AL28: ='Community & Other EE'!D27 -> 10 | AM28: ='Community & Other EE'!Z27 -> 500000 | AN28: ='Community & Other EE'!W27 -> 7522.023275 | AO28: ='Community & Other EE'!AA27 -> 11.6941057 | AP28: ='Community & Other EE'!Y27 -> 42756.58291 | AQ28: ='Community & Other EE'!X27 -> 168869.4225 | AR28: ='Community & Other EE'!AB27 -> City, Tribe | AS28: ='Community & Other EE'!AC27 -> Near Term | AT28: ='Community & Other EE'!D61 -> 22 | AU28: ='Community & Other EE'!Z61 -> 935000 | AV28: ='Community & Other EE'!W61 -> 11891.90271 | AW28: ='Community & Other EE'!AA61 -> 13.42205844 | AX28: ='Community & Other EE'!Y61 -> 69661.44606 | AY28: ='Community & Other EE'!X61 -> 266973.2158 | AZ28: ='Community & Other EE'!AB61 -> Building Owner | BA28: ='Community & Other EE'!AC61 -> Near Term | BB28: ='Residential EE'!B27 -> 44 | BC28: ='Residential EE'!F27 -> 1584000 | BD28: ='Residential EE'!U27 -> 7511.881256 | BE28: ='Residential EE'!Y27 -> 20.20854813 | BF28: ='Residential EE'!W27 -> 78382.672 | BG28: ='Residential EE'!V27 -> 168641.7342 | BH28: ='Residential EE'!Z27 -> Housing Authority, Tribe, City | BI28: ='Residential EE'!AA27 -> Near Term | BJ28: ='Utility Line Loss'!G27 -> 75000 | BK28: ='Utility Line Loss'!K27 -> 5191.882303 | BL28: ='Utility Line Loss'!P27 -> 4.964133309 | BM28: ='Utility Line Loss'!O27 -> 15108.3775 | BN28: ='Utility Line Loss'!N27 -> 61889.07488 | BO28: ='Utility Line Loss'!Q27 -> Utility | BP28: ='Utility Line Loss'!R27 -> Near Term | BQ28: ='Utility Infrastructure'!R28 -> 1563000 | BR28: ='Utility Infrastructure'!U28 -> 11453.6468 | BS28: ='Utility Infrastructure'!W28 -> 46.89453163 | BT28: ='Utility Infrastructure'!V28 -> 33330.11218 | BU28: ='Utility Infrastructure'!X28-'Utility Infrastructure'!Y28 -> 774350.2107 | BV28: ='Utility Infrastructure'!AA28 -> Utility | BW28: ='Utility Infrastructure'!AB28 -> Near Term | BX28: ='Heat Recovery'!S28 -> 50000 | BY28: ='Heat Recovery'!P28 -> 918.9172217 | BZ28: ='Heat Recovery'!Q28 -> 9.38135607 | CA28: ='Heat Recovery'!R28 -> 5329.719886 | CB28: ='Heat Recovery'!T28 -> 20629.69163
B29: Native Village of Port Heiden | C29: Port Heiden* | D29: Port Heiden Utilities | E29: 106 | F29: 3.04 | G29: 12.11 | H29: 0.184 | I29: 618080 | J29: 618080 | K29: 118 | L29: 7.6 | M29: 0.33 | N29: 0.65 | O29: 51038.8109 | P29: =Solar!C28 -> No | Q29: =Solar!E28 -> No | R29: =Solar!M28 -> 176.2458225 | S29: =Solar!K28 -> 185424 | T29: =Solar!T28 -> 15311.64327 | U29: =Solar!S28 -> 1185083.29 | V29: =Solar!V28 -> 46547.39554 | W29: =Solar!W28 -> 25.45971212 | X29: =Solar!Y28 -> 343746.3914 | Y29: =Solar!Z28 -> Utility, IPP, Tribe | Z29: =Solar!AA28 -> Near Term | AA29: =Wind!C29 -> no | AB29: 0 | AC29: =IF(AA29="no",Wind!O29," ") -> 247232 | AD29: =IF(AA29="NO",Wind!S29," ") -> 200 | AE29: =IF(AA29="no",Wind!V29," ") -> 20415.52436 | AF29: =IF(AA29="no",Wind!AD29," ") -> 2480100 | AG29: =IF(AA29="no",Wind!AK29," ") -> 21.72063909 | AH29: =Wind!AJ29 -> 114181.7232 | AI29: =Wind!AN29 -> 612283.9138 | AJ29: =Wind!AO29 -> Utility, IPP | AK29: =Wind!AP29 -> Long Term | AL29: ='Community & Other EE'!D28 -> 4 | AM29: ='Community & Other EE'!Z28 -> 200000 | AN29: ='Community & Other EE'!W28 -> 3264.084311 | AO29: ='Community & Other EE'!AA28 -> 8.623714266 | AP29: ='Community & Other EE'!Y28 -> 23191.86302 | AQ29: ='Community & Other EE'!X28 -> 73278.69279 | AR29: ='Community & Other EE'!AB28 -> City, Tribe | AS29: ='Community & Other EE'!AC28 -> Near Term | AT29: ='Community & Other EE'!D62 -> 37 | AU29: ='Community & Other EE'!Z62 -> 1572500 | AV29: ='Community & Other EE'!W62 -> 18604.08512 | AW29: ='Community & Other EE'!AA62 -> 11.10261723 | AX29: ='Community & Other EE'!Y62 -> 141633.2715 | AY29: ='Community & Other EE'!X62 -> 417661.7109 | AZ29: ='Community & Other EE'!AB62 -> Building Owner | BA29: ='Community & Other EE'!AC62 -> Near Term | BB29: ='Residential EE'!B28 -> 50 | BC29: ='Residential EE'!F28 -> 1800000 | BD29: ='Residential EE'!U28 -> 8384.797688 | BE29: ='Residential EE'!Y28 -> 16.99181448 | BF29: ='Residential EE'!W28 -> 105933.36 | BG29: ='Residential EE'!V28 -> 188238.7081 | BH29: ='Residential EE'!Z28 -> Housing Authority, Tribe, City | BI29: ='Residential EE'!AA28 -> Near Term | BJ29: ='Utility Line Loss'!G28 -> 75000 | BK29: ='Utility Line Loss'!K28 -> 6328.812552 | BL29: ='Utility Line Loss'!P28 -> 3.898211936 | BM29: ='Utility Line Loss'!O28 -> 19239.59016 | BN29: ='Utility Line Loss'!N28 -> 68749.27828 | BO29: ='Utility Line Loss'!Q28 -> Utility | BP29: ='Utility Line Loss'!R28 -> Near Term | BQ29: ='Utility Infrastructure'!R29 -> 610000 | BR29: ='Utility Infrastructure'!U29 -> 6890.239472 | BS29: ='Utility Infrastructure'!W29 -> 29.12204947 | BT29: ='Utility Infrastructure'!V29 -> 20946.32799 | BU29: ='Utility Infrastructure'!X29-'Utility Infrastructure'!Y29 -> 991135.4286 | BV29: ='Utility Infrastructure'!AA29 -> Utility | BW29: ='Utility Infrastructure'!AB29 -> Near Term | BX29: ='Heat Recovery'!S29 -> 75000 | BY29: ='Heat Recovery'!P29 -> 1020.776218 | BZ29: ='Heat Recovery'!Q29 -> 9.667565602 | CA29: ='Heat Recovery'!R29 -> 7757.899257 | CB29: ='Heat Recovery'!T29 -> 22916.42609
B30: Portage Creek Village (Ohgsenakale) | C30: Portage Creek | E30: N/A | F30: N/A | G30: N/A | H30: N/A | I30: N/A | J30: N/A | K30: 90 | L30: 4.775 | M30: N/A | N30: N/A | O30: N/A | P30: =Solar!C29 -> No | Q30: =Solar!E29 -> No | R30: =Solar!M29 -> 0 | S30: =Solar!K29 -> 0 | T30: =Solar!T29 -> N/A | U30: =Solar!S29 -> 425500 | V30: =Solar!V29 -> 0 | W30: =Solar!W29 -> 0 | X30: =Solar!Y29 -> N/A | Y30: =Solar!Z29 -> Utility, IPP, Tribe | Z30: =Solar!AA29 -> 0 | AA30: =Wind!C30 -> no | AB30: 0 | AC30: =IF(AA30="no",Wind!O30," ") -> N/A | AD30: =IF(AA30="NO",Wind!S30," ") -> N/A | AE30: =IF(AA30="no",Wind!V30," ") -> N/A | AF30: =IF(AA30="no",Wind!AD30," ") -> N/A | AG30: =IF(AA30="no",Wind!AK30," ") -> N/A | AH30: =Wind!AJ30 -> 0 | AI30: =Wind!AN30 -> N/A | AJ30: =Wind!AO30 -> Utility, IPP | AK30: =Wind!AP30 -> 0 | AL30: ='Community & Other EE'!D29 -> 0 | AM30: ='Community & Other EE'!Z29 -> 0 | AN30: ='Community & Other EE'!W29 -> 0 | AO30: ='Community & Other EE'!AA29 -> 0 | AP30: ='Community & Other EE'!Y29 -> 0 | AQ30: ='Community & Other EE'!X29 -> 0 | AR30: ='Community & Other EE'!AB29 -> City, Tribe | AS30: ='Community & Other EE'!AC29 -> 0 | AT30: ='Community & Other EE'!D63 -> 0 | AU30: ='Community & Other EE'!Z63 -> 0 | AV30: ='Community & Other EE'!W63 ->  | AW30: ='Community & Other EE'!AA63 ->  | AX30: ='Community & Other EE'!Y63 ->  | AY30: ='Community & Other EE'!X63 ->  | AZ30: ='Community & Other EE'!AB63 -> Building Owner | BA30: ='Community & Other EE'!AC63 -> 0 | BB30: ='Residential EE'!B29 -> 2 | BC30: ='Residential EE'!F29 -> 72000 | BD30: ='Residential EE'!U29 -> 277.6 | BE30: ='Residential EE'!Y29 -> 54.3174857 | BF30: ='Residential EE'!W29 -> 1325.54 | BG30: ='Residential EE'!V29 -> 6232.12 | BH30: ='Residential EE'!Z29 -> Housing Authority, Tribe, City | BI30: ='Residential EE'!AA29 -> Near Term | BJ30: ='Utility Line Loss'!G29 -> N/A | BK30: ='Utility Line Loss'!K29 -> N/A | BL30: ='Utility Line Loss'!P29 -> N/A | BM30: ='Utility Line Loss'!O29 -> N/A | BN30: ='Utility Line Loss'!N29 -> N/A | BO30: ='Utility Line Loss'!Q29 -> N/A | BP30: ='Utility Line Loss'!R29 -> 0 | BQ30: ='Utility Infrastructure'!R30 -> N/A | BR30: ='Utility Infrastructure'!U30 -> N/A | BS30: ='Utility Infrastructure'!W30 -> N/A | BT30: ='Utility Infrastructure'!V30 -> N/A | BU30: ='Utility Infrastructure'!X30-'Utility Infrastructure'!Y30 ->  | BV30: ='Utility Infrastructure'!AA30 -> Utility | BW30: ='Utility Infrastructure'!AB30 -> 0 | BX30: ='Heat Recovery'!S30 -> 0 | BY30: ='Heat Recovery'!P30 -> 0 | BZ30: ='Heat Recovery'!Q30 -> 0 | CA30: ='Heat Recovery'!R30 -> 0 | CB30: ='Heat Recovery'!T30 -> 0
B31: South Naknek Village | C31: South Naknek | D31: Naknek Electric | E31: N/A | F31: N/A | G31: N/A | H31: N/A | I31: N/A | J31: N/A | K31: 90 | L31: N/A | M31: N/A | N31: N/A | O31: N/A | P31: =Solar!C30 -> No | Q31: =Solar!E30 -> No | R31: =Solar!M30 -> 6983.086583 | S31: =Solar!K30 -> 7346737.8 | T31: =Solar!T30 -> N/A | U31: =Solar!S30 -> 28357846.33 | V31: =Solar!V30 -> 0 | W31: =Solar!W30 -> 0 | X31: =Solar!Y30 ->  | Y31: =Solar!Z30 -> Utility, IPP, Tribe | Z31: =Solar!AA30 -> 0 | AA31: =Wind!C31 -> no | AB31: 0 | AC31: =IF(AA31="no",Wind!O31," ") -> 9795650.4 | AD31: =IF(AA31="NO",Wind!S31," ") -> 7500 | AE31: =IF(AA31="no",Wind!V31," ") -> 659195.8546 | AF31: =IF(AA31="no",Wind!AD31," ") -> 45175500 | AG31: =IF(AA31="no",Wind!AK31," ") -> 0 | AH31: =Wind!AJ31 -> 0 | AI31: =Wind!AN31 -> 0 | AJ31: =Wind!AO31 -> Utility, IPP | AK31: =Wind!AP31 -> 0 | AL31: ='Community & Other EE'!D30 -> Combined with Naknek | AM31: ='Community & Other EE'!Z30 -> 0 | AN31: ='Community & Other EE'!W30 -> 0 | AO31: ='Community & Other EE'!AA30 -> 0 | AP31: ='Community & Other EE'!Y30 -> 0 | AQ31: ='Community & Other EE'!X30 -> 0 | AR31: ='Community & Other EE'!AB30 -> City, Tribe | AS31: ='Community & Other EE'!AC30 -> 0 | AT31: ='Community & Other EE'!D64 -> Combined with Naknek | AU31: ='Community & Other EE'!Z64 ->  | AV31: ='Community & Other EE'!W64 ->  | AW31: ='Community & Other EE'!AA64 ->  | AX31: ='Community & Other EE'!Y64 ->  | AY31: ='Community & Other EE'!X64 ->  | AZ31: ='Community & Other EE'!AB64 -> Building Owner | BA31: ='Community & Other EE'!AC64 -> 0 | BB31: ='Residential EE'!B30 -> 26 | BC31: ='Residential EE'!F30 -> N/A | BD31: ='Residential EE'!U30 -> N/A | BE31: ='Residential EE'!Y30 -> N/A | BF31: ='Residential EE'!W30 -> N/A | BG31: ='Residential EE'!V30 -> N/A | BH31: ='Residential EE'!Z30 -> N/A | BI31: ='Residential EE'!AA30 -> 0 | BJ31: ='Utility Line Loss'!G30 -> 0 | BK31: ='Utility Line Loss'!K30 -> N/A | BL31: ='Utility Line Loss'!P30 -> N/A | BM31: ='Utility Line Loss'!O30 -> N/A | BN31: ='Utility Line Loss'!N30 -> N/A | BO31: ='Utility Line Loss'!Q30 -> N/A | BP31: ='Utility Line Loss'!R30 -> 0 | BQ31: ='Utility Infrastructure'!R31 -> N/A | BR31: ='Utility Infrastructure'!U31 -> N/A | BS31: ='Utility Infrastructure'!W31 -> N/A | BT31: ='Utility Infrastructure'!V31 -> N/A | BU31: ='Utility Infrastructure'!X31-'Utility Infrastructure'!Y31 ->  | BV31: ='Utility Infrastructure'!AA31 -> Utility | BW31: ='Utility Infrastructure'!AB31 -> 0 | BX31: ='Heat Recovery'!S31 -> 0 | BY31: ='Heat Recovery'!P31 -> 0 | BZ31: ='Heat Recovery'!Q31 -> 0 | CA31: ='Heat Recovery'!R31 -> 0 | CB31: ='Heat Recovery'!T31 -> 0
B32: Traditional Village of Togiak | C32: Togiak | D32: AVEC | E32: =858+96 -> 954 | F32: 2.82 | G32: 14.31 | H32: 0.03 | I32: 3288032 | J32: 3288032 | K32: 90 | L32: 7.1 | M32: 0.26 | N32: 0.52 | O32: =I32/G32 -> 229771.6282 | P32: =Solar!C31 -> No | Q32: =Solar!E31 -> No | R32: =Solar!M31 -> 937.5839768 | S32: =Solar!K31 -> 986409.6 | T32: =Solar!T31 -> 68931.48847 | U32: =Solar!S31 -> 4175835.907 | V32: =Solar!V31 -> 194386.7975 | W32: =Solar!W31 -> 21.48209632 | X32: =Solar!Y31 -> 1547511.916 | Y32: =Solar!Z31 -> Utility, IPP, Tribe | Z32: =Solar!AA31 -> Near Term | AA32: =Wind!C32 -> no | AB32: 0 | AC32: =IF(AA32="no",Wind!O32," ") -> 1315212.8 | AD32: =IF(AA32="NO",Wind!S32," ") -> 1000 | AE32: =IF(AA32="no",Wind!V32," ") -> 91908.65129 | AF32: =IF(AA32="no",Wind!AD32," ") -> 6175500 | AG32: =IF(AA32="no",Wind!AK32," ") -> 12.63390937 | AH32: =Wind!AJ32 -> 488803.5698 | AI32: =Wind!AN32 -> 2789404.903 | AJ32: =Wind!AO32 -> Utility, IPP | AK32: =Wind!AP32 -> 0 | AL32: ='Community & Other EE'!D31 -> 25 | AM32: ='Community & Other EE'!Z31 -> 1250000 | AN32: ='Community & Other EE'!W31 -> 21489.69028 | AO32: ='Community & Other EE'!AA31 -> 8.965101551 | AP32: ='Community & Other EE'!Y31 -> 139429.5416 | AQ32: ='Community & Other EE'!X31 -> 482443.5467 | AR32: ='Community & Other EE'!AB31 -> City, Tribe | AS32: ='Community & Other EE'!AC31 -> Near Term | AT32: ='Community & Other EE'!D65 -> 88 | AU32: ='Community & Other EE'!Z65 -> 3740000 | AV32: ='Community & Other EE'!W65 -> 45797.53254 | AW32: ='Community & Other EE'!AA65 -> 11.45779507 | AX32: ='Community & Other EE'!Y65 -> 326415.3336 | AY32: ='Community & Other EE'!X65 -> 1028154.605 | AZ32: ='Community & Other EE'!AB65 -> Building Owner | BA32: ='Community & Other EE'!AC65 -> Near Term | BB32: ='Residential EE'!B31 -> 245 | BC32: ='Residential EE'!F31 -> 8820000 | BD32: ='Residential EE'!U31 -> 42902.54787 | BE32: ='Residential EE'!Y31 -> 14.68884451 | BF32: ='Residential EE'!W31 -> 600455.672 | BG32: ='Residential EE'!V31 -> 963162.1997 | BH32: ='Residential EE'!Z31 -> Housing Authority, Tribe, City | BI32: ='Residential EE'!AA31 -> Near Term | BJ32: ='Utility Line Loss'!G31 -> N/A | BK32: ='Utility Line Loss'!K31 -> N/A | BL32: ='Utility Line Loss'!P31 -> N/A | BM32: ='Utility Line Loss'!O31 -> N/A | BN32: ='Utility Line Loss'!N31 -> N/A | BO32: ='Utility Line Loss'!Q31 -> N/A | BP32: ='Utility Line Loss'!R31 -> 0 | BQ32: ='Utility Infrastructure'!R32 -> 238000 | BR32: ='Utility Infrastructure'!U32 -> 0 | BS32: ='Utility Infrastructure'!W32 -> 0 | BT32: ='Utility Infrastructure'!V32 -> 0 | BU32: ='Utility Infrastructure'!X32-'Utility Infrastructure'!Y32 -> 5158373.054 | BV32: ='Utility Infrastructure'!AA32 -> Utility | BW32: ='Utility Infrastructure'!AB32 -> Near Term | BX32: ='Heat Recovery'!S32 -> 100000 | BY32: ='Heat Recovery'!P32 -> 4595.432565 | BZ32: ='Heat Recovery'!Q32 -> 3.064892552 | CA32: ='Heat Recovery'!R32 -> 32627.57121 | CB32: ='Heat Recovery'!T32 -> 103167.4611
B33: Twin Hills Village | C33: Twin Hills* | D33: Twin Hills Village Council | E33: N/A | F33: 3.19 | G33: 0 | H33: 0.06 | I33: N/A | J33: 341183 | K33: 90 | L33: 7.975 | M33: 0.25 | N33: 0.5 | O33: N/A | P33: =Solar!C32 -> No | Q33: =Solar!E32 -> No | R33: =Solar!M32 -> 97.28850387 | S33: =Solar!K32 -> 102354.9 | T33: =Solar!T32 -> 7152.683438 | U33: =Solar!S32 -> 814654.0155 | V33: =Solar!V32 -> 22817.06017 | W33: =Solar!W32 -> 35.70372386 | X33: =Solar!Y32 -> 160577.7432 | Y33: =Solar!Z32 -> Utility, IPP, Tribe | Z33: =Solar!AA32 -> Near Term | AA33: =Wind!C33 -> no | AB33: 0 | AC33: =IF(AA33="no",Wind!O33," ") -> N/A | AD33: =IF(AA33="NO",Wind!S33," ") -> N/A | AE33: =IF(AA33="no",Wind!V33," ") -> N/A | AF33: =IF(AA33="no",Wind!AD33," ") -> N/A | AG33: =IF(AA33="no",Wind!AK33," ") -> N/A | AH33: =Wind!AJ33 ->  | AI33: =Wind!AN33 -> N/A | AJ33: =Wind!AO33 -> Utility, IPP | AK33: =Wind!AP33 -> 0 | AL33: ='Community & Other EE'!D32 -> Combined with Togiak | AM33: ='Community & Other EE'!Z32 -> 0 | AN33: ='Community & Other EE'!W32 -> 0 | AO33: ='Community & Other EE'!AA32 -> 0 | AP33: ='Community & Other EE'!Y32 -> 653.725 | AQ33: ='Community & Other EE'!X32 -> 0 | AR33: ='Community & Other EE'!AB32 -> City, Tribe | AS33: ='Community & Other EE'!AC32 -> Near Term | AT33: ='Community & Other EE'!D66 -> Combined with Togiak | AU33: ='Community & Other EE'!Z66 ->  | AV33: ='Community & Other EE'!W66 ->  | AW33: ='Community & Other EE'!AA66 ->  | AX33: ='Community & Other EE'!Y66 ->  | AY33: ='Community & Other EE'!X66 ->  | AZ33: ='Community & Other EE'!AB66 -> Building Owner | BA33: ='Community & Other EE'!AC66 -> Near Term | BB33: ='Residential EE'!B32 -> 35 | BC33: ='Residential EE'!F32 -> 0 | BD33: ='Residential EE'!U32 -> N/A | BE33: ='Residential EE'!Y32 -> N/A | BF33: ='Residential EE'!W32 -> N/A | BG33: ='Residential EE'!V32 -> N/A | BH33: ='Residential EE'!Z32 -> Housing Authority, Tribe, City | BI33: ='Residential EE'!AA32 -> 0 | BJ33: ='Utility Line Loss'!G32 -> N/A | BK33: ='Utility Line Loss'!K32 -> N/A | BL33: ='Utility Line Loss'!P32 -> N/A | BM33: ='Utility Line Loss'!O32 -> N/A | BN33: ='Utility Line Loss'!N32 -> N/A | BO33: ='Utility Line Loss'!Q32 -> N/A | BP33: ='Utility Line Loss'!R32 -> 0 | BQ33: ='Utility Infrastructure'!R33 -> 8000 | BR33: 0 | BS33: 0 | BT33: 0 | BU33: 0 | BV33: ='Utility Infrastructure'!AA33 -> Utility | BW33: ='Utility Infrastructure'!AB33 -> Near Term | BX33: ='Heat Recovery'!S33 -> 0 | BY33: ='Heat Recovery'!P33 -> 476.8455625 | BZ33: ='Heat Recovery'!Q33 -> 0 | CA33: ='Heat Recovery'!R33 -> 3802.843361 | CB33: ='Heat Recovery'!T33 -> 10705.18288
B34: Ugashik Village | C34: Ugashik | E34: N/A | F34: N/A | G34: N/A | H34: N/A | I34: N/A | J34: N/A | K34: N/A | L34: N/A | M34: N/A | N34: N/A | O34: N/A | P34: =Solar!C33 -> No | Q34: =Solar!E33 -> No | R34: =Solar!M33 -> 0 | S34: =Solar!K33 -> 0 | T34: =Solar!T33 -> N/A | U34: =Solar!S33 -> 0 | V34: =Solar!V33 -> 0 | W34: =Solar!W33 -> 0 | X34: =Solar!Y33 -> N/A | Y34: =Solar!Z33 -> Utility, IPP, Tribe | Z34: =Solar!AA33 -> 0 | AA34: =Wind!C34 -> no | AB34: 0 | AC34: =IF(AA34="no",Wind!O34," ") -> N/A | AD34: =IF(AA34="NO",Wind!S34," ") -> N/A | AE34: =IF(AA34="no",Wind!V34," ") -> N/A | AF34: =IF(AA34="no",Wind!AD34," ") -> N/A | AG34: =IF(AA34="no",Wind!AK34," ") -> N/A | AH34: =Wind!AJ34 ->  | AI34: =Wind!AN34 -> N/A | AJ34: =Wind!AO34 -> Utility, IPP | AK34: =Wind!AP34 -> 0 | AL34: ='Community & Other EE'!D33 -> 0 | AM34: ='Community & Other EE'!Z33 -> 0 | AN34: ='Community & Other EE'!W33 -> 0 | AO34: ='Community & Other EE'!AA33 -> 0 | AP34: ='Community & Other EE'!Y33 -> 0 | AQ34: ='Community & Other EE'!X33 -> 0 | AR34: ='Community & Other EE'!AB33 -> City, Tribe | AS34: ='Community & Other EE'!AC47 -> Near Term | AT34: ='Community & Other EE'!D67 -> 0 | AU34: ='Community & Other EE'!Z67 -> 0 | AV34: ='Community & Other EE'!W67 ->  | AW34: ='Community & Other EE'!AA67 ->  | AX34: ='Community & Other EE'!Y67 ->  | AY34: ='Community & Other EE'!X67 ->  | AZ34: ='Community & Other EE'!AB67 -> Building Owner | BA34: ='Community & Other EE'!AC67 -> 0 | BB34: ='Residential EE'!B33 -> 23 | BC34: ='Residential EE'!F33 -> 828000 | BD34: ='Residential EE'!U33 -> 3192.4 | BE34: ='Residential EE'!Y33 -> 44.71827487 | BF34: ='Residential EE'!W33 -> 18515.92 | BG34: ='Residential EE'!V33 -> 71669.38 | BH34: ='Residential EE'!Z33 -> Housing Authority, Tribe, City | BI34: ='Residential EE'!AA33 -> Near Term | BJ34: ='Utility Line Loss'!G33 -> N/A | BK34: ='Utility Line Loss'!K33 -> N/A | BL34: ='Utility Line Loss'!P33 -> N/A | BM34: ='Utility Line Loss'!O33 -> N/A | BN34: ='Utility Line Loss'!N33 -> N/A | BO34: ='Utility Line Loss'!Q33 -> N/A | BP34: ='Utility Line Loss'!R33 -> 0 | BQ34: ='Utility Infrastructure'!R34 -> n/a | BR34: ='Utility Infrastructure'!U34 -> N/A | BS34: ='Utility Infrastructure'!W34 -> N/A | BT34: ='Utility Infrastructure'!V34 -> N/A | BU34: ='Utility Infrastructure'!X34-'Utility Infrastructure'!Y34 ->  | BV34: ='Utility Infrastructure'!AA34 -> Utility | BW34: ='Utility Infrastructure'!AB34 -> 0 | BX34: ='Heat Recovery'!S34 -> 0 | BY34: ='Heat Recovery'!P34 -> 0 | BZ34: ='Heat Recovery'!Q34 -> 0 | CA34: ='Heat Recovery'!R34 -> 0 | CB34: ='Heat Recovery'!T34 -> 0

Sheet Assumptions
A3: Assumptions
A4: Item | B4: Units | C4: Value | D4: Source/Justification
A5: Diesel Fuel | B5: Btu/gal | C5: 137381 | D5: EIA.gov
A6: Heating Oil | B6: Btu/gal | C6: 138500 | D6: EIA.gov
A7: Heating Oil Cost | B7: $/gallon | C7: 2.5 x diesel cost if actual cost not available | D7: Regional data from Northwest Alaska Borough
A8: Btu to kWh conversion | B8: Btu/kWh | C8: 3412 | D8: EIA.gov
A9: Diesel CO2 Emissions | B9: lbs./gallon of diesel | C9: 22.45 | D9: EIA.gov
A10: Heating Oil CO2 Emissions | B10: lbs./gallon of diesel | C10: 22.45 | D10: EIA.gov
A11: Gasoline CO2 Emissions | B11: lbs./gallon of diesel | C11: 19.37 | D11: EIA.gov
A12: Wind System Installed Costs - Northwind 100 | B12: $/kW installed | C12: 10000 | D12: Recent Alaska Specific Experience - $225,000 for hardware plus installation
A13: Wind System Installed Costs - 1 MW EWT's | B13: Cost per Turbine installed | C13: 10,000,000 for 1st EWT, +$4,000,000 for each additional | D13: Based on quotes for Nome project
A14: Solar PV Installed Cost | B14: $/kW installed | C14: 4000 | D14: Recent Alaska Specific Experience and recent quotes
B15: $/kWh installed | D15: Recent Alaska Specific Experience
A16: Battery Installed Cost | B16: $/kWh installed | C16: 1500 | D16: Recent Alaska Specific Experience
A17: Inverter Installed Cost (rounded to 250 kW multiples) | B17: $/kW installed | C17: 1000 | D17: Recent Alaska Specific Experience
A18: Wind System Capacity Factor | B18: % | C18: 0.3 | D18: Recent Alaska Specific Experience
A19: Solar PV Capacity Factor | B19: % | C19: 0.1201 | D19: Helioscope model for Dillingham
A20: Percent of Community Load Displaced by High Penetration Wind System | B20: % | C20: 0.4 | D20: Recent Alaska Specific Experience
A21: Percent of Community Load Displaced by High Penetration Solar System | B21: % | C21: 0.3 | D21: Recent Alaska Specific Experience
A22: Battery Sized to meet Peak Load plus 30% | D22: 30% to offset battery degradation over 15 years of operation
A23: Wind to Heat - Turbine output doubled to supplement heating load | D23: Target wind to heat from recent experience in NANA region and Kotezbue Electric
A25: Energy Efficiency - Community and Commercial Buildings
A26: Community Building Size | B26: square feet | C26: 2500 | D26: Informal Survey of building sizes in region
A27: Commercial Building Size | C27: 1700 | D27: Informal Survey of building sizes in region
A28: Energy Efficiency Retrofit Cost | B28: $/sq ft | C28: 20 | D28: Estimate based on AHFC 2019 Weatherization Report
A29: Reduction in Community and Commercial Building Electrical Usage Due to EE | B29: % | C29: 0.1 | D29: Estimate based on a combination of previous EE retrofits and opportunity for additional retrofit work
A30: Reduction in Community and Commercial Building Heating Usage Due to EE | B30: % | C30: 0.2 | D30: Estimate based on a combination of previous EE retrofits and opportunity for additional retrofit work
A31: Heating demand in Community and Commercial Buildings | B31: BTU/Sq. Ft. | C31: 195000 | D31: 2014 AHFC Alaska Housing Assessment
A34: Energy Efficiency - Residential
A35: Cost to Implement Energy Efficiency Upgrades (Electrical and Heating Needs) | B35: $/home | C35: 36000 | D35: Estimate based on AHFC 2019 Weatherization Report
A36: Annual Percent Savings in Energy Cost per household | B36: % | C36: 0.2 | D36: Estimate based on a combination of previous EE retrofits and opportunity for additional retrofit work
A37: Average annual heating fuel usage per household | B37: gallons | C37: 694 | D37: 2018 AHFC Alaska Housing Assessment
A38: Average annual electrical usage per household | B38: kWh | C38: 5277 | D38: 2018 AHFC Alaska Housing Assessment
A40: PCE Data Used in This Rpoert
A41: Community Population
A42: Number of Residences
A43: Number of Community Buildings
A44: Number of Commerical Buildings
A45: Full Electric Rate
A46: Rediential and Community Building Electric Rate with PCE
A47: Community Electrical Load
A48: Diesel Fuel Cost
A49: Line Loss
A50: Diesel Efficiency
A51: Peak Load

Sheet Residential EE
B1: Baseline PCE Data | E1: Electrical Calculations | N1: Heating Calculations | T1: GHG Emissions | W1: Economics
A2: Village | B2: Total # Residences | C2: Residences with Previous EE (# homes) | D2: Homes that need Energy Efficiency | E2: Baseline Home Energy Usage (annual kWh) | F2: Total Cost to Implement | G2: Baseline Annual Home Energy Usage (kWh) | H2: Facility Equivalent Gallons of Diesel for Annual Electrical Usage - Before EE Actions | I2: Percent Reduction in Electric Use due to EE Actions | J2: Annual Electricity Usage after EE Actions (kWh) | K2: Facility Equivalent Gallons of Diesel for Annual Electrical Usage - After EE Actions | L2: Total Cost Savings for Electricity EE Actions | M2: GHG Reductions due to Electricity EE Actions (lbs) | N2: Baseline Annual Fuel Use - Heating (gal) | O2: Percent Reduction in Heating Oil Use due to EE Actions | P2: Post-EE Heating Fuel Usage (gal) | Q2: Post-EE fuel Saved (gal) | R2: Total Cost Savings for Heating EE Actions | S2: GHG Reductions due to Heating EE Actions (lbs) | T2: Baseline GHG Emissions (lbs) | U2: Total Diesel Fuel Reduction Equivalents (gal) | V2: Total GHG Emissions Reductions (lbs) | W2: Total Cost Savings for Electric and Heating EE Actions | X2: Total Cost to Implement ($) ($36,000/household) | Y2: Simple Payback Combined (years) | Z2: Authority to Implement | AA2: Near Term (now-2030)/ Long Term (2030-2050)
A3: Aleknagik | B3: 42 | C3: 0 | D3: N/A | E3: N/A | F3: N/A | G3: see Curyung | H3: N/A | I3: N/A | J3: N/A | K3: N/A | L3: N/A | M3: N/A | N3: N/A | O3: N/A | P3: N/A | Q3: N/A | R3: N/A | S3: N/A | T3: N/A | U3: N/A | V3: N/A | W3: N/A | X3: N/A | Y3: N/A | Z3: N/A
A4: Chignik Bay | B4: 47 | C4: 0 | D4: =B4-C4 -> 47 | E4: =G4/D4 -> 2675.702128 | F4: =36000*D4 -> 1692000 | G4: 125758 | H4: =G4/Measures!G5 -> 11109.36396 | I4: 0.1 | J4: =G4-(G4*I4) -> 113182.2 | K4: =J4/Measures!G5 -> 9998.427562 | L4: =(G4-J4)*Measures!F5 -> 15216.718 | M4: =(H4-K4)*22.45 -> 24940.52208 | N4: =D4*$C$36 -> 32618 | O4: 0.2 | P4: =N4*(1-O4) -> 26094.4 | Q4: =N4-P4 -> 6523.6 | R4: =Q4*Measures!L5 -> 33987.956 | S4: =Q4*22.45 -> 146454.82 | T4: =(H4+N4)*22.45 -> 981679.3208 | U4: =(H4-K4)+Q4 -> 7634.536396 | V4: =S4+M4 -> 171395.3421 | W4: =R4+L4 -> 49204.674 | X4: =36000*B4 -> 1692000 | Y4: =X4/W4 -> 34.38697714 | Z4: Housing Authority, Tribe, City | AA4: Near Term
A5: Chignik Lagoon | B5: 69 | C5: 0 | D5: 69 | E5: =G5/D5 -> 3195.753623 | F5: 2484000 | G5: 220507 | H5: =G5/Measures!G6 -> 17542.32299 | I5: 0.1 | J5: =G5-(G5*I5) -> 198456.3 | K5: =J5/Measures!G6 -> 15788.09069 | L5: =(G5-J5)*Measures!F6 -> 67475.142 | M5: 39382.51512 | N5: 47886 | O5: 0.2 | P5: 38308.8 | Q5: 9577.2 | R5: =Q5*Measures!L6 -> 73265.58 | S5: 215008.14 | T5: 1468865.851 | U5: 11331.4323 | V5: 254390.6551 | W5: 140740.722 | X5: 2484000 | Y5: 17.64947603 | Z5: Housing Authority, Tribe, City | AA5: Near Term
A6: Chignik Lake* | B6: 43 | C6: 0 | D6: 43 | E6: =G6/D6 -> 2447 | F6: 1548000 | G6: 105221 | H6: =G6/Measures!G7 -> 12738.61985 | I6: 0.1 | J6: 94698.9 | K6: =J6/Measures!G7 -> 11464.75787 | L6: =(G6-J6)*Measures!F7 -> 34091.604 | M6: 28598.20157 | N6: 29842 | O6: 0.2 | P6: 23873.6 | Q6: 5968.4 | R6: =Q6*Measures!L7 -> 48344.04 | S6: 133990.58 | T6: 955934.9157 | U6: 7242.261985 | V6: 162588.7816 | W6: 82435.644 | X6: 1548000 | Y6: 18.77828479 | Z6: Housing Authority, Tribe, City | AA6: Near Term
A7: Clarks Point* | B7: 51 | C7: 0 | D7: 51 | E7: 2919.823529 | F7: 1836000 | G7: 148911 | H7: =G7/Measures!G8 -> 12926.30208 | I7: 0.1 | J7: 134019.9 | K7: =J7/Measures!G8 -> 11633.67188 | L7: =(G7-J7)*Measures!F8 -> 33504.975 | M7: 29019.54818 | N7: 35394 | O7: 0.2 | P7: 28315.2 | Q7: 7078.8 | R7: =Q7*Measures!L8 -> 39818.25 | S7: 158919.06 | T7: 1084790.782 | U7: 8371.430208 | V7: 187938.6082 | W7: 73323.225 | X7: 1836000 | Y7: 25.03981515 | Z7: Housing Authority, Tribe, City | AA7: Near Term
A8: Curyung (Dillingham) | B8: =991+B3+B29 -> 1035 | C8: 0 | D8: 1035 | E8: 4973.942995 | F8: 37260000 | G8: 5148031 | H8: =G8/Measures!G9 -> 345273.7089 | I8: 0.1 | J8: 4633227.9 | K8: =J8/Measures!G9 -> 310746.338 | L8: =(G8-J8)*Measures!F9 -> 983273.921 | M8: 775139.4765 | N8: 718290 | O8: 0.2 | P8: 574632 | Q8: 143658 | R8: =Q8*Measures!L9 -> 685966.95 | S8: 3225122.1 | T8: 23877005.27 | U8: 178185.3709 | V8: 4000261.577 | W8: 1669240.871 | X8: 37260000 | Y8: 22.3215239 | Z8: Housing Authority, Tribe, City | AA8: Near Term
A9: Egegik | B9: 85 | C9: 0 | D9: 85 | E9: 2042.976471 | F9: 3060000 | G9: 173653 | H9: =G9/Measures!G10 -> 14604.96215 | I9: 0.1 | J9: 156287.7 | K9: =J9/Measures!G10 -> 13144.46594 | L9: =(G9-J9)*Measures!F10 -> 52616.859 | M9: 32788.14003 | N9: 58990 | O9: 0.2 | P9: 47192 | Q9: 11798 | R9: =Q9*Measures!L10 -> 58990 | S9: 264865.1 | T9: 1652206.9 | U9: 13258.49622 | V9: 297653.24 | W9: 111606.859 | X9: 3060000 | Y9: 27.41766973 | Z9: Housing Authority, Tribe, City | AA9: Near Term
A10: Ekwok | B10: 19 | C10: 0 | D10: 19 | E10: 12292.31579 | F10: 684000 | G10: 233554 | H10: 0 | I10: 0.1 | J10: N/A | K10: 0 | L10: N/A | M10: 0 | N10: 0 | O10: 0.2 | P10: 0 | Q10: 0 | R10: =Q10*Measures!L24 -> 0 | S10: 0 | T10: 0 | U10: 0 | V10: 0 | W10: N/A | X10: N/A | Y10: N/A | Z10: N/A
A11: Ekuk | B11: 67 | C11: 0 | D11: 67 | E11: 0 | F11: 2412000 | G11: 0 | H11: 0 | I11: 0 | J11: 0 | K11: 0 | L11: 0 | M11: 0 | N11: 46498 | O11: 0.2 | P11: =N11*(1-O11) -> 37198.4 | Q11: =N11-P11 -> 9299.6 | R11: =Q11*Measures!L8 -> 52310.25 | S11: =Q11*22.45 -> 208776.02 | T11: 1043880.1 | U11: 9299.6 | V11: 208776.02 | W11: 52310.25 | X11: 2412000 | Y11: =X11/W11 -> 46.10951009 | Z11: Housing Authority, Tribe, City | AA11: Near Term
A12: Igiugig | B12: 31 | C12: 0 | D12: =B12-C12 -> 31 | E12: 2981.354839 | F12: 1116000 | G12: 92422 | H12: =G12/Measures!G13 -> 7082.145594 | I12: 0.1 | J12: 83179.8 | K12: =J12/Measures!G13 -> 6373.931034 | L12: =(G12-J12)*Measures!F13 -> 70517.986 | M12: 15899.41686 | N12: 21514 | O12: 0.2 | P12: 17211.2 | Q12: 4302.8 | R12: =Q12*Measures!L13 -> 43028 | S12: 96597.86 | T12: 641983.4686 | U12: 5011.014559 | V12: 112497.2769 | W12: 113545.986 | X12: 1116000 | Y12: 9.828616927 | Z12: Housing Authority, Tribe, City | AA12: Near Term
A13: Iliamna | B13: =189 -> 189 | C13: 0 | D13: =B13-C13 -> 189 | E13: 4297.111111 | F13: 6804000 | G13: 812154 | H13: =G13/Measures!G14 -> 63449.53125 | I13: 0.1 | J13: 730938.6 | K13: =J13/Measures!G14 -> 57104.57812 | L13: =(G13-J13)*Measures!F14 -> 297248.364 | M13: 142444.1977 | N13: 131166 | O13: 0.2 | P13: 104932.8 | Q13: 26233.2 | R13: =Q13*Measures!L14 -> 186255.72 | S13: 588935.34 | T13: 4369118.677 | U13: 32578.15313 | V13: 731379.5377 | W13: 483504.084 | X13: 6804000 | Y13: 14.07226997 | Z13: Housing Authority, Tribe, City | AA13: Near Term
